Workbook

Sheet Quick guide
A2: About
A3: Hi! This guide is designed to help you get the most of this Quality monitoring tool. it will cover the basis of how to use it along with a few other tips
A4: This tool was designed to help remove all the irritating mathematics involved in audits and make things easier for all involved.
A5: it also helps standardise how we complete audits in the department.
A6: The following menu is hyperlinked to the relevant section, click on what you need to know.
A8: 1. Using the sheet for the first time
A9: 2. General information
A10: 3. Setting up the questions
A11: 4. Setting the audit month
A12: 5. filling in the audit
A13: 6. view results - by month
A14: 7. View the raw data
A15: 8. view results - for the year
A16: 9. Graph stuff
A17: 10. Create a report/export
A18: 11. Other information
A19: 12. Adding audits/Questions to the sheet
A21: 1. Using the sheet for the first time
A22: Please ensure you make a fresh copy of it in the relevant Audit folder - please do not use the original!
A23: The first time you activate this sheet, please ensure you have activated Macros and made it a trusted document if asked.
A30: 2. General information
A31: The Quality monitoring tool (QM tool from now) has quite a few tabs.
B32: Tabs with this colour contain consolidated information for all the audits
B33: These tabs have result breakdowns for the labelled month
B34: this is involved with creating reports, just ignore it
B35: These tabs (this included) have information & settings type stuff
B36: These tabs go into greater detail for results, they're hidden to start with.
B37: If you've found these please leave them alone, they get cranky if disturbed.
A39: 3. Setting up the questions
A40: by the time you come to use the QM tool you will have (hopefully) drafted your questions and have had them added to the question bank.
A41: If you haven't done that, please do it now or you wont get much use out of this.
A42: With your questions prepped you need to populate the sheet for your audit (if it hasn't been done already)
A43: go to the 'Start' tab and click on 'open menu'
A44: This menu will appear:
A60: From the 'select QM audit' drop down select the audit you need
A61: now click 'populate questions'
A62: the audit will do some fun stuff and a message will appear saying:
A79: click 'ok' and get ready for the next step…
A81: 4. Setting the audit month
A83: On that same menu you will need to set the month you are collecting data for
A98: Click on the drop down next to 'select data collection month' & choose the month you need.
A99: the month will set as soon as its selected, so its quite wasn't to change if you have the wrong one.
A100: Please make sure you change the month before you start collecting information for a new one, otherwise your data will get mixed up.
A101: now you're ready to start the audit…
A103: 5. filling in the audit
A104: You can access the data collection screen through the previously mentioned menu (by clicking 'Start QM audit')
A105: Or through the 'continue in current data collection month' button on the start tab
A106: when you do that, the follow menu will appear:
A139: It will look like this but have your questions listed.
A140: You can navigate through the questions by either clicking on the 'next page' button (and previous page button on subsequent pages) Or by clicking on the page number tabs.
A141: You can exit by clicking cancel/exit towards the bottom.
A143: The first thing you need to do is record the patients K number. If you are doing an audit which doesn’t involve patients you will need an identifier for which 'record' this is
A144: You cannot submit information without there being some kind of identifier in this box
A145: For Audits involving patients information/files you can then proceed to fill in the other boxes. You should know if you need to collect this data before starting your Audit.
A146: After this you get to the questions proper.
A147: The QM Tool is mainly designed to record 'compliance' questions. This is where something was or wasn't done, or in some cases was not applicable.
A148: There is also the option to say 'No - Justified', this is where something hasn’t complied but there was a good reason for it.
A149: The compliance options can be found next to each question in the 'compliance' column
A159: Other questions may need you to record a non-compliance result. For this kind of question the result goes in the 'other result' box.
A160: in these instances you can leave the compliance box empty (unless its asking for more detail on the result!)
A169: its worth noting that results that go into 'other result' have absolutely no influence on the results produced by the QM Tool
A171: Each page of this menu has up to 10 questions, so please make sure you have checked they're all answered before submitting the data. Pages without questions will hide automatically
A172: on the last page you will find a box for any additional notes you may have for this record.
A190: once everything is done, click 'submit results' at the bottom. This will save your information
A191: If you have missed any questions they will be highlighted before you can finish the submission.
A202: the menu will now re-appear ready for your next entry.
A203: once you have completed all your entries for the month click 'cancel/Exit'
A204: if you haven't finished all your data entries for the month, don’t worry, you can come back to it.
A205: you can keep adding to it until you change the audit collection month.
A207: 6. view results - by month
A208: Now you have completed your Audit for the month you can go look at the results.
A209: click on the relevant month tab & you will see something like this:
A225: The sheet gives a breakdown of each compliance answer against the question.
A226: If you have a specific compliance target set, the overall result (compliant & justified) will highlight if its meeting or not meeting it.
A227: Otherwise the highlights will go off the 'traffic lights' (again if set)
A228: You can also enter the date the audit was completed & who by - which is useful if several people are responsible for the audit.
A229: The sample group size fills in automatically.
A231: if you have been recording the type of appointment (New of follow-up) you will also get the information of how many pts had that description
A232: If you have been recording the appointment code and type it in you can see how many of your sample group attended that clinic.
A234: 7. View the raw data
A235: If you have recorded non-compliance results, or need to tweak a submission after it has been completed, you will need to access the raw audit data.
A236: to do this, go back to the audit menu mentioned in step 3.
A251: click on 'view raw data' and the raw data tabs will be revealed.
A270: click on the tab you need & you will see something similar to this:
A285: There are drop downs in each compliance column should you need to change a result (this prevents the math being broken)
A286: the raw data tabs will hide again when you close the QM tool.
A288: 8. view results - for the year
A289: for regular/monthly audits you may want to view the results for the year to help identify any trends. You can do this through the 'year' tab
A290: This provides the full results breakdown for each question across the year.
A291: As with the month tab, the overall results will highlight against any specific targets if set, if not they will go against the 'traffic lights' (if set)
A293: 9. Graph stuff
A294: The 'graphs' tab takes information from the 'year' tab and puts it into a more visual medium.
A295: To get the best use of these, its recommended you re-configure the graphs through their filter & de-select any blanks
A296: they're originally set to show results for 40 questions, so if you only have 10 deselecting them will make the visual cleaner.
A298: 10. Create a report/export
A299: After completing your audit you may want to generate a report which details your results.
A300: The QM tool can generate a report for you which will details current results and the previous months results (except on the April report).
A301: The report will be generated for your currently selected audit month, if you need it for a different one please amend as per section 4.
A302: To generate the report, open the audit menu covered in section 4:
A317: Click on 'create audit report'. The QM tool will do some stuff and generate a new sheet with your report.
A318: Your report is now good to go. Though you may want to delete any rows which have blank question spaces.
A320: 11. Other information
A321: what follows are some useful tips on getting the best out of this tool:
A322: 1. make sure your questions make sense and have yes/no/an answers, it’s a good idea to test them out a couple of times before committing to them for the year
A323: 2. make sure your questions aren't too long. There is limited space in the data collection menu, questions that are too long just wont show up
A324: 3. don't be afraid to add extra graphs to the graph tab if you need to
A325: 4. the sheet is made for one financial year run of an audit, at the end you'll need a new one.
A328: 12. Adding audits/Questions
A329: Questions are added to the audit sheet through the 'Questions' Tab.
A330: The sheet can hold a total of 50 audits with a max of 40 questions each.
A331: Questions must be 'compliance' questions which can be answered 'Yes' or 'No'.
A333: To create an audit first add the name to the top row. These will say 'Filler' at first use:
F337: >
F339: >
F341: >
F343: >
F345: >
F347: >
A349: Next add your questions:
A361: You can also add individual percentage targets against each question if them have them.
A362: Though the RAG rating used throughout this sheet goes against the percentages shown in the 'year' tab
A364: Once all your questions are entered the audit is ready to use. You can populate the sheet by following section 3 of this guide.

Sheet Start
A1: Quality Monitoring Audit Title | B1: BCHI - Assessments
A2: Current data collection month | B2: May
A13: Audit tool V 3.5 (shareable)
A17: © 2023 Nottingham University Hospitals Trust
A18: The copyright in this documentation is owned by Nottingham University Hospitals Trust and this documentation may not (except under a written licence granted by Nottingham University Hospitals Trust, strictly in accordance with that licence) be copied, stored on any electronic medium or transmitted over any electronic network, loaded into or stored in any computer, or reproduced in any other way.

Sheet Questions (hidden)
A1: QMA name: | B1: Review audit | D1: BCHI - Assessments | F1: Filler 3 | H1: Filler 4 | J1: Filler 5 | L1: Filler 6 | N1: Filler 7 | P1: Filler 8 | R1: Filler 9 | T1: Filler 10 | V1: Filler 11 | X1: Filler 12 | Z1: Filler 13 | AB1: Filler 14 | AD1: Filler 15 | AF1: Filler 16 | AH1: Filler 17 | AJ1: Filler 18 | AL1: Filler 19 | AN1: Filler 20 | AP1: Filler 21 | AR1: Filler 22 | AT1: Filler 23 | AV1: Filler 24 | AX1: Filler 25 | AZ1: Filler 26 | BB1: Filler 27 | BD1: Filler 28 | BF1: Filler 29 | BH1: Filler 30 | BJ1: Filler 31 | BL1: Filler 32 | BN1: Filler 33 | BP1: Filler 34 | BR1: Filler 35 | BT1: Filler 36 | BV1: Filler 37 | BX1: Filler 38 | BZ1: Filler 39 | CB1: Filler 40 | CD1: Filler 41 | CF1: Filler 42 | CH1: Filler 43 | CJ1: Filler 44 | CL1: Filler 45 | CN1: Filler 46 | CP1: Filler 47 | CR1: Filler 48 | CT1: Filler 49 | CV1: Filler 50
B2: questions | C2: Target | D2: questions | E2: Target | F2: questions | G2: Target | H2: questions | I2: Target | J2: questions | K2: Target | L2: questions | M2: Target | N2: questions | O2: Target | P2: questions | Q2: Target | R2: questions | S2: Target | T2: questions | U2: Target | V2: questions | W2: Target | X2: questions | Y2: Target | Z2: Questions | AA2: Target | AB2: Questions | AC2: Target | AD2: Questions | AE2: Target | AF2: Questions | AG2: Target | AH2: questions | AI2: Target | AJ2: questions | AK2: Target | AL2: questions | AM2: Target | AN2: questions | AO2: Target | AP2: questions | AQ2: Target | AR2: questions | AS2: Target | AT2: questions | AU2: Target | AV2: questions | AW2: Target | AX2: questions | AY2: Target | AZ2: questions | BA2: Target | BB2: questions | BC2: Target | BD2: questions | BE2: Target | BF2: questions | BG2: Target | BH2: questions | BI2: Target | BJ2: questions | BK2: Target | BL2: questions | BM2: Target | BN2: questions | BO2: Target | BP2: questions | BQ2: Target | BR2: questions | BS2: Target | BT2: questions | BU2: Target | BV2: questions | BW2: Target | BX2: questions | BY2: Target | BZ2: questions | CA2: Target | CB2: questions | CC2: Target | CD2: questions | CE2: Target | CF2: questions | CG2: Target | CH2: questions | CI2: Target | CJ2: questions | CK2: Target | CL2: questions | CM2: Target | CN2: questions | CO2: Target | CP2: questions | CQ2: Target | CR2: questions | CS2: Target | CT2: questions | CU2: Target | CV2: questions | CW2: Target
A3: Question 1 | B3: Was equipment checked? | D3: Was a Room number documented? | CV3: Test1
A4: Question 2 | B4: Was consent taken? | D4: Were stage A checks completed as appropriate? | CV4: Test2
A5: Question 3 | B5: Was room number documented? | D5: Was COSI Part 1 performed? | CV5: Test3
A6: Question 4 | B6: Was a report created? | D6: Was PVP documented? | CV6: Test4
A7: Question 5 | D7: Was Otoscopy documented? | CV7: Test5
A8: Question 6 | D8: Document bc at 3 & 4kHz is for programming purposes? | CV8: Test6
A9: Question 7 | D9: Was Speech testing performed? | CV9: Test7
A10: Question 8 | D10: Is it documented whether national criteria were/were not met? | CV10: Test8
A11: Question 9 | D11: Was a BCHI info pack supplied? | CV11: Test9
A12: Question 10 | D12: Was the report authorised & issued within target (7 days)? | CV12: Test10
A13: Question 11 | D13: Was consent documented as appropriate? | CV13: Test11
A14: Question 12 | CV14: Test12
A15: Question 13 | CV15: Test13
A16: Question 14 | CV16: Test14
A17: Question 15 | CV17: Test15
A18: Question 16 | CV18: Test16
A19: Question 17 | CV19: Test17
A20: Question 18 | CV20: Test18
A21: Question 19 | CV21: Test19
A22: Question 20 | CV22: Test20
A23: Question 21 | CV23: Test21
A24: Question 22 | CV24: Test22
A25: Question 23 | CV25: Test23
A26: Question 24 | CV26: Test24
A27: Question 25 | CV27: Test25
A28: Question 26 | CV28: Test26
A29: Question 27 | CV29: Test27
A30: Question 28 | CV30: Test28
A31: Question 29 | CV31: Test29
A32: Question 30 | CV32: Test30
A33: Question 31 | CV33: Test31
A34: Question 32 | CV34: Test32
A35: Question 33 | CV35: Test33
A36: Question 34 | CV36: Test34
A37: Question 35 | CV37: Test35
A38: Question 36 | CV38: Test36
A39: Question 37 | CV39: Test37
A40: Question 38 | CV40: Test38
A41: Question 39 | CV41: Test39
A42: Question 40 | CV42: Test40

Sheet Year
A1: Quality Monitoring Audit | B1: =Start!B1 -> BCHI - Assessments
A2: Year
A4: Total number of audits | B4: =IF(ISERROR(COUNTIF(April!B5,">0")+COUNTIF(May!B5,">0")+COUNTIF(June!B5,">0")+COUNTIF(July!B5,">0")+COUNTIF(Aug!B5,">0")+COUNTIF(Sept!B5,">0")++COUNTIF(Oct!B5,">0")+COUNTIF(Nov!B5,">0")+COUNTIF(Dec!B5,">0")+COUNTIF(Jan!B5,">0")+COUNTIF(Feb!B5,">0")+COUNTIF(March!B5,">0")),"0",COUNTIF(April!B5,">0")+COUNTIF(May!B5,">0")+COUNTIF(June!B5,">0")+COUNTIF(July!B5,">0")+COUNTIF(Aug!B5,">0")+COUNTIF(Sept!B5,">0")++COUNTIF(Oct!B5,">0")+COUNTIF(Nov!B5,">0")+COUNTIF(Dec!B5,">0")+COUNTIF(Jan!B5,">0")+COUNTIF(Feb!B5,">0")+COUNTIF(March!B5,">0")) -> 12 | G4: If no specific targets are set, results will default to traffic lights (if set)
A5: Average compliance for year | B5: =IF(ISERROR(N98),"",N98) -> 0.9329545455 | G5: above | H5: 0.95
A6: Average compliance with justified for year | B6: =IF(ISERROR(N54),"",N54) -> 0.9684343434 | G6: between | H6: 80-95%
A7: Highest compliance value | B7: =MAX(B98:M98) -> 0.9772727273 | G7: below | H7: 0.8
A8: Lowest compliance value | B8: =IF(ISERROR(SMALL(B98:M98,COUNTIF(B98:M98,0)+1)),"",SMALL(B98:M98,COUNTIF(B98:M98,0)+1)) -> 0.8636363636
A9: Highest compliance value with justified | B9: =MAX(B54:M54) -> 1
A10: Lowest compliance value with justified | B10: =IF(ISERROR(SMALL(B54:M54,COUNTIF(B54:M54,0)+1)),"",SMALL(B54:M54,COUNTIF(B54:M54,0)+1)) -> 0.9318181818
A12: Overall result (compliant + Justified) | B12: (click through to month)
A13: Metric | B13: April | C13: May | D13: June | E13: July | F13: August | G13: September | H13: October | I13: November | J13: December | K13: January | L13: February | M13: March | N13: Year average | O13: Target | P13: Math
A14: =IF(ISERROR(Q!A2),"",Q!A2) -> Was a Room number documented? | B14: =IFERROR(INDEX(April!C:C,MATCH(Year!A:A,April!A:A,0)),"") -> 1 | C14: =IFERROR(INDEX(May!C:C,MATCH(Year!A:A,May!A:A,0)),"") -> 1 | D14: =IFERROR(INDEX(June!C:C,MATCH(Year!A:A,June!A:A,0)),"") -> 1 | E14: =IFERROR(INDEX(July!C:C,MATCH(Year!A:A,July!A:A,0)),"") -> 1 | F14: =IFERROR(INDEX(Aug!C:C,MATCH(Year!A:A,Aug!A:A,0)),"") -> 1 | G14: =IFERROR(INDEX(Sept!C:C,MATCH(Year!A:A,Sept!A:A,0)),"") -> 1 | H14: =IFERROR(INDEX(Oct!C:C,MATCH(Year!A:A,Oct!A:A,0)),"") -> 1 | I14: =IFERROR(INDEX(Nov!C:C,MATCH(Year!A:A,Nov!A:A,0)),"") -> 1 | J14: =IFERROR(INDEX(Dec!C:C,MATCH(Year!A:A,Dec!A:A,0)),"") -> 1 | K14: =IFERROR(INDEX(Jan!C:C,MATCH(Year!A:A,Jan!A:A,0)),"") -> 1 | L14: =IFERROR(INDEX(Feb!C:C,MATCH(Year!A:A,Feb!A:A,0)),"") -> 0.8 | M14: =IFERROR(INDEX(March!C:C,MATCH(Year!A:A,March!A:A,0)),"") -> 1 | N14: =IF(ISERROR((SUM(B14:M14))/P14),"",(SUM(B14:M14))/P14) -> 0.9833333333 | O14: =IF(ISERROR(Q!B2),"",Q!B2) -> 0 | P14: =COUNTIF(B14:M14,">-1") -> 12
A15: =IF(ISERROR(Q!A3),"",Q!A3) -> Were stage A checks completed as appropriate? | B15: =IFERROR(INDEX(April!C:C,MATCH(Year!A:A,April!A:A,0)),"") -> 1 | C15: =IFERROR(INDEX(May!C:C,MATCH(Year!A:A,May!A:A,0)),"") -> 0.75 | D15: =IFERROR(INDEX(June!C:C,MATCH(Year!A:A,June!A:A,0)),"") -> 1 | E15: =IFERROR(INDEX(July!C:C,MATCH(Year!A:A,July!A:A,0)),"") -> 1 | F15: =IFERROR(INDEX(Aug!C:C,MATCH(Year!A:A,Aug!A:A,0)),"") -> 0.8 | G15: =IFERROR(INDEX(Sept!C:C,MATCH(Year!A:A,Sept!A:A,0)),"") -> 1 | H15: =IFERROR(INDEX(Oct!C:C,MATCH(Year!A:A,Oct!A:A,0)),"") -> 1 | I15: =IFERROR(INDEX(Nov!C:C,MATCH(Year!A:A,Nov!A:A,0)),"") -> 1 | J15: =IFERROR(INDEX(Dec!C:C,MATCH(Year!A:A,Dec!A:A,0)),"") -> 1 | K15: =IFERROR(INDEX(Jan!C:C,MATCH(Year!A:A,Jan!A:A,0)),"") -> 0.8333333333 | L15: =IFERROR(INDEX(Feb!C:C,MATCH(Year!A:A,Feb!A:A,0)),"") -> 0.75 | M15: =IFERROR(INDEX(March!C:C,MATCH(Year!A:A,March!A:A,0)),"") -> 1 | N15: =IF(ISERROR((SUM(B15:M15))/P15),"",(SUM(B15:M15))/P15) -> 0.9277777778 | O15: =IF(ISERROR(Q!B3),"",Q!B3) -> 0 | P15: =COUNTIF(B15:M15,">-1") -> 12
A16: =IF(ISERROR(Q!A4),"",Q!A4) -> Was COSI Part 1 performed? | B16: =IFERROR(INDEX(April!C:C,MATCH(Year!A:A,April!A:A,0)),"") -> 0.6 | C16: =IFERROR(INDEX(May!C:C,MATCH(Year!A:A,May!A:A,0)),"") -> 0.5 | D16: =IFERROR(INDEX(June!C:C,MATCH(Year!A:A,June!A:A,0)),"") -> 0.8 | E16: =IFERROR(INDEX(July!C:C,MATCH(Year!A:A,July!A:A,0)),"") -> 0.8 | F16: =IFERROR(INDEX(Aug!C:C,MATCH(Year!A:A,Aug!A:A,0)),"") -> 1 | G16: =IFERROR(INDEX(Sept!C:C,MATCH(Year!A:A,Sept!A:A,0)),"") -> 0.75 | H16: =IFERROR(INDEX(Oct!C:C,MATCH(Year!A:A,Oct!A:A,0)),"") -> 1 | I16: =IFERROR(INDEX(Nov!C:C,MATCH(Year!A:A,Nov!A:A,0)),"") -> 1 | J16: =IFERROR(INDEX(Dec!C:C,MATCH(Year!A:A,Dec!A:A,0)),"") -> 0.6 | K16: =IFERROR(INDEX(Jan!C:C,MATCH(Year!A:A,Jan!A:A,0)),"") -> 0.8333333333 | L16: =IFERROR(INDEX(Feb!C:C,MATCH(Year!A:A,Feb!A:A,0)),"") -> 1 | M16: =IFERROR(INDEX(March!C:C,MATCH(Year!A:A,March!A:A,0)),"") -> 0.6666666667 | N16: 0.7958333333 | O16: =IF(ISERROR(Q!B4),"",Q!B4) -> 0 | P16: 12
A17: =IF(ISERROR(Q!A5),"",Q!A5) -> Was PVP documented? | B17: =IFERROR(INDEX(April!C:C,MATCH(Year!A:A,April!A:A,0)),"") -> 1 | C17: =IFERROR(INDEX(May!C:C,MATCH(Year!A:A,May!A:A,0)),"") -> 1 | D17: =IFERROR(INDEX(June!C:C,MATCH(Year!A:A,June!A:A,0)),"") -> 1 | E17: =IFERROR(INDEX(July!C:C,MATCH(Year!A:A,July!A:A,0)),"") -> 1 | F17: =IFERROR(INDEX(Aug!C:C,MATCH(Year!A:A,Aug!A:A,0)),"") -> 1 | G17: =IFERROR(INDEX(Sept!C:C,MATCH(Year!A:A,Sept!A:A,0)),"") -> 1 | H17: =IFERROR(INDEX(Oct!C:C,MATCH(Year!A:A,Oct!A:A,0)),"") -> 1 | I17: =IFERROR(INDEX(Nov!C:C,MATCH(Year!A:A,Nov!A:A,0)),"") -> 1 | J17: =IFERROR(INDEX(Dec!C:C,MATCH(Year!A:A,Dec!A:A,0)),"") -> 1 | K17: =IFERROR(INDEX(Jan!C:C,MATCH(Year!A:A,Jan!A:A,0)),"") -> 1 | L17: =IFERROR(INDEX(Feb!C:C,MATCH(Year!A:A,Feb!A:A,0)),"") -> 1 | M17: =IFERROR(INDEX(March!C:C,MATCH(Year!A:A,March!A:A,0)),"") -> 1 | N17: 1 | O17: =IF(ISERROR(Q!B5),"",Q!B5) -> 0 | P17: 12
A18: =IF(ISERROR(Q!A6),"",Q!A6) -> Was Otoscopy documented? | B18: =IFERROR(INDEX(April!C:C,MATCH(Year!A:A,April!A:A,0)),"") -> 1 | C18: =IFERROR(INDEX(May!C:C,MATCH(Year!A:A,May!A:A,0)),"") -> 1 | D18: =IFERROR(INDEX(June!C:C,MATCH(Year!A:A,June!A:A,0)),"") -> 1 | E18: =IFERROR(INDEX(July!C:C,MATCH(Year!A:A,July!A:A,0)),"") -> 1 | F18: =IFERROR(INDEX(Aug!C:C,MATCH(Year!A:A,Aug!A:A,0)),"") -> 1 | G18: =IFERROR(INDEX(Sept!C:C,MATCH(Year!A:A,Sept!A:A,0)),"") -> 1 | H18: =IFERROR(INDEX(Oct!C:C,MATCH(Year!A:A,Oct!A:A,0)),"") -> 1 | I18: =IFERROR(INDEX(Nov!C:C,MATCH(Year!A:A,Nov!A:A,0)),"") -> 0.75 | J18: =IFERROR(INDEX(Dec!C:C,MATCH(Year!A:A,Dec!A:A,0)),"") -> 1 | K18: =IFERROR(INDEX(Jan!C:C,MATCH(Year!A:A,Jan!A:A,0)),"") -> 1 | L18: =IFERROR(INDEX(Feb!C:C,MATCH(Year!A:A,Feb!A:A,0)),"") -> 0.8 | M18: =IFERROR(INDEX(March!C:C,MATCH(Year!A:A,March!A:A,0)),"") -> 1 | N18: 0.9625 | O18: =IF(ISERROR(Q!B6),"",Q!B6) -> 0 | P18: 12
A19: =IF(ISERROR(Q!A7),"",Q!A7) -> Document bc at 3 & 4kHz is for programming purposes? | B19: =IFERROR(INDEX(April!C:C,MATCH(Year!A:A,April!A:A,0)),"") -> 1 | C19: =IFERROR(INDEX(May!C:C,MATCH(Year!A:A,May!A:A,0)),"") -> 1 | D19: =IFERROR(INDEX(June!C:C,MATCH(Year!A:A,June!A:A,0)),"") -> 1 | E19: =IFERROR(INDEX(July!C:C,MATCH(Year!A:A,July!A:A,0)),"") -> 1 | F19: =IFERROR(INDEX(Aug!C:C,MATCH(Year!A:A,Aug!A:A,0)),"") -> 1 | G19: =IFERROR(INDEX(Sept!C:C,MATCH(Year!A:A,Sept!A:A,0)),"") -> 1 | H19: =IFERROR(INDEX(Oct!C:C,MATCH(Year!A:A,Oct!A:A,0)),"") -> 1 | I19: =IFERROR(INDEX(Nov!C:C,MATCH(Year!A:A,Nov!A:A,0)),"") -> 1 | J19: =IFERROR(INDEX(Dec!C:C,MATCH(Year!A:A,Dec!A:A,0)),"") -> 1 | K19: =IFERROR(INDEX(Jan!C:C,MATCH(Year!A:A,Jan!A:A,0)),"") -> 1 | L19: =IFERROR(INDEX(Feb!C:C,MATCH(Year!A:A,Feb!A:A,0)),"") -> 1 | M19: =IFERROR(INDEX(March!C:C,MATCH(Year!A:A,March!A:A,0)),"") -> 1 | N19: 1 | O19: =IF(ISERROR(Q!B7),"",Q!B7) -> 0 | P19: 12
A20: =IF(ISERROR(Q!A8),"",Q!A8) -> Was Speech testing performed? | B20: =IFERROR(INDEX(April!C:C,MATCH(Year!A:A,April!A:A,0)),"") -> 1 | C20: =IFERROR(INDEX(May!C:C,MATCH(Year!A:A,May!A:A,0)),"") -> 1 | D20: =IFERROR(INDEX(June!C:C,MATCH(Year!A:A,June!A:A,0)),"") -> 1 | E20: =IFERROR(INDEX(July!C:C,MATCH(Year!A:A,July!A:A,0)),"") -> 1 | F20: =IFERROR(INDEX(Aug!C:C,MATCH(Year!A:A,Aug!A:A,0)),"") -> 1 | G20: =IFERROR(INDEX(Sept!C:C,MATCH(Year!A:A,Sept!A:A,0)),"") -> 1 | H20: =IFERROR(INDEX(Oct!C:C,MATCH(Year!A:A,Oct!A:A,0)),"") -> 1 | I20: =IFERROR(INDEX(Nov!C:C,MATCH(Year!A:A,Nov!A:A,0)),"") -> 1 | J20: =IFERROR(INDEX(Dec!C:C,MATCH(Year!A:A,Dec!A:A,0)),"") -> 1 | K20: =IFERROR(INDEX(Jan!C:C,MATCH(Year!A:A,Jan!A:A,0)),"") -> 1 | L20: =IFERROR(INDEX(Feb!C:C,MATCH(Year!A:A,Feb!A:A,0)),"") -> 1 | M20: =IFERROR(INDEX(March!C:C,MATCH(Year!A:A,March!A:A,0)),"") -> 1 | N20: 1 | O20: =IF(ISERROR(Q!B8),"",Q!B8) -> 0 | P20: 12
A21: =IF(ISERROR(Q!A9),"",Q!A9) -> Is it documented whether national criteria were/were not met? | B21: =IFERROR(INDEX(April!C:C,MATCH(Year!A:A,April!A:A,0)),"") -> 0.8 | C21: =IFERROR(INDEX(May!C:C,MATCH(Year!A:A,May!A:A,0)),"") -> 1 | D21: =IFERROR(INDEX(June!C:C,MATCH(Year!A:A,June!A:A,0)),"") -> 1 | E21: =IFERROR(INDEX(July!C:C,MATCH(Year!A:A,July!A:A,0)),"") -> 1 | F21: =IFERROR(INDEX(Aug!C:C,MATCH(Year!A:A,Aug!A:A,0)),"") -> 1 | G21: =IFERROR(INDEX(Sept!C:C,MATCH(Year!A:A,Sept!A:A,0)),"") -> 1 | H21: =IFERROR(INDEX(Oct!C:C,MATCH(Year!A:A,Oct!A:A,0)),"") -> 1 | I21: =IFERROR(INDEX(Nov!C:C,MATCH(Year!A:A,Nov!A:A,0)),"") -> 1 | J21: =IFERROR(INDEX(Dec!C:C,MATCH(Year!A:A,Dec!A:A,0)),"") -> 1 | K21: =IFERROR(INDEX(Jan!C:C,MATCH(Year!A:A,Jan!A:A,0)),"") -> 1 | L21: =IFERROR(INDEX(Feb!C:C,MATCH(Year!A:A,Feb!A:A,0)),"") -> 1 | M21: =IFERROR(INDEX(March!C:C,MATCH(Year!A:A,March!A:A,0)),"") -> 1 | N21: 0.9833333333 | O21: =IF(ISERROR(Q!B9),"",Q!B9) -> 0 | P21: 12
A22: =IF(ISERROR(Q!A10),"",Q!A10) -> Was a BCHI info pack supplied? | B22: =IFERROR(INDEX(April!C:C,MATCH(Year!A:A,April!A:A,0)),"") -> 1 | C22: =IFERROR(INDEX(May!C:C,MATCH(Year!A:A,May!A:A,0)),"") -> 1 | D22: =IFERROR(INDEX(June!C:C,MATCH(Year!A:A,June!A:A,0)),"") -> 1 | E22: =IFERROR(INDEX(July!C:C,MATCH(Year!A:A,July!A:A,0)),"") -> 1 | F22: =IFERROR(INDEX(Aug!C:C,MATCH(Year!A:A,Aug!A:A,0)),"") -> 1 | G22: =IFERROR(INDEX(Sept!C:C,MATCH(Year!A:A,Sept!A:A,0)),"") -> 1 | H22: =IFERROR(INDEX(Oct!C:C,MATCH(Year!A:A,Oct!A:A,0)),"") -> 1 | I22: =IFERROR(INDEX(Nov!C:C,MATCH(Year!A:A,Nov!A:A,0)),"") -> 1 | J22: =IFERROR(INDEX(Dec!C:C,MATCH(Year!A:A,Dec!A:A,0)),"") -> 1 | K22: =IFERROR(INDEX(Jan!C:C,MATCH(Year!A:A,Jan!A:A,0)),"") -> 1 | L22: =IFERROR(INDEX(Feb!C:C,MATCH(Year!A:A,Feb!A:A,0)),"") -> 1 | M22: =IFERROR(INDEX(March!C:C,MATCH(Year!A:A,March!A:A,0)),"") -> 1 | N22: 1 | O22: =IF(ISERROR(Q!B10),"",Q!B10) -> 0 | P22: 12
A23: =IF(ISERROR(Q!A11),"",Q!A11) -> Was the report authorised & issued within target (7 days)? | B23: =IFERROR(INDEX(April!C:C,MATCH(Year!A:A,April!A:A,0)),"") -> 1 | C23: =IFERROR(INDEX(May!C:C,MATCH(Year!A:A,May!A:A,0)),"") -> 1 | D23: =IFERROR(INDEX(June!C:C,MATCH(Year!A:A,June!A:A,0)),"") -> 1 | E23: =IFERROR(INDEX(July!C:C,MATCH(Year!A:A,July!A:A,0)),"") -> 1 | F23: =IFERROR(INDEX(Aug!C:C,MATCH(Year!A:A,Aug!A:A,0)),"") -> 1 | G23: =IFERROR(INDEX(Sept!C:C,MATCH(Year!A:A,Sept!A:A,0)),"") -> 1 | H23: =IFERROR(INDEX(Oct!C:C,MATCH(Year!A:A,Oct!A:A,0)),"") -> 1 | I23: =IFERROR(INDEX(Nov!C:C,MATCH(Year!A:A,Nov!A:A,0)),"") -> 1 | J23: =IFERROR(INDEX(Dec!C:C,MATCH(Year!A:A,Dec!A:A,0)),"") -> 1 | K23: =IFERROR(INDEX(Jan!C:C,MATCH(Year!A:A,Jan!A:A,0)),"") -> 1 | L23: =IFERROR(INDEX(Feb!C:C,MATCH(Year!A:A,Feb!A:A,0)),"") -> 1 | M23: =IFERROR(INDEX(March!C:C,MATCH(Year!A:A,March!A:A,0)),"") -> 1 | N23: 1 | O23: =IF(ISERROR(Q!B11),"",Q!B11) -> 0 | P23: 12
A24: =IF(ISERROR(Q!A12),"",Q!A12) -> Was consent documented as appropriate? | B24: =IFERROR(INDEX(April!C:C,MATCH(Year!A:A,April!A:A,0)),"") -> 1 | C24: =IFERROR(INDEX(May!C:C,MATCH(Year!A:A,May!A:A,0)),"") -> 1 | D24: =IFERROR(INDEX(June!C:C,MATCH(Year!A:A,June!A:A,0)),"") -> 1 | E24: =IFERROR(INDEX(July!C:C,MATCH(Year!A:A,July!A:A,0)),"") -> 1 | F24: =IFERROR(INDEX(Aug!C:C,MATCH(Year!A:A,Aug!A:A,0)),"") -> 1 | G24: =IFERROR(INDEX(Sept!C:C,MATCH(Year!A:A,Sept!A:A,0)),"") -> 1 | H24: =IFERROR(INDEX(Oct!C:C,MATCH(Year!A:A,Oct!A:A,0)),"") -> 1 | I24: =IFERROR(INDEX(Nov!C:C,MATCH(Year!A:A,Nov!A:A,0)),"") -> 1 | J24: =IFERROR(INDEX(Dec!C:C,MATCH(Year!A:A,Dec!A:A,0)),"") -> 1 | K24: =IFERROR(INDEX(Jan!C:C,MATCH(Year!A:A,Jan!A:A,0)),"") -> 1 | L24: =IFERROR(INDEX(Feb!C:C,MATCH(Year!A:A,Feb!A:A,0)),"") -> 1 | M24: =IFERROR(INDEX(March!C:C,MATCH(Year!A:A,March!A:A,0)),"") -> 1 | N24: 1 | O24: =IF(ISERROR(Q!B12),"",Q!B12) -> 0 | P24: 12
A25: =IF(ISERROR(Q!A13),"",Q!A13) -> 0 | B25: =IFERROR(INDEX(April!C:C,MATCH(Year!A:A,April!A:A,0)),"") ->  | C25: =IFERROR(INDEX(May!C:C,MATCH(Year!A:A,May!A:A,0)),"") ->  | D25: =IFERROR(INDEX(June!C:C,MATCH(Year!A:A,June!A:A,0)),"") ->  | E25: =IFERROR(INDEX(July!C:C,MATCH(Year!A:A,July!A:A,0)),"") ->  | F25: =IFERROR(INDEX(Aug!C:C,MATCH(Year!A:A,Aug!A:A,0)),"") ->  | G25: =IFERROR(INDEX(Sept!C:C,MATCH(Year!A:A,Sept!A:A,0)),"") ->  | H25: =IFERROR(INDEX(Oct!C:C,MATCH(Year!A:A,Oct!A:A,0)),"") ->  | I25: =IFERROR(INDEX(Nov!C:C,MATCH(Year!A:A,Nov!A:A,0)),"") ->  | J25: =IFERROR(INDEX(Dec!C:C,MATCH(Year!A:A,Dec!A:A,0)),"") ->  | K25: =IFERROR(INDEX(Jan!C:C,MATCH(Year!A:A,Jan!A:A,0)),"") ->  | L25: =IFERROR(INDEX(Feb!C:C,MATCH(Year!A:A,Feb!A:A,0)),"") ->  | M25: =IFERROR(INDEX(March!C:C,MATCH(Year!A:A,March!A:A,0)),"") ->  | O25: =IF(ISERROR(Q!B13),"",Q!B13) -> 0 | P25: 0
A26: =IF(ISERROR(Q!A14),"",Q!A14) -> 0 | B26: =IFERROR(INDEX(April!C:C,MATCH(Year!A:A,April!A:A,0)),"") ->  | C26: =IFERROR(INDEX(May!C:C,MATCH(Year!A:A,May!A:A,0)),"") ->  | D26: =IFERROR(INDEX(June!C:C,MATCH(Year!A:A,June!A:A,0)),"") ->  | E26: =IFERROR(INDEX(July!C:C,MATCH(Year!A:A,July!A:A,0)),"") ->  | F26: =IFERROR(INDEX(Aug!C:C,MATCH(Year!A:A,Aug!A:A,0)),"") ->  | G26: =IFERROR(INDEX(Sept!C:C,MATCH(Year!A:A,Sept!A:A,0)),"") ->  | H26: =IFERROR(INDEX(Oct!C:C,MATCH(Year!A:A,Oct!A:A,0)),"") ->  | I26: =IFERROR(INDEX(Nov!C:C,MATCH(Year!A:A,Nov!A:A,0)),"") ->  | J26: =IFERROR(INDEX(Dec!C:C,MATCH(Year!A:A,Dec!A:A,0)),"") ->  | K26: =IFERROR(INDEX(Jan!C:C,MATCH(Year!A:A,Jan!A:A,0)),"") ->  | L26: =IFERROR(INDEX(Feb!C:C,MATCH(Year!A:A,Feb!A:A,0)),"") ->  | M26: =IFERROR(INDEX(March!C:C,MATCH(Year!A:A,March!A:A,0)),"") ->  | O26: =IF(ISERROR(Q!B14),"",Q!B14) -> 0 | P26: 0
A27: =IF(ISERROR(Q!A15),"",Q!A15) -> 0 | B27: =IFERROR(INDEX(April!C:C,MATCH(Year!A:A,April!A:A,0)),"") ->  | C27: =IFERROR(INDEX(May!C:C,MATCH(Year!A:A,May!A:A,0)),"") ->  | D27: =IFERROR(INDEX(June!C:C,MATCH(Year!A:A,June!A:A,0)),"") ->  | E27: =IFERROR(INDEX(July!C:C,MATCH(Year!A:A,July!A:A,0)),"") ->  | F27: =IFERROR(INDEX(Aug!C:C,MATCH(Year!A:A,Aug!A:A,0)),"") ->  | G27: =IFERROR(INDEX(Sept!C:C,MATCH(Year!A:A,Sept!A:A,0)),"") ->  | H27: =IFERROR(INDEX(Oct!C:C,MATCH(Year!A:A,Oct!A:A,0)),"") ->  | I27: =IFERROR(INDEX(Nov!C:C,MATCH(Year!A:A,Nov!A:A,0)),"") ->  | J27: =IFERROR(INDEX(Dec!C:C,MATCH(Year!A:A,Dec!A:A,0)),"") ->  | K27: =IFERROR(INDEX(Jan!C:C,MATCH(Year!A:A,Jan!A:A,0)),"") ->  | L27: =IFERROR(INDEX(Feb!C:C,MATCH(Year!A:A,Feb!A:A,0)),"") ->  | M27: =IFERROR(INDEX(March!C:C,MATCH(Year!A:A,March!A:A,0)),"") ->  | O27: =IF(ISERROR(Q!B15),"",Q!B15) -> 0 | P27: 0
A28: =IF(ISERROR(Q!A16),"",Q!A16) -> 0 | B28: =IFERROR(INDEX(April!C:C,MATCH(Year!A:A,April!A:A,0)),"") ->  | C28: =IFERROR(INDEX(May!C:C,MATCH(Year!A:A,May!A:A,0)),"") ->  | D28: =IFERROR(INDEX(June!C:C,MATCH(Year!A:A,June!A:A,0)),"") ->  | E28: =IFERROR(INDEX(July!C:C,MATCH(Year!A:A,July!A:A,0)),"") ->  | F28: =IFERROR(INDEX(Aug!C:C,MATCH(Year!A:A,Aug!A:A,0)),"") ->  | G28: =IFERROR(INDEX(Sept!C:C,MATCH(Year!A:A,Sept!A:A,0)),"") ->  | H28: =IFERROR(INDEX(Oct!C:C,MATCH(Year!A:A,Oct!A:A,0)),"") ->  | I28: =IFERROR(INDEX(Nov!C:C,MATCH(Year!A:A,Nov!A:A,0)),"") ->  | J28: =IFERROR(INDEX(Dec!C:C,MATCH(Year!A:A,Dec!A:A,0)),"") ->  | K28: =IFERROR(INDEX(Jan!C:C,MATCH(Year!A:A,Jan!A:A,0)),"") ->  | L28: =IFERROR(INDEX(Feb!C:C,MATCH(Year!A:A,Feb!A:A,0)),"") ->  | M28: =IFERROR(INDEX(March!C:C,MATCH(Year!A:A,March!A:A,0)),"") ->  | O28: =IF(ISERROR(Q!B16),"",Q!B16) -> 0 | P28: 0
A29: =IF(ISERROR(Q!A17),"",Q!A17) -> 0 | B29: =IFERROR(INDEX(April!C:C,MATCH(Year!A:A,April!A:A,0)),"") ->  | C29: =IFERROR(INDEX(May!C:C,MATCH(Year!A:A,May!A:A,0)),"") ->  | D29: =IFERROR(INDEX(June!C:C,MATCH(Year!A:A,June!A:A,0)),"") ->  | E29: =IFERROR(INDEX(July!C:C,MATCH(Year!A:A,July!A:A,0)),"") ->  | F29: =IFERROR(INDEX(Aug!C:C,MATCH(Year!A:A,Aug!A:A,0)),"") ->  | G29: =IFERROR(INDEX(Sept!C:C,MATCH(Year!A:A,Sept!A:A,0)),"") ->  | H29: =IFERROR(INDEX(Oct!C:C,MATCH(Year!A:A,Oct!A:A,0)),"") ->  | I29: =IFERROR(INDEX(Nov!C:C,MATCH(Year!A:A,Nov!A:A,0)),"") ->  | J29: =IFERROR(INDEX(Dec!C:C,MATCH(Year!A:A,Dec!A:A,0)),"") ->  | K29: =IFERROR(INDEX(Jan!C:C,MATCH(Year!A:A,Jan!A:A,0)),"") ->  | L29: =IFERROR(INDEX(Feb!C:C,MATCH(Year!A:A,Feb!A:A,0)),"") ->  | M29: =IFERROR(INDEX(March!C:C,MATCH(Year!A:A,March!A:A,0)),"") ->  | O29: =IF(ISERROR(Q!B17),"",Q!B17) -> 0 | P29: 0
A30: =IF(ISERROR(Q!A18),"",Q!A18) -> 0 | B30: =IFERROR(INDEX(April!C:C,MATCH(Year!A:A,April!A:A,0)),"") ->  | C30: =IFERROR(INDEX(May!C:C,MATCH(Year!A:A,May!A:A,0)),"") ->  | D30: =IFERROR(INDEX(June!C:C,MATCH(Year!A:A,June!A:A,0)),"") ->  | E30: =IFERROR(INDEX(July!C:C,MATCH(Year!A:A,July!A:A,0)),"") ->  | F30: =IFERROR(INDEX(Aug!C:C,MATCH(Year!A:A,Aug!A:A,0)),"") ->  | G30: =IFERROR(INDEX(Sept!C:C,MATCH(Year!A:A,Sept!A:A,0)),"") ->  | H30: =IFERROR(INDEX(Oct!C:C,MATCH(Year!A:A,Oct!A:A,0)),"") ->  | I30: =IFERROR(INDEX(Nov!C:C,MATCH(Year!A:A,Nov!A:A,0)),"") ->  | J30: =IFERROR(INDEX(Dec!C:C,MATCH(Year!A:A,Dec!A:A,0)),"") ->  | K30: =IFERROR(INDEX(Jan!C:C,MATCH(Year!A:A,Jan!A:A,0)),"") ->  | L30: =IFERROR(INDEX(Feb!C:C,MATCH(Year!A:A,Feb!A:A,0)),"") ->  | M30: =IFERROR(INDEX(March!C:C,MATCH(Year!A:A,March!A:A,0)),"") ->  | O30: =IF(ISERROR(Q!B18),"",Q!B18) -> 0 | P30: 0
A31: =IF(ISERROR(Q!A19),"",Q!A19) -> 0 | B31: =IFERROR(INDEX(April!C:C,MATCH(Year!A:A,April!A:A,0)),"") ->  | C31: =IFERROR(INDEX(May!C:C,MATCH(Year!A:A,May!A:A,0)),"") ->  | D31: =IFERROR(INDEX(June!C:C,MATCH(Year!A:A,June!A:A,0)),"") ->  | E31: =IFERROR(INDEX(July!C:C,MATCH(Year!A:A,July!A:A,0)),"") ->  | F31: =IFERROR(INDEX(Aug!C:C,MATCH(Year!A:A,Aug!A:A,0)),"") ->  | G31: =IFERROR(INDEX(Sept!C:C,MATCH(Year!A:A,Sept!A:A,0)),"") ->  | H31: =IFERROR(INDEX(Oct!C:C,MATCH(Year!A:A,Oct!A:A,0)),"") ->  | I31: =IFERROR(INDEX(Nov!C:C,MATCH(Year!A:A,Nov!A:A,0)),"") ->  | J31: =IFERROR(INDEX(Dec!C:C,MATCH(Year!A:A,Dec!A:A,0)),"") ->  | K31: =IFERROR(INDEX(Jan!C:C,MATCH(Year!A:A,Jan!A:A,0)),"") ->  | L31: =IFERROR(INDEX(Feb!C:C,MATCH(Year!A:A,Feb!A:A,0)),"") ->  | M31: =IFERROR(INDEX(March!C:C,MATCH(Year!A:A,March!A:A,0)),"") ->  | O31: =IF(ISERROR(Q!B19),"",Q!B19) -> 0 | P31: 0
A32: =IF(ISERROR(Q!A20),"",Q!A20) -> 0 | B32: =IFERROR(INDEX(April!C:C,MATCH(Year!A:A,April!A:A,0)),"") ->  | C32: =IFERROR(INDEX(May!C:C,MATCH(Year!A:A,May!A:A,0)),"") ->  | D32: =IFERROR(INDEX(June!C:C,MATCH(Year!A:A,June!A:A,0)),"") ->  | E32: =IFERROR(INDEX(July!C:C,MATCH(Year!A:A,July!A:A,0)),"") ->  | F32: =IFERROR(INDEX(Aug!C:C,MATCH(Year!A:A,Aug!A:A,0)),"") ->  | G32: =IFERROR(INDEX(Sept!C:C,MATCH(Year!A:A,Sept!A:A,0)),"") ->  | H32: =IFERROR(INDEX(Oct!C:C,MATCH(Year!A:A,Oct!A:A,0)),"") ->  | I32: =IFERROR(INDEX(Nov!C:C,MATCH(Year!A:A,Nov!A:A,0)),"") ->  | J32: =IFERROR(INDEX(Dec!C:C,MATCH(Year!A:A,Dec!A:A,0)),"") ->  | K32: =IFERROR(INDEX(Jan!C:C,MATCH(Year!A:A,Jan!A:A,0)),"") ->  | L32: =IFERROR(INDEX(Feb!C:C,MATCH(Year!A:A,Feb!A:A,0)),"") ->  | M32: =IFERROR(INDEX(March!C:C,MATCH(Year!A:A,March!A:A,0)),"") ->  | O32: =IF(ISERROR(Q!B20),"",Q!B20) -> 0 | P32: 0
A33: =IF(ISERROR(Q!A21),"",Q!A21) -> 0 | B33: =IFERROR(INDEX(April!C:C,MATCH(Year!A:A,April!A:A,0)),"") ->  | C33: =IFERROR(INDEX(May!C:C,MATCH(Year!A:A,May!A:A,0)),"") ->  | D33: =IFERROR(INDEX(June!C:C,MATCH(Year!A:A,June!A:A,0)),"") ->  | E33: =IFERROR(INDEX(July!C:C,MATCH(Year!A:A,July!A:A,0)),"") ->  | F33: =IFERROR(INDEX(Aug!C:C,MATCH(Year!A:A,Aug!A:A,0)),"") ->  | G33: =IFERROR(INDEX(Sept!C:C,MATCH(Year!A:A,Sept!A:A,0)),"") ->  | H33: =IFERROR(INDEX(Oct!C:C,MATCH(Year!A:A,Oct!A:A,0)),"") ->  | I33: =IFERROR(INDEX(Nov!C:C,MATCH(Year!A:A,Nov!A:A,0)),"") ->  | J33: =IFERROR(INDEX(Dec!C:C,MATCH(Year!A:A,Dec!A:A,0)),"") ->  | K33: =IFERROR(INDEX(Jan!C:C,MATCH(Year!A:A,Jan!A:A,0)),"") ->  | L33: =IFERROR(INDEX(Feb!C:C,MATCH(Year!A:A,Feb!A:A,0)),"") ->  | M33: =IFERROR(INDEX(March!C:C,MATCH(Year!A:A,March!A:A,0)),"") ->  | O33: =IF(ISERROR(Q!B21),"",Q!B21) -> 0 | P33: 0
A34: =IF(ISERROR(Q!A22),"",Q!A22) -> 0 | B34: =IFERROR(INDEX(April!C:C,MATCH(Year!A:A,April!A:A,0)),"") ->  | C34: =IFERROR(INDEX(May!C:C,MATCH(Year!A:A,May!A:A,0)),"") ->  | D34: =IFERROR(INDEX(June!C:C,MATCH(Year!A:A,June!A:A,0)),"") ->  | E34: =IFERROR(INDEX(July!C:C,MATCH(Year!A:A,July!A:A,0)),"") ->  | F34: =IFERROR(INDEX(Aug!C:C,MATCH(Year!A:A,Aug!A:A,0)),"") ->  | G34: =IFERROR(INDEX(Sept!C:C,MATCH(Year!A:A,Sept!A:A,0)),"") ->  | H34: =IFERROR(INDEX(Oct!C:C,MATCH(Year!A:A,Oct!A:A,0)),"") ->  | I34: =IFERROR(INDEX(Nov!C:C,MATCH(Year!A:A,Nov!A:A,0)),"") ->  | J34: =IFERROR(INDEX(Dec!C:C,MATCH(Year!A:A,Dec!A:A,0)),"") ->  | K34: =IFERROR(INDEX(Jan!C:C,MATCH(Year!A:A,Jan!A:A,0)),"") ->  | L34: =IFERROR(INDEX(Feb!C:C,MATCH(Year!A:A,Feb!A:A,0)),"") ->  | M34: =IFERROR(INDEX(March!C:C,MATCH(Year!A:A,March!A:A,0)),"") ->  | O34: =IF(ISERROR(Q!B22),"",Q!B22) -> 0 | P34: 0
A35: =IF(ISERROR(Q!A23),"",Q!A23) -> 0 | B35: =IFERROR(INDEX(April!C:C,MATCH(Year!A:A,April!A:A,0)),"") ->  | C35: =IFERROR(INDEX(May!C:C,MATCH(Year!A:A,May!A:A,0)),"") ->  | D35: =IFERROR(INDEX(June!C:C,MATCH(Year!A:A,June!A:A,0)),"") ->  | E35: =IFERROR(INDEX(July!C:C,MATCH(Year!A:A,July!A:A,0)),"") ->  | F35: =IFERROR(INDEX(Aug!C:C,MATCH(Year!A:A,Aug!A:A,0)),"") ->  | G35: =IFERROR(INDEX(Sept!C:C,MATCH(Year!A:A,Sept!A:A,0)),"") ->  | H35: =IFERROR(INDEX(Oct!C:C,MATCH(Year!A:A,Oct!A:A,0)),"") ->  | I35: =IFERROR(INDEX(Nov!C:C,MATCH(Year!A:A,Nov!A:A,0)),"") ->  | J35: =IFERROR(INDEX(Dec!C:C,MATCH(Year!A:A,Dec!A:A,0)),"") ->  | K35: =IFERROR(INDEX(Jan!C:C,MATCH(Year!A:A,Jan!A:A,0)),"") ->  | L35: =IFERROR(INDEX(Feb!C:C,MATCH(Year!A:A,Feb!A:A,0)),"") ->  | M35: =IFERROR(INDEX(March!C:C,MATCH(Year!A:A,March!A:A,0)),"") ->  | O35: =IF(ISERROR(Q!B23),"",Q!B23) -> 0 | P35: 0
A36: =IF(ISERROR(Q!A24),"",Q!A24) -> 0 | B36: =IFERROR(INDEX(April!C:C,MATCH(Year!A:A,April!A:A,0)),"") ->  | C36: =IFERROR(INDEX(May!C:C,MATCH(Year!A:A,May!A:A,0)),"") ->  | D36: =IFERROR(INDEX(June!C:C,MATCH(Year!A:A,June!A:A,0)),"") ->  | E36: =IFERROR(INDEX(July!C:C,MATCH(Year!A:A,July!A:A,0)),"") ->  | F36: =IFERROR(INDEX(Aug!C:C,MATCH(Year!A:A,Aug!A:A,0)),"") ->  | G36: =IFERROR(INDEX(Sept!C:C,MATCH(Year!A:A,Sept!A:A,0)),"") ->  | H36: =IFERROR(INDEX(Oct!C:C,MATCH(Year!A:A,Oct!A:A,0)),"") ->  | I36: =IFERROR(INDEX(Nov!C:C,MATCH(Year!A:A,Nov!A:A,0)),"") ->  | J36: =IFERROR(INDEX(Dec!C:C,MATCH(Year!A:A,Dec!A:A,0)),"") ->  | K36: =IFERROR(INDEX(Jan!C:C,MATCH(Year!A:A,Jan!A:A,0)),"") ->  | L36: =IFERROR(INDEX(Feb!C:C,MATCH(Year!A:A,Feb!A:A,0)),"") ->  | M36: =IFERROR(INDEX(March!C:C,MATCH(Year!A:A,March!A:A,0)),"") ->  | O36: =IF(ISERROR(Q!B24),"",Q!B24) -> 0 | P36: 0
A37: =IF(ISERROR(Q!A25),"",Q!A25) -> 0 | B37: =IFERROR(INDEX(April!C:C,MATCH(Year!A:A,April!A:A,0)),"") ->  | C37: =IFERROR(INDEX(May!C:C,MATCH(Year!A:A,May!A:A,0)),"") ->  | D37: =IFERROR(INDEX(June!C:C,MATCH(Year!A:A,June!A:A,0)),"") ->  | E37: =IFERROR(INDEX(July!C:C,MATCH(Year!A:A,July!A:A,0)),"") ->  | F37: =IFERROR(INDEX(Aug!C:C,MATCH(Year!A:A,Aug!A:A,0)),"") ->  | G37: =IFERROR(INDEX(Sept!C:C,MATCH(Year!A:A,Sept!A:A,0)),"") ->  | H37: =IFERROR(INDEX(Oct!C:C,MATCH(Year!A:A,Oct!A:A,0)),"") ->  | I37: =IFERROR(INDEX(Nov!C:C,MATCH(Year!A:A,Nov!A:A,0)),"") ->  | J37: =IFERROR(INDEX(Dec!C:C,MATCH(Year!A:A,Dec!A:A,0)),"") ->  | K37: =IFERROR(INDEX(Jan!C:C,MATCH(Year!A:A,Jan!A:A,0)),"") ->  | L37: =IFERROR(INDEX(Feb!C:C,MATCH(Year!A:A,Feb!A:A,0)),"") ->  | M37: =IFERROR(INDEX(March!C:C,MATCH(Year!A:A,March!A:A,0)),"") ->  | O37: =IF(ISERROR(Q!B25),"",Q!B25) -> 0 | P37: 0
A38: =IF(ISERROR(Q!A26),"",Q!A26) -> 0 | B38: =IFERROR(INDEX(April!C:C,MATCH(Year!A:A,April!A:A,0)),"") ->  | C38: =IFERROR(INDEX(May!C:C,MATCH(Year!A:A,May!A:A,0)),"") ->  | D38: =IFERROR(INDEX(June!C:C,MATCH(Year!A:A,June!A:A,0)),"") ->  | E38: =IFERROR(INDEX(July!C:C,MATCH(Year!A:A,July!A:A,0)),"") ->  | F38: =IFERROR(INDEX(Aug!C:C,MATCH(Year!A:A,Aug!A:A,0)),"") ->  | G38: =IFERROR(INDEX(Sept!C:C,MATCH(Year!A:A,Sept!A:A,0)),"") ->  | H38: =IFERROR(INDEX(Oct!C:C,MATCH(Year!A:A,Oct!A:A,0)),"") ->  | I38: =IFERROR(INDEX(Nov!C:C,MATCH(Year!A:A,Nov!A:A,0)),"") ->  | J38: =IFERROR(INDEX(Dec!C:C,MATCH(Year!A:A,Dec!A:A,0)),"") ->  | K38: =IFERROR(INDEX(Jan!C:C,MATCH(Year!A:A,Jan!A:A,0)),"") ->  | L38: =IFERROR(INDEX(Feb!C:C,MATCH(Year!A:A,Feb!A:A,0)),"") ->  | M38: =IFERROR(INDEX(March!C:C,MATCH(Year!A:A,March!A:A,0)),"") ->  | O38: =IF(ISERROR(Q!B26),"",Q!B26) -> 0 | P38: 0
A39: =IF(ISERROR(Q!A27),"",Q!A27) -> 0 | B39: =IFERROR(INDEX(April!C:C,MATCH(Year!A:A,April!A:A,0)),"") ->  | C39: =IFERROR(INDEX(May!C:C,MATCH(Year!A:A,May!A:A,0)),"") ->  | D39: =IFERROR(INDEX(June!C:C,MATCH(Year!A:A,June!A:A,0)),"") ->  | E39: =IFERROR(INDEX(July!C:C,MATCH(Year!A:A,July!A:A,0)),"") ->  | F39: =IFERROR(INDEX(Aug!C:C,MATCH(Year!A:A,Aug!A:A,0)),"") ->  | G39: =IFERROR(INDEX(Sept!C:C,MATCH(Year!A:A,Sept!A:A,0)),"") ->  | H39: =IFERROR(INDEX(Oct!C:C,MATCH(Year!A:A,Oct!A:A,0)),"") ->  | I39: =IFERROR(INDEX(Nov!C:C,MATCH(Year!A:A,Nov!A:A,0)),"") ->  | J39: =IFERROR(INDEX(Dec!C:C,MATCH(Year!A:A,Dec!A:A,0)),"") ->  | K39: =IFERROR(INDEX(Jan!C:C,MATCH(Year!A:A,Jan!A:A,0)),"") ->  | L39: =IFERROR(INDEX(Feb!C:C,MATCH(Year!A:A,Feb!A:A,0)),"") ->  | M39: =IFERROR(INDEX(March!C:C,MATCH(Year!A:A,March!A:A,0)),"") ->  | O39: =IF(ISERROR(Q!B27),"",Q!B27) -> 0 | P39: 0
A40: =IF(ISERROR(Q!A28),"",Q!A28) -> 0 | B40: =IFERROR(INDEX(April!C:C,MATCH(Year!A:A,April!A:A,0)),"") ->  | C40: =IFERROR(INDEX(May!C:C,MATCH(Year!A:A,May!A:A,0)),"") ->  | D40: =IFERROR(INDEX(June!C:C,MATCH(Year!A:A,June!A:A,0)),"") ->  | E40: =IFERROR(INDEX(July!C:C,MATCH(Year!A:A,July!A:A,0)),"") ->  | F40: =IFERROR(INDEX(Aug!C:C,MATCH(Year!A:A,Aug!A:A,0)),"") ->  | G40: =IFERROR(INDEX(Sept!C:C,MATCH(Year!A:A,Sept!A:A,0)),"") ->  | H40: =IFERROR(INDEX(Oct!C:C,MATCH(Year!A:A,Oct!A:A,0)),"") ->  | I40: =IFERROR(INDEX(Nov!C:C,MATCH(Year!A:A,Nov!A:A,0)),"") ->  | J40: =IFERROR(INDEX(Dec!C:C,MATCH(Year!A:A,Dec!A:A,0)),"") ->  | K40: =IFERROR(INDEX(Jan!C:C,MATCH(Year!A:A,Jan!A:A,0)),"") ->  | L40: =IFERROR(INDEX(Feb!C:C,MATCH(Year!A:A,Feb!A:A,0)),"") ->  | M40: =IFERROR(INDEX(March!C:C,MATCH(Year!A:A,March!A:A,0)),"") ->  | O40: =IF(ISERROR(Q!B28),"",Q!B28) -> 0 | P40: 0
A41: =IF(ISERROR(Q!A29),"",Q!A29) -> 0 | B41: =IFERROR(INDEX(April!C:C,MATCH(Year!A:A,April!A:A,0)),"") ->  | C41: =IFERROR(INDEX(May!C:C,MATCH(Year!A:A,May!A:A,0)),"") ->  | D41: =IFERROR(INDEX(June!C:C,MATCH(Year!A:A,June!A:A,0)),"") ->  | E41: =IFERROR(INDEX(July!C:C,MATCH(Year!A:A,July!A:A,0)),"") ->  | F41: =IFERROR(INDEX(Aug!C:C,MATCH(Year!A:A,Aug!A:A,0)),"") ->  | G41: =IFERROR(INDEX(Sept!C:C,MATCH(Year!A:A,Sept!A:A,0)),"") ->  | H41: =IFERROR(INDEX(Oct!C:C,MATCH(Year!A:A,Oct!A:A,0)),"") ->  | I41: =IFERROR(INDEX(Nov!C:C,MATCH(Year!A:A,Nov!A:A,0)),"") ->  | J41: =IFERROR(INDEX(Dec!C:C,MATCH(Year!A:A,Dec!A:A,0)),"") ->  | K41: =IFERROR(INDEX(Jan!C:C,MATCH(Year!A:A,Jan!A:A,0)),"") ->  | L41: =IFERROR(INDEX(Feb!C:C,MATCH(Year!A:A,Feb!A:A,0)),"") ->  | M41: =IFERROR(INDEX(March!C:C,MATCH(Year!A:A,March!A:A,0)),"") ->  | O41: =IF(ISERROR(Q!B29),"",Q!B29) -> 0 | P41: 0
A42: =IF(ISERROR(Q!A30),"",Q!A30) -> 0 | B42: =IFERROR(INDEX(April!C:C,MATCH(Year!A:A,April!A:A,0)),"") ->  | C42: =IFERROR(INDEX(May!C:C,MATCH(Year!A:A,May!A:A,0)),"") ->  | D42: =IFERROR(INDEX(June!C:C,MATCH(Year!A:A,June!A:A,0)),"") ->  | E42: =IFERROR(INDEX(July!C:C,MATCH(Year!A:A,July!A:A,0)),"") ->  | F42: =IFERROR(INDEX(Aug!C:C,MATCH(Year!A:A,Aug!A:A,0)),"") ->  | G42: =IFERROR(INDEX(Sept!C:C,MATCH(Year!A:A,Sept!A:A,0)),"") ->  | H42: =IFERROR(INDEX(Oct!C:C,MATCH(Year!A:A,Oct!A:A,0)),"") ->  | I42: =IFERROR(INDEX(Nov!C:C,MATCH(Year!A:A,Nov!A:A,0)),"") ->  | J42: =IFERROR(INDEX(Dec!C:C,MATCH(Year!A:A,Dec!A:A,0)),"") ->  | K42: =IFERROR(INDEX(Jan!C:C,MATCH(Year!A:A,Jan!A:A,0)),"") ->  | L42: =IFERROR(INDEX(Feb!C:C,MATCH(Year!A:A,Feb!A:A,0)),"") ->  | M42: =IFERROR(INDEX(March!C:C,MATCH(Year!A:A,March!A:A,0)),"") ->  | O42: =IF(ISERROR(Q!B30),"",Q!B30) -> 0 | P42: 0
A43: =IF(ISERROR(Q!A31),"",Q!A31) -> 0 | B43: =IFERROR(INDEX(April!C:C,MATCH(Year!A:A,April!A:A,0)),"") ->  | C43: =IFERROR(INDEX(May!C:C,MATCH(Year!A:A,May!A:A,0)),"") ->  | D43: =IFERROR(INDEX(June!C:C,MATCH(Year!A:A,June!A:A,0)),"") ->  | E43: =IFERROR(INDEX(July!C:C,MATCH(Year!A:A,July!A:A,0)),"") ->  | F43: =IFERROR(INDEX(Aug!C:C,MATCH(Year!A:A,Aug!A:A,0)),"") ->  | G43: =IFERROR(INDEX(Sept!C:C,MATCH(Year!A:A,Sept!A:A,0)),"") ->  | H43: =IFERROR(INDEX(Oct!C:C,MATCH(Year!A:A,Oct!A:A,0)),"") ->  | I43: =IFERROR(INDEX(Nov!C:C,MATCH(Year!A:A,Nov!A:A,0)),"") ->  | J43: =IFERROR(INDEX(Dec!C:C,MATCH(Year!A:A,Dec!A:A,0)),"") ->  | K43: =IFERROR(INDEX(Jan!C:C,MATCH(Year!A:A,Jan!A:A,0)),"") ->  | L43: =IFERROR(INDEX(Feb!C:C,MATCH(Year!A:A,Feb!A:A,0)),"") ->  | M43: =IFERROR(INDEX(March!C:C,MATCH(Year!A:A,March!A:A,0)),"") ->  | O43: =IF(ISERROR(Q!B31),"",Q!B31) -> 0 | P43: 0
A44: =IF(ISERROR(Q!A32),"",Q!A32) -> 0 | B44: =IFERROR(INDEX(April!C:C,MATCH(Year!A:A,April!A:A,0)),"") ->  | C44: =IFERROR(INDEX(May!C:C,MATCH(Year!A:A,May!A:A,0)),"") ->  | D44: =IFERROR(INDEX(June!C:C,MATCH(Year!A:A,June!A:A,0)),"") ->  | E44: =IFERROR(INDEX(July!C:C,MATCH(Year!A:A,July!A:A,0)),"") ->  | F44: =IFERROR(INDEX(Aug!C:C,MATCH(Year!A:A,Aug!A:A,0)),"") ->  | G44: =IFERROR(INDEX(Sept!C:C,MATCH(Year!A:A,Sept!A:A,0)),"") ->  | H44: =IFERROR(INDEX(Oct!C:C,MATCH(Year!A:A,Oct!A:A,0)),"") ->  | I44: =IFERROR(INDEX(Nov!C:C,MATCH(Year!A:A,Nov!A:A,0)),"") ->  | J44: =IFERROR(INDEX(Dec!C:C,MATCH(Year!A:A,Dec!A:A,0)),"") ->  | K44: =IFERROR(INDEX(Jan!C:C,MATCH(Year!A:A,Jan!A:A,0)),"") ->  | L44: =IFERROR(INDEX(Feb!C:C,MATCH(Year!A:A,Feb!A:A,0)),"") ->  | M44: =IFERROR(INDEX(March!C:C,MATCH(Year!A:A,March!A:A,0)),"") ->  | O44: =IF(ISERROR(Q!B32),"",Q!B32) -> 0 | P44: 0
A45: =IF(ISERROR(Q!A33),"",Q!A33) -> 0 | B45: =IFERROR(INDEX(April!C:C,MATCH(Year!A:A,April!A:A,0)),"") ->  | C45: =IFERROR(INDEX(May!C:C,MATCH(Year!A:A,May!A:A,0)),"") ->  | D45: =IFERROR(INDEX(June!C:C,MATCH(Year!A:A,June!A:A,0)),"") ->  | E45: =IFERROR(INDEX(July!C:C,MATCH(Year!A:A,July!A:A,0)),"") ->  | F45: =IFERROR(INDEX(Aug!C:C,MATCH(Year!A:A,Aug!A:A,0)),"") ->  | G45: =IFERROR(INDEX(Sept!C:C,MATCH(Year!A:A,Sept!A:A,0)),"") ->  | H45: =IFERROR(INDEX(Oct!C:C,MATCH(Year!A:A,Oct!A:A,0)),"") ->  | I45: =IFERROR(INDEX(Nov!C:C,MATCH(Year!A:A,Nov!A:A,0)),"") ->  | J45: =IFERROR(INDEX(Dec!C:C,MATCH(Year!A:A,Dec!A:A,0)),"") ->  | K45: =IFERROR(INDEX(Jan!C:C,MATCH(Year!A:A,Jan!A:A,0)),"") ->  | L45: =IFERROR(INDEX(Feb!C:C,MATCH(Year!A:A,Feb!A:A,0)),"") ->  | M45: =IFERROR(INDEX(March!C:C,MATCH(Year!A:A,March!A:A,0)),"") ->  | O45: =IF(ISERROR(Q!B33),"",Q!B33) -> 0 | P45: 0
A46: =IF(ISERROR(Q!A34),"",Q!A34) -> 0 | B46: =IFERROR(INDEX(April!C:C,MATCH(Year!A:A,April!A:A,0)),"") ->  | C46: =IFERROR(INDEX(May!C:C,MATCH(Year!A:A,May!A:A,0)),"") ->  | D46: =IFERROR(INDEX(June!C:C,MATCH(Year!A:A,June!A:A,0)),"") ->  | E46: =IFERROR(INDEX(July!C:C,MATCH(Year!A:A,July!A:A,0)),"") ->  | F46: =IFERROR(INDEX(Aug!C:C,MATCH(Year!A:A,Aug!A:A,0)),"") ->  | G46: =IFERROR(INDEX(Sept!C:C,MATCH(Year!A:A,Sept!A:A,0)),"") ->  | H46: =IFERROR(INDEX(Oct!C:C,MATCH(Year!A:A,Oct!A:A,0)),"") ->  | I46: =IFERROR(INDEX(Nov!C:C,MATCH(Year!A:A,Nov!A:A,0)),"") ->  | J46: =IFERROR(INDEX(Dec!C:C,MATCH(Year!A:A,Dec!A:A,0)),"") ->  | K46: =IFERROR(INDEX(Jan!C:C,MATCH(Year!A:A,Jan!A:A,0)),"") ->  | L46: =IFERROR(INDEX(Feb!C:C,MATCH(Year!A:A,Feb!A:A,0)),"") ->  | M46: =IFERROR(INDEX(March!C:C,MATCH(Year!A:A,March!A:A,0)),"") ->  | O46: =IF(ISERROR(Q!B34),"",Q!B34) -> 0 | P46: 0
A47: =IF(ISERROR(Q!A35),"",Q!A35) -> 0 | B47: =IFERROR(INDEX(April!C:C,MATCH(Year!A:A,April!A:A,0)),"") ->  | C47: =IFERROR(INDEX(May!C:C,MATCH(Year!A:A,May!A:A,0)),"") ->  | D47: =IFERROR(INDEX(June!C:C,MATCH(Year!A:A,June!A:A,0)),"") ->  | E47: =IFERROR(INDEX(July!C:C,MATCH(Year!A:A,July!A:A,0)),"") ->  | F47: =IFERROR(INDEX(Aug!C:C,MATCH(Year!A:A,Aug!A:A,0)),"") ->  | G47: =IFERROR(INDEX(Sept!C:C,MATCH(Year!A:A,Sept!A:A,0)),"") ->  | H47: =IFERROR(INDEX(Oct!C:C,MATCH(Year!A:A,Oct!A:A,0)),"") ->  | I47: =IFERROR(INDEX(Nov!C:C,MATCH(Year!A:A,Nov!A:A,0)),"") ->  | J47: =IFERROR(INDEX(Dec!C:C,MATCH(Year!A:A,Dec!A:A,0)),"") ->  | K47: =IFERROR(INDEX(Jan!C:C,MATCH(Year!A:A,Jan!A:A,0)),"") ->  | L47: =IFERROR(INDEX(Feb!C:C,MATCH(Year!A:A,Feb!A:A,0)),"") ->  | M47: =IFERROR(INDEX(March!C:C,MATCH(Year!A:A,March!A:A,0)),"") ->  | O47: =IF(ISERROR(Q!B35),"",Q!B35) -> 0 | P47: 0
A48: =IF(ISERROR(Q!A36),"",Q!A36) -> 0 | B48: =IFERROR(INDEX(April!C:C,MATCH(Year!A:A,April!A:A,0)),"") ->  | C48: =IFERROR(INDEX(May!C:C,MATCH(Year!A:A,May!A:A,0)),"") ->  | D48: =IFERROR(INDEX(June!C:C,MATCH(Year!A:A,June!A:A,0)),"") ->  | E48: =IFERROR(INDEX(July!C:C,MATCH(Year!A:A,July!A:A,0)),"") ->  | F48: =IFERROR(INDEX(Aug!C:C,MATCH(Year!A:A,Aug!A:A,0)),"") ->  | G48: =IFERROR(INDEX(Sept!C:C,MATCH(Year!A:A,Sept!A:A,0)),"") ->  | H48: =IFERROR(INDEX(Oct!C:C,MATCH(Year!A:A,Oct!A:A,0)),"") ->  | I48: =IFERROR(INDEX(Nov!C:C,MATCH(Year!A:A,Nov!A:A,0)),"") ->  | J48: =IFERROR(INDEX(Dec!C:C,MATCH(Year!A:A,Dec!A:A,0)),"") ->  | K48: =IFERROR(INDEX(Jan!C:C,MATCH(Year!A:A,Jan!A:A,0)),"") ->  | L48: =IFERROR(INDEX(Feb!C:C,MATCH(Year!A:A,Feb!A:A,0)),"") ->  | M48: =IFERROR(INDEX(March!C:C,MATCH(Year!A:A,March!A:A,0)),"") ->  | O48: =IF(ISERROR(Q!B36),"",Q!B36) -> 0 | P48: 0
A49: =IF(ISERROR(Q!A37),"",Q!A37) -> 0 | B49: =IFERROR(INDEX(April!C:C,MATCH(Year!A:A,April!A:A,0)),"") ->  | C49: =IFERROR(INDEX(May!C:C,MATCH(Year!A:A,May!A:A,0)),"") ->  | D49: =IFERROR(INDEX(June!C:C,MATCH(Year!A:A,June!A:A,0)),"") ->  | E49: =IFERROR(INDEX(July!C:C,MATCH(Year!A:A,July!A:A,0)),"") ->  | F49: =IFERROR(INDEX(Aug!C:C,MATCH(Year!A:A,Aug!A:A,0)),"") ->  | G49: =IFERROR(INDEX(Sept!C:C,MATCH(Year!A:A,Sept!A:A,0)),"") ->  | H49: =IFERROR(INDEX(Oct!C:C,MATCH(Year!A:A,Oct!A:A,0)),"") ->  | I49: =IFERROR(INDEX(Nov!C:C,MATCH(Year!A:A,Nov!A:A,0)),"") ->  | J49: =IFERROR(INDEX(Dec!C:C,MATCH(Year!A:A,Dec!A:A,0)),"") ->  | K49: =IFERROR(INDEX(Jan!C:C,MATCH(Year!A:A,Jan!A:A,0)),"") ->  | L49: =IFERROR(INDEX(Feb!C:C,MATCH(Year!A:A,Feb!A:A,0)),"") ->  | M49: =IFERROR(INDEX(March!C:C,MATCH(Year!A:A,March!A:A,0)),"") ->  | O49: =IF(ISERROR(Q!B37),"",Q!B37) -> 0 | P49: 0
A50: =IF(ISERROR(Q!A38),"",Q!A38) -> 0 | B50: =IFERROR(INDEX(April!C:C,MATCH(Year!A:A,April!A:A,0)),"") ->  | C50: =IFERROR(INDEX(May!C:C,MATCH(Year!A:A,May!A:A,0)),"") ->  | D50: =IFERROR(INDEX(June!C:C,MATCH(Year!A:A,June!A:A,0)),"") ->  | E50: =IFERROR(INDEX(July!C:C,MATCH(Year!A:A,July!A:A,0)),"") ->  | F50: =IFERROR(INDEX(Aug!C:C,MATCH(Year!A:A,Aug!A:A,0)),"") ->  | G50: =IFERROR(INDEX(Sept!C:C,MATCH(Year!A:A,Sept!A:A,0)),"") ->  | H50: =IFERROR(INDEX(Oct!C:C,MATCH(Year!A:A,Oct!A:A,0)),"") ->  | I50: =IFERROR(INDEX(Nov!C:C,MATCH(Year!A:A,Nov!A:A,0)),"") ->  | J50: =IFERROR(INDEX(Dec!C:C,MATCH(Year!A:A,Dec!A:A,0)),"") ->  | K50: =IFERROR(INDEX(Jan!C:C,MATCH(Year!A:A,Jan!A:A,0)),"") ->  | L50: =IFERROR(INDEX(Feb!C:C,MATCH(Year!A:A,Feb!A:A,0)),"") ->  | M50: =IFERROR(INDEX(March!C:C,MATCH(Year!A:A,March!A:A,0)),"") ->  | O50: =IF(ISERROR(Q!B38),"",Q!B38) -> 0 | P50: 0
A51: =IF(ISERROR(Q!A39),"",Q!A39) -> 0 | B51: =IFERROR(INDEX(April!C:C,MATCH(Year!A:A,April!A:A,0)),"") ->  | C51: =IFERROR(INDEX(May!C:C,MATCH(Year!A:A,May!A:A,0)),"") ->  | D51: =IFERROR(INDEX(June!C:C,MATCH(Year!A:A,June!A:A,0)),"") ->  | E51: =IFERROR(INDEX(July!C:C,MATCH(Year!A:A,July!A:A,0)),"") ->  | F51: =IFERROR(INDEX(Aug!C:C,MATCH(Year!A:A,Aug!A:A,0)),"") ->  | G51: =IFERROR(INDEX(Sept!C:C,MATCH(Year!A:A,Sept!A:A,0)),"") ->  | H51: =IFERROR(INDEX(Oct!C:C,MATCH(Year!A:A,Oct!A:A,0)),"") ->  | I51: =IFERROR(INDEX(Nov!C:C,MATCH(Year!A:A,Nov!A:A,0)),"") ->  | J51: =IFERROR(INDEX(Dec!C:C,MATCH(Year!A:A,Dec!A:A,0)),"") ->  | K51: =IFERROR(INDEX(Jan!C:C,MATCH(Year!A:A,Jan!A:A,0)),"") ->  | L51: =IFERROR(INDEX(Feb!C:C,MATCH(Year!A:A,Feb!A:A,0)),"") ->  | M51: =IFERROR(INDEX(March!C:C,MATCH(Year!A:A,March!A:A,0)),"") ->  | O51: =IF(ISERROR(Q!B39),"",Q!B39) -> 0 | P51: 0
A52: =IF(ISERROR(Q!A40),"",Q!A40) -> 0 | B52: =IFERROR(INDEX(April!C:C,MATCH(Year!A:A,April!A:A,0)),"") ->  | C52: =IFERROR(INDEX(May!C:C,MATCH(Year!A:A,May!A:A,0)),"") ->  | D52: =IFERROR(INDEX(June!C:C,MATCH(Year!A:A,June!A:A,0)),"") ->  | E52: =IFERROR(INDEX(July!C:C,MATCH(Year!A:A,July!A:A,0)),"") ->  | F52: =IFERROR(INDEX(Aug!C:C,MATCH(Year!A:A,Aug!A:A,0)),"") ->  | G52: =IFERROR(INDEX(Sept!C:C,MATCH(Year!A:A,Sept!A:A,0)),"") ->  | H52: =IFERROR(INDEX(Oct!C:C,MATCH(Year!A:A,Oct!A:A,0)),"") ->  | I52: =IFERROR(INDEX(Nov!C:C,MATCH(Year!A:A,Nov!A:A,0)),"") ->  | J52: =IFERROR(INDEX(Dec!C:C,MATCH(Year!A:A,Dec!A:A,0)),"") ->  | K52: =IFERROR(INDEX(Jan!C:C,MATCH(Year!A:A,Jan!A:A,0)),"") ->  | L52: =IFERROR(INDEX(Feb!C:C,MATCH(Year!A:A,Feb!A:A,0)),"") ->  | M52: =IFERROR(INDEX(March!C:C,MATCH(Year!A:A,March!A:A,0)),"") ->  | O52: =IF(ISERROR(Q!B40),"",Q!B40) -> 0 | P52: 0
A53: =IF(ISERROR(Q!A41),"",Q!A41) -> 0 | B53: =IFERROR(INDEX(April!C:C,MATCH(Year!A:A,April!A:A,0)),"") ->  | C53: =IFERROR(INDEX(May!C:C,MATCH(Year!A:A,May!A:A,0)),"") ->  | D53: =IFERROR(INDEX(June!C:C,MATCH(Year!A:A,June!A:A,0)),"") ->  | E53: =IFERROR(INDEX(July!C:C,MATCH(Year!A:A,July!A:A,0)),"") ->  | F53: =IFERROR(INDEX(Aug!C:C,MATCH(Year!A:A,Aug!A:A,0)),"") ->  | G53: =IFERROR(INDEX(Sept!C:C,MATCH(Year!A:A,Sept!A:A,0)),"") ->  | H53: =IFERROR(INDEX(Oct!C:C,MATCH(Year!A:A,Oct!A:A,0)),"") ->  | I53: =IFERROR(INDEX(Nov!C:C,MATCH(Year!A:A,Nov!A:A,0)),"") ->  | J53: =IFERROR(INDEX(Dec!C:C,MATCH(Year!A:A,Dec!A:A,0)),"") ->  | K53: =IFERROR(INDEX(Jan!C:C,MATCH(Year!A:A,Jan!A:A,0)),"") ->  | L53: =IFERROR(INDEX(Feb!C:C,MATCH(Year!A:A,Feb!A:A,0)),"") ->  | M53: =IFERROR(INDEX(March!C:C,MATCH(Year!A:A,March!A:A,0)),"") ->  | O53: =IF(ISERROR(Q!B41),"",Q!B41) -> 0 | P53: 0
A54: Average | B54: =IF(ISERROR((SUM(B14:B53)/April!B8)),"",(SUM(B14:B53)/April!B8)) -> 0.9454545455 | C54: =IF(ISERROR((SUM(C14:C53)/May!B8)),"",(SUM(C14:C53)/May!B8)) -> 0.9318181818 | D54: =IF(ISERROR((SUM(D14:D53)/June!B8)),"",(SUM(D14:D53)/June!B8)) -> 0.9818181818 | E54: =IF(ISERROR((SUM(E14:E53)/July!B8)),"",(SUM(E14:E53)/July!B8)) -> 0.9818181818 | F54: =IF(ISERROR((SUM(F14:F53)/Aug!B8)),"",(SUM(F14:F53)/Aug!B8)) -> 0.9818181818 | G54: =IF(ISERROR((SUM(G14:G53)/Sept!B8)),"",(SUM(G14:G53)/Sept!B8)) -> 0.9772727273 | H54: =IF(ISERROR((SUM(H14:H53)/Oct!B8)),"",(SUM(H14:H53)/Oct!B8)) -> 1 | I54: =IF(ISERROR((SUM(I14:I53)/Nov!B8)),"",(SUM(I14:I53)/Nov!B8)) -> 0.9772727273 | J54: =IF(ISERROR((SUM(J14:J53)/Dec!B8)),"",(SUM(J14:J53)/Dec!B8)) -> 0.9636363636 | K54: =IF(ISERROR((SUM(K14:K53)/Jan!B8)),"",(SUM(K14:K53)/Jan!B8)) -> 0.9696969697 | L54: =IF(ISERROR((SUM(L14:L53)/Feb!B8)),"",(SUM(L14:L53)/Feb!B8)) -> 0.9409090909 | M54: =IF(ISERROR((SUM(M14:M53)/March!B8)),"",(SUM(M14:M53)/March!B8)) -> 0.9696969697 | N54: =IF(ISERROR((SUM(B54:M54))/B4),"",(SUM(B54:M54))/B4) -> 0.9684343434
A56: Compliant
A57: Metric | B57: April | C57: May | D57: June | E57: July | F57: August | G57: September | H57: October | I57: November | J57: December | K57: January | L57: February | M57: March | N57: Year average
A58: =IF(ISERROR(Q!A2),"",Q!A2) -> Was a Room number documented? | B58: =IFERROR(INDEX(April!D:D,MATCH(Year!A:A,April!A:A,0)),"") -> 1 | C58: =IFERROR(INDEX(May!D:D,MATCH(Year!A:A,May!A:A,0)),"") -> 1 | D58: =IFERROR(INDEX(June!D:D,MATCH(Year!A:A,June!A:A,0)),"") -> 1 | E58: =IFERROR(INDEX(July!D:D,MATCH(Year!A:A,July!A:A,0)),"") -> 1 | F58: =IFERROR(INDEX(Aug!D:D,MATCH(Year!A:A,Aug!A:A,0)),"") -> 1 | G58: =IFERROR(INDEX(Sept!D:D,MATCH(Year!A:A,Sept!A:A,0)),"") -> 1 | H58: =IFERROR(INDEX(Oct!D:D,MATCH(Year!A:A,Oct!A:A,0)),"") -> 1 | I58: =IFERROR(INDEX(Nov!D:D,MATCH(Year!A:A,Nov!A:A,0)),"") -> 1 | J58: =IFERROR(INDEX(Dec!D:D,MATCH(Year!A:A,Dec!A:A,0)),"") -> 1 | K58: =IFERROR(INDEX(Jan!D:D,MATCH(Year!A:A,Jan!A:A,0)),"") -> 1 | L58: =IFERROR(INDEX(Feb!D:D,MATCH(Year!A:A,Feb!A:A,0)),"") -> 0.8 | M58: =IFERROR(INDEX(March!D:D,MATCH(Year!A:A,March!A:A,0)),"") -> 1 | N58: =IF(ISERROR((SUM(B58:M58))/P14),"",(SUM(B58:M58))/P14) -> 0.9833333333
A59: =IF(ISERROR(Q!A3),"",Q!A3) -> Were stage A checks completed as appropriate? | B59: =IFERROR(INDEX(April!D:D,MATCH(Year!A:A,April!A:A,0)),"") -> 1 | C59: =IFERROR(INDEX(May!D:D,MATCH(Year!A:A,May!A:A,0)),"") -> 0.75 | D59: =IFERROR(INDEX(June!D:D,MATCH(Year!A:A,June!A:A,0)),"") -> 1 | E59: =IFERROR(INDEX(July!D:D,MATCH(Year!A:A,July!A:A,0)),"") -> 1 | F59: =IFERROR(INDEX(Aug!D:D,MATCH(Year!A:A,Aug!A:A,0)),"") -> 0.8 | G59: =IFERROR(INDEX(Sept!D:D,MATCH(Year!A:A,Sept!A:A,0)),"") -> 1 | H59: =IFERROR(INDEX(Oct!D:D,MATCH(Year!A:A,Oct!A:A,0)),"") -> 1 | I59: =IFERROR(INDEX(Nov!D:D,MATCH(Year!A:A,Nov!A:A,0)),"") -> 1 | J59: =IFERROR(INDEX(Dec!D:D,MATCH(Year!A:A,Dec!A:A,0)),"") -> 1 | K59: =IFERROR(INDEX(Jan!D:D,MATCH(Year!A:A,Jan!A:A,0)),"") -> 0.8333333333 | L59: =IFERROR(INDEX(Feb!D:D,MATCH(Year!A:A,Feb!A:A,0)),"") -> 0.75 | M59: =IFERROR(INDEX(March!D:D,MATCH(Year!A:A,March!A:A,0)),"") -> 1 | N59: =IF(ISERROR((SUM(B59:M59))/P15),"",(SUM(B59:M59))/P15) -> 0.9277777778
A60: =IF(ISERROR(Q!A4),"",Q!A4) -> Was COSI Part 1 performed? | B60: =IFERROR(INDEX(April!D:D,MATCH(Year!A:A,April!A:A,0)),"") -> 0.6 | C60: =IFERROR(INDEX(May!D:D,MATCH(Year!A:A,May!A:A,0)),"") -> 0.5 | D60: =IFERROR(INDEX(June!D:D,MATCH(Year!A:A,June!A:A,0)),"") -> 0.8 | E60: =IFERROR(INDEX(July!D:D,MATCH(Year!A:A,July!A:A,0)),"") -> 0.8 | F60: =IFERROR(INDEX(Aug!D:D,MATCH(Year!A:A,Aug!A:A,0)),"") -> 1 | G60: =IFERROR(INDEX(Sept!D:D,MATCH(Year!A:A,Sept!A:A,0)),"") -> 0.75 | H60: =IFERROR(INDEX(Oct!D:D,MATCH(Year!A:A,Oct!A:A,0)),"") -> 1 | I60: =IFERROR(INDEX(Nov!D:D,MATCH(Year!A:A,Nov!A:A,0)),"") -> 1 | J60: =IFERROR(INDEX(Dec!D:D,MATCH(Year!A:A,Dec!A:A,0)),"") -> 0.6 | K60: =IFERROR(INDEX(Jan!D:D,MATCH(Year!A:A,Jan!A:A,0)),"") -> 0.8333333333 | L60: =IFERROR(INDEX(Feb!D:D,MATCH(Year!A:A,Feb!A:A,0)),"") -> 1 | M60: =IFERROR(INDEX(March!D:D,MATCH(Year!A:A,March!A:A,0)),"") -> 0.6666666667 | N60: 0.7958333333
A61: =IF(ISERROR(Q!A5),"",Q!A5) -> Was PVP documented? | B61: =IFERROR(INDEX(April!D:D,MATCH(Year!A:A,April!A:A,0)),"") -> 1 | C61: =IFERROR(INDEX(May!D:D,MATCH(Year!A:A,May!A:A,0)),"") -> 1 | D61: =IFERROR(INDEX(June!D:D,MATCH(Year!A:A,June!A:A,0)),"") -> 1 | E61: =IFERROR(INDEX(July!D:D,MATCH(Year!A:A,July!A:A,0)),"") -> 1 | F61: =IFERROR(INDEX(Aug!D:D,MATCH(Year!A:A,Aug!A:A,0)),"") -> 1 | G61: =IFERROR(INDEX(Sept!D:D,MATCH(Year!A:A,Sept!A:A,0)),"") -> 1 | H61: =IFERROR(INDEX(Oct!D:D,MATCH(Year!A:A,Oct!A:A,0)),"") -> 1 | I61: =IFERROR(INDEX(Nov!D:D,MATCH(Year!A:A,Nov!A:A,0)),"") -> 1 | J61: =IFERROR(INDEX(Dec!D:D,MATCH(Year!A:A,Dec!A:A,0)),"") -> 1 | K61: =IFERROR(INDEX(Jan!D:D,MATCH(Year!A:A,Jan!A:A,0)),"") -> 1 | L61: =IFERROR(INDEX(Feb!D:D,MATCH(Year!A:A,Feb!A:A,0)),"") -> 1 | M61: =IFERROR(INDEX(March!D:D,MATCH(Year!A:A,March!A:A,0)),"") -> 1 | N61: 1
A62: =IF(ISERROR(Q!A6),"",Q!A6) -> Was Otoscopy documented? | B62: =IFERROR(INDEX(April!D:D,MATCH(Year!A:A,April!A:A,0)),"") -> 1 | C62: =IFERROR(INDEX(May!D:D,MATCH(Year!A:A,May!A:A,0)),"") -> 1 | D62: =IFERROR(INDEX(June!D:D,MATCH(Year!A:A,June!A:A,0)),"") -> 1 | E62: =IFERROR(INDEX(July!D:D,MATCH(Year!A:A,July!A:A,0)),"") -> 1 | F62: =IFERROR(INDEX(Aug!D:D,MATCH(Year!A:A,Aug!A:A,0)),"") -> 1 | G62: =IFERROR(INDEX(Sept!D:D,MATCH(Year!A:A,Sept!A:A,0)),"") -> 1 | H62: =IFERROR(INDEX(Oct!D:D,MATCH(Year!A:A,Oct!A:A,0)),"") -> 1 | I62: =IFERROR(INDEX(Nov!D:D,MATCH(Year!A:A,Nov!A:A,0)),"") -> 0.75 | J62: =IFERROR(INDEX(Dec!D:D,MATCH(Year!A:A,Dec!A:A,0)),"") -> 1 | K62: =IFERROR(INDEX(Jan!D:D,MATCH(Year!A:A,Jan!A:A,0)),"") -> 1 | L62: =IFERROR(INDEX(Feb!D:D,MATCH(Year!A:A,Feb!A:A,0)),"") -> 0.8 | M62: =IFERROR(INDEX(March!D:D,MATCH(Year!A:A,March!A:A,0)),"") -> 1 | N62: 0.9625
A63: =IF(ISERROR(Q!A7),"",Q!A7) -> Document bc at 3 & 4kHz is for programming purposes? | B63: =IFERROR(INDEX(April!D:D,MATCH(Year!A:A,April!A:A,0)),"") -> 1 | C63: =IFERROR(INDEX(May!D:D,MATCH(Year!A:A,May!A:A,0)),"") -> 1 | D63: =IFERROR(INDEX(June!D:D,MATCH(Year!A:A,June!A:A,0)),"") -> 1 | E63: =IFERROR(INDEX(July!D:D,MATCH(Year!A:A,July!A:A,0)),"") -> 1 | F63: =IFERROR(INDEX(Aug!D:D,MATCH(Year!A:A,Aug!A:A,0)),"") -> 1 | G63: =IFERROR(INDEX(Sept!D:D,MATCH(Year!A:A,Sept!A:A,0)),"") -> 1 | H63: =IFERROR(INDEX(Oct!D:D,MATCH(Year!A:A,Oct!A:A,0)),"") -> 1 | I63: =IFERROR(INDEX(Nov!D:D,MATCH(Year!A:A,Nov!A:A,0)),"") -> 1 | J63: =IFERROR(INDEX(Dec!D:D,MATCH(Year!A:A,Dec!A:A,0)),"") -> 1 | K63: =IFERROR(INDEX(Jan!D:D,MATCH(Year!A:A,Jan!A:A,0)),"") -> 1 | L63: =IFERROR(INDEX(Feb!D:D,MATCH(Year!A:A,Feb!A:A,0)),"") -> 1 | M63: =IFERROR(INDEX(March!D:D,MATCH(Year!A:A,March!A:A,0)),"") -> 0.6666666667 | N63: 0.9722222222
A64: =IF(ISERROR(Q!A8),"",Q!A8) -> Was Speech testing performed? | B64: =IFERROR(INDEX(April!D:D,MATCH(Year!A:A,April!A:A,0)),"") -> 0.6 | C64: =IFERROR(INDEX(May!D:D,MATCH(Year!A:A,May!A:A,0)),"") -> 0.5 | D64: =IFERROR(INDEX(June!D:D,MATCH(Year!A:A,June!A:A,0)),"") -> 0.8 | E64: =IFERROR(INDEX(July!D:D,MATCH(Year!A:A,July!A:A,0)),"") -> 0.8 | F64: =IFERROR(INDEX(Aug!D:D,MATCH(Year!A:A,Aug!A:A,0)),"") -> 1 | G64: =IFERROR(INDEX(Sept!D:D,MATCH(Year!A:A,Sept!A:A,0)),"") -> 1 | H64: =IFERROR(INDEX(Oct!D:D,MATCH(Year!A:A,Oct!A:A,0)),"") -> 1 | I64: =IFERROR(INDEX(Nov!D:D,MATCH(Year!A:A,Nov!A:A,0)),"") -> 0.5 | J64: =IFERROR(INDEX(Dec!D:D,MATCH(Year!A:A,Dec!A:A,0)),"") -> 1 | K64: =IFERROR(INDEX(Jan!D:D,MATCH(Year!A:A,Jan!A:A,0)),"") -> 1 | L64: =IFERROR(INDEX(Feb!D:D,MATCH(Year!A:A,Feb!A:A,0)),"") -> 1 | M64: =IFERROR(INDEX(March!D:D,MATCH(Year!A:A,March!A:A,0)),"") -> 0.6666666667 | N64: 0.8222222222
A65: =IF(ISERROR(Q!A9),"",Q!A9) -> Is it documented whether national criteria were/were not met? | B65: =IFERROR(INDEX(April!D:D,MATCH(Year!A:A,April!A:A,0)),"") -> 0.8 | C65: =IFERROR(INDEX(May!D:D,MATCH(Year!A:A,May!A:A,0)),"") -> 1 | D65: =IFERROR(INDEX(June!D:D,MATCH(Year!A:A,June!A:A,0)),"") -> 1 | E65: =IFERROR(INDEX(July!D:D,MATCH(Year!A:A,July!A:A,0)),"") -> 1 | F65: =IFERROR(INDEX(Aug!D:D,MATCH(Year!A:A,Aug!A:A,0)),"") -> 1 | G65: =IFERROR(INDEX(Sept!D:D,MATCH(Year!A:A,Sept!A:A,0)),"") -> 1 | H65: =IFERROR(INDEX(Oct!D:D,MATCH(Year!A:A,Oct!A:A,0)),"") -> 1 | I65: =IFERROR(INDEX(Nov!D:D,MATCH(Year!A:A,Nov!A:A,0)),"") -> 0.75 | J65: =IFERROR(INDEX(Dec!D:D,MATCH(Year!A:A,Dec!A:A,0)),"") -> 1 | K65: =IFERROR(INDEX(Jan!D:D,MATCH(Year!A:A,Jan!A:A,0)),"") -> 1 | L65: =IFERROR(INDEX(Feb!D:D,MATCH(Year!A:A,Feb!A:A,0)),"") -> 1 | M65: =IFERROR(INDEX(March!D:D,MATCH(Year!A:A,March!A:A,0)),"") -> 1 | N65: 0.9625
A66: =IF(ISERROR(Q!A10),"",Q!A10) -> Was a BCHI info pack supplied? | B66: =IFERROR(INDEX(April!D:D,MATCH(Year!A:A,April!A:A,0)),"") -> 0.6 | C66: =IFERROR(INDEX(May!D:D,MATCH(Year!A:A,May!A:A,0)),"") -> 1 | D66: =IFERROR(INDEX(June!D:D,MATCH(Year!A:A,June!A:A,0)),"") -> 0.8 | E66: =IFERROR(INDEX(July!D:D,MATCH(Year!A:A,July!A:A,0)),"") -> 1 | F66: =IFERROR(INDEX(Aug!D:D,MATCH(Year!A:A,Aug!A:A,0)),"") -> 0.8 | G66: =IFERROR(INDEX(Sept!D:D,MATCH(Year!A:A,Sept!A:A,0)),"") -> 1 | H66: =IFERROR(INDEX(Oct!D:D,MATCH(Year!A:A,Oct!A:A,0)),"") -> 0.6666666667 | I66: =IFERROR(INDEX(Nov!D:D,MATCH(Year!A:A,Nov!A:A,0)),"") -> 0.5 | J66: =IFERROR(INDEX(Dec!D:D,MATCH(Year!A:A,Dec!A:A,0)),"") -> 1 | K66: =IFERROR(INDEX(Jan!D:D,MATCH(Year!A:A,Jan!A:A,0)),"") -> 1 | L66: =IFERROR(INDEX(Feb!D:D,MATCH(Year!A:A,Feb!A:A,0)),"") -> 1 | M66: =IFERROR(INDEX(March!D:D,MATCH(Year!A:A,March!A:A,0)),"") -> 0.6666666667 | N66: 0.8361111111
A67: =IF(ISERROR(Q!A11),"",Q!A11) -> Was the report authorised & issued within target (7 days)? | B67: =IFERROR(INDEX(April!D:D,MATCH(Year!A:A,April!A:A,0)),"") -> 1 | C67: =IFERROR(INDEX(May!D:D,MATCH(Year!A:A,May!A:A,0)),"") -> 1 | D67: =IFERROR(INDEX(June!D:D,MATCH(Year!A:A,June!A:A,0)),"") -> 1 | E67: =IFERROR(INDEX(July!D:D,MATCH(Year!A:A,July!A:A,0)),"") -> 1 | F67: =IFERROR(INDEX(Aug!D:D,MATCH(Year!A:A,Aug!A:A,0)),"") -> 1 | G67: =IFERROR(INDEX(Sept!D:D,MATCH(Year!A:A,Sept!A:A,0)),"") -> 1 | H67: =IFERROR(INDEX(Oct!D:D,MATCH(Year!A:A,Oct!A:A,0)),"") -> 1 | I67: =IFERROR(INDEX(Nov!D:D,MATCH(Year!A:A,Nov!A:A,0)),"") -> 1 | J67: =IFERROR(INDEX(Dec!D:D,MATCH(Year!A:A,Dec!A:A,0)),"") -> 1 | K67: =IFERROR(INDEX(Jan!D:D,MATCH(Year!A:A,Jan!A:A,0)),"") -> 1 | L67: =IFERROR(INDEX(Feb!D:D,MATCH(Year!A:A,Feb!A:A,0)),"") -> 1 | M67: =IFERROR(INDEX(March!D:D,MATCH(Year!A:A,March!A:A,0)),"") -> 1 | N67: 1
A68: =IF(ISERROR(Q!A12),"",Q!A12) -> Was consent documented as appropriate? | B68: =IFERROR(INDEX(April!D:D,MATCH(Year!A:A,April!A:A,0)),"") -> 1 | C68: =IFERROR(INDEX(May!D:D,MATCH(Year!A:A,May!A:A,0)),"") -> 1 | D68: =IFERROR(INDEX(June!D:D,MATCH(Year!A:A,June!A:A,0)),"") -> 1 | E68: =IFERROR(INDEX(July!D:D,MATCH(Year!A:A,July!A:A,0)),"") -> 1 | F68: =IFERROR(INDEX(Aug!D:D,MATCH(Year!A:A,Aug!A:A,0)),"") -> 1 | G68: =IFERROR(INDEX(Sept!D:D,MATCH(Year!A:A,Sept!A:A,0)),"") -> 1 | H68: =IFERROR(INDEX(Oct!D:D,MATCH(Year!A:A,Oct!A:A,0)),"") -> 1 | I68: =IFERROR(INDEX(Nov!D:D,MATCH(Year!A:A,Nov!A:A,0)),"") -> 1 | J68: =IFERROR(INDEX(Dec!D:D,MATCH(Year!A:A,Dec!A:A,0)),"") -> 1 | K68: =IFERROR(INDEX(Jan!D:D,MATCH(Year!A:A,Jan!A:A,0)),"") -> 1 | L68: =IFERROR(INDEX(Feb!D:D,MATCH(Year!A:A,Feb!A:A,0)),"") -> 1 | M68: =IFERROR(INDEX(March!D:D,MATCH(Year!A:A,March!A:A,0)),"") -> 1 | N68: 1
A69: =IF(ISERROR(Q!A13),"",Q!A13) -> 0 | B69: =IFERROR(INDEX(April!D:D,MATCH(Year!A:A,April!A:A,0)),"") ->  | C69: =IFERROR(INDEX(May!D:D,MATCH(Year!A:A,May!A:A,0)),"") ->  | D69: =IFERROR(INDEX(June!D:D,MATCH(Year!A:A,June!A:A,0)),"") ->  | E69: =IFERROR(INDEX(July!D:D,MATCH(Year!A:A,July!A:A,0)),"") ->  | F69: =IFERROR(INDEX(Aug!D:D,MATCH(Year!A:A,Aug!A:A,0)),"") ->  | G69: =IFERROR(INDEX(Sept!D:D,MATCH(Year!A:A,Sept!A:A,0)),"") ->  | H69: =IFERROR(INDEX(Oct!D:D,MATCH(Year!A:A,Oct!A:A,0)),"") ->  | I69: =IFERROR(INDEX(Nov!D:D,MATCH(Year!A:A,Nov!A:A,0)),"") ->  | J69: =IFERROR(INDEX(Dec!D:D,MATCH(Year!A:A,Dec!A:A,0)),"") ->  | K69: =IFERROR(INDEX(Jan!D:D,MATCH(Year!A:A,Jan!A:A,0)),"") ->  | L69: =IFERROR(INDEX(Feb!D:D,MATCH(Year!A:A,Feb!A:A,0)),"") ->  | M69: =IFERROR(INDEX(March!D:D,MATCH(Year!A:A,March!A:A,0)),"") -> 
A70: =IF(ISERROR(Q!A14),"",Q!A14) -> 0 | B70: =IFERROR(INDEX(April!D:D,MATCH(Year!A:A,April!A:A,0)),"") ->  | C70: =IFERROR(INDEX(May!D:D,MATCH(Year!A:A,May!A:A,0)),"") ->  | D70: =IFERROR(INDEX(June!D:D,MATCH(Year!A:A,June!A:A,0)),"") ->  | E70: =IFERROR(INDEX(July!D:D,MATCH(Year!A:A,July!A:A,0)),"") ->  | F70: =IFERROR(INDEX(Aug!D:D,MATCH(Year!A:A,Aug!A:A,0)),"") ->  | G70: =IFERROR(INDEX(Sept!D:D,MATCH(Year!A:A,Sept!A:A,0)),"") ->  | H70: =IFERROR(INDEX(Oct!D:D,MATCH(Year!A:A,Oct!A:A,0)),"") ->  | I70: =IFERROR(INDEX(Nov!D:D,MATCH(Year!A:A,Nov!A:A,0)),"") ->  | J70: =IFERROR(INDEX(Dec!D:D,MATCH(Year!A:A,Dec!A:A,0)),"") ->  | K70: =IFERROR(INDEX(Jan!D:D,MATCH(Year!A:A,Jan!A:A,0)),"") ->  | L70: =IFERROR(INDEX(Feb!D:D,MATCH(Year!A:A,Feb!A:A,0)),"") ->  | M70: =IFERROR(INDEX(March!D:D,MATCH(Year!A:A,March!A:A,0)),"") -> 
A71: =IF(ISERROR(Q!A15),"",Q!A15) -> 0 | B71: =IFERROR(INDEX(April!D:D,MATCH(Year!A:A,April!A:A,0)),"") ->  | C71: =IFERROR(INDEX(May!D:D,MATCH(Year!A:A,May!A:A,0)),"") ->  | D71: =IFERROR(INDEX(June!D:D,MATCH(Year!A:A,June!A:A,0)),"") ->  | E71: =IFERROR(INDEX(July!D:D,MATCH(Year!A:A,July!A:A,0)),"") ->  | F71: =IFERROR(INDEX(Aug!D:D,MATCH(Year!A:A,Aug!A:A,0)),"") ->  | G71: =IFERROR(INDEX(Sept!D:D,MATCH(Year!A:A,Sept!A:A,0)),"") ->  | H71: =IFERROR(INDEX(Oct!D:D,MATCH(Year!A:A,Oct!A:A,0)),"") ->  | I71: =IFERROR(INDEX(Nov!D:D,MATCH(Year!A:A,Nov!A:A,0)),"") ->  | J71: =IFERROR(INDEX(Dec!D:D,MATCH(Year!A:A,Dec!A:A,0)),"") ->  | K71: =IFERROR(INDEX(Jan!D:D,MATCH(Year!A:A,Jan!A:A,0)),"") ->  | L71: =IFERROR(INDEX(Feb!D:D,MATCH(Year!A:A,Feb!A:A,0)),"") ->  | M71: =IFERROR(INDEX(March!D:D,MATCH(Year!A:A,March!A:A,0)),"") -> 
A72: =IF(ISERROR(Q!A16),"",Q!A16) -> 0 | B72: =IFERROR(INDEX(April!D:D,MATCH(Year!A:A,April!A:A,0)),"") ->  | C72: =IFERROR(INDEX(May!D:D,MATCH(Year!A:A,May!A:A,0)),"") ->  | D72: =IFERROR(INDEX(June!D:D,MATCH(Year!A:A,June!A:A,0)),"") ->  | E72: =IFERROR(INDEX(July!D:D,MATCH(Year!A:A,July!A:A,0)),"") ->  | F72: =IFERROR(INDEX(Aug!D:D,MATCH(Year!A:A,Aug!A:A,0)),"") ->  | G72: =IFERROR(INDEX(Sept!D:D,MATCH(Year!A:A,Sept!A:A,0)),"") ->  | H72: =IFERROR(INDEX(Oct!D:D,MATCH(Year!A:A,Oct!A:A,0)),"") ->  | I72: =IFERROR(INDEX(Nov!D:D,MATCH(Year!A:A,Nov!A:A,0)),"") ->  | J72: =IFERROR(INDEX(Dec!D:D,MATCH(Year!A:A,Dec!A:A,0)),"") ->  | K72: =IFERROR(INDEX(Jan!D:D,MATCH(Year!A:A,Jan!A:A,0)),"") ->  | L72: =IFERROR(INDEX(Feb!D:D,MATCH(Year!A:A,Feb!A:A,0)),"") ->  | M72: =IFERROR(INDEX(March!D:D,MATCH(Year!A:A,March!A:A,0)),"") -> 
A73: =IF(ISERROR(Q!A17),"",Q!A17) -> 0 | B73: =IFERROR(INDEX(April!D:D,MATCH(Year!A:A,April!A:A,0)),"") ->  | C73: =IFERROR(INDEX(May!D:D,MATCH(Year!A:A,May!A:A,0)),"") ->  | D73: =IFERROR(INDEX(June!D:D,MATCH(Year!A:A,June!A:A,0)),"") ->  | E73: =IFERROR(INDEX(July!D:D,MATCH(Year!A:A,July!A:A,0)),"") ->  | F73: =IFERROR(INDEX(Aug!D:D,MATCH(Year!A:A,Aug!A:A,0)),"") ->  | G73: =IFERROR(INDEX(Sept!D:D,MATCH(Year!A:A,Sept!A:A,0)),"") ->  | H73: =IFERROR(INDEX(Oct!D:D,MATCH(Year!A:A,Oct!A:A,0)),"") ->  | I73: =IFERROR(INDEX(Nov!D:D,MATCH(Year!A:A,Nov!A:A,0)),"") ->  | J73: =IFERROR(INDEX(Dec!D:D,MATCH(Year!A:A,Dec!A:A,0)),"") ->  | K73: =IFERROR(INDEX(Jan!D:D,MATCH(Year!A:A,Jan!A:A,0)),"") ->  | L73: =IFERROR(INDEX(Feb!D:D,MATCH(Year!A:A,Feb!A:A,0)),"") ->  | M73: =IFERROR(INDEX(March!D:D,MATCH(Year!A:A,March!A:A,0)),"") -> 
A74: =IF(ISERROR(Q!A18),"",Q!A18) -> 0 | B74: =IFERROR(INDEX(April!D:D,MATCH(Year!A:A,April!A:A,0)),"") ->  | C74: =IFERROR(INDEX(May!D:D,MATCH(Year!A:A,May!A:A,0)),"") ->  | D74: =IFERROR(INDEX(June!D:D,MATCH(Year!A:A,June!A:A,0)),"") ->  | E74: =IFERROR(INDEX(July!D:D,MATCH(Year!A:A,July!A:A,0)),"") ->  | F74: =IFERROR(INDEX(Aug!D:D,MATCH(Year!A:A,Aug!A:A,0)),"") ->  | G74: =IFERROR(INDEX(Sept!D:D,MATCH(Year!A:A,Sept!A:A,0)),"") ->  | H74: =IFERROR(INDEX(Oct!D:D,MATCH(Year!A:A,Oct!A:A,0)),"") ->  | I74: =IFERROR(INDEX(Nov!D:D,MATCH(Year!A:A,Nov!A:A,0)),"") ->  | J74: =IFERROR(INDEX(Dec!D:D,MATCH(Year!A:A,Dec!A:A,0)),"") ->  | K74: =IFERROR(INDEX(Jan!D:D,MATCH(Year!A:A,Jan!A:A,0)),"") ->  | L74: =IFERROR(INDEX(Feb!D:D,MATCH(Year!A:A,Feb!A:A,0)),"") ->  | M74: =IFERROR(INDEX(March!D:D,MATCH(Year!A:A,March!A:A,0)),"") -> 
A75: =IF(ISERROR(Q!A19),"",Q!A19) -> 0 | B75: =IFERROR(INDEX(April!D:D,MATCH(Year!A:A,April!A:A,0)),"") ->  | C75: =IFERROR(INDEX(May!D:D,MATCH(Year!A:A,May!A:A,0)),"") ->  | D75: =IFERROR(INDEX(June!D:D,MATCH(Year!A:A,June!A:A,0)),"") ->  | E75: =IFERROR(INDEX(July!D:D,MATCH(Year!A:A,July!A:A,0)),"") ->  | F75: =IFERROR(INDEX(Aug!D:D,MATCH(Year!A:A,Aug!A:A,0)),"") ->  | G75: =IFERROR(INDEX(Sept!D:D,MATCH(Year!A:A,Sept!A:A,0)),"") ->  | H75: =IFERROR(INDEX(Oct!D:D,MATCH(Year!A:A,Oct!A:A,0)),"") ->  | I75: =IFERROR(INDEX(Nov!D:D,MATCH(Year!A:A,Nov!A:A,0)),"") ->  | J75: =IFERROR(INDEX(Dec!D:D,MATCH(Year!A:A,Dec!A:A,0)),"") ->  | K75: =IFERROR(INDEX(Jan!D:D,MATCH(Year!A:A,Jan!A:A,0)),"") ->  | L75: =IFERROR(INDEX(Feb!D:D,MATCH(Year!A:A,Feb!A:A,0)),"") ->  | M75: =IFERROR(INDEX(March!D:D,MATCH(Year!A:A,March!A:A,0)),"") -> 
A76: =IF(ISERROR(Q!A20),"",Q!A20) -> 0 | B76: =IFERROR(INDEX(April!D:D,MATCH(Year!A:A,April!A:A,0)),"") ->  | C76: =IFERROR(INDEX(May!D:D,MATCH(Year!A:A,May!A:A,0)),"") ->  | D76: =IFERROR(INDEX(June!D:D,MATCH(Year!A:A,June!A:A,0)),"") ->  | E76: =IFERROR(INDEX(July!D:D,MATCH(Year!A:A,July!A:A,0)),"") ->  | F76: =IFERROR(INDEX(Aug!D:D,MATCH(Year!A:A,Aug!A:A,0)),"") ->  | G76: =IFERROR(INDEX(Sept!D:D,MATCH(Year!A:A,Sept!A:A,0)),"") ->  | H76: =IFERROR(INDEX(Oct!D:D,MATCH(Year!A:A,Oct!A:A,0)),"") ->  | I76: =IFERROR(INDEX(Nov!D:D,MATCH(Year!A:A,Nov!A:A,0)),"") ->  | J76: =IFERROR(INDEX(Dec!D:D,MATCH(Year!A:A,Dec!A:A,0)),"") ->  | K76: =IFERROR(INDEX(Jan!D:D,MATCH(Year!A:A,Jan!A:A,0)),"") ->  | L76: =IFERROR(INDEX(Feb!D:D,MATCH(Year!A:A,Feb!A:A,0)),"") ->  | M76: =IFERROR(INDEX(March!D:D,MATCH(Year!A:A,March!A:A,0)),"") -> 
A77: =IF(ISERROR(Q!A21),"",Q!A21) -> 0 | B77: =IFERROR(INDEX(April!D:D,MATCH(Year!A:A,April!A:A,0)),"") ->  | C77: =IFERROR(INDEX(May!D:D,MATCH(Year!A:A,May!A:A,0)),"") ->  | D77: =IFERROR(INDEX(June!D:D,MATCH(Year!A:A,June!A:A,0)),"") ->  | E77: =IFERROR(INDEX(July!D:D,MATCH(Year!A:A,July!A:A,0)),"") ->  | F77: =IFERROR(INDEX(Aug!D:D,MATCH(Year!A:A,Aug!A:A,0)),"") ->  | G77: =IFERROR(INDEX(Sept!D:D,MATCH(Year!A:A,Sept!A:A,0)),"") ->  | H77: =IFERROR(INDEX(Oct!D:D,MATCH(Year!A:A,Oct!A:A,0)),"") ->  | I77: =IFERROR(INDEX(Nov!D:D,MATCH(Year!A:A,Nov!A:A,0)),"") ->  | J77: =IFERROR(INDEX(Dec!D:D,MATCH(Year!A:A,Dec!A:A,0)),"") ->  | K77: =IFERROR(INDEX(Jan!D:D,MATCH(Year!A:A,Jan!A:A,0)),"") ->  | L77: =IFERROR(INDEX(Feb!D:D,MATCH(Year!A:A,Feb!A:A,0)),"") ->  | M77: =IFERROR(INDEX(March!D:D,MATCH(Year!A:A,March!A:A,0)),"") -> 
A78: =IF(ISERROR(Q!A22),"",Q!A22) -> 0 | B78: =IFERROR(INDEX(April!D:D,MATCH(Year!A:A,April!A:A,0)),"") ->  | C78: =IFERROR(INDEX(May!D:D,MATCH(Year!A:A,May!A:A,0)),"") ->  | D78: =IFERROR(INDEX(June!D:D,MATCH(Year!A:A,June!A:A,0)),"") ->  | E78: =IFERROR(INDEX(July!D:D,MATCH(Year!A:A,July!A:A,0)),"") ->  | F78: =IFERROR(INDEX(Aug!D:D,MATCH(Year!A:A,Aug!A:A,0)),"") ->  | G78: =IFERROR(INDEX(Sept!D:D,MATCH(Year!A:A,Sept!A:A,0)),"") ->  | H78: =IFERROR(INDEX(Oct!D:D,MATCH(Year!A:A,Oct!A:A,0)),"") ->  | I78: =IFERROR(INDEX(Nov!D:D,MATCH(Year!A:A,Nov!A:A,0)),"") ->  | J78: =IFERROR(INDEX(Dec!D:D,MATCH(Year!A:A,Dec!A:A,0)),"") ->  | K78: =IFERROR(INDEX(Jan!D:D,MATCH(Year!A:A,Jan!A:A,0)),"") ->  | L78: =IFERROR(INDEX(Feb!D:D,MATCH(Year!A:A,Feb!A:A,0)),"") ->  | M78: =IFERROR(INDEX(March!D:D,MATCH(Year!A:A,March!A:A,0)),"") -> 
A79: =IF(ISERROR(Q!A23),"",Q!A23) -> 0 | B79: =IFERROR(INDEX(April!D:D,MATCH(Year!A:A,April!A:A,0)),"") ->  | C79: =IFERROR(INDEX(May!D:D,MATCH(Year!A:A,May!A:A,0)),"") ->  | D79: =IFERROR(INDEX(June!D:D,MATCH(Year!A:A,June!A:A,0)),"") ->  | E79: =IFERROR(INDEX(July!D:D,MATCH(Year!A:A,July!A:A,0)),"") ->  | F79: =IFERROR(INDEX(Aug!D:D,MATCH(Year!A:A,Aug!A:A,0)),"") ->  | G79: =IFERROR(INDEX(Sept!D:D,MATCH(Year!A:A,Sept!A:A,0)),"") ->  | H79: =IFERROR(INDEX(Oct!D:D,MATCH(Year!A:A,Oct!A:A,0)),"") ->  | I79: =IFERROR(INDEX(Nov!D:D,MATCH(Year!A:A,Nov!A:A,0)),"") ->  | J79: =IFERROR(INDEX(Dec!D:D,MATCH(Year!A:A,Dec!A:A,0)),"") ->  | K79: =IFERROR(INDEX(Jan!D:D,MATCH(Year!A:A,Jan!A:A,0)),"") ->  | L79: =IFERROR(INDEX(Feb!D:D,MATCH(Year!A:A,Feb!A:A,0)),"") ->  | M79: =IFERROR(INDEX(March!D:D,MATCH(Year!A:A,March!A:A,0)),"") -> 
A80: =IF(ISERROR(Q!A24),"",Q!A24) -> 0 | B80: =IFERROR(INDEX(April!D:D,MATCH(Year!A:A,April!A:A,0)),"") ->  | C80: =IFERROR(INDEX(May!D:D,MATCH(Year!A:A,May!A:A,0)),"") ->  | D80: =IFERROR(INDEX(June!D:D,MATCH(Year!A:A,June!A:A,0)),"") ->  | E80: =IFERROR(INDEX(July!D:D,MATCH(Year!A:A,July!A:A,0)),"") ->  | F80: =IFERROR(INDEX(Aug!D:D,MATCH(Year!A:A,Aug!A:A,0)),"") ->  | G80: =IFERROR(INDEX(Sept!D:D,MATCH(Year!A:A,Sept!A:A,0)),"") ->  | H80: =IFERROR(INDEX(Oct!D:D,MATCH(Year!A:A,Oct!A:A,0)),"") ->  | I80: =IFERROR(INDEX(Nov!D:D,MATCH(Year!A:A,Nov!A:A,0)),"") ->  | J80: =IFERROR(INDEX(Dec!D:D,MATCH(Year!A:A,Dec!A:A,0)),"") ->  | K80: =IFERROR(INDEX(Jan!D:D,MATCH(Year!A:A,Jan!A:A,0)),"") ->  | L80: =IFERROR(INDEX(Feb!D:D,MATCH(Year!A:A,Feb!A:A,0)),"") ->  | M80: =IFERROR(INDEX(March!D:D,MATCH(Year!A:A,March!A:A,0)),"") -> 
A81: =IF(ISERROR(Q!A25),"",Q!A25) -> 0 | B81: =IFERROR(INDEX(April!D:D,MATCH(Year!A:A,April!A:A,0)),"") ->  | C81: =IFERROR(INDEX(May!D:D,MATCH(Year!A:A,May!A:A,0)),"") ->  | D81: =IFERROR(INDEX(June!D:D,MATCH(Year!A:A,June!A:A,0)),"") ->  | E81: =IFERROR(INDEX(July!D:D,MATCH(Year!A:A,July!A:A,0)),"") ->  | F81: =IFERROR(INDEX(Aug!D:D,MATCH(Year!A:A,Aug!A:A,0)),"") ->  | G81: =IFERROR(INDEX(Sept!D:D,MATCH(Year!A:A,Sept!A:A,0)),"") ->  | H81: =IFERROR(INDEX(Oct!D:D,MATCH(Year!A:A,Oct!A:A,0)),"") ->  | I81: =IFERROR(INDEX(Nov!D:D,MATCH(Year!A:A,Nov!A:A,0)),"") ->  | J81: =IFERROR(INDEX(Dec!D:D,MATCH(Year!A:A,Dec!A:A,0)),"") ->  | K81: =IFERROR(INDEX(Jan!D:D,MATCH(Year!A:A,Jan!A:A,0)),"") ->  | L81: =IFERROR(INDEX(Feb!D:D,MATCH(Year!A:A,Feb!A:A,0)),"") ->  | M81: =IFERROR(INDEX(March!D:D,MATCH(Year!A:A,March!A:A,0)),"") -> 
A82: =IF(ISERROR(Q!A26),"",Q!A26) -> 0 | B82: =IFERROR(INDEX(April!D:D,MATCH(Year!A:A,April!A:A,0)),"") ->  | C82: =IFERROR(INDEX(May!D:D,MATCH(Year!A:A,May!A:A,0)),"") ->  | D82: =IFERROR(INDEX(June!D:D,MATCH(Year!A:A,June!A:A,0)),"") ->  | E82: =IFERROR(INDEX(July!D:D,MATCH(Year!A:A,July!A:A,0)),"") ->  | F82: =IFERROR(INDEX(Aug!D:D,MATCH(Year!A:A,Aug!A:A,0)),"") ->  | G82: =IFERROR(INDEX(Sept!D:D,MATCH(Year!A:A,Sept!A:A,0)),"") ->  | H82: =IFERROR(INDEX(Oct!D:D,MATCH(Year!A:A,Oct!A:A,0)),"") ->  | I82: =IFERROR(INDEX(Nov!D:D,MATCH(Year!A:A,Nov!A:A,0)),"") ->  | J82: =IFERROR(INDEX(Dec!D:D,MATCH(Year!A:A,Dec!A:A,0)),"") ->  | K82: =IFERROR(INDEX(Jan!D:D,MATCH(Year!A:A,Jan!A:A,0)),"") ->  | L82: =IFERROR(INDEX(Feb!D:D,MATCH(Year!A:A,Feb!A:A,0)),"") ->  | M82: =IFERROR(INDEX(March!D:D,MATCH(Year!A:A,March!A:A,0)),"") -> 
A83: =IF(ISERROR(Q!A27),"",Q!A27) -> 0 | B83: =IFERROR(INDEX(April!D:D,MATCH(Year!A:A,April!A:A,0)),"") ->  | C83: =IFERROR(INDEX(May!D:D,MATCH(Year!A:A,May!A:A,0)),"") ->  | D83: =IFERROR(INDEX(June!D:D,MATCH(Year!A:A,June!A:A,0)),"") ->  | E83: =IFERROR(INDEX(July!D:D,MATCH(Year!A:A,July!A:A,0)),"") ->  | F83: =IFERROR(INDEX(Aug!D:D,MATCH(Year!A:A,Aug!A:A,0)),"") ->  | G83: =IFERROR(INDEX(Sept!D:D,MATCH(Year!A:A,Sept!A:A,0)),"") ->  | H83: =IFERROR(INDEX(Oct!D:D,MATCH(Year!A:A,Oct!A:A,0)),"") ->  | I83: =IFERROR(INDEX(Nov!D:D,MATCH(Year!A:A,Nov!A:A,0)),"") ->  | J83: =IFERROR(INDEX(Dec!D:D,MATCH(Year!A:A,Dec!A:A,0)),"") ->  | K83: =IFERROR(INDEX(Jan!D:D,MATCH(Year!A:A,Jan!A:A,0)),"") ->  | L83: =IFERROR(INDEX(Feb!D:D,MATCH(Year!A:A,Feb!A:A,0)),"") ->  | M83: =IFERROR(INDEX(March!D:D,MATCH(Year!A:A,March!A:A,0)),"") -> 
A84: =IF(ISERROR(Q!A28),"",Q!A28) -> 0 | B84: =IFERROR(INDEX(April!D:D,MATCH(Year!A:A,April!A:A,0)),"") ->  | C84: =IFERROR(INDEX(May!D:D,MATCH(Year!A:A,May!A:A,0)),"") ->  | D84: =IFERROR(INDEX(June!D:D,MATCH(Year!A:A,June!A:A,0)),"") ->  | E84: =IFERROR(INDEX(July!D:D,MATCH(Year!A:A,July!A:A,0)),"") ->  | F84: =IFERROR(INDEX(Aug!D:D,MATCH(Year!A:A,Aug!A:A,0)),"") ->  | G84: =IFERROR(INDEX(Sept!D:D,MATCH(Year!A:A,Sept!A:A,0)),"") ->  | H84: =IFERROR(INDEX(Oct!D:D,MATCH(Year!A:A,Oct!A:A,0)),"") ->  | I84: =IFERROR(INDEX(Nov!D:D,MATCH(Year!A:A,Nov!A:A,0)),"") ->  | J84: =IFERROR(INDEX(Dec!D:D,MATCH(Year!A:A,Dec!A:A,0)),"") ->  | K84: =IFERROR(INDEX(Jan!D:D,MATCH(Year!A:A,Jan!A:A,0)),"") ->  | L84: =IFERROR(INDEX(Feb!D:D,MATCH(Year!A:A,Feb!A:A,0)),"") ->  | M84: =IFERROR(INDEX(March!D:D,MATCH(Year!A:A,March!A:A,0)),"") -> 
A85: =IF(ISERROR(Q!A29),"",Q!A29) -> 0 | B85: =IFERROR(INDEX(April!D:D,MATCH(Year!A:A,April!A:A,0)),"") ->  | C85: =IFERROR(INDEX(May!D:D,MATCH(Year!A:A,May!A:A,0)),"") ->  | D85: =IFERROR(INDEX(June!D:D,MATCH(Year!A:A,June!A:A,0)),"") ->  | E85: =IFERROR(INDEX(July!D:D,MATCH(Year!A:A,July!A:A,0)),"") ->  | F85: =IFERROR(INDEX(Aug!D:D,MATCH(Year!A:A,Aug!A:A,0)),"") ->  | G85: =IFERROR(INDEX(Sept!D:D,MATCH(Year!A:A,Sept!A:A,0)),"") ->  | H85: =IFERROR(INDEX(Oct!D:D,MATCH(Year!A:A,Oct!A:A,0)),"") ->  | I85: =IFERROR(INDEX(Nov!D:D,MATCH(Year!A:A,Nov!A:A,0)),"") ->  | J85: =IFERROR(INDEX(Dec!D:D,MATCH(Year!A:A,Dec!A:A,0)),"") ->  | K85: =IFERROR(INDEX(Jan!D:D,MATCH(Year!A:A,Jan!A:A,0)),"") ->  | L85: =IFERROR(INDEX(Feb!D:D,MATCH(Year!A:A,Feb!A:A,0)),"") ->  | M85: =IFERROR(INDEX(March!D:D,MATCH(Year!A:A,March!A:A,0)),"") -> 
A86: =IF(ISERROR(Q!A30),"",Q!A30) -> 0 | B86: =IFERROR(INDEX(April!D:D,MATCH(Year!A:A,April!A:A,0)),"") ->  | C86: =IFERROR(INDEX(May!D:D,MATCH(Year!A:A,May!A:A,0)),"") ->  | D86: =IFERROR(INDEX(June!D:D,MATCH(Year!A:A,June!A:A,0)),"") ->  | E86: =IFERROR(INDEX(July!D:D,MATCH(Year!A:A,July!A:A,0)),"") ->  | F86: =IFERROR(INDEX(Aug!D:D,MATCH(Year!A:A,Aug!A:A,0)),"") ->  | G86: =IFERROR(INDEX(Sept!D:D,MATCH(Year!A:A,Sept!A:A,0)),"") ->  | H86: =IFERROR(INDEX(Oct!D:D,MATCH(Year!A:A,Oct!A:A,0)),"") ->  | I86: =IFERROR(INDEX(Nov!D:D,MATCH(Year!A:A,Nov!A:A,0)),"") ->  | J86: =IFERROR(INDEX(Dec!D:D,MATCH(Year!A:A,Dec!A:A,0)),"") ->  | K86: =IFERROR(INDEX(Jan!D:D,MATCH(Year!A:A,Jan!A:A,0)),"") ->  | L86: =IFERROR(INDEX(Feb!D:D,MATCH(Year!A:A,Feb!A:A,0)),"") ->  | M86: =IFERROR(INDEX(March!D:D,MATCH(Year!A:A,March!A:A,0)),"") -> 
A87: =IF(ISERROR(Q!A31),"",Q!A31) -> 0 | B87: =IFERROR(INDEX(April!D:D,MATCH(Year!A:A,April!A:A,0)),"") ->  | C87: =IFERROR(INDEX(May!D:D,MATCH(Year!A:A,May!A:A,0)),"") ->  | D87: =IFERROR(INDEX(June!D:D,MATCH(Year!A:A,June!A:A,0)),"") ->  | E87: =IFERROR(INDEX(July!D:D,MATCH(Year!A:A,July!A:A,0)),"") ->  | F87: =IFERROR(INDEX(Aug!D:D,MATCH(Year!A:A,Aug!A:A,0)),"") ->  | G87: =IFERROR(INDEX(Sept!D:D,MATCH(Year!A:A,Sept!A:A,0)),"") ->  | H87: =IFERROR(INDEX(Oct!D:D,MATCH(Year!A:A,Oct!A:A,0)),"") ->  | I87: =IFERROR(INDEX(Nov!D:D,MATCH(Year!A:A,Nov!A:A,0)),"") ->  | J87: =IFERROR(INDEX(Dec!D:D,MATCH(Year!A:A,Dec!A:A,0)),"") ->  | K87: =IFERROR(INDEX(Jan!D:D,MATCH(Year!A:A,Jan!A:A,0)),"") ->  | L87: =IFERROR(INDEX(Feb!D:D,MATCH(Year!A:A,Feb!A:A,0)),"") ->  | M87: =IFERROR(INDEX(March!D:D,MATCH(Year!A:A,March!A:A,0)),"") -> 
A88: =IF(ISERROR(Q!A32),"",Q!A32) -> 0 | B88: =IFERROR(INDEX(April!D:D,MATCH(Year!A:A,April!A:A,0)),"") ->  | C88: =IFERROR(INDEX(May!D:D,MATCH(Year!A:A,May!A:A,0)),"") ->  | D88: =IFERROR(INDEX(June!D:D,MATCH(Year!A:A,June!A:A,0)),"") ->  | E88: =IFERROR(INDEX(July!D:D,MATCH(Year!A:A,July!A:A,0)),"") ->  | F88: =IFERROR(INDEX(Aug!D:D,MATCH(Year!A:A,Aug!A:A,0)),"") ->  | G88: =IFERROR(INDEX(Sept!D:D,MATCH(Year!A:A,Sept!A:A,0)),"") ->  | H88: =IFERROR(INDEX(Oct!D:D,MATCH(Year!A:A,Oct!A:A,0)),"") ->  | I88: =IFERROR(INDEX(Nov!D:D,MATCH(Year!A:A,Nov!A:A,0)),"") ->  | J88: =IFERROR(INDEX(Dec!D:D,MATCH(Year!A:A,Dec!A:A,0)),"") ->  | K88: =IFERROR(INDEX(Jan!D:D,MATCH(Year!A:A,Jan!A:A,0)),"") ->  | L88: =IFERROR(INDEX(Feb!D:D,MATCH(Year!A:A,Feb!A:A,0)),"") ->  | M88: =IFERROR(INDEX(March!D:D,MATCH(Year!A:A,March!A:A,0)),"") -> 
A89: =IF(ISERROR(Q!A33),"",Q!A33) -> 0 | B89: =IFERROR(INDEX(April!D:D,MATCH(Year!A:A,April!A:A,0)),"") ->  | C89: =IFERROR(INDEX(May!D:D,MATCH(Year!A:A,May!A:A,0)),"") ->  | D89: =IFERROR(INDEX(June!D:D,MATCH(Year!A:A,June!A:A,0)),"") ->  | E89: =IFERROR(INDEX(July!D:D,MATCH(Year!A:A,July!A:A,0)),"") ->  | F89: =IFERROR(INDEX(Aug!D:D,MATCH(Year!A:A,Aug!A:A,0)),"") ->  | G89: =IFERROR(INDEX(Sept!D:D,MATCH(Year!A:A,Sept!A:A,0)),"") ->  | H89: =IFERROR(INDEX(Oct!D:D,MATCH(Year!A:A,Oct!A:A,0)),"") ->  | I89: =IFERROR(INDEX(Nov!D:D,MATCH(Year!A:A,Nov!A:A,0)),"") ->  | J89: =IFERROR(INDEX(Dec!D:D,MATCH(Year!A:A,Dec!A:A,0)),"") ->  | K89: =IFERROR(INDEX(Jan!D:D,MATCH(Year!A:A,Jan!A:A,0)),"") ->  | L89: =IFERROR(INDEX(Feb!D:D,MATCH(Year!A:A,Feb!A:A,0)),"") ->  | M89: =IFERROR(INDEX(March!D:D,MATCH(Year!A:A,March!A:A,0)),"") -> 
A90: =IF(ISERROR(Q!A34),"",Q!A34) -> 0 | B90: =IFERROR(INDEX(April!D:D,MATCH(Year!A:A,April!A:A,0)),"") ->  | C90: =IFERROR(INDEX(May!D:D,MATCH(Year!A:A,May!A:A,0)),"") ->  | D90: =IFERROR(INDEX(June!D:D,MATCH(Year!A:A,June!A:A,0)),"") ->  | E90: =IFERROR(INDEX(July!D:D,MATCH(Year!A:A,July!A:A,0)),"") ->  | F90: =IFERROR(INDEX(Aug!D:D,MATCH(Year!A:A,Aug!A:A,0)),"") ->  | G90: =IFERROR(INDEX(Sept!D:D,MATCH(Year!A:A,Sept!A:A,0)),"") ->  | H90: =IFERROR(INDEX(Oct!D:D,MATCH(Year!A:A,Oct!A:A,0)),"") ->  | I90: =IFERROR(INDEX(Nov!D:D,MATCH(Year!A:A,Nov!A:A,0)),"") ->  | J90: =IFERROR(INDEX(Dec!D:D,MATCH(Year!A:A,Dec!A:A,0)),"") ->  | K90: =IFERROR(INDEX(Jan!D:D,MATCH(Year!A:A,Jan!A:A,0)),"") ->  | L90: =IFERROR(INDEX(Feb!D:D,MATCH(Year!A:A,Feb!A:A,0)),"") ->  | M90: =IFERROR(INDEX(March!D:D,MATCH(Year!A:A,March!A:A,0)),"") -> 
A91: =IF(ISERROR(Q!A35),"",Q!A35) -> 0 | B91: =IFERROR(INDEX(April!D:D,MATCH(Year!A:A,April!A:A,0)),"") ->  | C91: =IFERROR(INDEX(May!D:D,MATCH(Year!A:A,May!A:A,0)),"") ->  | D91: =IFERROR(INDEX(June!D:D,MATCH(Year!A:A,June!A:A,0)),"") ->  | E91: =IFERROR(INDEX(July!D:D,MATCH(Year!A:A,July!A:A,0)),"") ->  | F91: =IFERROR(INDEX(Aug!D:D,MATCH(Year!A:A,Aug!A:A,0)),"") ->  | G91: =IFERROR(INDEX(Sept!D:D,MATCH(Year!A:A,Sept!A:A,0)),"") ->  | H91: =IFERROR(INDEX(Oct!D:D,MATCH(Year!A:A,Oct!A:A,0)),"") ->  | I91: =IFERROR(INDEX(Nov!D:D,MATCH(Year!A:A,Nov!A:A,0)),"") ->  | J91: =IFERROR(INDEX(Dec!D:D,MATCH(Year!A:A,Dec!A:A,0)),"") ->  | K91: =IFERROR(INDEX(Jan!D:D,MATCH(Year!A:A,Jan!A:A,0)),"") ->  | L91: =IFERROR(INDEX(Feb!D:D,MATCH(Year!A:A,Feb!A:A,0)),"") ->  | M91: =IFERROR(INDEX(March!D:D,MATCH(Year!A:A,March!A:A,0)),"") -> 
A92: =IF(ISERROR(Q!A36),"",Q!A36) -> 0 | B92: =IFERROR(INDEX(April!D:D,MATCH(Year!A:A,April!A:A,0)),"") ->  | C92: =IFERROR(INDEX(May!D:D,MATCH(Year!A:A,May!A:A,0)),"") ->  | D92: =IFERROR(INDEX(June!D:D,MATCH(Year!A:A,June!A:A,0)),"") ->  | E92: =IFERROR(INDEX(July!D:D,MATCH(Year!A:A,July!A:A,0)),"") ->  | F92: =IFERROR(INDEX(Aug!D:D,MATCH(Year!A:A,Aug!A:A,0)),"") ->  | G92: =IFERROR(INDEX(Sept!D:D,MATCH(Year!A:A,Sept!A:A,0)),"") ->  | H92: =IFERROR(INDEX(Oct!D:D,MATCH(Year!A:A,Oct!A:A,0)),"") ->  | I92: =IFERROR(INDEX(Nov!D:D,MATCH(Year!A:A,Nov!A:A,0)),"") ->  | J92: =IFERROR(INDEX(Dec!D:D,MATCH(Year!A:A,Dec!A:A,0)),"") ->  | K92: =IFERROR(INDEX(Jan!D:D,MATCH(Year!A:A,Jan!A:A,0)),"") ->  | L92: =IFERROR(INDEX(Feb!D:D,MATCH(Year!A:A,Feb!A:A,0)),"") ->  | M92: =IFERROR(INDEX(March!D:D,MATCH(Year!A:A,March!A:A,0)),"") -> 
A93: =IF(ISERROR(Q!A37),"",Q!A37) -> 0 | B93: =IFERROR(INDEX(April!D:D,MATCH(Year!A:A,April!A:A,0)),"") ->  | C93: =IFERROR(INDEX(May!D:D,MATCH(Year!A:A,May!A:A,0)),"") ->  | D93: =IFERROR(INDEX(June!D:D,MATCH(Year!A:A,June!A:A,0)),"") ->  | E93: =IFERROR(INDEX(July!D:D,MATCH(Year!A:A,July!A:A,0)),"") ->  | F93: =IFERROR(INDEX(Aug!D:D,MATCH(Year!A:A,Aug!A:A,0)),"") ->  | G93: =IFERROR(INDEX(Sept!D:D,MATCH(Year!A:A,Sept!A:A,0)),"") ->  | H93: =IFERROR(INDEX(Oct!D:D,MATCH(Year!A:A,Oct!A:A,0)),"") ->  | I93: =IFERROR(INDEX(Nov!D:D,MATCH(Year!A:A,Nov!A:A,0)),"") ->  | J93: =IFERROR(INDEX(Dec!D:D,MATCH(Year!A:A,Dec!A:A,0)),"") ->  | K93: =IFERROR(INDEX(Jan!D:D,MATCH(Year!A:A,Jan!A:A,0)),"") ->  | L93: =IFERROR(INDEX(Feb!D:D,MATCH(Year!A:A,Feb!A:A,0)),"") ->  | M93: =IFERROR(INDEX(March!D:D,MATCH(Year!A:A,March!A:A,0)),"") -> 
A94: =IF(ISERROR(Q!A38),"",Q!A38) -> 0 | B94: =IFERROR(INDEX(April!D:D,MATCH(Year!A:A,April!A:A,0)),"") ->  | C94: =IFERROR(INDEX(May!D:D,MATCH(Year!A:A,May!A:A,0)),"") ->  | D94: =IFERROR(INDEX(June!D:D,MATCH(Year!A:A,June!A:A,0)),"") ->  | E94: =IFERROR(INDEX(July!D:D,MATCH(Year!A:A,July!A:A,0)),"") ->  | F94: =IFERROR(INDEX(Aug!D:D,MATCH(Year!A:A,Aug!A:A,0)),"") ->  | G94: =IFERROR(INDEX(Sept!D:D,MATCH(Year!A:A,Sept!A:A,0)),"") ->  | H94: =IFERROR(INDEX(Oct!D:D,MATCH(Year!A:A,Oct!A:A,0)),"") ->  | I94: =IFERROR(INDEX(Nov!D:D,MATCH(Year!A:A,Nov!A:A,0)),"") ->  | J94: =IFERROR(INDEX(Dec!D:D,MATCH(Year!A:A,Dec!A:A,0)),"") ->  | K94: =IFERROR(INDEX(Jan!D:D,MATCH(Year!A:A,Jan!A:A,0)),"") ->  | L94: =IFERROR(INDEX(Feb!D:D,MATCH(Year!A:A,Feb!A:A,0)),"") ->  | M94: =IFERROR(INDEX(March!D:D,MATCH(Year!A:A,March!A:A,0)),"") -> 
A95: =IF(ISERROR(Q!A39),"",Q!A39) -> 0 | B95: =IFERROR(INDEX(April!D:D,MATCH(Year!A:A,April!A:A,0)),"") ->  | C95: =IFERROR(INDEX(May!D:D,MATCH(Year!A:A,May!A:A,0)),"") ->  | D95: =IFERROR(INDEX(June!D:D,MATCH(Year!A:A,June!A:A,0)),"") ->  | E95: =IFERROR(INDEX(July!D:D,MATCH(Year!A:A,July!A:A,0)),"") ->  | F95: =IFERROR(INDEX(Aug!D:D,MATCH(Year!A:A,Aug!A:A,0)),"") ->  | G95: =IFERROR(INDEX(Sept!D:D,MATCH(Year!A:A,Sept!A:A,0)),"") ->  | H95: =IFERROR(INDEX(Oct!D:D,MATCH(Year!A:A,Oct!A:A,0)),"") ->  | I95: =IFERROR(INDEX(Nov!D:D,MATCH(Year!A:A,Nov!A:A,0)),"") ->  | J95: =IFERROR(INDEX(Dec!D:D,MATCH(Year!A:A,Dec!A:A,0)),"") ->  | K95: =IFERROR(INDEX(Jan!D:D,MATCH(Year!A:A,Jan!A:A,0)),"") ->  | L95: =IFERROR(INDEX(Feb!D:D,MATCH(Year!A:A,Feb!A:A,0)),"") ->  | M95: =IFERROR(INDEX(March!D:D,MATCH(Year!A:A,March!A:A,0)),"") -> 
A96: =IF(ISERROR(Q!A40),"",Q!A40) -> 0 | B96: =IFERROR(INDEX(April!D:D,MATCH(Year!A:A,April!A:A,0)),"") ->  | C96: =IFERROR(INDEX(May!D:D,MATCH(Year!A:A,May!A:A,0)),"") ->  | D96: =IFERROR(INDEX(June!D:D,MATCH(Year!A:A,June!A:A,0)),"") ->  | E96: =IFERROR(INDEX(July!D:D,MATCH(Year!A:A,July!A:A,0)),"") ->  | F96: =IFERROR(INDEX(Aug!D:D,MATCH(Year!A:A,Aug!A:A,0)),"") ->  | G96: =IFERROR(INDEX(Sept!D:D,MATCH(Year!A:A,Sept!A:A,0)),"") ->  | H96: =IFERROR(INDEX(Oct!D:D,MATCH(Year!A:A,Oct!A:A,0)),"") ->  | I96: =IFERROR(INDEX(Nov!D:D,MATCH(Year!A:A,Nov!A:A,0)),"") ->  | J96: =IFERROR(INDEX(Dec!D:D,MATCH(Year!A:A,Dec!A:A,0)),"") ->  | K96: =IFERROR(INDEX(Jan!D:D,MATCH(Year!A:A,Jan!A:A,0)),"") ->  | L96: =IFERROR(INDEX(Feb!D:D,MATCH(Year!A:A,Feb!A:A,0)),"") ->  | M96: =IFERROR(INDEX(March!D:D,MATCH(Year!A:A,March!A:A,0)),"") -> 
A97: =IF(ISERROR(Q!A41),"",Q!A41) -> 0 | B97: =IFERROR(INDEX(April!D:D,MATCH(Year!A:A,April!A:A,0)),"") ->  | C97: =IFERROR(INDEX(May!D:D,MATCH(Year!A:A,May!A:A,0)),"") ->  | D97: =IFERROR(INDEX(June!D:D,MATCH(Year!A:A,June!A:A,0)),"") ->  | E97: =IFERROR(INDEX(July!D:D,MATCH(Year!A:A,July!A:A,0)),"") ->  | F97: =IFERROR(INDEX(Aug!D:D,MATCH(Year!A:A,Aug!A:A,0)),"") ->  | G97: =IFERROR(INDEX(Sept!D:D,MATCH(Year!A:A,Sept!A:A,0)),"") ->  | H97: =IFERROR(INDEX(Oct!D:D,MATCH(Year!A:A,Oct!A:A,0)),"") ->  | I97: =IFERROR(INDEX(Nov!D:D,MATCH(Year!A:A,Nov!A:A,0)),"") ->  | J97: =IFERROR(INDEX(Dec!D:D,MATCH(Year!A:A,Dec!A:A,0)),"") ->  | K97: =IFERROR(INDEX(Jan!D:D,MATCH(Year!A:A,Jan!A:A,0)),"") ->  | L97: =IFERROR(INDEX(Feb!D:D,MATCH(Year!A:A,Feb!A:A,0)),"") ->  | M97: =IFERROR(INDEX(March!D:D,MATCH(Year!A:A,March!A:A,0)),"") -> 
A98: Average | B98: =IF(ISERROR((SUM(B58:B97)/April!B8)),"",(SUM(B58:B97)/April!B8)) -> 0.8727272727 | C98: =IF(ISERROR((SUM(C58:C97)/May!B8)),"",(SUM(C58:C97)/May!B8)) -> 0.8863636364 | D98: =IF(ISERROR((SUM(D58:D97)/June!B8)),"",(SUM(D58:D97)/June!B8)) -> 0.9454545455 | E98: =IF(ISERROR((SUM(E58:E97)/July!B8)),"",(SUM(E58:E97)/July!B8)) -> 0.9636363636 | F98: =IF(ISERROR((SUM(F58:F97)/Aug!B8)),"",(SUM(F58:F97)/Aug!B8)) -> 0.9636363636 | G98: =IF(ISERROR((SUM(G58:G97)/Sept!B8)),"",(SUM(G58:G97)/Sept!B8)) -> 0.9772727273 | H98: =IF(ISERROR((SUM(H58:H97)/Oct!B8)),"",(SUM(H58:H97)/Oct!B8)) -> 0.9696969697 | I98: =IF(ISERROR((SUM(I58:I97)/Nov!B8)),"",(SUM(I58:I97)/Nov!B8)) -> 0.8636363636 | J98: =IF(ISERROR((SUM(J58:J97)/Dec!B8)),"",(SUM(J58:J97)/Dec!B8)) -> 0.9636363636 | K98: =IF(ISERROR((SUM(K58:K97)/Jan!B8)),"",(SUM(K58:K97)/Jan!B8)) -> 0.9696969697 | L98: =IF(ISERROR((SUM(L58:L97)/Feb!B8)),"",(SUM(L58:L97)/Feb!B8)) -> 0.9409090909 | M98: =IF(ISERROR((SUM(M58:M97)/March!B8)),"",(SUM(M58:M97)/March!B8)) -> 0.8787878788 | N98: =IF(ISERROR((SUM(B98:M98))/B4),"",(SUM(B98:M98))/B4) -> 0.9329545455
A100: Justified
A101: Metric | B101: April | C101: May | D101: June | E101: July | F101: August | G101: September | H101: October | I101: November | J101: December | K101: January | L101: February | M101: March | N101: Year average
A102: =IF(ISERROR(Q!A2),"",Q!A2) -> Was a Room number documented? | B102: =IFERROR(INDEX(April!E:E,MATCH(Year!A:A,April!A:A,0)),"") -> 0 | C102: =IFERROR(INDEX(May!E:E,MATCH(Year!A:A,May!A:A,0)),"") -> 0 | D102: =IFERROR(INDEX(June!E:E,MATCH(Year!A:A,June!A:A,0)),"") -> 0 | E102: =IFERROR(INDEX(July!E:E,MATCH(Year!A:A,July!A:A,0)),"") -> 0 | F102: =IFERROR(INDEX(Aug!E:E,MATCH(Year!A:A,Aug!A:A,0)),"") -> 0 | G102: =IFERROR(INDEX(Sept!E:E,MATCH(Year!A:A,Sept!A:A,0)),"") -> 0 | H102: =IFERROR(INDEX(Oct!E:E,MATCH(Year!A:A,Oct!A:A,0)),"") -> 0 | I102: =IFERROR(INDEX(Nov!E:E,MATCH(Year!A:A,Nov!A:A,0)),"") -> 0 | J102: =IFERROR(INDEX(Dec!E:E,MATCH(Year!A:A,Dec!A:A,0)),"") -> 0 | K102: =IFERROR(INDEX(Jan!E:E,MATCH(Year!A:A,Jan!A:A,0)),"") -> 0 | L102: =IFERROR(INDEX(Feb!E:E,MATCH(Year!A:A,Feb!A:A,0)),"") -> 0 | M102: =IFERROR(INDEX(March!E:E,MATCH(Year!A:A,March!A:A,0)),"") -> 0 | N102: =IF(ISERROR((SUM(B102:M102))/B4),"",(SUM(B102:M102))/B4) -> 0
A103: =IF(ISERROR(Q!A3),"",Q!A3) -> Were stage A checks completed as appropriate? | B103: =IFERROR(INDEX(April!E:E,MATCH(Year!A:A,April!A:A,0)),"") -> 0 | C103: =IFERROR(INDEX(May!E:E,MATCH(Year!A:A,May!A:A,0)),"") -> 0 | D103: =IFERROR(INDEX(June!E:E,MATCH(Year!A:A,June!A:A,0)),"") -> 0 | E103: =IFERROR(INDEX(July!E:E,MATCH(Year!A:A,July!A:A,0)),"") -> 0 | F103: =IFERROR(INDEX(Aug!E:E,MATCH(Year!A:A,Aug!A:A,0)),"") -> 0 | G103: =IFERROR(INDEX(Sept!E:E,MATCH(Year!A:A,Sept!A:A,0)),"") -> 0 | H103: =IFERROR(INDEX(Oct!E:E,MATCH(Year!A:A,Oct!A:A,0)),"") -> 0 | I103: =IFERROR(INDEX(Nov!E:E,MATCH(Year!A:A,Nov!A:A,0)),"") -> 0 | J103: =IFERROR(INDEX(Dec!E:E,MATCH(Year!A:A,Dec!A:A,0)),"") -> 0 | K103: =IFERROR(INDEX(Jan!E:E,MATCH(Year!A:A,Jan!A:A,0)),"") -> 0 | L103: =IFERROR(INDEX(Feb!E:E,MATCH(Year!A:A,Feb!A:A,0)),"") -> 0 | M103: =IFERROR(INDEX(March!E:E,MATCH(Year!A:A,March!A:A,0)),"") -> 0 | N103: =IF(ISERROR((SUM(B103:M103))/B4),"",(SUM(B103:M103))/B4) -> 0
A104: =IF(ISERROR(Q!A4),"",Q!A4) -> Was COSI Part 1 performed? | B104: =IFERROR(INDEX(April!E:E,MATCH(Year!A:A,April!A:A,0)),"") -> 0 | C104: =IFERROR(INDEX(May!E:E,MATCH(Year!A:A,May!A:A,0)),"") -> 0 | D104: =IFERROR(INDEX(June!E:E,MATCH(Year!A:A,June!A:A,0)),"") -> 0 | E104: =IFERROR(INDEX(July!E:E,MATCH(Year!A:A,July!A:A,0)),"") -> 0 | F104: =IFERROR(INDEX(Aug!E:E,MATCH(Year!A:A,Aug!A:A,0)),"") -> 0 | G104: =IFERROR(INDEX(Sept!E:E,MATCH(Year!A:A,Sept!A:A,0)),"") -> 0 | H104: =IFERROR(INDEX(Oct!E:E,MATCH(Year!A:A,Oct!A:A,0)),"") -> 0 | I104: =IFERROR(INDEX(Nov!E:E,MATCH(Year!A:A,Nov!A:A,0)),"") -> 0 | J104: =IFERROR(INDEX(Dec!E:E,MATCH(Year!A:A,Dec!A:A,0)),"") -> 0 | K104: =IFERROR(INDEX(Jan!E:E,MATCH(Year!A:A,Jan!A:A,0)),"") -> 0 | L104: =IFERROR(INDEX(Feb!E:E,MATCH(Year!A:A,Feb!A:A,0)),"") -> 0 | M104: =IFERROR(INDEX(March!E:E,MATCH(Year!A:A,March!A:A,0)),"") -> 0 | N104: =IF(ISERROR((SUM(B104:M104))/B4),"",(SUM(B104:M104))/B4) -> 0
A105: =IF(ISERROR(Q!A5),"",Q!A5) -> Was PVP documented? | B105: =IFERROR(INDEX(April!E:E,MATCH(Year!A:A,April!A:A,0)),"") -> 0 | C105: =IFERROR(INDEX(May!E:E,MATCH(Year!A:A,May!A:A,0)),"") -> 0 | D105: =IFERROR(INDEX(June!E:E,MATCH(Year!A:A,June!A:A,0)),"") -> 0 | E105: =IFERROR(INDEX(July!E:E,MATCH(Year!A:A,July!A:A,0)),"") -> 0 | F105: =IFERROR(INDEX(Aug!E:E,MATCH(Year!A:A,Aug!A:A,0)),"") -> 0 | G105: =IFERROR(INDEX(Sept!E:E,MATCH(Year!A:A,Sept!A:A,0)),"") -> 0 | H105: =IFERROR(INDEX(Oct!E:E,MATCH(Year!A:A,Oct!A:A,0)),"") -> 0 | I105: =IFERROR(INDEX(Nov!E:E,MATCH(Year!A:A,Nov!A:A,0)),"") -> 0 | J105: =IFERROR(INDEX(Dec!E:E,MATCH(Year!A:A,Dec!A:A,0)),"") -> 0 | K105: =IFERROR(INDEX(Jan!E:E,MATCH(Year!A:A,Jan!A:A,0)),"") -> 0 | L105: =IFERROR(INDEX(Feb!E:E,MATCH(Year!A:A,Feb!A:A,0)),"") -> 0 | M105: =IFERROR(INDEX(March!E:E,MATCH(Year!A:A,March!A:A,0)),"") -> 0 | N105: =IF(ISERROR((SUM(B105:M105))/B4),"",(SUM(B105:M105))/B4) -> 0
A106: =IF(ISERROR(Q!A6),"",Q!A6) -> Was Otoscopy documented? | B106: =IFERROR(INDEX(April!E:E,MATCH(Year!A:A,April!A:A,0)),"") -> 0 | C106: =IFERROR(INDEX(May!E:E,MATCH(Year!A:A,May!A:A,0)),"") -> 0 | D106: =IFERROR(INDEX(June!E:E,MATCH(Year!A:A,June!A:A,0)),"") -> 0 | E106: =IFERROR(INDEX(July!E:E,MATCH(Year!A:A,July!A:A,0)),"") -> 0 | F106: =IFERROR(INDEX(Aug!E:E,MATCH(Year!A:A,Aug!A:A,0)),"") -> 0 | G106: =IFERROR(INDEX(Sept!E:E,MATCH(Year!A:A,Sept!A:A,0)),"") -> 0 | H106: =IFERROR(INDEX(Oct!E:E,MATCH(Year!A:A,Oct!A:A,0)),"") -> 0 | I106: =IFERROR(INDEX(Nov!E:E,MATCH(Year!A:A,Nov!A:A,0)),"") -> 0 | J106: =IFERROR(INDEX(Dec!E:E,MATCH(Year!A:A,Dec!A:A,0)),"") -> 0 | K106: =IFERROR(INDEX(Jan!E:E,MATCH(Year!A:A,Jan!A:A,0)),"") -> 0 | L106: =IFERROR(INDEX(Feb!E:E,MATCH(Year!A:A,Feb!A:A,0)),"") -> 0 | M106: =IFERROR(INDEX(March!E:E,MATCH(Year!A:A,March!A:A,0)),"") -> 0 | N106: =IF(ISERROR((SUM(B106:M106))/B4),"",(SUM(B106:M106))/B4) -> 0
A107: =IF(ISERROR(Q!A7),"",Q!A7) -> Document bc at 3 & 4kHz is for programming purposes? | B107: =IFERROR(INDEX(April!E:E,MATCH(Year!A:A,April!A:A,0)),"") -> 0 | C107: =IFERROR(INDEX(May!E:E,MATCH(Year!A:A,May!A:A,0)),"") -> 0 | D107: =IFERROR(INDEX(June!E:E,MATCH(Year!A:A,June!A:A,0)),"") -> 0 | E107: =IFERROR(INDEX(July!E:E,MATCH(Year!A:A,July!A:A,0)),"") -> 0 | F107: =IFERROR(INDEX(Aug!E:E,MATCH(Year!A:A,Aug!A:A,0)),"") -> 0 | G107: =IFERROR(INDEX(Sept!E:E,MATCH(Year!A:A,Sept!A:A,0)),"") -> 0 | H107: =IFERROR(INDEX(Oct!E:E,MATCH(Year!A:A,Oct!A:A,0)),"") -> 0 | I107: =IFERROR(INDEX(Nov!E:E,MATCH(Year!A:A,Nov!A:A,0)),"") -> 0 | J107: =IFERROR(INDEX(Dec!E:E,MATCH(Year!A:A,Dec!A:A,0)),"") -> 0 | K107: =IFERROR(INDEX(Jan!E:E,MATCH(Year!A:A,Jan!A:A,0)),"") -> 0 | L107: =IFERROR(INDEX(Feb!E:E,MATCH(Year!A:A,Feb!A:A,0)),"") -> 0 | M107: =IFERROR(INDEX(March!E:E,MATCH(Year!A:A,March!A:A,0)),"") -> 0.3333333333 | N107: =IF(ISERROR((SUM(B107:M107))/B4),"",(SUM(B107:M107))/B4) -> 0.02777777778
A108: =IF(ISERROR(Q!A8),"",Q!A8) -> Was Speech testing performed? | B108: =IFERROR(INDEX(April!E:E,MATCH(Year!A:A,April!A:A,0)),"") -> 0.4 | C108: =IFERROR(INDEX(May!E:E,MATCH(Year!A:A,May!A:A,0)),"") -> 0.5 | D108: =IFERROR(INDEX(June!E:E,MATCH(Year!A:A,June!A:A,0)),"") -> 0.2 | E108: =IFERROR(INDEX(July!E:E,MATCH(Year!A:A,July!A:A,0)),"") -> 0.2 | F108: =IFERROR(INDEX(Aug!E:E,MATCH(Year!A:A,Aug!A:A,0)),"") -> 0 | G108: =IFERROR(INDEX(Sept!E:E,MATCH(Year!A:A,Sept!A:A,0)),"") -> 0 | H108: =IFERROR(INDEX(Oct!E:E,MATCH(Year!A:A,Oct!A:A,0)),"") -> 0 | I108: =IFERROR(INDEX(Nov!E:E,MATCH(Year!A:A,Nov!A:A,0)),"") -> 0.5 | J108: =IFERROR(INDEX(Dec!E:E,MATCH(Year!A:A,Dec!A:A,0)),"") -> 0 | K108: =IFERROR(INDEX(Jan!E:E,MATCH(Year!A:A,Jan!A:A,0)),"") -> 0 | L108: =IFERROR(INDEX(Feb!E:E,MATCH(Year!A:A,Feb!A:A,0)),"") -> 0 | M108: =IFERROR(INDEX(March!E:E,MATCH(Year!A:A,March!A:A,0)),"") -> 0.3333333333 | N108: =IF(ISERROR((SUM(B108:M108))/B4),"",(SUM(B108:M108))/B4) -> 0.1777777778
A109: =IF(ISERROR(Q!A9),"",Q!A9) -> Is it documented whether national criteria were/were not met? | B109: =IFERROR(INDEX(April!E:E,MATCH(Year!A:A,April!A:A,0)),"") -> 0 | C109: =IFERROR(INDEX(May!E:E,MATCH(Year!A:A,May!A:A,0)),"") -> 0 | D109: =IFERROR(INDEX(June!E:E,MATCH(Year!A:A,June!A:A,0)),"") -> 0 | E109: =IFERROR(INDEX(July!E:E,MATCH(Year!A:A,July!A:A,0)),"") -> 0 | F109: =IFERROR(INDEX(Aug!E:E,MATCH(Year!A:A,Aug!A:A,0)),"") -> 0 | G109: =IFERROR(INDEX(Sept!E:E,MATCH(Year!A:A,Sept!A:A,0)),"") -> 0 | H109: =IFERROR(INDEX(Oct!E:E,MATCH(Year!A:A,Oct!A:A,0)),"") -> 0 | I109: =IFERROR(INDEX(Nov!E:E,MATCH(Year!A:A,Nov!A:A,0)),"") -> 0.25 | J109: =IFERROR(INDEX(Dec!E:E,MATCH(Year!A:A,Dec!A:A,0)),"") -> 0 | K109: =IFERROR(INDEX(Jan!E:E,MATCH(Year!A:A,Jan!A:A,0)),"") -> 0 | L109: =IFERROR(INDEX(Feb!E:E,MATCH(Year!A:A,Feb!A:A,0)),"") -> 0 | M109: =IFERROR(INDEX(March!E:E,MATCH(Year!A:A,March!A:A,0)),"") -> 0 | N109: =IF(ISERROR((SUM(B109:M109))/B4),"",(SUM(B109:M109))/B4) -> 0.02083333333
A110: =IF(ISERROR(Q!A10),"",Q!A10) -> Was a BCHI info pack supplied? | B110: =IFERROR(INDEX(April!E:E,MATCH(Year!A:A,April!A:A,0)),"") -> 0.4 | C110: =IFERROR(INDEX(May!E:E,MATCH(Year!A:A,May!A:A,0)),"") -> 0 | D110: =IFERROR(INDEX(June!E:E,MATCH(Year!A:A,June!A:A,0)),"") -> 0.2 | E110: =IFERROR(INDEX(July!E:E,MATCH(Year!A:A,July!A:A,0)),"") -> 0 | F110: =IFERROR(INDEX(Aug!E:E,MATCH(Year!A:A,Aug!A:A,0)),"") -> 0.2 | G110: =IFERROR(INDEX(Sept!E:E,MATCH(Year!A:A,Sept!A:A,0)),"") -> 0 | H110: =IFERROR(INDEX(Oct!E:E,MATCH(Year!A:A,Oct!A:A,0)),"") -> 0.3333333333 | I110: =IFERROR(INDEX(Nov!E:E,MATCH(Year!A:A,Nov!A:A,0)),"") -> 0.5 | J110: =IFERROR(INDEX(Dec!E:E,MATCH(Year!A:A,Dec!A:A,0)),"") -> 0 | K110: =IFERROR(INDEX(Jan!E:E,MATCH(Year!A:A,Jan!A:A,0)),"") -> 0 | L110: =IFERROR(INDEX(Feb!E:E,MATCH(Year!A:A,Feb!A:A,0)),"") -> 0 | M110: =IFERROR(INDEX(March!E:E,MATCH(Year!A:A,March!A:A,0)),"") -> 0.3333333333 | N110: =IF(ISERROR((SUM(B110:M110))/B4),"",(SUM(B110:M110))/B4) -> 0.1638888889
A111: =IF(ISERROR(Q!A11),"",Q!A11) -> Was the report authorised & issued within target (7 days)? | B111: =IFERROR(INDEX(April!E:E,MATCH(Year!A:A,April!A:A,0)),"") -> 0 | C111: =IFERROR(INDEX(May!E:E,MATCH(Year!A:A,May!A:A,0)),"") -> 0 | D111: =IFERROR(INDEX(June!E:E,MATCH(Year!A:A,June!A:A,0)),"") -> 0 | E111: =IFERROR(INDEX(July!E:E,MATCH(Year!A:A,July!A:A,0)),"") -> 0 | F111: =IFERROR(INDEX(Aug!E:E,MATCH(Year!A:A,Aug!A:A,0)),"") -> 0 | G111: =IFERROR(INDEX(Sept!E:E,MATCH(Year!A:A,Sept!A:A,0)),"") -> 0 | H111: =IFERROR(INDEX(Oct!E:E,MATCH(Year!A:A,Oct!A:A,0)),"") -> 0 | I111: =IFERROR(INDEX(Nov!E:E,MATCH(Year!A:A,Nov!A:A,0)),"") -> 0 | J111: =IFERROR(INDEX(Dec!E:E,MATCH(Year!A:A,Dec!A:A,0)),"") -> 0 | K111: =IFERROR(INDEX(Jan!E:E,MATCH(Year!A:A,Jan!A:A,0)),"") -> 0 | L111: =IFERROR(INDEX(Feb!E:E,MATCH(Year!A:A,Feb!A:A,0)),"") -> 0 | M111: =IFERROR(INDEX(March!E:E,MATCH(Year!A:A,March!A:A,0)),"") -> 0 | N111: =IF(ISERROR((SUM(B111:M111))/B4),"",(SUM(B111:M111))/B4) -> 0
A112: =IF(ISERROR(Q!A12),"",Q!A12) -> Was consent documented as appropriate? | B112: =IFERROR(INDEX(April!E:E,MATCH(Year!A:A,April!A:A,0)),"") -> 0 | C112: =IFERROR(INDEX(May!E:E,MATCH(Year!A:A,May!A:A,0)),"") -> 0 | D112: =IFERROR(INDEX(June!E:E,MATCH(Year!A:A,June!A:A,0)),"") -> 0 | E112: =IFERROR(INDEX(July!E:E,MATCH(Year!A:A,July!A:A,0)),"") -> 0 | F112: =IFERROR(INDEX(Aug!E:E,MATCH(Year!A:A,Aug!A:A,0)),"") -> 0 | G112: =IFERROR(INDEX(Sept!E:E,MATCH(Year!A:A,Sept!A:A,0)),"") -> 0 | H112: =IFERROR(INDEX(Oct!E:E,MATCH(Year!A:A,Oct!A:A,0)),"") -> 0 | I112: =IFERROR(INDEX(Nov!E:E,MATCH(Year!A:A,Nov!A:A,0)),"") -> 0 | J112: =IFERROR(INDEX(Dec!E:E,MATCH(Year!A:A,Dec!A:A,0)),"") -> 0 | K112: =IFERROR(INDEX(Jan!E:E,MATCH(Year!A:A,Jan!A:A,0)),"") -> 0 | L112: =IFERROR(INDEX(Feb!E:E,MATCH(Year!A:A,Feb!A:A,0)),"") -> 0 | M112: =IFERROR(INDEX(March!E:E,MATCH(Year!A:A,March!A:A,0)),"") -> 0 | N112: =IF(ISERROR((SUM(B112:M112))/B4),"",(SUM(B112:M112))/B4) -> 0
A113: =IF(ISERROR(Q!A13),"",Q!A13) -> 0 | B113: =IFERROR(INDEX(April!E:E,MATCH(Year!A:A,April!A:A,0)),"") ->  | C113: =IFERROR(INDEX(May!E:E,MATCH(Year!A:A,May!A:A,0)),"") ->  | D113: =IFERROR(INDEX(June!E:E,MATCH(Year!A:A,June!A:A,0)),"") ->  | E113: =IFERROR(INDEX(July!E:E,MATCH(Year!A:A,July!A:A,0)),"") ->  | F113: =IFERROR(INDEX(Aug!E:E,MATCH(Year!A:A,Aug!A:A,0)),"") ->  | G113: =IFERROR(INDEX(Sept!E:E,MATCH(Year!A:A,Sept!A:A,0)),"") ->  | H113: =IFERROR(INDEX(Oct!E:E,MATCH(Year!A:A,Oct!A:A,0)),"") ->  | I113: =IFERROR(INDEX(Nov!E:E,MATCH(Year!A:A,Nov!A:A,0)),"") ->  | J113: =IFERROR(INDEX(Dec!E:E,MATCH(Year!A:A,Dec!A:A,0)),"") ->  | K113: =IFERROR(INDEX(Jan!E:E,MATCH(Year!A:A,Jan!A:A,0)),"") ->  | L113: =IFERROR(INDEX(Feb!E:E,MATCH(Year!A:A,Feb!A:A,0)),"") ->  | M113: =IFERROR(INDEX(March!E:E,MATCH(Year!A:A,March!A:A,0)),"") ->  | N113: =IF(ISERROR((SUM(B113:M113))/B4),"",(SUM(B113:M113))/B4) -> 0
A114: =IF(ISERROR(Q!A14),"",Q!A14) -> 0 | B114: =IFERROR(INDEX(April!E:E,MATCH(Year!A:A,April!A:A,0)),"") ->  | C114: =IFERROR(INDEX(May!E:E,MATCH(Year!A:A,May!A:A,0)),"") ->  | D114: =IFERROR(INDEX(June!E:E,MATCH(Year!A:A,June!A:A,0)),"") ->  | E114: =IFERROR(INDEX(July!E:E,MATCH(Year!A:A,July!A:A,0)),"") ->  | F114: =IFERROR(INDEX(Aug!E:E,MATCH(Year!A:A,Aug!A:A,0)),"") ->  | G114: =IFERROR(INDEX(Sept!E:E,MATCH(Year!A:A,Sept!A:A,0)),"") ->  | H114: =IFERROR(INDEX(Oct!E:E,MATCH(Year!A:A,Oct!A:A,0)),"") ->  | I114: =IFERROR(INDEX(Nov!E:E,MATCH(Year!A:A,Nov!A:A,0)),"") ->  | J114: =IFERROR(INDEX(Dec!E:E,MATCH(Year!A:A,Dec!A:A,0)),"") ->  | K114: =IFERROR(INDEX(Jan!E:E,MATCH(Year!A:A,Jan!A:A,0)),"") ->  | L114: =IFERROR(INDEX(Feb!E:E,MATCH(Year!A:A,Feb!A:A,0)),"") ->  | M114: =IFERROR(INDEX(March!E:E,MATCH(Year!A:A,March!A:A,0)),"") ->  | N114: =IF(ISERROR((SUM(B114:M114))/B4),"",(SUM(B114:M114))/B4) -> 0
A115: =IF(ISERROR(Q!A15),"",Q!A15) -> 0 | B115: =IFERROR(INDEX(April!E:E,MATCH(Year!A:A,April!A:A,0)),"") ->  | C115: =IFERROR(INDEX(May!E:E,MATCH(Year!A:A,May!A:A,0)),"") ->  | D115: =IFERROR(INDEX(June!E:E,MATCH(Year!A:A,June!A:A,0)),"") ->  | E115: =IFERROR(INDEX(July!E:E,MATCH(Year!A:A,July!A:A,0)),"") ->  | F115: =IFERROR(INDEX(Aug!E:E,MATCH(Year!A:A,Aug!A:A,0)),"") ->  | G115: =IFERROR(INDEX(Sept!E:E,MATCH(Year!A:A,Sept!A:A,0)),"") ->  | H115: =IFERROR(INDEX(Oct!E:E,MATCH(Year!A:A,Oct!A:A,0)),"") ->  | I115: =IFERROR(INDEX(Nov!E:E,MATCH(Year!A:A,Nov!A:A,0)),"") ->  | J115: =IFERROR(INDEX(Dec!E:E,MATCH(Year!A:A,Dec!A:A,0)),"") ->  | K115: =IFERROR(INDEX(Jan!E:E,MATCH(Year!A:A,Jan!A:A,0)),"") ->  | L115: =IFERROR(INDEX(Feb!E:E,MATCH(Year!A:A,Feb!A:A,0)),"") ->  | M115: =IFERROR(INDEX(March!E:E,MATCH(Year!A:A,March!A:A,0)),"") ->  | N115: =IF(ISERROR((SUM(B115:M115))/B4),"",(SUM(B115:M115))/B4) -> 0
A116: =IF(ISERROR(Q!A16),"",Q!A16) -> 0 | B116: =IFERROR(INDEX(April!E:E,MATCH(Year!A:A,April!A:A,0)),"") ->  | C116: =IFERROR(INDEX(May!E:E,MATCH(Year!A:A,May!A:A,0)),"") ->  | D116: =IFERROR(INDEX(June!E:E,MATCH(Year!A:A,June!A:A,0)),"") ->  | E116: =IFERROR(INDEX(July!E:E,MATCH(Year!A:A,July!A:A,0)),"") ->  | F116: =IFERROR(INDEX(Aug!E:E,MATCH(Year!A:A,Aug!A:A,0)),"") ->  | G116: =IFERROR(INDEX(Sept!E:E,MATCH(Year!A:A,Sept!A:A,0)),"") ->  | H116: =IFERROR(INDEX(Oct!E:E,MATCH(Year!A:A,Oct!A:A,0)),"") ->  | I116: =IFERROR(INDEX(Nov!E:E,MATCH(Year!A:A,Nov!A:A,0)),"") ->  | J116: =IFERROR(INDEX(Dec!E:E,MATCH(Year!A:A,Dec!A:A,0)),"") ->  | K116: =IFERROR(INDEX(Jan!E:E,MATCH(Year!A:A,Jan!A:A,0)),"") ->  | L116: =IFERROR(INDEX(Feb!E:E,MATCH(Year!A:A,Feb!A:A,0)),"") ->  | M116: =IFERROR(INDEX(March!E:E,MATCH(Year!A:A,March!A:A,0)),"") ->  | N116: =IF(ISERROR((SUM(B116:M116))/B4),"",(SUM(B116:M116))/B4) -> 0
A117: =IF(ISERROR(Q!A17),"",Q!A17) -> 0 | B117: =IFERROR(INDEX(April!E:E,MATCH(Year!A:A,April!A:A,0)),"") ->  | C117: =IFERROR(INDEX(May!E:E,MATCH(Year!A:A,May!A:A,0)),"") ->  | D117: =IFERROR(INDEX(June!E:E,MATCH(Year!A:A,June!A:A,0)),"") ->  | E117: =IFERROR(INDEX(July!E:E,MATCH(Year!A:A,July!A:A,0)),"") ->  | F117: =IFERROR(INDEX(Aug!E:E,MATCH(Year!A:A,Aug!A:A,0)),"") ->  | G117: =IFERROR(INDEX(Sept!E:E,MATCH(Year!A:A,Sept!A:A,0)),"") ->  | H117: =IFERROR(INDEX(Oct!E:E,MATCH(Year!A:A,Oct!A:A,0)),"") ->  | I117: =IFERROR(INDEX(Nov!E:E,MATCH(Year!A:A,Nov!A:A,0)),"") ->  | J117: =IFERROR(INDEX(Dec!E:E,MATCH(Year!A:A,Dec!A:A,0)),"") ->  | K117: =IFERROR(INDEX(Jan!E:E,MATCH(Year!A:A,Jan!A:A,0)),"") ->  | L117: =IFERROR(INDEX(Feb!E:E,MATCH(Year!A:A,Feb!A:A,0)),"") ->  | M117: =IFERROR(INDEX(March!E:E,MATCH(Year!A:A,March!A:A,0)),"") ->  | N117: =IF(ISERROR((SUM(B117:M117))/B4),"",(SUM(B117:M117))/B4) -> 0
A118: =IF(ISERROR(Q!A18),"",Q!A18) -> 0 | B118: =IFERROR(INDEX(April!E:E,MATCH(Year!A:A,April!A:A,0)),"") ->  | C118: =IFERROR(INDEX(May!E:E,MATCH(Year!A:A,May!A:A,0)),"") ->  | D118: =IFERROR(INDEX(June!E:E,MATCH(Year!A:A,June!A:A,0)),"") ->  | E118: =IFERROR(INDEX(July!E:E,MATCH(Year!A:A,July!A:A,0)),"") ->  | F118: =IFERROR(INDEX(Aug!E:E,MATCH(Year!A:A,Aug!A:A,0)),"") ->  | G118: =IFERROR(INDEX(Sept!E:E,MATCH(Year!A:A,Sept!A:A,0)),"") ->  | H118: =IFERROR(INDEX(Oct!E:E,MATCH(Year!A:A,Oct!A:A,0)),"") ->  | I118: =IFERROR(INDEX(Nov!E:E,MATCH(Year!A:A,Nov!A:A,0)),"") ->  | J118: =IFERROR(INDEX(Dec!E:E,MATCH(Year!A:A,Dec!A:A,0)),"") ->  | K118: =IFERROR(INDEX(Jan!E:E,MATCH(Year!A:A,Jan!A:A,0)),"") ->  | L118: =IFERROR(INDEX(Feb!E:E,MATCH(Year!A:A,Feb!A:A,0)),"") ->  | M118: =IFERROR(INDEX(March!E:E,MATCH(Year!A:A,March!A:A,0)),"") ->  | N118: =IF(ISERROR((SUM(B118:M118))/B4),"",(SUM(B118:M118))/B4) -> 0
A119: =IF(ISERROR(Q!A19),"",Q!A19) -> 0 | B119: =IFERROR(INDEX(April!E:E,MATCH(Year!A:A,April!A:A,0)),"") ->  | C119: =IFERROR(INDEX(May!E:E,MATCH(Year!A:A,May!A:A,0)),"") ->  | D119: =IFERROR(INDEX(June!E:E,MATCH(Year!A:A,June!A:A,0)),"") ->  | E119: =IFERROR(INDEX(July!E:E,MATCH(Year!A:A,July!A:A,0)),"") ->  | F119: =IFERROR(INDEX(Aug!E:E,MATCH(Year!A:A,Aug!A:A,0)),"") ->  | G119: =IFERROR(INDEX(Sept!E:E,MATCH(Year!A:A,Sept!A:A,0)),"") ->  | H119: =IFERROR(INDEX(Oct!E:E,MATCH(Year!A:A,Oct!A:A,0)),"") ->  | I119: =IFERROR(INDEX(Nov!E:E,MATCH(Year!A:A,Nov!A:A,0)),"") ->  | J119: =IFERROR(INDEX(Dec!E:E,MATCH(Year!A:A,Dec!A:A,0)),"") ->  | K119: =IFERROR(INDEX(Jan!E:E,MATCH(Year!A:A,Jan!A:A,0)),"") ->  | L119: =IFERROR(INDEX(Feb!E:E,MATCH(Year!A:A,Feb!A:A,0)),"") ->  | M119: =IFERROR(INDEX(March!E:E,MATCH(Year!A:A,March!A:A,0)),"") ->  | N119: =IF(ISERROR((SUM(B119:M119))/B4),"",(SUM(B119:M119))/B4) -> 0
A120: =IF(ISERROR(Q!A20),"",Q!A20) -> 0 | B120: =IFERROR(INDEX(April!E:E,MATCH(Year!A:A,April!A:A,0)),"") ->  | C120: =IFERROR(INDEX(May!E:E,MATCH(Year!A:A,May!A:A,0)),"") ->  | D120: =IFERROR(INDEX(June!E:E,MATCH(Year!A:A,June!A:A,0)),"") ->  | E120: =IFERROR(INDEX(July!E:E,MATCH(Year!A:A,July!A:A,0)),"") ->  | F120: =IFERROR(INDEX(Aug!E:E,MATCH(Year!A:A,Aug!A:A,0)),"") ->  | G120: =IFERROR(INDEX(Sept!E:E,MATCH(Year!A:A,Sept!A:A,0)),"") ->  | H120: =IFERROR(INDEX(Oct!E:E,MATCH(Year!A:A,Oct!A:A,0)),"") ->  | I120: =IFERROR(INDEX(Nov!E:E,MATCH(Year!A:A,Nov!A:A,0)),"") ->  | J120: =IFERROR(INDEX(Dec!E:E,MATCH(Year!A:A,Dec!A:A,0)),"") ->  | K120: =IFERROR(INDEX(Jan!E:E,MATCH(Year!A:A,Jan!A:A,0)),"") ->  | L120: =IFERROR(INDEX(Feb!E:E,MATCH(Year!A:A,Feb!A:A,0)),"") ->  | M120: =IFERROR(INDEX(March!E:E,MATCH(Year!A:A,March!A:A,0)),"") ->  | N120: =IF(ISERROR((SUM(B120:M120))/B4),"",(SUM(B120:M120))/B4) -> 0
A121: =IF(ISERROR(Q!A21),"",Q!A21) -> 0 | B121: =IFERROR(INDEX(April!E:E,MATCH(Year!A:A,April!A:A,0)),"") ->  | C121: =IFERROR(INDEX(May!E:E,MATCH(Year!A:A,May!A:A,0)),"") ->  | D121: =IFERROR(INDEX(June!E:E,MATCH(Year!A:A,June!A:A,0)),"") ->  | E121: =IFERROR(INDEX(July!E:E,MATCH(Year!A:A,July!A:A,0)),"") ->  | F121: =IFERROR(INDEX(Aug!E:E,MATCH(Year!A:A,Aug!A:A,0)),"") ->  | G121: =IFERROR(INDEX(Sept!E:E,MATCH(Year!A:A,Sept!A:A,0)),"") ->  | H121: =IFERROR(INDEX(Oct!E:E,MATCH(Year!A:A,Oct!A:A,0)),"") ->  | I121: =IFERROR(INDEX(Nov!E:E,MATCH(Year!A:A,Nov!A:A,0)),"") ->  | J121: =IFERROR(INDEX(Dec!E:E,MATCH(Year!A:A,Dec!A:A,0)),"") ->  | K121: =IFERROR(INDEX(Jan!E:E,MATCH(Year!A:A,Jan!A:A,0)),"") ->  | L121: =IFERROR(INDEX(Feb!E:E,MATCH(Year!A:A,Feb!A:A,0)),"") ->  | M121: =IFERROR(INDEX(March!E:E,MATCH(Year!A:A,March!A:A,0)),"") ->  | N121: =IF(ISERROR((SUM(B121:M121))/B4),"",(SUM(B121:M121))/B4) -> 0
A122: =IF(ISERROR(Q!A22),"",Q!A22) -> 0 | B122: =IFERROR(INDEX(April!E:E,MATCH(Year!A:A,April!A:A,0)),"") ->  | C122: =IFERROR(INDEX(May!E:E,MATCH(Year!A:A,May!A:A,0)),"") ->  | D122: =IFERROR(INDEX(June!E:E,MATCH(Year!A:A,June!A:A,0)),"") ->  | E122: =IFERROR(INDEX(July!E:E,MATCH(Year!A:A,July!A:A,0)),"") ->  | F122: =IFERROR(INDEX(Aug!E:E,MATCH(Year!A:A,Aug!A:A,0)),"") ->  | G122: =IFERROR(INDEX(Sept!E:E,MATCH(Year!A:A,Sept!A:A,0)),"") ->  | H122: =IFERROR(INDEX(Oct!E:E,MATCH(Year!A:A,Oct!A:A,0)),"") ->  | I122: =IFERROR(INDEX(Nov!E:E,MATCH(Year!A:A,Nov!A:A,0)),"") ->  | J122: =IFERROR(INDEX(Dec!E:E,MATCH(Year!A:A,Dec!A:A,0)),"") ->  | K122: =IFERROR(INDEX(Jan!E:E,MATCH(Year!A:A,Jan!A:A,0)),"") ->  | L122: =IFERROR(INDEX(Feb!E:E,MATCH(Year!A:A,Feb!A:A,0)),"") ->  | M122: =IFERROR(INDEX(March!E:E,MATCH(Year!A:A,March!A:A,0)),"") ->  | N122: =IF(ISERROR((SUM(B122:M122))/B4),"",(SUM(B122:M122))/B4) -> 0
A123: =IF(ISERROR(Q!A23),"",Q!A23) -> 0 | B123: =IFERROR(INDEX(April!E:E,MATCH(Year!A:A,April!A:A,0)),"") ->  | C123: =IFERROR(INDEX(May!E:E,MATCH(Year!A:A,May!A:A,0)),"") ->  | D123: =IFERROR(INDEX(June!E:E,MATCH(Year!A:A,June!A:A,0)),"") ->  | E123: =IFERROR(INDEX(July!E:E,MATCH(Year!A:A,July!A:A,0)),"") ->  | F123: =IFERROR(INDEX(Aug!E:E,MATCH(Year!A:A,Aug!A:A,0)),"") ->  | G123: =IFERROR(INDEX(Sept!E:E,MATCH(Year!A:A,Sept!A:A,0)),"") ->  | H123: =IFERROR(INDEX(Oct!E:E,MATCH(Year!A:A,Oct!A:A,0)),"") ->  | I123: =IFERROR(INDEX(Nov!E:E,MATCH(Year!A:A,Nov!A:A,0)),"") ->  | J123: =IFERROR(INDEX(Dec!E:E,MATCH(Year!A:A,Dec!A:A,0)),"") ->  | K123: =IFERROR(INDEX(Jan!E:E,MATCH(Year!A:A,Jan!A:A,0)),"") ->  | L123: =IFERROR(INDEX(Feb!E:E,MATCH(Year!A:A,Feb!A:A,0)),"") ->  | M123: =IFERROR(INDEX(March!E:E,MATCH(Year!A:A,March!A:A,0)),"") ->  | N123: =IF(ISERROR((SUM(B123:M123))/B4),"",(SUM(B123:M123))/B4) -> 0
A124: =IF(ISERROR(Q!A24),"",Q!A24) -> 0 | B124: =IFERROR(INDEX(April!E:E,MATCH(Year!A:A,April!A:A,0)),"") ->  | C124: =IFERROR(INDEX(May!E:E,MATCH(Year!A:A,May!A:A,0)),"") ->  | D124: =IFERROR(INDEX(June!E:E,MATCH(Year!A:A,June!A:A,0)),"") ->  | E124: =IFERROR(INDEX(July!E:E,MATCH(Year!A:A,July!A:A,0)),"") ->  | F124: =IFERROR(INDEX(Aug!E:E,MATCH(Year!A:A,Aug!A:A,0)),"") ->  | G124: =IFERROR(INDEX(Sept!E:E,MATCH(Year!A:A,Sept!A:A,0)),"") ->  | H124: =IFERROR(INDEX(Oct!E:E,MATCH(Year!A:A,Oct!A:A,0)),"") ->  | I124: =IFERROR(INDEX(Nov!E:E,MATCH(Year!A:A,Nov!A:A,0)),"") ->  | J124: =IFERROR(INDEX(Dec!E:E,MATCH(Year!A:A,Dec!A:A,0)),"") ->  | K124: =IFERROR(INDEX(Jan!E:E,MATCH(Year!A:A,Jan!A:A,0)),"") ->  | L124: =IFERROR(INDEX(Feb!E:E,MATCH(Year!A:A,Feb!A:A,0)),"") ->  | M124: =IFERROR(INDEX(March!E:E,MATCH(Year!A:A,March!A:A,0)),"") ->  | N124: =IF(ISERROR((SUM(B124:M124))/B4),"",(SUM(B124:M124))/B4) -> 0
A125: =IF(ISERROR(Q!A25),"",Q!A25) -> 0 | B125: =IFERROR(INDEX(April!E:E,MATCH(Year!A:A,April!A:A,0)),"") ->  | C125: =IFERROR(INDEX(May!E:E,MATCH(Year!A:A,May!A:A,0)),"") ->  | D125: =IFERROR(INDEX(June!E:E,MATCH(Year!A:A,June!A:A,0)),"") ->  | E125: =IFERROR(INDEX(July!E:E,MATCH(Year!A:A,July!A:A,0)),"") ->  | F125: =IFERROR(INDEX(Aug!E:E,MATCH(Year!A:A,Aug!A:A,0)),"") ->  | G125: =IFERROR(INDEX(Sept!E:E,MATCH(Year!A:A,Sept!A:A,0)),"") ->  | H125: =IFERROR(INDEX(Oct!E:E,MATCH(Year!A:A,Oct!A:A,0)),"") ->  | I125: =IFERROR(INDEX(Nov!E:E,MATCH(Year!A:A,Nov!A:A,0)),"") ->  | J125: =IFERROR(INDEX(Dec!E:E,MATCH(Year!A:A,Dec!A:A,0)),"") ->  | K125: =IFERROR(INDEX(Jan!E:E,MATCH(Year!A:A,Jan!A:A,0)),"") ->  | L125: =IFERROR(INDEX(Feb!E:E,MATCH(Year!A:A,Feb!A:A,0)),"") ->  | M125: =IFERROR(INDEX(March!E:E,MATCH(Year!A:A,March!A:A,0)),"") ->  | N125: =IF(ISERROR((SUM(B125:M125))/B4),"",(SUM(B125:M125))/B4) -> 0
A126: =IF(ISERROR(Q!A26),"",Q!A26) -> 0 | B126: =IFERROR(INDEX(April!E:E,MATCH(Year!A:A,April!A:A,0)),"") ->  | C126: =IFERROR(INDEX(May!E:E,MATCH(Year!A:A,May!A:A,0)),"") ->  | D126: =IFERROR(INDEX(June!E:E,MATCH(Year!A:A,June!A:A,0)),"") ->  | E126: =IFERROR(INDEX(July!E:E,MATCH(Year!A:A,July!A:A,0)),"") ->  | F126: =IFERROR(INDEX(Aug!E:E,MATCH(Year!A:A,Aug!A:A,0)),"") ->  | G126: =IFERROR(INDEX(Sept!E:E,MATCH(Year!A:A,Sept!A:A,0)),"") ->  | H126: =IFERROR(INDEX(Oct!E:E,MATCH(Year!A:A,Oct!A:A,0)),"") ->  | I126: =IFERROR(INDEX(Nov!E:E,MATCH(Year!A:A,Nov!A:A,0)),"") ->  | J126: =IFERROR(INDEX(Dec!E:E,MATCH(Year!A:A,Dec!A:A,0)),"") ->  | K126: =IFERROR(INDEX(Jan!E:E,MATCH(Year!A:A,Jan!A:A,0)),"") ->  | L126: =IFERROR(INDEX(Feb!E:E,MATCH(Year!A:A,Feb!A:A,0)),"") ->  | M126: =IFERROR(INDEX(March!E:E,MATCH(Year!A:A,March!A:A,0)),"") ->  | N126: =IF(ISERROR((SUM(B126:M126))/B4),"",(SUM(B126:M126))/B4) -> 0
A127: =IF(ISERROR(Q!A27),"",Q!A27) -> 0 | B127: =IFERROR(INDEX(April!E:E,MATCH(Year!A:A,April!A:A,0)),"") ->  | C127: =IFERROR(INDEX(May!E:E,MATCH(Year!A:A,May!A:A,0)),"") ->  | D127: =IFERROR(INDEX(June!E:E,MATCH(Year!A:A,June!A:A,0)),"") ->  | E127: =IFERROR(INDEX(July!E:E,MATCH(Year!A:A,July!A:A,0)),"") ->  | F127: =IFERROR(INDEX(Aug!E:E,MATCH(Year!A:A,Aug!A:A,0)),"") ->  | G127: =IFERROR(INDEX(Sept!E:E,MATCH(Year!A:A,Sept!A:A,0)),"") ->  | H127: =IFERROR(INDEX(Oct!E:E,MATCH(Year!A:A,Oct!A:A,0)),"") ->  | I127: =IFERROR(INDEX(Nov!E:E,MATCH(Year!A:A,Nov!A:A,0)),"") ->  | J127: =IFERROR(INDEX(Dec!E:E,MATCH(Year!A:A,Dec!A:A,0)),"") ->  | K127: =IFERROR(INDEX(Jan!E:E,MATCH(Year!A:A,Jan!A:A,0)),"") ->  | L127: =IFERROR(INDEX(Feb!E:E,MATCH(Year!A:A,Feb!A:A,0)),"") ->  | M127: =IFERROR(INDEX(March!E:E,MATCH(Year!A:A,March!A:A,0)),"") ->  | N127: =IF(ISERROR((SUM(B127:M127))/B4),"",(SUM(B127:M127))/B4) -> 0
A128: =IF(ISERROR(Q!A28),"",Q!A28) -> 0 | B128: =IFERROR(INDEX(April!E:E,MATCH(Year!A:A,April!A:A,0)),"") ->  | C128: =IFERROR(INDEX(May!E:E,MATCH(Year!A:A,May!A:A,0)),"") ->  | D128: =IFERROR(INDEX(June!E:E,MATCH(Year!A:A,June!A:A,0)),"") ->  | E128: =IFERROR(INDEX(July!E:E,MATCH(Year!A:A,July!A:A,0)),"") ->  | F128: =IFERROR(INDEX(Aug!E:E,MATCH(Year!A:A,Aug!A:A,0)),"") ->  | G128: =IFERROR(INDEX(Sept!E:E,MATCH(Year!A:A,Sept!A:A,0)),"") ->  | H128: =IFERROR(INDEX(Oct!E:E,MATCH(Year!A:A,Oct!A:A,0)),"") ->  | I128: =IFERROR(INDEX(Nov!E:E,MATCH(Year!A:A,Nov!A:A,0)),"") ->  | J128: =IFERROR(INDEX(Dec!E:E,MATCH(Year!A:A,Dec!A:A,0)),"") ->  | K128: =IFERROR(INDEX(Jan!E:E,MATCH(Year!A:A,Jan!A:A,0)),"") ->  | L128: =IFERROR(INDEX(Feb!E:E,MATCH(Year!A:A,Feb!A:A,0)),"") ->  | M128: =IFERROR(INDEX(March!E:E,MATCH(Year!A:A,March!A:A,0)),"") ->  | N128: =IF(ISERROR((SUM(B128:M128))/B4),"",(SUM(B128:M128))/B4) -> 0
A129: =IF(ISERROR(Q!A29),"",Q!A29) -> 0 | B129: =IFERROR(INDEX(April!E:E,MATCH(Year!A:A,April!A:A,0)),"") ->  | C129: =IFERROR(INDEX(May!E:E,MATCH(Year!A:A,May!A:A,0)),"") ->  | D129: =IFERROR(INDEX(June!E:E,MATCH(Year!A:A,June!A:A,0)),"") ->  | E129: =IFERROR(INDEX(July!E:E,MATCH(Year!A:A,July!A:A,0)),"") ->  | F129: =IFERROR(INDEX(Aug!E:E,MATCH(Year!A:A,Aug!A:A,0)),"") ->  | G129: =IFERROR(INDEX(Sept!E:E,MATCH(Year!A:A,Sept!A:A,0)),"") ->  | H129: =IFERROR(INDEX(Oct!E:E,MATCH(Year!A:A,Oct!A:A,0)),"") ->  | I129: =IFERROR(INDEX(Nov!E:E,MATCH(Year!A:A,Nov!A:A,0)),"") ->  | J129: =IFERROR(INDEX(Dec!E:E,MATCH(Year!A:A,Dec!A:A,0)),"") ->  | K129: =IFERROR(INDEX(Jan!E:E,MATCH(Year!A:A,Jan!A:A,0)),"") ->  | L129: =IFERROR(INDEX(Feb!E:E,MATCH(Year!A:A,Feb!A:A,0)),"") ->  | M129: =IFERROR(INDEX(March!E:E,MATCH(Year!A:A,March!A:A,0)),"") ->  | N129: =IF(ISERROR((SUM(B129:M129))/B4),"",(SUM(B129:M129))/B4) -> 0
A130: =IF(ISERROR(Q!A30),"",Q!A30) -> 0 | B130: =IFERROR(INDEX(April!E:E,MATCH(Year!A:A,April!A:A,0)),"") ->  | C130: =IFERROR(INDEX(May!E:E,MATCH(Year!A:A,May!A:A,0)),"") ->  | D130: =IFERROR(INDEX(June!E:E,MATCH(Year!A:A,June!A:A,0)),"") ->  | E130: =IFERROR(INDEX(July!E:E,MATCH(Year!A:A,July!A:A,0)),"") ->  | F130: =IFERROR(INDEX(Aug!E:E,MATCH(Year!A:A,Aug!A:A,0)),"") ->  | G130: =IFERROR(INDEX(Sept!E:E,MATCH(Year!A:A,Sept!A:A,0)),"") ->  | H130: =IFERROR(INDEX(Oct!E:E,MATCH(Year!A:A,Oct!A:A,0)),"") ->  | I130: =IFERROR(INDEX(Nov!E:E,MATCH(Year!A:A,Nov!A:A,0)),"") ->  | J130: =IFERROR(INDEX(Dec!E:E,MATCH(Year!A:A,Dec!A:A,0)),"") ->  | K130: =IFERROR(INDEX(Jan!E:E,MATCH(Year!A:A,Jan!A:A,0)),"") ->  | L130: =IFERROR(INDEX(Feb!E:E,MATCH(Year!A:A,Feb!A:A,0)),"") ->  | M130: =IFERROR(INDEX(March!E:E,MATCH(Year!A:A,March!A:A,0)),"") ->  | N130: =IF(ISERROR((SUM(B130:M130))/B4),"",(SUM(B130:M130))/B4) -> 0
A131: =IF(ISERROR(Q!A31),"",Q!A31) -> 0 | B131: =IFERROR(INDEX(April!E:E,MATCH(Year!A:A,April!A:A,0)),"") ->  | C131: =IFERROR(INDEX(May!E:E,MATCH(Year!A:A,May!A:A,0)),"") ->  | D131: =IFERROR(INDEX(June!E:E,MATCH(Year!A:A,June!A:A,0)),"") ->  | E131: =IFERROR(INDEX(July!E:E,MATCH(Year!A:A,July!A:A,0)),"") ->  | F131: =IFERROR(INDEX(Aug!E:E,MATCH(Year!A:A,Aug!A:A,0)),"") ->  | G131: =IFERROR(INDEX(Sept!E:E,MATCH(Year!A:A,Sept!A:A,0)),"") ->  | H131: =IFERROR(INDEX(Oct!E:E,MATCH(Year!A:A,Oct!A:A,0)),"") ->  | I131: =IFERROR(INDEX(Nov!E:E,MATCH(Year!A:A,Nov!A:A,0)),"") ->  | J131: =IFERROR(INDEX(Dec!E:E,MATCH(Year!A:A,Dec!A:A,0)),"") ->  | K131: =IFERROR(INDEX(Jan!E:E,MATCH(Year!A:A,Jan!A:A,0)),"") ->  | L131: =IFERROR(INDEX(Feb!E:E,MATCH(Year!A:A,Feb!A:A,0)),"") ->  | M131: =IFERROR(INDEX(March!E:E,MATCH(Year!A:A,March!A:A,0)),"") ->  | N131: =IF(ISERROR((SUM(B131:M131))/B4),"",(SUM(B131:M131))/B4) -> 0
A132: =IF(ISERROR(Q!A32),"",Q!A32) -> 0 | B132: =IFERROR(INDEX(April!E:E,MATCH(Year!A:A,April!A:A,0)),"") ->  | C132: =IFERROR(INDEX(May!E:E,MATCH(Year!A:A,May!A:A,0)),"") ->  | D132: =IFERROR(INDEX(June!E:E,MATCH(Year!A:A,June!A:A,0)),"") ->  | E132: =IFERROR(INDEX(July!E:E,MATCH(Year!A:A,July!A:A,0)),"") ->  | F132: =IFERROR(INDEX(Aug!E:E,MATCH(Year!A:A,Aug!A:A,0)),"") ->  | G132: =IFERROR(INDEX(Sept!E:E,MATCH(Year!A:A,Sept!A:A,0)),"") ->  | H132: =IFERROR(INDEX(Oct!E:E,MATCH(Year!A:A,Oct!A:A,0)),"") ->  | I132: =IFERROR(INDEX(Nov!E:E,MATCH(Year!A:A,Nov!A:A,0)),"") ->  | J132: =IFERROR(INDEX(Dec!E:E,MATCH(Year!A:A,Dec!A:A,0)),"") ->  | K132: =IFERROR(INDEX(Jan!E:E,MATCH(Year!A:A,Jan!A:A,0)),"") ->  | L132: =IFERROR(INDEX(Feb!E:E,MATCH(Year!A:A,Feb!A:A,0)),"") ->  | M132: =IFERROR(INDEX(March!E:E,MATCH(Year!A:A,March!A:A,0)),"") ->  | N132: =IF(ISERROR((SUM(B132:M132))/B4),"",(SUM(B132:M132))/B4) -> 0
A133: =IF(ISERROR(Q!A33),"",Q!A33) -> 0 | B133: =IFERROR(INDEX(April!E:E,MATCH(Year!A:A,April!A:A,0)),"") ->  | C133: =IFERROR(INDEX(May!E:E,MATCH(Year!A:A,May!A:A,0)),"") ->  | D133: =IFERROR(INDEX(June!E:E,MATCH(Year!A:A,June!A:A,0)),"") ->  | E133: =IFERROR(INDEX(July!E:E,MATCH(Year!A:A,July!A:A,0)),"") ->  | F133: =IFERROR(INDEX(Aug!E:E,MATCH(Year!A:A,Aug!A:A,0)),"") ->  | G133: =IFERROR(INDEX(Sept!E:E,MATCH(Year!A:A,Sept!A:A,0)),"") ->  | H133: =IFERROR(INDEX(Oct!E:E,MATCH(Year!A:A,Oct!A:A,0)),"") ->  | I133: =IFERROR(INDEX(Nov!E:E,MATCH(Year!A:A,Nov!A:A,0)),"") ->  | J133: =IFERROR(INDEX(Dec!E:E,MATCH(Year!A:A,Dec!A:A,0)),"") ->  | K133: =IFERROR(INDEX(Jan!E:E,MATCH(Year!A:A,Jan!A:A,0)),"") ->  | L133: =IFERROR(INDEX(Feb!E:E,MATCH(Year!A:A,Feb!A:A,0)),"") ->  | M133: =IFERROR(INDEX(March!E:E,MATCH(Year!A:A,March!A:A,0)),"") ->  | N133: =IF(ISERROR((SUM(B133:M133))/B4),"",(SUM(B133:M133))/B4) -> 0
A134: =IF(ISERROR(Q!A34),"",Q!A34) -> 0 | B134: =IFERROR(INDEX(April!E:E,MATCH(Year!A:A,April!A:A,0)),"") ->  | C134: =IFERROR(INDEX(May!E:E,MATCH(Year!A:A,May!A:A,0)),"") ->  | D134: =IFERROR(INDEX(June!E:E,MATCH(Year!A:A,June!A:A,0)),"") ->  | E134: =IFERROR(INDEX(July!E:E,MATCH(Year!A:A,July!A:A,0)),"") ->  | F134: =IFERROR(INDEX(Aug!E:E,MATCH(Year!A:A,Aug!A:A,0)),"") ->  | G134: =IFERROR(INDEX(Sept!E:E,MATCH(Year!A:A,Sept!A:A,0)),"") ->  | H134: =IFERROR(INDEX(Oct!E:E,MATCH(Year!A:A,Oct!A:A,0)),"") ->  | I134: =IFERROR(INDEX(Nov!E:E,MATCH(Year!A:A,Nov!A:A,0)),"") ->  | J134: =IFERROR(INDEX(Dec!E:E,MATCH(Year!A:A,Dec!A:A,0)),"") ->  | K134: =IFERROR(INDEX(Jan!E:E,MATCH(Year!A:A,Jan!A:A,0)),"") ->  | L134: =IFERROR(INDEX(Feb!E:E,MATCH(Year!A:A,Feb!A:A,0)),"") ->  | M134: =IFERROR(INDEX(March!E:E,MATCH(Year!A:A,March!A:A,0)),"") ->  | N134: =IF(ISERROR((SUM(B134:M134))/B4),"",(SUM(B134:M134))/B4) -> 0
A135: =IF(ISERROR(Q!A35),"",Q!A35) -> 0 | B135: =IFERROR(INDEX(April!E:E,MATCH(Year!A:A,April!A:A,0)),"") ->  | C135: =IFERROR(INDEX(May!E:E,MATCH(Year!A:A,May!A:A,0)),"") ->  | D135: =IFERROR(INDEX(June!E:E,MATCH(Year!A:A,June!A:A,0)),"") ->  | E135: =IFERROR(INDEX(July!E:E,MATCH(Year!A:A,July!A:A,0)),"") ->  | F135: =IFERROR(INDEX(Aug!E:E,MATCH(Year!A:A,Aug!A:A,0)),"") ->  | G135: =IFERROR(INDEX(Sept!E:E,MATCH(Year!A:A,Sept!A:A,0)),"") ->  | H135: =IFERROR(INDEX(Oct!E:E,MATCH(Year!A:A,Oct!A:A,0)),"") ->  | I135: =IFERROR(INDEX(Nov!E:E,MATCH(Year!A:A,Nov!A:A,0)),"") ->  | J135: =IFERROR(INDEX(Dec!E:E,MATCH(Year!A:A,Dec!A:A,0)),"") ->  | K135: =IFERROR(INDEX(Jan!E:E,MATCH(Year!A:A,Jan!A:A,0)),"") ->  | L135: =IFERROR(INDEX(Feb!E:E,MATCH(Year!A:A,Feb!A:A,0)),"") ->  | M135: =IFERROR(INDEX(March!E:E,MATCH(Year!A:A,March!A:A,0)),"") ->  | N135: =IF(ISERROR((SUM(B135:M135))/B4),"",(SUM(B135:M135))/B4) -> 0
A136: =IF(ISERROR(Q!A36),"",Q!A36) -> 0 | B136: =IFERROR(INDEX(April!E:E,MATCH(Year!A:A,April!A:A,0)),"") ->  | C136: =IFERROR(INDEX(May!E:E,MATCH(Year!A:A,May!A:A,0)),"") ->  | D136: =IFERROR(INDEX(June!E:E,MATCH(Year!A:A,June!A:A,0)),"") ->  | E136: =IFERROR(INDEX(July!E:E,MATCH(Year!A:A,July!A:A,0)),"") ->  | F136: =IFERROR(INDEX(Aug!E:E,MATCH(Year!A:A,Aug!A:A,0)),"") ->  | G136: =IFERROR(INDEX(Sept!E:E,MATCH(Year!A:A,Sept!A:A,0)),"") ->  | H136: =IFERROR(INDEX(Oct!E:E,MATCH(Year!A:A,Oct!A:A,0)),"") ->  | I136: =IFERROR(INDEX(Nov!E:E,MATCH(Year!A:A,Nov!A:A,0)),"") ->  | J136: =IFERROR(INDEX(Dec!E:E,MATCH(Year!A:A,Dec!A:A,0)),"") ->  | K136: =IFERROR(INDEX(Jan!E:E,MATCH(Year!A:A,Jan!A:A,0)),"") ->  | L136: =IFERROR(INDEX(Feb!E:E,MATCH(Year!A:A,Feb!A:A,0)),"") ->  | M136: =IFERROR(INDEX(March!E:E,MATCH(Year!A:A,March!A:A,0)),"") ->  | N136: =IF(ISERROR((SUM(B136:M136))/B4),"",(SUM(B136:M136))/B4) -> 0
A137: =IF(ISERROR(Q!A37),"",Q!A37) -> 0 | B137: =IFERROR(INDEX(April!E:E,MATCH(Year!A:A,April!A:A,0)),"") ->  | C137: =IFERROR(INDEX(May!E:E,MATCH(Year!A:A,May!A:A,0)),"") ->  | D137: =IFERROR(INDEX(June!E:E,MATCH(Year!A:A,June!A:A,0)),"") ->  | E137: =IFERROR(INDEX(July!E:E,MATCH(Year!A:A,July!A:A,0)),"") ->  | F137: =IFERROR(INDEX(Aug!E:E,MATCH(Year!A:A,Aug!A:A,0)),"") ->  | G137: =IFERROR(INDEX(Sept!E:E,MATCH(Year!A:A,Sept!A:A,0)),"") ->  | H137: =IFERROR(INDEX(Oct!E:E,MATCH(Year!A:A,Oct!A:A,0)),"") ->  | I137: =IFERROR(INDEX(Nov!E:E,MATCH(Year!A:A,Nov!A:A,0)),"") ->  | J137: =IFERROR(INDEX(Dec!E:E,MATCH(Year!A:A,Dec!A:A,0)),"") ->  | K137: =IFERROR(INDEX(Jan!E:E,MATCH(Year!A:A,Jan!A:A,0)),"") ->  | L137: =IFERROR(INDEX(Feb!E:E,MATCH(Year!A:A,Feb!A:A,0)),"") ->  | M137: =IFERROR(INDEX(March!E:E,MATCH(Year!A:A,March!A:A,0)),"") ->  | N137: =IF(ISERROR((SUM(B137:M137))/B4),"",(SUM(B137:M137))/B4) -> 0
A138: =IF(ISERROR(Q!A38),"",Q!A38) -> 0 | B138: =IFERROR(INDEX(April!E:E,MATCH(Year!A:A,April!A:A,0)),"") ->  | C138: =IFERROR(INDEX(May!E:E,MATCH(Year!A:A,May!A:A,0)),"") ->  | D138: =IFERROR(INDEX(June!E:E,MATCH(Year!A:A,June!A:A,0)),"") ->  | E138: =IFERROR(INDEX(July!E:E,MATCH(Year!A:A,July!A:A,0)),"") ->  | F138: =IFERROR(INDEX(Aug!E:E,MATCH(Year!A:A,Aug!A:A,0)),"") ->  | G138: =IFERROR(INDEX(Sept!E:E,MATCH(Year!A:A,Sept!A:A,0)),"") ->  | H138: =IFERROR(INDEX(Oct!E:E,MATCH(Year!A:A,Oct!A:A,0)),"") ->  | I138: =IFERROR(INDEX(Nov!E:E,MATCH(Year!A:A,Nov!A:A,0)),"") ->  | J138: =IFERROR(INDEX(Dec!E:E,MATCH(Year!A:A,Dec!A:A,0)),"") ->  | K138: =IFERROR(INDEX(Jan!E:E,MATCH(Year!A:A,Jan!A:A,0)),"") ->  | L138: =IFERROR(INDEX(Feb!E:E,MATCH(Year!A:A,Feb!A:A,0)),"") ->  | M138: =IFERROR(INDEX(March!E:E,MATCH(Year!A:A,March!A:A,0)),"") ->  | N138: =IF(ISERROR((SUM(B138:M138))/B4),"",(SUM(B138:M138))/B4) -> 0
A139: =IF(ISERROR(Q!A39),"",Q!A39) -> 0 | B139: =IFERROR(INDEX(April!E:E,MATCH(Year!A:A,April!A:A,0)),"") ->  | C139: =IFERROR(INDEX(May!E:E,MATCH(Year!A:A,May!A:A,0)),"") ->  | D139: =IFERROR(INDEX(June!E:E,MATCH(Year!A:A,June!A:A,0)),"") ->  | E139: =IFERROR(INDEX(July!E:E,MATCH(Year!A:A,July!A:A,0)),"") ->  | F139: =IFERROR(INDEX(Aug!E:E,MATCH(Year!A:A,Aug!A:A,0)),"") ->  | G139: =IFERROR(INDEX(Sept!E:E,MATCH(Year!A:A,Sept!A:A,0)),"") ->  | H139: =IFERROR(INDEX(Oct!E:E,MATCH(Year!A:A,Oct!A:A,0)),"") ->  | I139: =IFERROR(INDEX(Nov!E:E,MATCH(Year!A:A,Nov!A:A,0)),"") ->  | J139: =IFERROR(INDEX(Dec!E:E,MATCH(Year!A:A,Dec!A:A,0)),"") ->  | K139: =IFERROR(INDEX(Jan!E:E,MATCH(Year!A:A,Jan!A:A,0)),"") ->  | L139: =IFERROR(INDEX(Feb!E:E,MATCH(Year!A:A,Feb!A:A,0)),"") ->  | M139: =IFERROR(INDEX(March!E:E,MATCH(Year!A:A,March!A:A,0)),"") ->  | N139: =IF(ISERROR((SUM(B139:M139))/B4),"",(SUM(B139:M139))/B4) -> 0
A140: =IF(ISERROR(Q!A40),"",Q!A40) -> 0 | B140: =IFERROR(INDEX(April!E:E,MATCH(Year!A:A,April!A:A,0)),"") ->  | C140: =IFERROR(INDEX(May!E:E,MATCH(Year!A:A,May!A:A,0)),"") ->  | D140: =IFERROR(INDEX(June!E:E,MATCH(Year!A:A,June!A:A,0)),"") ->  | E140: =IFERROR(INDEX(July!E:E,MATCH(Year!A:A,July!A:A,0)),"") ->  | F140: =IFERROR(INDEX(Aug!E:E,MATCH(Year!A:A,Aug!A:A,0)),"") ->  | G140: =IFERROR(INDEX(Sept!E:E,MATCH(Year!A:A,Sept!A:A,0)),"") ->  | H140: =IFERROR(INDEX(Oct!E:E,MATCH(Year!A:A,Oct!A:A,0)),"") ->  | I140: =IFERROR(INDEX(Nov!E:E,MATCH(Year!A:A,Nov!A:A,0)),"") ->  | J140: =IFERROR(INDEX(Dec!E:E,MATCH(Year!A:A,Dec!A:A,0)),"") ->  | K140: =IFERROR(INDEX(Jan!E:E,MATCH(Year!A:A,Jan!A:A,0)),"") ->  | L140: =IFERROR(INDEX(Feb!E:E,MATCH(Year!A:A,Feb!A:A,0)),"") ->  | M140: =IFERROR(INDEX(March!E:E,MATCH(Year!A:A,March!A:A,0)),"") ->  | N140: =IF(ISERROR((SUM(B140:M140))/B4),"",(SUM(B140:M140))/B4) -> 0
A141: =IF(ISERROR(Q!A41),"",Q!A41) -> 0 | B141: =IFERROR(INDEX(April!E:E,MATCH(Year!A:A,April!A:A,0)),"") ->  | C141: =IFERROR(INDEX(May!E:E,MATCH(Year!A:A,May!A:A,0)),"") ->  | D141: =IFERROR(INDEX(June!E:E,MATCH(Year!A:A,June!A:A,0)),"") ->  | E141: =IFERROR(INDEX(July!E:E,MATCH(Year!A:A,July!A:A,0)),"") ->  | F141: =IFERROR(INDEX(Aug!E:E,MATCH(Year!A:A,Aug!A:A,0)),"") ->  | G141: =IFERROR(INDEX(Sept!E:E,MATCH(Year!A:A,Sept!A:A,0)),"") ->  | H141: =IFERROR(INDEX(Oct!E:E,MATCH(Year!A:A,Oct!A:A,0)),"") ->  | I141: =IFERROR(INDEX(Nov!E:E,MATCH(Year!A:A,Nov!A:A,0)),"") ->  | J141: =IFERROR(INDEX(Dec!E:E,MATCH(Year!A:A,Dec!A:A,0)),"") ->  | K141: =IFERROR(INDEX(Jan!E:E,MATCH(Year!A:A,Jan!A:A,0)),"") ->  | L141: =IFERROR(INDEX(Feb!E:E,MATCH(Year!A:A,Feb!A:A,0)),"") ->  | M141: =IFERROR(INDEX(March!E:E,MATCH(Year!A:A,March!A:A,0)),"") ->  | N141: =IF(ISERROR((SUM(B141:M141))/B4),"",(SUM(B141:M141))/B4) -> 0
A142: Average | B142: =IF(ISERROR((SUM(B102:B141)/April!B8)),"",(SUM(B102:B141)/April!B8)) -> 0.07272727273 | C142: =IF(ISERROR((SUM(B102:B141)/May!B8)),"",(SUM(B102:B141)/May!B8)) -> 0.07272727273 | D142: =IF(ISERROR((SUM(B102:B141)/June!B8)),"",(SUM(B102:B141)/June!B8)) -> 0.07272727273 | E142: =IF(ISERROR((SUM(B102:B141)/July!B8)),"",(SUM(B102:B141)/July!B8)) -> 0.07272727273 | F142: =IF(ISERROR((SUM(B102:B141)/Aug!B8)),"",(SUM(B102:B141)/Aug!B8)) -> 0.07272727273 | G142: =IF(ISERROR((SUM(B102:B141)/Sept!B8)),"",(SUM(B102:B141)/Sept!B8)) -> 0.07272727273 | H142: =IF(ISERROR((SUM(B102:B141)/Oct!B8)),"",(SUM(B102:B141)/Oct!B8)) -> 0.07272727273 | I142: =IF(ISERROR((SUM(B102:B141)/Nov!B8)),"",(SUM(B102:B141)/Nov!B8)) -> 0.07272727273 | J142: =IF(ISERROR((SUM(B102:B141)/Dec!B8)),"",(SUM(B102:B141)/Dec!B8)) -> 0.07272727273 | K142: =IF(ISERROR((SUM(B102:B141)/Jan!B8)),"",(SUM(B102:B141)/Jan!B8)) -> 0.07272727273 | L142: =IF(ISERROR((SUM(B102:B141)/Feb!B8)),"",(SUM(B102:B141)/Feb!B8)) -> 0.07272727273 | M142: =IF(ISERROR((SUM(B102:B141)/March!B8)),"",(SUM(B102:B141)/March!B8)) -> 0.07272727273
A144: Not Compliant
A145: Metric | B145: April | C145: May | D145: June | E145: July | F145: August | G145: September | H145: October | I145: November | J145: December | K145: January | L145: February | M145: March | N145: Year average
A146: =IF(ISERROR(Q!A2),"",Q!A2) -> Was a Room number documented? | B146: =IFERROR(INDEX(April!F:F,MATCH(Year!A:A,April!A:A,0)),"") -> 0 | C146: =IFERROR(INDEX(May!F:F,MATCH(Year!A:A,May!A:A,0)),"") -> 0 | D146: =IFERROR(INDEX(June!F:F,MATCH(Year!A:A,June!A:A,0)),"") -> 0 | E146: =IFERROR(INDEX(July!F:F,MATCH(Year!A:A,July!A:A,0)),"") -> 0 | F146: =IFERROR(INDEX(Aug!F:F,MATCH(Year!A:A,Aug!A:A,0)),"") -> 0 | G146: =IFERROR(INDEX(Sept!F:F,MATCH(Year!A:A,Sept!A:A,0)),"") -> 0 | H146: =IFERROR(INDEX(Oct!F:F,MATCH(Year!A:A,Oct!A:A,0)),"") -> 0 | I146: =IFERROR(INDEX(Nov!F:F,MATCH(Year!A:A,Nov!A:A,0)),"") -> 0 | J146: =IFERROR(INDEX(Dec!F:F,MATCH(Year!A:A,Dec!A:A,0)),"") -> 0 | K146: =IFERROR(INDEX(Jan!F:F,MATCH(Year!A:A,Jan!A:A,0)),"") -> 0 | L146: =IFERROR(INDEX(Feb!F:F,MATCH(Year!A:A,Feb!A:A,0)),"") -> 0.2 | M146: =IFERROR(INDEX(March!F:F,MATCH(Year!A:A,March!A:A,0)),"") -> 0 | N146: =IF(ISERROR((SUM(B146:M146))/B4),"",(SUM(B146:M146))/B4) -> 0.01666666667
A147: =IF(ISERROR(Q!A3),"",Q!A3) -> Were stage A checks completed as appropriate? | B147: =IFERROR(INDEX(April!F:F,MATCH(Year!A:A,April!A:A,0)),"") -> 0 | C147: =IFERROR(INDEX(May!F:F,MATCH(Year!A:A,May!A:A,0)),"") -> 0.25 | D147: =IFERROR(INDEX(June!F:F,MATCH(Year!A:A,June!A:A,0)),"") -> 0 | E147: =IFERROR(INDEX(July!F:F,MATCH(Year!A:A,July!A:A,0)),"") -> 0 | F147: =IFERROR(INDEX(Aug!F:F,MATCH(Year!A:A,Aug!A:A,0)),"") -> 0.2 | G147: =IFERROR(INDEX(Sept!F:F,MATCH(Year!A:A,Sept!A:A,0)),"") -> 0 | H147: =IFERROR(INDEX(Oct!F:F,MATCH(Year!A:A,Oct!A:A,0)),"") -> 0 | I147: =IFERROR(INDEX(Nov!F:F,MATCH(Year!A:A,Nov!A:A,0)),"") -> 0 | J147: =IFERROR(INDEX(Dec!F:F,MATCH(Year!A:A,Dec!A:A,0)),"") -> 0 | K147: =IFERROR(INDEX(Jan!F:F,MATCH(Year!A:A,Jan!A:A,0)),"") -> 0.1666666667 | L147: =IFERROR(INDEX(Feb!F:F,MATCH(Year!A:A,Feb!A:A,0)),"") -> 0.25 | M147: =IFERROR(INDEX(March!F:F,MATCH(Year!A:A,March!A:A,0)),"") -> 0 | N147: =IF(ISERROR((SUM(B147:M147))/B4),"",(SUM(B147:M147))/B4) -> 0.07222222222
A148: =IF(ISERROR(Q!A4),"",Q!A4) -> Was COSI Part 1 performed? | B148: =IFERROR(INDEX(April!F:F,MATCH(Year!A:A,April!A:A,0)),"") -> 0.4 | C148: =IFERROR(INDEX(May!F:F,MATCH(Year!A:A,May!A:A,0)),"") -> 0.5 | D148: =IFERROR(INDEX(June!F:F,MATCH(Year!A:A,June!A:A,0)),"") -> 0.2 | E148: =IFERROR(INDEX(July!F:F,MATCH(Year!A:A,July!A:A,0)),"") -> 0.2 | F148: =IFERROR(INDEX(Aug!F:F,MATCH(Year!A:A,Aug!A:A,0)),"") -> 0 | G148: =IFERROR(INDEX(Sept!F:F,MATCH(Year!A:A,Sept!A:A,0)),"") -> 0.25 | H148: =IFERROR(INDEX(Oct!F:F,MATCH(Year!A:A,Oct!A:A,0)),"") -> 0 | I148: =IFERROR(INDEX(Nov!F:F,MATCH(Year!A:A,Nov!A:A,0)),"") -> 0 | J148: =IFERROR(INDEX(Dec!F:F,MATCH(Year!A:A,Dec!A:A,0)),"") -> 0.4 | K148: =IFERROR(INDEX(Jan!F:F,MATCH(Year!A:A,Jan!A:A,0)),"") -> 0.1666666667 | L148: =IFERROR(INDEX(Feb!F:F,MATCH(Year!A:A,Feb!A:A,0)),"") -> 0 | M148: =IFERROR(INDEX(March!F:F,MATCH(Year!A:A,March!A:A,0)),"") -> 0.3333333333 | N148: =IF(ISERROR((SUM(B148:M148))/B4),"",(SUM(B148:M148))/B4) -> 0.2041666667
A149: =IF(ISERROR(Q!A5),"",Q!A5) -> Was PVP documented? | B149: =IFERROR(INDEX(April!F:F,MATCH(Year!A:A,April!A:A,0)),"") -> 0 | C149: =IFERROR(INDEX(May!F:F,MATCH(Year!A:A,May!A:A,0)),"") -> 0 | D149: =IFERROR(INDEX(June!F:F,MATCH(Year!A:A,June!A:A,0)),"") -> 0 | E149: =IFERROR(INDEX(July!F:F,MATCH(Year!A:A,July!A:A,0)),"") -> 0 | F149: =IFERROR(INDEX(Aug!F:F,MATCH(Year!A:A,Aug!A:A,0)),"") -> 0 | G149: =IFERROR(INDEX(Sept!F:F,MATCH(Year!A:A,Sept!A:A,0)),"") -> 0 | H149: =IFERROR(INDEX(Oct!F:F,MATCH(Year!A:A,Oct!A:A,0)),"") -> 0 | I149: =IFERROR(INDEX(Nov!F:F,MATCH(Year!A:A,Nov!A:A,0)),"") -> 0 | J149: =IFERROR(INDEX(Dec!F:F,MATCH(Year!A:A,Dec!A:A,0)),"") -> 0 | K149: =IFERROR(INDEX(Jan!F:F,MATCH(Year!A:A,Jan!A:A,0)),"") -> 0 | L149: =IFERROR(INDEX(Feb!F:F,MATCH(Year!A:A,Feb!A:A,0)),"") -> 0 | M149: =IFERROR(INDEX(March!F:F,MATCH(Year!A:A,March!A:A,0)),"") -> 0 | N149: =IF(ISERROR((SUM(B149:M149))/B4),"",(SUM(B149:M149))/B4) -> 0
A150: =IF(ISERROR(Q!A6),"",Q!A6) -> Was Otoscopy documented? | B150: =IFERROR(INDEX(April!F:F,MATCH(Year!A:A,April!A:A,0)),"") -> 0 | C150: =IFERROR(INDEX(May!F:F,MATCH(Year!A:A,May!A:A,0)),"") -> 0 | D150: =IFERROR(INDEX(June!F:F,MATCH(Year!A:A,June!A:A,0)),"") -> 0 | E150: =IFERROR(INDEX(July!F:F,MATCH(Year!A:A,July!A:A,0)),"") -> 0 | F150: =IFERROR(INDEX(Aug!F:F,MATCH(Year!A:A,Aug!A:A,0)),"") -> 0 | G150: =IFERROR(INDEX(Sept!F:F,MATCH(Year!A:A,Sept!A:A,0)),"") -> 0 | H150: =IFERROR(INDEX(Oct!F:F,MATCH(Year!A:A,Oct!A:A,0)),"") -> 0 | I150: =IFERROR(INDEX(Nov!F:F,MATCH(Year!A:A,Nov!A:A,0)),"") -> 0.25 | J150: =IFERROR(INDEX(Dec!F:F,MATCH(Year!A:A,Dec!A:A,0)),"") -> 0 | K150: =IFERROR(INDEX(Jan!F:F,MATCH(Year!A:A,Jan!A:A,0)),"") -> 0 | L150: =IFERROR(INDEX(Feb!F:F,MATCH(Year!A:A,Feb!A:A,0)),"") -> 0.2 | M150: =IFERROR(INDEX(March!F:F,MATCH(Year!A:A,March!A:A,0)),"") -> 0 | N150: =IF(ISERROR((SUM(B150:M150))/B4),"",(SUM(B150:M150))/B4) -> 0.0375
A151: =IF(ISERROR(Q!A7),"",Q!A7) -> Document bc at 3 & 4kHz is for programming purposes? | B151: =IFERROR(INDEX(April!F:F,MATCH(Year!A:A,April!A:A,0)),"") -> 0 | C151: =IFERROR(INDEX(May!F:F,MATCH(Year!A:A,May!A:A,0)),"") -> 0 | D151: =IFERROR(INDEX(June!F:F,MATCH(Year!A:A,June!A:A,0)),"") -> 0 | E151: =IFERROR(INDEX(July!F:F,MATCH(Year!A:A,July!A:A,0)),"") -> 0 | F151: =IFERROR(INDEX(Aug!F:F,MATCH(Year!A:A,Aug!A:A,0)),"") -> 0 | G151: =IFERROR(INDEX(Sept!F:F,MATCH(Year!A:A,Sept!A:A,0)),"") -> 0 | H151: =IFERROR(INDEX(Oct!F:F,MATCH(Year!A:A,Oct!A:A,0)),"") -> 0 | I151: =IFERROR(INDEX(Nov!F:F,MATCH(Year!A:A,Nov!A:A,0)),"") -> 0 | J151: =IFERROR(INDEX(Dec!F:F,MATCH(Year!A:A,Dec!A:A,0)),"") -> 0 | K151: =IFERROR(INDEX(Jan!F:F,MATCH(Year!A:A,Jan!A:A,0)),"") -> 0 | L151: =IFERROR(INDEX(Feb!F:F,MATCH(Year!A:A,Feb!A:A,0)),"") -> 0 | M151: =IFERROR(INDEX(March!F:F,MATCH(Year!A:A,March!A:A,0)),"") -> 0 | N151: =IF(ISERROR((SUM(B151:M151))/B4),"",(SUM(B151:M151))/B4) -> 0
A152: =IF(ISERROR(Q!A8),"",Q!A8) -> Was Speech testing performed? | B152: =IFERROR(INDEX(April!F:F,MATCH(Year!A:A,April!A:A,0)),"") -> 0 | C152: =IFERROR(INDEX(May!F:F,MATCH(Year!A:A,May!A:A,0)),"") -> 0 | D152: =IFERROR(INDEX(June!F:F,MATCH(Year!A:A,June!A:A,0)),"") -> 0 | E152: =IFERROR(INDEX(July!F:F,MATCH(Year!A:A,July!A:A,0)),"") -> 0 | F152: =IFERROR(INDEX(Aug!F:F,MATCH(Year!A:A,Aug!A:A,0)),"") -> 0 | G152: =IFERROR(INDEX(Sept!F:F,MATCH(Year!A:A,Sept!A:A,0)),"") -> 0 | H152: =IFERROR(INDEX(Oct!F:F,MATCH(Year!A:A,Oct!A:A,0)),"") -> 0 | I152: =IFERROR(INDEX(Nov!F:F,MATCH(Year!A:A,Nov!A:A,0)),"") -> 0 | J152: =IFERROR(INDEX(Dec!F:F,MATCH(Year!A:A,Dec!A:A,0)),"") -> 0 | K152: =IFERROR(INDEX(Jan!F:F,MATCH(Year!A:A,Jan!A:A,0)),"") -> 0 | L152: =IFERROR(INDEX(Feb!F:F,MATCH(Year!A:A,Feb!A:A,0)),"") -> 0 | M152: =IFERROR(INDEX(March!F:F,MATCH(Year!A:A,March!A:A,0)),"") -> 0 | N152: =IF(ISERROR((SUM(B152:M152))/B4),"",(SUM(B152:M152))/B4) -> 0
A153: =IF(ISERROR(Q!A9),"",Q!A9) -> Is it documented whether national criteria were/were not met? | B153: =IFERROR(INDEX(April!F:F,MATCH(Year!A:A,April!A:A,0)),"") -> 0.2 | C153: =IFERROR(INDEX(May!F:F,MATCH(Year!A:A,May!A:A,0)),"") -> 0 | D153: =IFERROR(INDEX(June!F:F,MATCH(Year!A:A,June!A:A,0)),"") -> 0 | E153: =IFERROR(INDEX(July!F:F,MATCH(Year!A:A,July!A:A,0)),"") -> 0 | F153: =IFERROR(INDEX(Aug!F:F,MATCH(Year!A:A,Aug!A:A,0)),"") -> 0 | G153: =IFERROR(INDEX(Sept!F:F,MATCH(Year!A:A,Sept!A:A,0)),"") -> 0 | H153: =IFERROR(INDEX(Oct!F:F,MATCH(Year!A:A,Oct!A:A,0)),"") -> 0 | I153: =IFERROR(INDEX(Nov!F:F,MATCH(Year!A:A,Nov!A:A,0)),"") -> 0 | J153: =IFERROR(INDEX(Dec!F:F,MATCH(Year!A:A,Dec!A:A,0)),"") -> 0 | K153: =IFERROR(INDEX(Jan!F:F,MATCH(Year!A:A,Jan!A:A,0)),"") -> 0 | L153: =IFERROR(INDEX(Feb!F:F,MATCH(Year!A:A,Feb!A:A,0)),"") -> 0 | M153: =IFERROR(INDEX(March!F:F,MATCH(Year!A:A,March!A:A,0)),"") -> 0 | N153: =IF(ISERROR((SUM(B153:M153))/B4),"",(SUM(B153:M153))/B4) -> 0.01666666667
A154: =IF(ISERROR(Q!A10),"",Q!A10) -> Was a BCHI info pack supplied? | B154: =IFERROR(INDEX(April!F:F,MATCH(Year!A:A,April!A:A,0)),"") -> 0 | C154: =IFERROR(INDEX(May!F:F,MATCH(Year!A:A,May!A:A,0)),"") -> 0 | D154: =IFERROR(INDEX(June!F:F,MATCH(Year!A:A,June!A:A,0)),"") -> 0 | E154: =IFERROR(INDEX(July!F:F,MATCH(Year!A:A,July!A:A,0)),"") -> 0 | F154: =IFERROR(INDEX(Aug!F:F,MATCH(Year!A:A,Aug!A:A,0)),"") -> 0 | G154: =IFERROR(INDEX(Sept!F:F,MATCH(Year!A:A,Sept!A:A,0)),"") -> 0 | H154: =IFERROR(INDEX(Oct!F:F,MATCH(Year!A:A,Oct!A:A,0)),"") -> 0 | I154: =IFERROR(INDEX(Nov!F:F,MATCH(Year!A:A,Nov!A:A,0)),"") -> 0 | J154: =IFERROR(INDEX(Dec!F:F,MATCH(Year!A:A,Dec!A:A,0)),"") -> 0 | K154: =IFERROR(INDEX(Jan!F:F,MATCH(Year!A:A,Jan!A:A,0)),"") -> 0 | L154: =IFERROR(INDEX(Feb!F:F,MATCH(Year!A:A,Feb!A:A,0)),"") -> 0 | M154: =IFERROR(INDEX(March!F:F,MATCH(Year!A:A,March!A:A,0)),"") -> 0 | N154: =IF(ISERROR((SUM(B154:M154))/B4),"",(SUM(B154:M154))/B4) -> 0
A155: =IF(ISERROR(Q!A11),"",Q!A11) -> Was the report authorised & issued within target (7 days)? | B155: =IFERROR(INDEX(April!F:F,MATCH(Year!A:A,April!A:A,0)),"") -> 0 | C155: =IFERROR(INDEX(May!F:F,MATCH(Year!A:A,May!A:A,0)),"") -> 0 | D155: =IFERROR(INDEX(June!F:F,MATCH(Year!A:A,June!A:A,0)),"") -> 0 | E155: =IFERROR(INDEX(July!F:F,MATCH(Year!A:A,July!A:A,0)),"") -> 0 | F155: =IFERROR(INDEX(Aug!F:F,MATCH(Year!A:A,Aug!A:A,0)),"") -> 0 | G155: =IFERROR(INDEX(Sept!F:F,MATCH(Year!A:A,Sept!A:A,0)),"") -> 0 | H155: =IFERROR(INDEX(Oct!F:F,MATCH(Year!A:A,Oct!A:A,0)),"") -> 0 | I155: =IFERROR(INDEX(Nov!F:F,MATCH(Year!A:A,Nov!A:A,0)),"") -> 0 | J155: =IFERROR(INDEX(Dec!F:F,MATCH(Year!A:A,Dec!A:A,0)),"") -> 0 | K155: =IFERROR(INDEX(Jan!F:F,MATCH(Year!A:A,Jan!A:A,0)),"") -> 0 | L155: =IFERROR(INDEX(Feb!F:F,MATCH(Year!A:A,Feb!A:A,0)),"") -> 0 | M155: =IFERROR(INDEX(March!F:F,MATCH(Year!A:A,March!A:A,0)),"") -> 0 | N155: =IF(ISERROR((SUM(B155:M155))/B4),"",(SUM(B155:M155))/B4) -> 0
A156: =IF(ISERROR(Q!A12),"",Q!A12) -> Was consent documented as appropriate? | B156: =IFERROR(INDEX(April!F:F,MATCH(Year!A:A,April!A:A,0)),"") -> 0 | C156: =IFERROR(INDEX(May!F:F,MATCH(Year!A:A,May!A:A,0)),"") -> 0 | D156: =IFERROR(INDEX(June!F:F,MATCH(Year!A:A,June!A:A,0)),"") -> 0 | E156: =IFERROR(INDEX(July!F:F,MATCH(Year!A:A,July!A:A,0)),"") -> 0 | F156: =IFERROR(INDEX(Aug!F:F,MATCH(Year!A:A,Aug!A:A,0)),"") -> 0 | G156: =IFERROR(INDEX(Sept!F:F,MATCH(Year!A:A,Sept!A:A,0)),"") -> 0 | H156: =IFERROR(INDEX(Oct!F:F,MATCH(Year!A:A,Oct!A:A,0)),"") -> 0 | I156: =IFERROR(INDEX(Nov!F:F,MATCH(Year!A:A,Nov!A:A,0)),"") -> 0 | J156: =IFERROR(INDEX(Dec!F:F,MATCH(Year!A:A,Dec!A:A,0)),"") -> 0 | K156: =IFERROR(INDEX(Jan!F:F,MATCH(Year!A:A,Jan!A:A,0)),"") -> 0 | L156: =IFERROR(INDEX(Feb!F:F,MATCH(Year!A:A,Feb!A:A,0)),"") -> 0 | M156: =IFERROR(INDEX(March!F:F,MATCH(Year!A:A,March!A:A,0)),"") -> 0 | N156: =IF(ISERROR((SUM(B156:M156))/B4),"",(SUM(B156:M156))/B4) -> 0
A157: =IF(ISERROR(Q!A13),"",Q!A13) -> 0 | B157: =IFERROR(INDEX(April!F:F,MATCH(Year!A:A,April!A:A,0)),"") ->  | C157: =IFERROR(INDEX(May!F:F,MATCH(Year!A:A,May!A:A,0)),"") ->  | D157: =IFERROR(INDEX(June!F:F,MATCH(Year!A:A,June!A:A,0)),"") ->  | E157: =IFERROR(INDEX(July!F:F,MATCH(Year!A:A,July!A:A,0)),"") ->  | F157: =IFERROR(INDEX(Aug!F:F,MATCH(Year!A:A,Aug!A:A,0)),"") ->  | G157: =IFERROR(INDEX(Sept!F:F,MATCH(Year!A:A,Sept!A:A,0)),"") ->  | H157: =IFERROR(INDEX(Oct!F:F,MATCH(Year!A:A,Oct!A:A,0)),"") ->  | I157: =IFERROR(INDEX(Nov!F:F,MATCH(Year!A:A,Nov!A:A,0)),"") ->  | J157: =IFERROR(INDEX(Dec!F:F,MATCH(Year!A:A,Dec!A:A,0)),"") ->  | K157: =IFERROR(INDEX(Jan!F:F,MATCH(Year!A:A,Jan!A:A,0)),"") ->  | L157: =IFERROR(INDEX(Feb!F:F,MATCH(Year!A:A,Feb!A:A,0)),"") ->  | M157: =IFERROR(INDEX(March!F:F,MATCH(Year!A:A,March!A:A,0)),"") ->  | N157: =IF(ISERROR((SUM(B157:M157))/B4),"",(SUM(B157:M157))/B4) -> 0
A158: =IF(ISERROR(Q!A14),"",Q!A14) -> 0 | B158: =IFERROR(INDEX(April!F:F,MATCH(Year!A:A,April!A:A,0)),"") ->  | C158: =IFERROR(INDEX(May!F:F,MATCH(Year!A:A,May!A:A,0)),"") ->  | D158: =IFERROR(INDEX(June!F:F,MATCH(Year!A:A,June!A:A,0)),"") ->  | E158: =IFERROR(INDEX(July!F:F,MATCH(Year!A:A,July!A:A,0)),"") ->  | F158: =IFERROR(INDEX(Aug!F:F,MATCH(Year!A:A,Aug!A:A,0)),"") ->  | G158: =IFERROR(INDEX(Sept!F:F,MATCH(Year!A:A,Sept!A:A,0)),"") ->  | H158: =IFERROR(INDEX(Oct!F:F,MATCH(Year!A:A,Oct!A:A,0)),"") ->  | I158: =IFERROR(INDEX(Nov!F:F,MATCH(Year!A:A,Nov!A:A,0)),"") ->  | J158: =IFERROR(INDEX(Dec!F:F,MATCH(Year!A:A,Dec!A:A,0)),"") ->  | K158: =IFERROR(INDEX(Jan!F:F,MATCH(Year!A:A,Jan!A:A,0)),"") ->  | L158: =IFERROR(INDEX(Feb!F:F,MATCH(Year!A:A,Feb!A:A,0)),"") ->  | M158: =IFERROR(INDEX(March!F:F,MATCH(Year!A:A,March!A:A,0)),"") ->  | N158: =IF(ISERROR((SUM(B158:M158))/B4),"",(SUM(B158:M158))/B4) -> 0
A159: =IF(ISERROR(Q!A15),"",Q!A15) -> 0 | B159: =IFERROR(INDEX(April!F:F,MATCH(Year!A:A,April!A:A,0)),"") ->  | C159: =IFERROR(INDEX(May!F:F,MATCH(Year!A:A,May!A:A,0)),"") ->  | D159: =IFERROR(INDEX(June!F:F,MATCH(Year!A:A,June!A:A,0)),"") ->  | E159: =IFERROR(INDEX(July!F:F,MATCH(Year!A:A,July!A:A,0)),"") ->  | F159: =IFERROR(INDEX(Aug!F:F,MATCH(Year!A:A,Aug!A:A,0)),"") ->  | G159: =IFERROR(INDEX(Sept!F:F,MATCH(Year!A:A,Sept!A:A,0)),"") ->  | H159: =IFERROR(INDEX(Oct!F:F,MATCH(Year!A:A,Oct!A:A,0)),"") ->  | I159: =IFERROR(INDEX(Nov!F:F,MATCH(Year!A:A,Nov!A:A,0)),"") ->  | J159: =IFERROR(INDEX(Dec!F:F,MATCH(Year!A:A,Dec!A:A,0)),"") ->  | K159: =IFERROR(INDEX(Jan!F:F,MATCH(Year!A:A,Jan!A:A,0)),"") ->  | L159: =IFERROR(INDEX(Feb!F:F,MATCH(Year!A:A,Feb!A:A,0)),"") ->  | M159: =IFERROR(INDEX(March!F:F,MATCH(Year!A:A,March!A:A,0)),"") ->  | N159: =IF(ISERROR((SUM(B159:M159))/B4),"",(SUM(B159:M159))/B4) -> 0
A160: =IF(ISERROR(Q!A16),"",Q!A16) -> 0 | B160: =IFERROR(INDEX(April!F:F,MATCH(Year!A:A,April!A:A,0)),"") ->  | C160: =IFERROR(INDEX(May!F:F,MATCH(Year!A:A,May!A:A,0)),"") ->  | D160: =IFERROR(INDEX(June!F:F,MATCH(Year!A:A,June!A:A,0)),"") ->  | E160: =IFERROR(INDEX(July!F:F,MATCH(Year!A:A,July!A:A,0)),"") ->  | F160: =IFERROR(INDEX(Aug!F:F,MATCH(Year!A:A,Aug!A:A,0)),"") ->  | G160: =IFERROR(INDEX(Sept!F:F,MATCH(Year!A:A,Sept!A:A,0)),"") ->  | H160: =IFERROR(INDEX(Oct!F:F,MATCH(Year!A:A,Oct!A:A,0)),"") ->  | I160: =IFERROR(INDEX(Nov!F:F,MATCH(Year!A:A,Nov!A:A,0)),"") ->  | J160: =IFERROR(INDEX(Dec!F:F,MATCH(Year!A:A,Dec!A:A,0)),"") ->  | K160: =IFERROR(INDEX(Jan!F:F,MATCH(Year!A:A,Jan!A:A,0)),"") ->  | L160: =IFERROR(INDEX(Feb!F:F,MATCH(Year!A:A,Feb!A:A,0)),"") ->  | M160: =IFERROR(INDEX(March!F:F,MATCH(Year!A:A,March!A:A,0)),"") ->  | N160: =IF(ISERROR((SUM(B160:M160))/B4),"",(SUM(B160:M160))/B4) -> 0
A161: =IF(ISERROR(Q!A17),"",Q!A17) -> 0 | B161: =IFERROR(INDEX(April!F:F,MATCH(Year!A:A,April!A:A,0)),"") ->  | C161: =IFERROR(INDEX(May!F:F,MATCH(Year!A:A,May!A:A,0)),"") ->  | D161: =IFERROR(INDEX(June!F:F,MATCH(Year!A:A,June!A:A,0)),"") ->  | E161: =IFERROR(INDEX(July!F:F,MATCH(Year!A:A,July!A:A,0)),"") ->  | F161: =IFERROR(INDEX(Aug!F:F,MATCH(Year!A:A,Aug!A:A,0)),"") ->  | G161: =IFERROR(INDEX(Sept!F:F,MATCH(Year!A:A,Sept!A:A,0)),"") ->  | H161: =IFERROR(INDEX(Oct!F:F,MATCH(Year!A:A,Oct!A:A,0)),"") ->  | I161: =IFERROR(INDEX(Nov!F:F,MATCH(Year!A:A,Nov!A:A,0)),"") ->  | J161: =IFERROR(INDEX(Dec!F:F,MATCH(Year!A:A,Dec!A:A,0)),"") ->  | K161: =IFERROR(INDEX(Jan!F:F,MATCH(Year!A:A,Jan!A:A,0)),"") ->  | L161: =IFERROR(INDEX(Feb!F:F,MATCH(Year!A:A,Feb!A:A,0)),"") ->  | M161: =IFERROR(INDEX(March!F:F,MATCH(Year!A:A,March!A:A,0)),"") ->  | N161: =IF(ISERROR((SUM(B161:M161))/B4),"",(SUM(B161:M161))/B4) -> 0
A162: =IF(ISERROR(Q!A18),"",Q!A18) -> 0 | B162: =IFERROR(INDEX(April!F:F,MATCH(Year!A:A,April!A:A,0)),"") ->  | C162: =IFERROR(INDEX(May!F:F,MATCH(Year!A:A,May!A:A,0)),"") ->  | D162: =IFERROR(INDEX(June!F:F,MATCH(Year!A:A,June!A:A,0)),"") ->  | E162: =IFERROR(INDEX(July!F:F,MATCH(Year!A:A,July!A:A,0)),"") ->  | F162: =IFERROR(INDEX(Aug!F:F,MATCH(Year!A:A,Aug!A:A,0)),"") ->  | G162: =IFERROR(INDEX(Sept!F:F,MATCH(Year!A:A,Sept!A:A,0)),"") ->  | H162: =IFERROR(INDEX(Oct!F:F,MATCH(Year!A:A,Oct!A:A,0)),"") ->  | I162: =IFERROR(INDEX(Nov!F:F,MATCH(Year!A:A,Nov!A:A,0)),"") ->  | J162: =IFERROR(INDEX(Dec!F:F,MATCH(Year!A:A,Dec!A:A,0)),"") ->  | K162: =IFERROR(INDEX(Jan!F:F,MATCH(Year!A:A,Jan!A:A,0)),"") ->  | L162: =IFERROR(INDEX(Feb!F:F,MATCH(Year!A:A,Feb!A:A,0)),"") ->  | M162: =IFERROR(INDEX(March!F:F,MATCH(Year!A:A,March!A:A,0)),"") ->  | N162: =IF(ISERROR((SUM(B162:M162))/B4),"",(SUM(B162:M162))/B4) -> 0
A163: =IF(ISERROR(Q!A19),"",Q!A19) -> 0 | B163: =IFERROR(INDEX(April!F:F,MATCH(Year!A:A,April!A:A,0)),"") ->  | C163: =IFERROR(INDEX(May!F:F,MATCH(Year!A:A,May!A:A,0)),"") ->  | D163: =IFERROR(INDEX(June!F:F,MATCH(Year!A:A,June!A:A,0)),"") ->  | E163: =IFERROR(INDEX(July!F:F,MATCH(Year!A:A,July!A:A,0)),"") ->  | F163: =IFERROR(INDEX(Aug!F:F,MATCH(Year!A:A,Aug!A:A,0)),"") ->  | G163: =IFERROR(INDEX(Sept!F:F,MATCH(Year!A:A,Sept!A:A,0)),"") ->  | H163: =IFERROR(INDEX(Oct!F:F,MATCH(Year!A:A,Oct!A:A,0)),"") ->  | I163: =IFERROR(INDEX(Nov!F:F,MATCH(Year!A:A,Nov!A:A,0)),"") ->  | J163: =IFERROR(INDEX(Dec!F:F,MATCH(Year!A:A,Dec!A:A,0)),"") ->  | K163: =IFERROR(INDEX(Jan!F:F,MATCH(Year!A:A,Jan!A:A,0)),"") ->  | L163: =IFERROR(INDEX(Feb!F:F,MATCH(Year!A:A,Feb!A:A,0)),"") ->  | M163: =IFERROR(INDEX(March!F:F,MATCH(Year!A:A,March!A:A,0)),"") ->  | N163: =IF(ISERROR((SUM(B163:M163))/B4),"",(SUM(B163:M163))/B4) -> 0
A164: =IF(ISERROR(Q!A20),"",Q!A20) -> 0 | B164: =IFERROR(INDEX(April!F:F,MATCH(Year!A:A,April!A:A,0)),"") ->  | C164: =IFERROR(INDEX(May!F:F,MATCH(Year!A:A,May!A:A,0)),"") ->  | D164: =IFERROR(INDEX(June!F:F,MATCH(Year!A:A,June!A:A,0)),"") ->  | E164: =IFERROR(INDEX(July!F:F,MATCH(Year!A:A,July!A:A,0)),"") ->  | F164: =IFERROR(INDEX(Aug!F:F,MATCH(Year!A:A,Aug!A:A,0)),"") ->  | G164: =IFERROR(INDEX(Sept!F:F,MATCH(Year!A:A,Sept!A:A,0)),"") ->  | H164: =IFERROR(INDEX(Oct!F:F,MATCH(Year!A:A,Oct!A:A,0)),"") ->  | I164: =IFERROR(INDEX(Nov!F:F,MATCH(Year!A:A,Nov!A:A,0)),"") ->  | J164: =IFERROR(INDEX(Dec!F:F,MATCH(Year!A:A,Dec!A:A,0)),"") ->  | K164: =IFERROR(INDEX(Jan!F:F,MATCH(Year!A:A,Jan!A:A,0)),"") ->  | L164: =IFERROR(INDEX(Feb!F:F,MATCH(Year!A:A,Feb!A:A,0)),"") ->  | M164: =IFERROR(INDEX(March!F:F,MATCH(Year!A:A,March!A:A,0)),"") ->  | N164: =IF(ISERROR((SUM(B164:M164))/B4),"",(SUM(B164:M164))/B4) -> 0
A165: =IF(ISERROR(Q!A21),"",Q!A21) -> 0 | B165: =IFERROR(INDEX(April!F:F,MATCH(Year!A:A,April!A:A,0)),"") ->  | C165: =IFERROR(INDEX(May!F:F,MATCH(Year!A:A,May!A:A,0)),"") ->  | D165: =IFERROR(INDEX(June!F:F,MATCH(Year!A:A,June!A:A,0)),"") ->  | E165: =IFERROR(INDEX(July!F:F,MATCH(Year!A:A,July!A:A,0)),"") ->  | F165: =IFERROR(INDEX(Aug!F:F,MATCH(Year!A:A,Aug!A:A,0)),"") ->  | G165: =IFERROR(INDEX(Sept!F:F,MATCH(Year!A:A,Sept!A:A,0)),"") ->  | H165: =IFERROR(INDEX(Oct!F:F,MATCH(Year!A:A,Oct!A:A,0)),"") ->  | I165: =IFERROR(INDEX(Nov!F:F,MATCH(Year!A:A,Nov!A:A,0)),"") ->  | J165: =IFERROR(INDEX(Dec!F:F,MATCH(Year!A:A,Dec!A:A,0)),"") ->  | K165: =IFERROR(INDEX(Jan!F:F,MATCH(Year!A:A,Jan!A:A,0)),"") ->  | L165: =IFERROR(INDEX(Feb!F:F,MATCH(Year!A:A,Feb!A:A,0)),"") ->  | M165: =IFERROR(INDEX(March!F:F,MATCH(Year!A:A,March!A:A,0)),"") ->  | N165: =IF(ISERROR((SUM(B165:M165))/B4),"",(SUM(B165:M165))/B4) -> 0
A166: =IF(ISERROR(Q!A22),"",Q!A22) -> 0 | B166: =IFERROR(INDEX(April!F:F,MATCH(Year!A:A,April!A:A,0)),"") ->  | C166: =IFERROR(INDEX(May!F:F,MATCH(Year!A:A,May!A:A,0)),"") ->  | D166: =IFERROR(INDEX(June!F:F,MATCH(Year!A:A,June!A:A,0)),"") ->  | E166: =IFERROR(INDEX(July!F:F,MATCH(Year!A:A,July!A:A,0)),"") ->  | F166: =IFERROR(INDEX(Aug!F:F,MATCH(Year!A:A,Aug!A:A,0)),"") ->  | G166: =IFERROR(INDEX(Sept!F:F,MATCH(Year!A:A,Sept!A:A,0)),"") ->  | H166: =IFERROR(INDEX(Oct!F:F,MATCH(Year!A:A,Oct!A:A,0)),"") ->  | I166: =IFERROR(INDEX(Nov!F:F,MATCH(Year!A:A,Nov!A:A,0)),"") ->  | J166: =IFERROR(INDEX(Dec!F:F,MATCH(Year!A:A,Dec!A:A,0)),"") ->  | K166: =IFERROR(INDEX(Jan!F:F,MATCH(Year!A:A,Jan!A:A,0)),"") ->  | L166: =IFERROR(INDEX(Feb!F:F,MATCH(Year!A:A,Feb!A:A,0)),"") ->  | M166: =IFERROR(INDEX(March!F:F,MATCH(Year!A:A,March!A:A,0)),"") ->  | N166: =IF(ISERROR((SUM(B166:M166))/B4),"",(SUM(B166:M166))/B4) -> 0
A167: =IF(ISERROR(Q!A23),"",Q!A23) -> 0 | B167: =IFERROR(INDEX(April!F:F,MATCH(Year!A:A,April!A:A,0)),"") ->  | C167: =IFERROR(INDEX(May!F:F,MATCH(Year!A:A,May!A:A,0)),"") ->  | D167: =IFERROR(INDEX(June!F:F,MATCH(Year!A:A,June!A:A,0)),"") ->  | E167: =IFERROR(INDEX(July!F:F,MATCH(Year!A:A,July!A:A,0)),"") ->  | F167: =IFERROR(INDEX(Aug!F:F,MATCH(Year!A:A,Aug!A:A,0)),"") ->  | G167: =IFERROR(INDEX(Sept!F:F,MATCH(Year!A:A,Sept!A:A,0)),"") ->  | H167: =IFERROR(INDEX(Oct!F:F,MATCH(Year!A:A,Oct!A:A,0)),"") ->  | I167: =IFERROR(INDEX(Nov!F:F,MATCH(Year!A:A,Nov!A:A,0)),"") ->  | J167: =IFERROR(INDEX(Dec!F:F,MATCH(Year!A:A,Dec!A:A,0)),"") ->  | K167: =IFERROR(INDEX(Jan!F:F,MATCH(Year!A:A,Jan!A:A,0)),"") ->  | L167: =IFERROR(INDEX(Feb!F:F,MATCH(Year!A:A,Feb!A:A,0)),"") ->  | M167: =IFERROR(INDEX(March!F:F,MATCH(Year!A:A,March!A:A,0)),"") ->  | N167: =IF(ISERROR((SUM(B167:M167))/B4),"",(SUM(B167:M167))/B4) -> 0
A168: =IF(ISERROR(Q!A24),"",Q!A24) -> 0 | B168: =IFERROR(INDEX(April!F:F,MATCH(Year!A:A,April!A:A,0)),"") ->  | C168: =IFERROR(INDEX(May!F:F,MATCH(Year!A:A,May!A:A,0)),"") ->  | D168: =IFERROR(INDEX(June!F:F,MATCH(Year!A:A,June!A:A,0)),"") ->  | E168: =IFERROR(INDEX(July!F:F,MATCH(Year!A:A,July!A:A,0)),"") ->  | F168: =IFERROR(INDEX(Aug!F:F,MATCH(Year!A:A,Aug!A:A,0)),"") ->  | G168: =IFERROR(INDEX(Sept!F:F,MATCH(Year!A:A,Sept!A:A,0)),"") ->  | H168: =IFERROR(INDEX(Oct!F:F,MATCH(Year!A:A,Oct!A:A,0)),"") ->  | I168: =IFERROR(INDEX(Nov!F:F,MATCH(Year!A:A,Nov!A:A,0)),"") ->  | J168: =IFERROR(INDEX(Dec!F:F,MATCH(Year!A:A,Dec!A:A,0)),"") ->  | K168: =IFERROR(INDEX(Jan!F:F,MATCH(Year!A:A,Jan!A:A,0)),"") ->  | L168: =IFERROR(INDEX(Feb!F:F,MATCH(Year!A:A,Feb!A:A,0)),"") ->  | M168: =IFERROR(INDEX(March!F:F,MATCH(Year!A:A,March!A:A,0)),"") ->  | N168: =IF(ISERROR((SUM(B168:M168))/B4),"",(SUM(B168:M168))/B4) -> 0
A169: =IF(ISERROR(Q!A25),"",Q!A25) -> 0 | B169: =IFERROR(INDEX(April!F:F,MATCH(Year!A:A,April!A:A,0)),"") ->  | C169: =IFERROR(INDEX(May!F:F,MATCH(Year!A:A,May!A:A,0)),"") ->  | D169: =IFERROR(INDEX(June!F:F,MATCH(Year!A:A,June!A:A,0)),"") ->  | E169: =IFERROR(INDEX(July!F:F,MATCH(Year!A:A,July!A:A,0)),"") ->  | F169: =IFERROR(INDEX(Aug!F:F,MATCH(Year!A:A,Aug!A:A,0)),"") ->  | G169: =IFERROR(INDEX(Sept!F:F,MATCH(Year!A:A,Sept!A:A,0)),"") ->  | H169: =IFERROR(INDEX(Oct!F:F,MATCH(Year!A:A,Oct!A:A,0)),"") ->  | I169: =IFERROR(INDEX(Nov!F:F,MATCH(Year!A:A,Nov!A:A,0)),"") ->  | J169: =IFERROR(INDEX(Dec!F:F,MATCH(Year!A:A,Dec!A:A,0)),"") ->  | K169: =IFERROR(INDEX(Jan!F:F,MATCH(Year!A:A,Jan!A:A,0)),"") ->  | L169: =IFERROR(INDEX(Feb!F:F,MATCH(Year!A:A,Feb!A:A,0)),"") ->  | M169: =IFERROR(INDEX(March!F:F,MATCH(Year!A:A,March!A:A,0)),"") ->  | N169: =IF(ISERROR((SUM(B169:M169))/B4),"",(SUM(B169:M169))/B4) -> 0
A170: =IF(ISERROR(Q!A26),"",Q!A26) -> 0 | B170: =IFERROR(INDEX(April!F:F,MATCH(Year!A:A,April!A:A,0)),"") ->  | C170: =IFERROR(INDEX(May!F:F,MATCH(Year!A:A,May!A:A,0)),"") ->  | D170: =IFERROR(INDEX(June!F:F,MATCH(Year!A:A,June!A:A,0)),"") ->  | E170: =IFERROR(INDEX(July!F:F,MATCH(Year!A:A,July!A:A,0)),"") ->  | F170: =IFERROR(INDEX(Aug!F:F,MATCH(Year!A:A,Aug!A:A,0)),"") ->  | G170: =IFERROR(INDEX(Sept!F:F,MATCH(Year!A:A,Sept!A:A,0)),"") ->  | H170: =IFERROR(INDEX(Oct!F:F,MATCH(Year!A:A,Oct!A:A,0)),"") ->  | I170: =IFERROR(INDEX(Nov!F:F,MATCH(Year!A:A,Nov!A:A,0)),"") ->  | J170: =IFERROR(INDEX(Dec!F:F,MATCH(Year!A:A,Dec!A:A,0)),"") ->  | K170: =IFERROR(INDEX(Jan!F:F,MATCH(Year!A:A,Jan!A:A,0)),"") ->  | L170: =IFERROR(INDEX(Feb!F:F,MATCH(Year!A:A,Feb!A:A,0)),"") ->  | M170: =IFERROR(INDEX(March!F:F,MATCH(Year!A:A,March!A:A,0)),"") ->  | N170: =IF(ISERROR((SUM(B170:M170))/B4),"",(SUM(B170:M170))/B4) -> 0
A171: =IF(ISERROR(Q!A27),"",Q!A27) -> 0 | B171: =IFERROR(INDEX(April!F:F,MATCH(Year!A:A,April!A:A,0)),"") ->  | C171: =IFERROR(INDEX(May!F:F,MATCH(Year!A:A,May!A:A,0)),"") ->  | D171: =IFERROR(INDEX(June!F:F,MATCH(Year!A:A,June!A:A,0)),"") ->  | E171: =IFERROR(INDEX(July!F:F,MATCH(Year!A:A,July!A:A,0)),"") ->  | F171: =IFERROR(INDEX(Aug!F:F,MATCH(Year!A:A,Aug!A:A,0)),"") ->  | G171: =IFERROR(INDEX(Sept!F:F,MATCH(Year!A:A,Sept!A:A,0)),"") ->  | H171: =IFERROR(INDEX(Oct!F:F,MATCH(Year!A:A,Oct!A:A,0)),"") ->  | I171: =IFERROR(INDEX(Nov!F:F,MATCH(Year!A:A,Nov!A:A,0)),"") ->  | J171: =IFERROR(INDEX(Dec!F:F,MATCH(Year!A:A,Dec!A:A,0)),"") ->  | K171: =IFERROR(INDEX(Jan!F:F,MATCH(Year!A:A,Jan!A:A,0)),"") ->  | L171: =IFERROR(INDEX(Feb!F:F,MATCH(Year!A:A,Feb!A:A,0)),"") ->  | M171: =IFERROR(INDEX(March!F:F,MATCH(Year!A:A,March!A:A,0)),"") ->  | N171: =IF(ISERROR((SUM(B171:M171))/B4),"",(SUM(B171:M171))/B4) -> 0
A172: =IF(ISERROR(Q!A28),"",Q!A28) -> 0 | B172: =IFERROR(INDEX(April!F:F,MATCH(Year!A:A,April!A:A,0)),"") ->  | C172: =IFERROR(INDEX(May!F:F,MATCH(Year!A:A,May!A:A,0)),"") ->  | D172: =IFERROR(INDEX(June!F:F,MATCH(Year!A:A,June!A:A,0)),"") ->  | E172: =IFERROR(INDEX(July!F:F,MATCH(Year!A:A,July!A:A,0)),"") ->  | F172: =IFERROR(INDEX(Aug!F:F,MATCH(Year!A:A,Aug!A:A,0)),"") ->  | G172: =IFERROR(INDEX(Sept!F:F,MATCH(Year!A:A,Sept!A:A,0)),"") ->  | H172: =IFERROR(INDEX(Oct!F:F,MATCH(Year!A:A,Oct!A:A,0)),"") ->  | I172: =IFERROR(INDEX(Nov!F:F,MATCH(Year!A:A,Nov!A:A,0)),"") ->  | J172: =IFERROR(INDEX(Dec!F:F,MATCH(Year!A:A,Dec!A:A,0)),"") ->  | K172: =IFERROR(INDEX(Jan!F:F,MATCH(Year!A:A,Jan!A:A,0)),"") ->  | L172: =IFERROR(INDEX(Feb!F:F,MATCH(Year!A:A,Feb!A:A,0)),"") ->  | M172: =IFERROR(INDEX(March!F:F,MATCH(Year!A:A,March!A:A,0)),"") ->  | N172: =IF(ISERROR((SUM(B172:M172))/B4),"",(SUM(B172:M172))/B4) -> 0
A173: =IF(ISERROR(Q!A29),"",Q!A29) -> 0 | B173: =IFERROR(INDEX(April!F:F,MATCH(Year!A:A,April!A:A,0)),"") ->  | C173: =IFERROR(INDEX(May!F:F,MATCH(Year!A:A,May!A:A,0)),"") ->  | D173: =IFERROR(INDEX(June!F:F,MATCH(Year!A:A,June!A:A,0)),"") ->  | E173: =IFERROR(INDEX(July!F:F,MATCH(Year!A:A,July!A:A,0)),"") ->  | F173: =IFERROR(INDEX(Aug!F:F,MATCH(Year!A:A,Aug!A:A,0)),"") ->  | G173: =IFERROR(INDEX(Sept!F:F,MATCH(Year!A:A,Sept!A:A,0)),"") ->  | H173: =IFERROR(INDEX(Oct!F:F,MATCH(Year!A:A,Oct!A:A,0)),"") ->  | I173: =IFERROR(INDEX(Nov!F:F,MATCH(Year!A:A,Nov!A:A,0)),"") ->  | J173: =IFERROR(INDEX(Dec!F:F,MATCH(Year!A:A,Dec!A:A,0)),"") ->  | K173: =IFERROR(INDEX(Jan!F:F,MATCH(Year!A:A,Jan!A:A,0)),"") ->  | L173: =IFERROR(INDEX(Feb!F:F,MATCH(Year!A:A,Feb!A:A,0)),"") ->  | M173: =IFERROR(INDEX(March!F:F,MATCH(Year!A:A,March!A:A,0)),"") ->  | N173: =IF(ISERROR((SUM(B173:M173))/B4),"",(SUM(B173:M173))/B4) -> 0
A174: =IF(ISERROR(Q!A30),"",Q!A30) -> 0 | B174: =IFERROR(INDEX(April!F:F,MATCH(Year!A:A,April!A:A,0)),"") ->  | C174: =IFERROR(INDEX(May!F:F,MATCH(Year!A:A,May!A:A,0)),"") ->  | D174: =IFERROR(INDEX(June!F:F,MATCH(Year!A:A,June!A:A,0)),"") ->  | E174: =IFERROR(INDEX(July!F:F,MATCH(Year!A:A,July!A:A,0)),"") ->  | F174: =IFERROR(INDEX(Aug!F:F,MATCH(Year!A:A,Aug!A:A,0)),"") ->  | G174: =IFERROR(INDEX(Sept!F:F,MATCH(Year!A:A,Sept!A:A,0)),"") ->  | H174: =IFERROR(INDEX(Oct!F:F,MATCH(Year!A:A,Oct!A:A,0)),"") ->  | I174: =IFERROR(INDEX(Nov!F:F,MATCH(Year!A:A,Nov!A:A,0)),"") ->  | J174: =IFERROR(INDEX(Dec!F:F,MATCH(Year!A:A,Dec!A:A,0)),"") ->  | K174: =IFERROR(INDEX(Jan!F:F,MATCH(Year!A:A,Jan!A:A,0)),"") ->  | L174: =IFERROR(INDEX(Feb!F:F,MATCH(Year!A:A,Feb!A:A,0)),"") ->  | M174: =IFERROR(INDEX(March!F:F,MATCH(Year!A:A,March!A:A,0)),"") ->  | N174: =IF(ISERROR((SUM(B174:M174))/B4),"",(SUM(B174:M174))/B4) -> 0
A175: =IF(ISERROR(Q!A31),"",Q!A31) -> 0 | B175: =IFERROR(INDEX(April!F:F,MATCH(Year!A:A,April!A:A,0)),"") ->  | C175: =IFERROR(INDEX(May!F:F,MATCH(Year!A:A,May!A:A,0)),"") ->  | D175: =IFERROR(INDEX(June!F:F,MATCH(Year!A:A,June!A:A,0)),"") ->  | E175: =IFERROR(INDEX(July!F:F,MATCH(Year!A:A,July!A:A,0)),"") ->  | F175: =IFERROR(INDEX(Aug!F:F,MATCH(Year!A:A,Aug!A:A,0)),"") ->  | G175: =IFERROR(INDEX(Sept!F:F,MATCH(Year!A:A,Sept!A:A,0)),"") ->  | H175: =IFERROR(INDEX(Oct!F:F,MATCH(Year!A:A,Oct!A:A,0)),"") ->  | I175: =IFERROR(INDEX(Nov!F:F,MATCH(Year!A:A,Nov!A:A,0)),"") ->  | J175: =IFERROR(INDEX(Dec!F:F,MATCH(Year!A:A,Dec!A:A,0)),"") ->  | K175: =IFERROR(INDEX(Jan!F:F,MATCH(Year!A:A,Jan!A:A,0)),"") ->  | L175: =IFERROR(INDEX(Feb!F:F,MATCH(Year!A:A,Feb!A:A,0)),"") ->  | M175: =IFERROR(INDEX(March!F:F,MATCH(Year!A:A,March!A:A,0)),"") ->  | N175: =IF(ISERROR((SUM(B175:M175))/B4),"",(SUM(B175:M175))/B4) -> 0
A176: =IF(ISERROR(Q!A32),"",Q!A32) -> 0 | B176: =IFERROR(INDEX(April!F:F,MATCH(Year!A:A,April!A:A,0)),"") ->  | C176: =IFERROR(INDEX(May!F:F,MATCH(Year!A:A,May!A:A,0)),"") ->  | D176: =IFERROR(INDEX(June!F:F,MATCH(Year!A:A,June!A:A,0)),"") ->  | E176: =IFERROR(INDEX(July!F:F,MATCH(Year!A:A,July!A:A,0)),"") ->  | F176: =IFERROR(INDEX(Aug!F:F,MATCH(Year!A:A,Aug!A:A,0)),"") ->  | G176: =IFERROR(INDEX(Sept!F:F,MATCH(Year!A:A,Sept!A:A,0)),"") ->  | H176: =IFERROR(INDEX(Oct!F:F,MATCH(Year!A:A,Oct!A:A,0)),"") ->  | I176: =IFERROR(INDEX(Nov!F:F,MATCH(Year!A:A,Nov!A:A,0)),"") ->  | J176: =IFERROR(INDEX(Dec!F:F,MATCH(Year!A:A,Dec!A:A,0)),"") ->  | K176: =IFERROR(INDEX(Jan!F:F,MATCH(Year!A:A,Jan!A:A,0)),"") ->  | L176: =IFERROR(INDEX(Feb!F:F,MATCH(Year!A:A,Feb!A:A,0)),"") ->  | M176: =IFERROR(INDEX(March!F:F,MATCH(Year!A:A,March!A:A,0)),"") ->  | N176: =IF(ISERROR((SUM(B176:M176))/B4),"",(SUM(B176:M176))/B4) -> 0
A177: =IF(ISERROR(Q!A33),"",Q!A33) -> 0 | B177: =IFERROR(INDEX(April!F:F,MATCH(Year!A:A,April!A:A,0)),"") ->  | C177: =IFERROR(INDEX(May!F:F,MATCH(Year!A:A,May!A:A,0)),"") ->  | D177: =IFERROR(INDEX(June!F:F,MATCH(Year!A:A,June!A:A,0)),"") ->  | E177: =IFERROR(INDEX(July!F:F,MATCH(Year!A:A,July!A:A,0)),"") ->  | F177: =IFERROR(INDEX(Aug!F:F,MATCH(Year!A:A,Aug!A:A,0)),"") ->  | G177: =IFERROR(INDEX(Sept!F:F,MATCH(Year!A:A,Sept!A:A,0)),"") ->  | H177: =IFERROR(INDEX(Oct!F:F,MATCH(Year!A:A,Oct!A:A,0)),"") ->  | I177: =IFERROR(INDEX(Nov!F:F,MATCH(Year!A:A,Nov!A:A,0)),"") ->  | J177: =IFERROR(INDEX(Dec!F:F,MATCH(Year!A:A,Dec!A:A,0)),"") ->  | K177: =IFERROR(INDEX(Jan!F:F,MATCH(Year!A:A,Jan!A:A,0)),"") ->  | L177: =IFERROR(INDEX(Feb!F:F,MATCH(Year!A:A,Feb!A:A,0)),"") ->  | M177: =IFERROR(INDEX(March!F:F,MATCH(Year!A:A,March!A:A,0)),"") ->  | N177: =IF(ISERROR((SUM(B177:M177))/B4),"",(SUM(B177:M177))/B4) -> 0
A178: =IF(ISERROR(Q!A34),"",Q!A34) -> 0 | B178: =IFERROR(INDEX(April!F:F,MATCH(Year!A:A,April!A:A,0)),"") ->  | C178: =IFERROR(INDEX(May!F:F,MATCH(Year!A:A,May!A:A,0)),"") ->  | D178: =IFERROR(INDEX(June!F:F,MATCH(Year!A:A,June!A:A,0)),"") ->  | E178: =IFERROR(INDEX(July!F:F,MATCH(Year!A:A,July!A:A,0)),"") ->  | F178: =IFERROR(INDEX(Aug!F:F,MATCH(Year!A:A,Aug!A:A,0)),"") ->  | G178: =IFERROR(INDEX(Sept!F:F,MATCH(Year!A:A,Sept!A:A,0)),"") ->  | H178: =IFERROR(INDEX(Oct!F:F,MATCH(Year!A:A,Oct!A:A,0)),"") ->  | I178: =IFERROR(INDEX(Nov!F:F,MATCH(Year!A:A,Nov!A:A,0)),"") ->  | J178: =IFERROR(INDEX(Dec!F:F,MATCH(Year!A:A,Dec!A:A,0)),"") ->  | K178: =IFERROR(INDEX(Jan!F:F,MATCH(Year!A:A,Jan!A:A,0)),"") ->  | L178: =IFERROR(INDEX(Feb!F:F,MATCH(Year!A:A,Feb!A:A,0)),"") ->  | M178: =IFERROR(INDEX(March!F:F,MATCH(Year!A:A,March!A:A,0)),"") ->  | N178: =IF(ISERROR((SUM(B178:M178))/B4),"",(SUM(B178:M178))/B4) -> 0
A179: =IF(ISERROR(Q!A35),"",Q!A35) -> 0 | B179: =IFERROR(INDEX(April!F:F,MATCH(Year!A:A,April!A:A,0)),"") ->  | C179: =IFERROR(INDEX(May!F:F,MATCH(Year!A:A,May!A:A,0)),"") ->  | D179: =IFERROR(INDEX(June!F:F,MATCH(Year!A:A,June!A:A,0)),"") ->  | E179: =IFERROR(INDEX(July!F:F,MATCH(Year!A:A,July!A:A,0)),"") ->  | F179: =IFERROR(INDEX(Aug!F:F,MATCH(Year!A:A,Aug!A:A,0)),"") ->  | G179: =IFERROR(INDEX(Sept!F:F,MATCH(Year!A:A,Sept!A:A,0)),"") ->  | H179: =IFERROR(INDEX(Oct!F:F,MATCH(Year!A:A,Oct!A:A,0)),"") ->  | I179: =IFERROR(INDEX(Nov!F:F,MATCH(Year!A:A,Nov!A:A,0)),"") ->  | J179: =IFERROR(INDEX(Dec!F:F,MATCH(Year!A:A,Dec!A:A,0)),"") ->  | K179: =IFERROR(INDEX(Jan!F:F,MATCH(Year!A:A,Jan!A:A,0)),"") ->  | L179: =IFERROR(INDEX(Feb!F:F,MATCH(Year!A:A,Feb!A:A,0)),"") ->  | M179: =IFERROR(INDEX(March!F:F,MATCH(Year!A:A,March!A:A,0)),"") ->  | N179: =IF(ISERROR((SUM(B179:M179))/B4),"",(SUM(B179:M179))/B4) -> 0
A180: =IF(ISERROR(Q!A36),"",Q!A36) -> 0 | B180: =IFERROR(INDEX(April!F:F,MATCH(Year!A:A,April!A:A,0)),"") ->  | C180: =IFERROR(INDEX(May!F:F,MATCH(Year!A:A,May!A:A,0)),"") ->  | D180: =IFERROR(INDEX(June!F:F,MATCH(Year!A:A,June!A:A,0)),"") ->  | E180: =IFERROR(INDEX(July!F:F,MATCH(Year!A:A,July!A:A,0)),"") ->  | F180: =IFERROR(INDEX(Aug!F:F,MATCH(Year!A:A,Aug!A:A,0)),"") ->  | G180: =IFERROR(INDEX(Sept!F:F,MATCH(Year!A:A,Sept!A:A,0)),"") ->  | H180: =IFERROR(INDEX(Oct!F:F,MATCH(Year!A:A,Oct!A:A,0)),"") ->  | I180: =IFERROR(INDEX(Nov!F:F,MATCH(Year!A:A,Nov!A:A,0)),"") ->  | J180: =IFERROR(INDEX(Dec!F:F,MATCH(Year!A:A,Dec!A:A,0)),"") ->  | K180: =IFERROR(INDEX(Jan!F:F,MATCH(Year!A:A,Jan!A:A,0)),"") ->  | L180: =IFERROR(INDEX(Feb!F:F,MATCH(Year!A:A,Feb!A:A,0)),"") ->  | M180: =IFERROR(INDEX(March!F:F,MATCH(Year!A:A,March!A:A,0)),"") ->  | N180: =IF(ISERROR((SUM(B180:M180))/B4),"",(SUM(B180:M180))/B4) -> 0
A181: =IF(ISERROR(Q!A37),"",Q!A37) -> 0 | B181: =IFERROR(INDEX(April!F:F,MATCH(Year!A:A,April!A:A,0)),"") ->  | C181: =IFERROR(INDEX(May!F:F,MATCH(Year!A:A,May!A:A,0)),"") ->  | D181: =IFERROR(INDEX(June!F:F,MATCH(Year!A:A,June!A:A,0)),"") ->  | E181: =IFERROR(INDEX(July!F:F,MATCH(Year!A:A,July!A:A,0)),"") ->  | F181: =IFERROR(INDEX(Aug!F:F,MATCH(Year!A:A,Aug!A:A,0)),"") ->  | G181: =IFERROR(INDEX(Sept!F:F,MATCH(Year!A:A,Sept!A:A,0)),"") ->  | H181: =IFERROR(INDEX(Oct!F:F,MATCH(Year!A:A,Oct!A:A,0)),"") ->  | I181: =IFERROR(INDEX(Nov!F:F,MATCH(Year!A:A,Nov!A:A,0)),"") ->  | J181: =IFERROR(INDEX(Dec!F:F,MATCH(Year!A:A,Dec!A:A,0)),"") ->  | K181: =IFERROR(INDEX(Jan!F:F,MATCH(Year!A:A,Jan!A:A,0)),"") ->  | L181: =IFERROR(INDEX(Feb!F:F,MATCH(Year!A:A,Feb!A:A,0)),"") ->  | M181: =IFERROR(INDEX(March!F:F,MATCH(Year!A:A,March!A:A,0)),"") ->  | N181: =IF(ISERROR((SUM(B181:M181))/B4),"",(SUM(B181:M181))/B4) -> 0
A182: =IF(ISERROR(Q!A38),"",Q!A38) -> 0 | B182: =IFERROR(INDEX(April!F:F,MATCH(Year!A:A,April!A:A,0)),"") ->  | C182: =IFERROR(INDEX(May!F:F,MATCH(Year!A:A,May!A:A,0)),"") ->  | D182: =IFERROR(INDEX(June!F:F,MATCH(Year!A:A,June!A:A,0)),"") ->  | E182: =IFERROR(INDEX(July!F:F,MATCH(Year!A:A,July!A:A,0)),"") ->  | F182: =IFERROR(INDEX(Aug!F:F,MATCH(Year!A:A,Aug!A:A,0)),"") ->  | G182: =IFERROR(INDEX(Sept!F:F,MATCH(Year!A:A,Sept!A:A,0)),"") ->  | H182: =IFERROR(INDEX(Oct!F:F,MATCH(Year!A:A,Oct!A:A,0)),"") ->  | I182: =IFERROR(INDEX(Nov!F:F,MATCH(Year!A:A,Nov!A:A,0)),"") ->  | J182: =IFERROR(INDEX(Dec!F:F,MATCH(Year!A:A,Dec!A:A,0)),"") ->  | K182: =IFERROR(INDEX(Jan!F:F,MATCH(Year!A:A,Jan!A:A,0)),"") ->  | L182: =IFERROR(INDEX(Feb!F:F,MATCH(Year!A:A,Feb!A:A,0)),"") ->  | M182: =IFERROR(INDEX(March!F:F,MATCH(Year!A:A,March!A:A,0)),"") ->  | N182: =IF(ISERROR((SUM(B182:M182))/B4),"",(SUM(B182:M182))/B4) -> 0
A183: =IF(ISERROR(Q!A39),"",Q!A39) -> 0 | B183: =IFERROR(INDEX(April!F:F,MATCH(Year!A:A,April!A:A,0)),"") ->  | C183: =IFERROR(INDEX(May!F:F,MATCH(Year!A:A,May!A:A,0)),"") ->  | D183: =IFERROR(INDEX(June!F:F,MATCH(Year!A:A,June!A:A,0)),"") ->  | E183: =IFERROR(INDEX(July!F:F,MATCH(Year!A:A,July!A:A,0)),"") ->  | F183: =IFERROR(INDEX(Aug!F:F,MATCH(Year!A:A,Aug!A:A,0)),"") ->  | G183: =IFERROR(INDEX(Sept!F:F,MATCH(Year!A:A,Sept!A:A,0)),"") ->  | H183: =IFERROR(INDEX(Oct!F:F,MATCH(Year!A:A,Oct!A:A,0)),"") ->  | I183: =IFERROR(INDEX(Nov!F:F,MATCH(Year!A:A,Nov!A:A,0)),"") ->  | J183: =IFERROR(INDEX(Dec!F:F,MATCH(Year!A:A,Dec!A:A,0)),"") ->  | K183: =IFERROR(INDEX(Jan!F:F,MATCH(Year!A:A,Jan!A:A,0)),"") ->  | L183: =IFERROR(INDEX(Feb!F:F,MATCH(Year!A:A,Feb!A:A,0)),"") ->  | M183: =IFERROR(INDEX(March!F:F,MATCH(Year!A:A,March!A:A,0)),"") ->  | N183: =IF(ISERROR((SUM(B183:M183))/B4),"",(SUM(B183:M183))/B4) -> 0
A184: =IF(ISERROR(Q!A40),"",Q!A40) -> 0 | B184: =IFERROR(INDEX(April!F:F,MATCH(Year!A:A,April!A:A,0)),"") ->  | C184: =IFERROR(INDEX(May!F:F,MATCH(Year!A:A,May!A:A,0)),"") ->  | D184: =IFERROR(INDEX(June!F:F,MATCH(Year!A:A,June!A:A,0)),"") ->  | E184: =IFERROR(INDEX(July!F:F,MATCH(Year!A:A,July!A:A,0)),"") ->  | F184: =IFERROR(INDEX(Aug!F:F,MATCH(Year!A:A,Aug!A:A,0)),"") ->  | G184: =IFERROR(INDEX(Sept!F:F,MATCH(Year!A:A,Sept!A:A,0)),"") ->  | H184: =IFERROR(INDEX(Oct!F:F,MATCH(Year!A:A,Oct!A:A,0)),"") ->  | I184: =IFERROR(INDEX(Nov!F:F,MATCH(Year!A:A,Nov!A:A,0)),"") ->  | J184: =IFERROR(INDEX(Dec!F:F,MATCH(Year!A:A,Dec!A:A,0)),"") ->  | K184: =IFERROR(INDEX(Jan!F:F,MATCH(Year!A:A,Jan!A:A,0)),"") ->  | L184: =IFERROR(INDEX(Feb!F:F,MATCH(Year!A:A,Feb!A:A,0)),"") ->  | M184: =IFERROR(INDEX(March!F:F,MATCH(Year!A:A,March!A:A,0)),"") ->  | N184: =IF(ISERROR((SUM(B184:M184))/B4),"",(SUM(B184:M184))/B4) -> 0
A185: =IF(ISERROR(Q!A41),"",Q!A41) -> 0 | B185: =IFERROR(INDEX(April!F:F,MATCH(Year!A:A,April!A:A,0)),"") ->  | C185: =IFERROR(INDEX(May!F:F,MATCH(Year!A:A,May!A:A,0)),"") ->  | D185: =IFERROR(INDEX(June!F:F,MATCH(Year!A:A,June!A:A,0)),"") ->  | E185: =IFERROR(INDEX(July!F:F,MATCH(Year!A:A,July!A:A,0)),"") ->  | F185: =IFERROR(INDEX(Aug!F:F,MATCH(Year!A:A,Aug!A:A,0)),"") ->  | G185: =IFERROR(INDEX(Sept!F:F,MATCH(Year!A:A,Sept!A:A,0)),"") ->  | H185: =IFERROR(INDEX(Oct!F:F,MATCH(Year!A:A,Oct!A:A,0)),"") ->  | I185: =IFERROR(INDEX(Nov!F:F,MATCH(Year!A:A,Nov!A:A,0)),"") ->  | J185: =IFERROR(INDEX(Dec!F:F,MATCH(Year!A:A,Dec!A:A,0)),"") ->  | K185: =IFERROR(INDEX(Jan!F:F,MATCH(Year!A:A,Jan!A:A,0)),"") ->  | L185: =IFERROR(INDEX(Feb!F:F,MATCH(Year!A:A,Feb!A:A,0)),"") ->  | M185: =IFERROR(INDEX(March!F:F,MATCH(Year!A:A,March!A:A,0)),"") ->  | N185: =IF(ISERROR((SUM(B185:M185))/B4),"",(SUM(B185:M185))/B4) -> 0
A186: Average | B186: =IF(ISERROR((SUM(B146:B185)/April!B8)),"",(SUM(B146:B185)/April!B8)) -> 0.05454545455 | C186: =IF(ISERROR((SUM(C146:C185)/May!B8)),"",(SUM(C146:C185)/May!B8)) -> 0.06818181818 | D186: =IF(ISERROR((SUM(D146:D185)/June!B8)),"",(SUM(D146:D185)/June!B8)) -> 0.01818181818 | E186: =IF(ISERROR((SUM(E146:E185)/July!B8)),"",(SUM(E146:E185)/July!B8)) -> 0.01818181818 | F186: =IF(ISERROR((SUM(F146:F185)/Aug!B8)),"",(SUM(F146:F185)/Aug!B8)) -> 0.01818181818 | G186: =IF(ISERROR((SUM(G146:G185)/Sept!B8)),"",(SUM(G146:G185)/Sept!B8)) -> 0.02272727273 | H186: =IF(ISERROR((SUM(H146:H185)/Oct!B8)),"",(SUM(H146:H185)/Oct!B8)) -> 0 | I186: =IF(ISERROR((SUM(I146:I185)/Nov!B8)),"",(SUM(I146:I185)/Nov!B8)) -> 0.02272727273 | J186: =IF(ISERROR((SUM(J146:J185)/Dec!B8)),"",(SUM(J146:J185)/Dec!B8)) -> 0.03636363636 | K186: =IF(ISERROR((SUM(K146:K185)/Jan!B8)),"",(SUM(K146:K185)/Jan!B8)) -> 0.0303030303 | L186: =IF(ISERROR((SUM(L146:L185)/Feb!B8)),"",(SUM(L146:L185)/Feb!B8)) -> 0.05909090909 | M186: =IF(ISERROR((SUM(M146:M185)/March!B8)),"",(SUM(M146:M185)/March!B8)) -> 0.0303030303

Sheet Process Updates
B2: Please detail any changes made to the audited process (following each audit) below:
B4: April:
B5: e.g:extra option added to notes template
B9: May:
B14: June:
B19: July:
B24: August:
B29: September:
B34: October:
B39: November:
B44: December:
B49: January:
B54: February:
B59: March:

Sheet Graphs
B18: Questions listed can be filtered by clicking on the graph & selecting the filter Icon

Sheet April
A1: Click here to go to year overview
A3: Date | D3: Total by Apt type
A4: Completed by | D4: New | E4: =COUNTIF('Apr-Raw'!E3:E103,"New") -> 5
A5: Sample group size | B5: =COUNTA('Apr-Raw'!A:A)-2 -> 5 | D5: Follow up | E5: =COUNTIF('Apr-Raw'!E3:E103,"Fup") -> 0 | H5: =Year!H5 -> 0.95
A6: Overall Result (compliant only) | B6: =IF(ISERROR(SUM(D11:D50)/G51),"",SUM(D11:D50)/G51) -> 0.8727272727 | D6: Total by apt Code | H6: =Year!H6 -> 80-95%
A7: Overall Result (compliant & Justified) | B7: =IF(ISERROR(SUM(C11:C50)/G51),"",SUM(C11:C50)/G51) -> 0.9454545455 | D7: code goes in here | E7: =COUNTIF('Apr-Raw'!F3:F103,D7) -> 0 | H7: =Year!H7 -> 0.8
A8: viable qs | B8: =G51 -> 11
A10: Metric | B10: Target % | C10: Compliant + Justified | D10: Compliant | E10: Justified | F10: Not compliant | G10: Irritating math
A11: =IF(ISERROR(Q!A2),"",Q!A2) -> Was a Room number documented? | B11: =IF(ISERROR(Q!B2),"",Q!B2) -> 0 | C11: =IF(ISERROR(D11+E11),"",D11+E11) -> 1 | D11: ='Apr-Data'!B10 -> 1 | E11: ='Apr-Data'!B12 -> 0 | F11: ='Apr-Data'!B11 -> 0 | G11: =COUNTIF(D11:F11,">0") -> 1
A12: =IF(ISERROR(Q!A3),"",Q!A3) -> Were stage A checks completed as appropriate? | B12: =IF(ISERROR(Q!B3),"",Q!B3) -> 0 | C12: 1 | D12: ='Apr-Data'!C10 -> 1 | E12: ='Apr-Data'!C12 -> 0 | F12: ='Apr-Data'!C11 -> 0 | G12: 1
A13: =IF(ISERROR(Q!A4),"",Q!A4) -> Was COSI Part 1 performed? | B13: =IF(ISERROR(Q!B4),"",Q!B4) -> 0 | C13: 0.6 | D13: ='Apr-Data'!D10 -> 0.6 | E13: ='Apr-Data'!D12 -> 0 | F13: ='Apr-Data'!D11 -> 0.4 | G13: 2
A14: =IF(ISERROR(Q!A5),"",Q!A5) -> Was PVP documented? | B14: =IF(ISERROR(Q!B5),"",Q!B5) -> 0 | C14: 1 | D14: ='Apr-Data'!E10 -> 1 | E14: ='Apr-Data'!E12 -> 0 | F14: ='Apr-Data'!E11 -> 0 | G14: 1
A15: =IF(ISERROR(Q!A6),"",Q!A6) -> Was Otoscopy documented? | B15: =IF(ISERROR(Q!B6),"",Q!B6) -> 0 | C15: 1 | D15: ='Apr-Data'!F10 -> 1 | E15: ='Apr-Data'!F12 -> 0 | F15: ='Apr-Data'!F11 -> 0 | G15: 1
A16: =IF(ISERROR(Q!A7),"",Q!A7) -> Document bc at 3 & 4kHz is for programming purposes? | B16: =IF(ISERROR(Q!B7),"",Q!B7) -> 0 | C16: 1 | D16: ='Apr-Data'!G10 -> 1 | E16: ='Apr-Data'!G12 -> 0 | F16: ='Apr-Data'!G11 -> 0 | G16: 1
A17: =IF(ISERROR(Q!A8),"",Q!A8) -> Was Speech testing performed? | B17: =IF(ISERROR(Q!B8),"",Q!B8) -> 0 | C17: 1 | D17: ='Apr-Data'!H10 -> 0.6 | E17: ='Apr-Data'!H12 -> 0.4 | F17: ='Apr-Data'!H11 -> 0 | G17: 2
A18: =IF(ISERROR(Q!A9),"",Q!A9) -> Is it documented whether national criteria were/were not met? | B18: =IF(ISERROR(Q!B9),"",Q!B9) -> 0 | C18: 0.8 | D18: ='Apr-Data'!I10 -> 0.8 | E18: ='Apr-Data'!I12 -> 0 | F18: ='Apr-Data'!I11 -> 0.2 | G18: 2
A19: =IF(ISERROR(Q!A10),"",Q!A10) -> Was a BCHI info pack supplied? | B19: =IF(ISERROR(Q!B10),"",Q!B10) -> 0 | C19: 1 | D19: ='Apr-Data'!J10 -> 0.6 | E19: ='Apr-Data'!J12 -> 0.4 | F19: ='Apr-Data'!J11 -> 0 | G19: 2
A20: =IF(ISERROR(Q!A11),"",Q!A11) -> Was the report authorised & issued within target (7 days)? | B20: =IF(ISERROR(Q!B11),"",Q!B11) -> 0 | C20: 1 | D20: ='Apr-Data'!K10 -> 1 | E20: ='Apr-Data'!K12 -> 0 | F20: ='Apr-Data'!K11 -> 0 | G20: 1
A21: =IF(ISERROR(Q!A12),"",Q!A12) -> Was consent documented as appropriate? | B21: =IF(ISERROR(Q!B12),"",Q!B12) -> 0 | C21: 1 | D21: ='Apr-Data'!L10 -> 1 | E21: ='Apr-Data'!L12 -> 0 | F21: ='Apr-Data'!L11 -> 0 | G21: 1
A22: =IF(ISERROR(Q!A13),"",Q!A13) -> 0 | B22: =IF(ISERROR(Q!B13),"",Q!B13) -> 0 | D22: ='Apr-Data'!M10 ->  | E22: ='Apr-Data'!M12 ->  | F22: ='Apr-Data'!M11 ->  | G22: 0
A23: =IF(ISERROR(Q!A14),"",Q!A14) -> 0 | B23: =IF(ISERROR(Q!B14),"",Q!B14) -> 0 | D23: ='Apr-Data'!N10 ->  | E23: ='Apr-Data'!N12 ->  | F23: ='Apr-Data'!N11 ->  | G23: 0
A24: =IF(ISERROR(Q!A15),"",Q!A15) -> 0 | B24: =IF(ISERROR(Q!B15),"",Q!B15) -> 0 | D24: ='Apr-Data'!O10 ->  | E24: ='Apr-Data'!O12 ->  | F24: ='Apr-Data'!O11 ->  | G24: 0
A25: =IF(ISERROR(Q!A16),"",Q!A16) -> 0 | B25: =IF(ISERROR(Q!B16),"",Q!B16) -> 0 | D25: ='Apr-Data'!P10 ->  | E25: ='Apr-Data'!P12 ->  | F25: ='Apr-Data'!P11 ->  | G25: 0
A26: =IF(ISERROR(Q!A17),"",Q!A17) -> 0 | B26: =IF(ISERROR(Q!B17),"",Q!B17) -> 0 | D26: ='Apr-Data'!Q10 ->  | E26: ='Apr-Data'!Q12 ->  | F26: ='Apr-Data'!Q11 ->  | G26: 0
A27: =IF(ISERROR(Q!A18),"",Q!A18) -> 0 | B27: =IF(ISERROR(Q!B18),"",Q!B18) -> 0 | D27: ='Apr-Data'!R10 ->  | E27: ='Apr-Data'!R12 ->  | F27: ='Apr-Data'!R11 ->  | G27: 0
A28: =IF(ISERROR(Q!A19),"",Q!A19) -> 0 | B28: =IF(ISERROR(Q!B19),"",Q!B19) -> 0 | D28: ='Apr-Data'!S10 ->  | E28: ='Apr-Data'!S12 ->  | F28: ='Apr-Data'!S11 ->  | G28: 0
A29: =IF(ISERROR(Q!A20),"",Q!A20) -> 0 | B29: =IF(ISERROR(Q!B20),"",Q!B20) -> 0 | D29: ='Apr-Data'!T10 ->  | E29: ='Apr-Data'!T12 ->  | F29: ='Apr-Data'!T11 ->  | G29: 0
A30: =IF(ISERROR(Q!A21),"",Q!A21) -> 0 | B30: =IF(ISERROR(Q!B21),"",Q!B21) -> 0 | D30: ='Apr-Data'!U10 ->  | E30: ='Apr-Data'!U12 ->  | F30: ='Apr-Data'!U11 ->  | G30: 0
A31: =IF(ISERROR(Q!A22),"",Q!A22) -> 0 | B31: =IF(ISERROR(Q!B22),"",Q!B22) -> 0 | D31: ='Apr-Data'!V10 ->  | E31: ='Apr-Data'!V12 ->  | F31: ='Apr-Data'!V11 ->  | G31: 0
A32: =IF(ISERROR(Q!A23),"",Q!A23) -> 0 | B32: =IF(ISERROR(Q!B23),"",Q!B23) -> 0 | D32: ='Apr-Data'!W10 ->  | E32: ='Apr-Data'!W12 ->  | F32: ='Apr-Data'!W11 ->  | G32: 0
A33: =IF(ISERROR(Q!A24),"",Q!A24) -> 0 | B33: =IF(ISERROR(Q!B24),"",Q!B24) -> 0 | D33: ='Apr-Data'!X10 ->  | E33: ='Apr-Data'!X12 ->  | F33: ='Apr-Data'!X11 ->  | G33: 0
A34: =IF(ISERROR(Q!A25),"",Q!A25) -> 0 | B34: =IF(ISERROR(Q!B25),"",Q!B25) -> 0 | D34: ='Apr-Data'!Y10 ->  | E34: ='Apr-Data'!Y12 ->  | F34: ='Apr-Data'!Y11 ->  | G34: 0
A35: =IF(ISERROR(Q!A26),"",Q!A26) -> 0 | B35: =IF(ISERROR(Q!B26),"",Q!B26) -> 0 | D35: ='Apr-Data'!Z10 ->  | E35: ='Apr-Data'!Z12 ->  | F35: ='Apr-Data'!Z11 ->  | G35: 0
A36: =IF(ISERROR(Q!A27),"",Q!A27) -> 0 | B36: =IF(ISERROR(Q!B27),"",Q!B27) -> 0 | D36: ='Apr-Data'!AA10 ->  | E36: ='Apr-Data'!AA12 ->  | F36: ='Apr-Data'!AA11 ->  | G36: 0
A37: =IF(ISERROR(Q!A28),"",Q!A28) -> 0 | B37: =IF(ISERROR(Q!B28),"",Q!B28) -> 0 | D37: ='Apr-Data'!AB10 ->  | E37: ='Apr-Data'!AB12 ->  | F37: ='Apr-Data'!AB11 ->  | G37: 0
A38: =IF(ISERROR(Q!A29),"",Q!A29) -> 0 | B38: =IF(ISERROR(Q!B29),"",Q!B29) -> 0 | D38: ='Apr-Data'!AC10 ->  | E38: ='Apr-Data'!AC12 ->  | F38: ='Apr-Data'!AC11 ->  | G38: 0
A39: =IF(ISERROR(Q!A30),"",Q!A30) -> 0 | B39: =IF(ISERROR(Q!B30),"",Q!B30) -> 0 | D39: ='Apr-Data'!AD10 ->  | E39: ='Apr-Data'!AD12 ->  | F39: ='Apr-Data'!AD11 ->  | G39: 0
A40: =IF(ISERROR(Q!A31),"",Q!A31) -> 0 | B40: =IF(ISERROR(Q!B31),"",Q!B31) -> 0 | D40: ='Apr-Data'!AE10 ->  | E40: ='Apr-Data'!AE12 ->  | F40: ='Apr-Data'!AE11 ->  | G40: 0
A41: =IF(ISERROR(Q!A32),"",Q!A32) -> 0 | B41: =IF(ISERROR(Q!B32),"",Q!B32) -> 0 | D41: ='Apr-Data'!AF10 ->  | E41: ='Apr-Data'!AF12 ->  | F41: ='Apr-Data'!AF11 ->  | G41: 0
A42: =IF(ISERROR(Q!A33),"",Q!A33) -> 0 | B42: =IF(ISERROR(Q!B33),"",Q!B33) -> 0 | D42: ='Apr-Data'!AG10 ->  | E42: ='Apr-Data'!AG12 ->  | F42: ='Apr-Data'!AG11 ->  | G42: 0
A43: =IF(ISERROR(Q!A34),"",Q!A34) -> 0 | B43: =IF(ISERROR(Q!B34),"",Q!B34) -> 0 | D43: ='Apr-Data'!AH10 ->  | E43: ='Apr-Data'!AH12 ->  | F43: ='Apr-Data'!AH11 ->  | G43: 0
A44: =IF(ISERROR(Q!A35),"",Q!A35) -> 0 | B44: =IF(ISERROR(Q!B35),"",Q!B35) -> 0 | D44: ='Apr-Data'!AI10 ->  | E44: ='Apr-Data'!AI12 ->  | F44: ='Apr-Data'!AI11 ->  | G44: 0
A45: =IF(ISERROR(Q!A36),"",Q!A36) -> 0 | B45: =IF(ISERROR(Q!B36),"",Q!B36) -> 0 | D45: ='Apr-Data'!AJ10 ->  | E45: ='Apr-Data'!AJ12 ->  | F45: ='Apr-Data'!AJ11 ->  | G45: 0
A46: =IF(ISERROR(Q!A37),"",Q!A37) -> 0 | B46: =IF(ISERROR(Q!B37),"",Q!B37) -> 0 | D46: ='Apr-Data'!AK10 ->  | E46: ='Apr-Data'!AK12 ->  | F46: ='Apr-Data'!AK11 ->  | G46: 0
A47: =IF(ISERROR(Q!A38),"",Q!A38) -> 0 | B47: =IF(ISERROR(Q!B38),"",Q!B38) -> 0 | D47: ='Apr-Data'!AL10 ->  | E47: ='Apr-Data'!AL12 ->  | F47: ='Apr-Data'!AL11 ->  | G47: 0
A48: =IF(ISERROR(Q!A39),"",Q!A39) -> 0 | B48: =IF(ISERROR(Q!B39),"",Q!B39) -> 0 | D48: ='Apr-Data'!AM10 ->  | E48: ='Apr-Data'!AM12 ->  | F48: ='Apr-Data'!AM11 ->  | G48: 0
A49: =IF(ISERROR(Q!A40),"",Q!A40) -> 0 | B49: =IF(ISERROR(Q!B40),"",Q!B40) -> 0 | D49: ='Apr-Data'!AN10 ->  | E49: ='Apr-Data'!AN12 ->  | F49: ='Apr-Data'!AN11 ->  | G49: 0
A50: =IF(ISERROR(Q!A41),"",Q!A41) -> 0 | B50: =IF(ISERROR(Q!B41),"",Q!B41) -> 0 | D50: ='Apr-Data'!AO10 ->  | E50: ='Apr-Data'!AO12 ->  | F50: ='Apr-Data'!AO11 ->  | G50: 0
G51: =COUNTIF(G11:G50,">=1") -> 11

Sheet Apr-Raw (hidden)
A1: Record details | G1: Notes | H1: =Q!A2 -> Was a Room number documented? | J1: =Q!A3 -> Were stage A checks completed as appropriate? | L1: =Q!A4 -> Was COSI Part 1 performed? | N1: =Q!A5 -> Was PVP documented? | P1: =Q!A6 -> Was Otoscopy documented? | R1: =Q!A7 -> Document bc at 3 & 4kHz is for programming purposes? | T1: =Q!A8 -> Was Speech testing performed? | V1: =Q!A9 -> Is it documented whether national criteria were/were not met? | X1: =Q!A10 -> Was a BCHI info pack supplied? | Z1: =Q!A11 -> Was the report authorised & issued within target (7 days)? | AB1: =Q!A12 -> Was consent documented as appropriate? | AD1: =Q!A13 -> 0 | AF1: =Q!A14 -> 0 | AH1: =Q!A15 -> 0 | AJ1: =Q!A16 -> 0 | AL1: =Q!A17 -> 0 | AN1: =Q!A18 -> 0 | AP1: =Q!A19 -> 0 | AR1: =Q!A20 -> 0 | AT1: =Q!A21 -> 0 | AV1: =Q!A22 -> 0 | AX1: =Q!A23 -> 0 | AZ1: =Q!A24 -> 0 | BB1: =Q!A25 -> 0 | BD1: =Q!A26 -> 0 | BF1: =Q!A27 -> 0 | BH1: =Q!A28 -> 0 | BJ1: =Q!A29 -> 0 | BL1: =Q!A30 -> 0 | BN1: =Q!A31 -> 0 | BP1: =Q!A32 -> 0 | BR1: =Q!A33 -> 0 | BT1: =Q!A34 -> 0 | BV1: =Q!A35 -> 0 | BX1: =Q!A36 -> 0 | BZ1: =Q!A37 -> 0 | CB1: =Q!A38 -> 0 | CD1: =Q!A39 -> 0 | CF1: =Q!A40 -> 0 | CH1: =Q!A41 -> 0
A2: Pt number | B2: Date seen | C2: Clinician 1 | D2: clinician 2 | E2: New/ F-up | F2: Apt code | H2: Compliant? | I2: Other result | J2: Compliant? | K2: Other result | L2: Compliant? | M2: Other result | N2: Compliant? | O2: Other result | P2: Compliant? | Q2: Other result | R2: Compliant? | S2: Other result | T2: Compliant? | U2: Other result | V2: Compliant? | W2: Other result | X2: Compliant? | Y2: Other result | Z2: Compliant? | AA2: Other result | AB2: Compliant? | AC2: Other result | AD2: Compliant? | AE2: Other result | AF2: Compliant? | AG2: Other result | AH2: Compliant? | AI2: Other result | AJ2: Compliant? | AK2: Other result | AL2: Compliant? | AM2: Other result | AN2: Compliant? | AO2: Other result | AP2: Compliant? | AQ2: Other result | AR2: Compliant? | AS2: Other result | AT2: Compliant? | AU2: Other result | AV2: Compliant? | AW2: Other result | AX2: Compliant? | AY2: Other result | AZ2: Compliant? | BA2: Other result | BB2: Compliant? | BC2: Other result | BD2: Compliant? | BE2: Other result | BF2: Compliant? | BG2: Other result | BH2: Compliant? | BI2: Other result | BJ2: Compliant? | BK2: Other result | BL2: Compliant? | BM2: Other result | BN2: Compliant? | BO2: Other result | BP2: Compliant? | BQ2: Other result | BR2: Compliant? | BS2: Other result | BT2: Compliant? | BU2: Other result | BV2: Compliant? | BW2: Other result | BX2: Compliant? | BY2: Other result | BZ2: Compliant? | CA2: Other result | CB2: Compliant? | CC2: Other result | CD2: Compliant? | CE2: Other result | CF2: Compliant? | CG2: Other result | CH2: Compliant? | CI2: Other result
A3: AB0001 | B3: 2023-04-04 | C3: AA | E3: New | F3: BA | H3: Yes | J3: Yes | L3: No | M3: said it was, but it wasn't | N3: Yes | P3: Yes | R3: Yes | T3: Yes | V3: Yes | X3: Yes | Z3: Yes | AB3: Yes
A4: AB0002 | B4: 17/04/2023 | C4: AA | E4: New | F4: BA | H4: Yes | J4: Yes | L4: No | M4: Said it was, but it wasn't | N4: Yes | P4: Yes | R4: Yes | T4: Justified | U4: Pt declined BCHI | V4: Yes | X4: Justified | Y4: Pt not proceeding | Z4: Yes | AB4: Yes
A5: AB0003 | B5: 24/04/2023 | C5: BB | E5: New | F5: BA | H5: Yes | J5: Yes | L5: Yes | N5: Yes | P5: Yes | R5: Yes | T5: Yes | V5: Yes | X5: Yes | Z5: Yes | AB5: Yes
A6: AB0004 | B6: 26/04/2023 | C6: BB | E6: New | F6: BA | H6: Yes | J6: Yes | L6: Yes | N6: Yes | P6: Yes | R6: Yes | T6: Justified | U6: Pt declined BCHI | V6: No | X6: Justified | Y6: Pt declined BCHI | Z6: Yes | AB6: Yes
A7: AB0005 | B7: 28/04/2023 | C7: CC | E7: New | F7: BA | H7: Yes | J7: Yes | L7: Yes | N7: Yes | P7: Yes | R7: Yes | T7: Yes | V7: Yes | X7: Yes | Z7: Yes | AB7: Yes

Sheet Apr-Data (hidden)
A1: Results | B1: =Q!A2 -> Was a Room number documented? | C1: =Q!A3 -> Were stage A checks completed as appropriate? | D1: =Q!A4 -> Was COSI Part 1 performed? | E1: =Q!A5 -> Was PVP documented? | F1: =Q!A6 -> Was Otoscopy documented? | G1: =Q!A7 -> Document bc at 3 & 4kHz is for programming purposes? | H1: =Q!A8 -> Was Speech testing performed? | I1: =Q!A9 -> Is it documented whether national criteria were/were not met? | J1: =Q!A10 -> Was a BCHI info pack supplied? | K1: =Q!A11 -> Was the report authorised & issued within target (7 days)? | L1: =Q!A12 -> Was consent documented as appropriate? | M1: =Q!A13 -> 0 | N1: =Q!A14 -> 0 | O1: =Q!A15 -> 0 | P1: =Q!A16 -> 0 | Q1: =Q!A17 -> 0 | R1: =Q!A18 -> 0 | S1: =Q!A19 -> 0 | T1: =Q!A20 -> 0 | U1: =Q!A21 -> 0 | V1: =Q!A22 -> 0 | W1: =Q!A23 -> 0 | X1: =Q!A24 -> 0 | Y1: =Q!A25 -> 0 | Z1: =Q!A26 -> 0 | AA1: =Q!A27 -> 0 | AB1: =Q!A28 -> 0 | AC1: =Q!A29 -> 0 | AD1: =Q!A30 -> 0 | AE1: =Q!A31 -> 0 | AF1: =Q!A32 -> 0 | AG1: =Q!A33 -> 0 | AH1: =Q!A34 -> 0 | AI1: =Q!A35 -> 0 | AJ1: =Q!A36 -> 0 | AK1: =Q!A37 -> 0 | AL1: =Q!A38 -> 0 | AM1: =Q!A39 -> 0 | AN1: =Q!A40 -> 0 | AO1: =Q!A41 -> 0
B2: Compliant? | C2: Compliant? | D2: Compliant? | E2: Compliant? | F2: Compliant? | G2: Compliant? | H2: Compliant? | I2: Compliant? | J2: Compliant? | K2: Compliant? | L2: Compliant? | M2: Compliant? | N2: Compliant? | O2: Compliant? | P2: Compliant? | Q2: Compliant? | R2: Compliant? | S2: Compliant? | T2: Compliant? | U2: Compliant? | V2: Compliant? | W2: Compliant? | X2: Compliant? | Y2: Compliant? | Z2: Compliant? | AA2: Compliant? | AB2: Compliant? | AC2: Compliant? | AD2: Compliant? | AE2: Compliant? | AF2: Compliant? | AG2: Compliant? | AH2: Compliant? | AI2: Compliant? | AJ2: Compliant? | AK2: Compliant? | AL2: Compliant? | AM2: Compliant? | AN2: Compliant? | AO2: Compliant?
A3: Total Y | B3: =COUNTIF('Apr-Raw'!H:H,"yes") -> 5 | C3: =COUNTIF('Apr-Raw'!J:J,"yes") -> 5 | D3: =COUNTIF('Apr-Raw'!L:L,"yes") -> 3 | E3: =COUNTIF('Apr-Raw'!N:N,"yes") -> 5 | F3: =COUNTIF('Apr-Raw'!P:P,"yes") -> 5 | G3: =COUNTIF('Apr-Raw'!R:R,"yes") -> 5 | H3: =COUNTIF('Apr-Raw'!T:T,"yes") -> 3 | I3: =COUNTIF('Apr-Raw'!V:V,"yes") -> 4 | J3: =COUNTIF('Apr-Raw'!X:X,"yes") -> 3 | K3: =COUNTIF('Apr-Raw'!Z:Z,"yes") -> 5 | L3: =COUNTIF('Apr-Raw'!AB:AB,"yes") -> 5 | M3: =COUNTIF('Apr-Raw'!AD:AD,"yes") -> 0 | N3: =COUNTIF('Apr-Raw'!AF:AF,"yes") -> 0 | O3: =COUNTIF('Apr-Raw'!AH:AH,"yes") -> 0 | P3: =COUNTIF('Apr-Raw'!AJ:AJ,"yes") -> 0 | Q3: =COUNTIF('Apr-Raw'!AL:AL,"yes") -> 0 | R3: =COUNTIF('Apr-Raw'!AN:AN,"yes") -> 0 | S3: =COUNTIF('Apr-Raw'!AP:AP,"yes") -> 0 | T3: =COUNTIF('Apr-Raw'!AR:AR,"yes") -> 0 | U3: =COUNTIF('Apr-Raw'!AT:AT,"yes") -> 0 | V3: =COUNTIF('Apr-Raw'!AV:AV,"yes") -> 0 | W3: =COUNTIF('Apr-Raw'!AX:AX,"yes") -> 0 | X3: =COUNTIF('Apr-Raw'!AZ:AZ,"yes") -> 0 | Y3: =COUNTIF('Apr-Raw'!BB:BB,"yes") -> 0 | Z3: =COUNTIF('Apr-Raw'!BD:BD,"yes") -> 0 | AA3: =COUNTIF('Apr-Raw'!BF:BF,"yes") -> 0 | AB3: =COUNTIF('Apr-Raw'!BH:BH,"yes") -> 0 | AC3: =COUNTIF('Apr-Raw'!BJ:BJ,"yes") -> 0 | AD3: =COUNTIF('Apr-Raw'!BL:BL,"yes") -> 0 | AE3: =COUNTIF('Apr-Raw'!BN:BN,"yes") -> 0 | AF3: =COUNTIF('Apr-Raw'!BP:BP,"yes") -> 0 | AG3: =COUNTIF('Apr-Raw'!BR:BR,"yes") -> 0 | AH3: =COUNTIF('Apr-Raw'!BT:BT,"yes") -> 0 | AI3: =COUNTIF('Apr-Raw'!BV:BV,"yes") -> 0 | AJ3: =COUNTIF('Apr-Raw'!BX:BX,"yes") -> 0 | AK3: =COUNTIF('Apr-Raw'!BZ:BZ,"yes") -> 0 | AL3: =COUNTIF('Apr-Raw'!CB:CB,"yes") -> 0 | AM3: =COUNTIF('Apr-Raw'!CD:CD,"yes") -> 0 | AN3: =COUNTIF('Apr-Raw'!CF:CF,"yes") -> 0 | AO3: =COUNTIF('Apr-Raw'!CH:CH,"yes") -> 0
A4: Total N | B4: =COUNTIF('Apr-Raw'!H:H,"no") -> 0 | C4: =COUNTIF('Apr-Raw'!J:J,"no") -> 0 | D4: =COUNTIF('Apr-Raw'!L:L,"no") -> 2 | E4: =COUNTIF('Apr-Raw'!N:N,"no") -> 0 | F4: =COUNTIF('Apr-Raw'!P:P,"no") -> 0 | G4: =COUNTIF('Apr-Raw'!R:R,"no") -> 0 | H4: =COUNTIF('Apr-Raw'!T:T,"no") -> 0 | I4: =COUNTIF('Apr-Raw'!V:V,"no") -> 1 | J4: =COUNTIF('Apr-Raw'!X:X,"no") -> 0 | K4: =COUNTIF('Apr-Raw'!Z:Z,"no") -> 0 | L4: =COUNTIF('Apr-Raw'!AB:AB,"no") -> 0 | M4: =COUNTIF('Apr-Raw'!AD:AD,"no") -> 0 | N4: =COUNTIF('Apr-Raw'!AF:AF,"no") -> 0 | O4: =COUNTIF('Apr-Raw'!AH:AH,"no") -> 0 | P4: =COUNTIF('Apr-Raw'!AJ:AJ,"no") -> 0 | Q4: =COUNTIF('Apr-Raw'!AL:AL,"no") -> 0 | R4: =COUNTIF('Apr-Raw'!AN:AN,"no") -> 0 | S4: =COUNTIF('Apr-Raw'!AP:AP,"no") -> 0 | T4: =COUNTIF('Apr-Raw'!AR:AR,"no") -> 0 | U4: =COUNTIF('Apr-Raw'!AT:AT,"no") -> 0 | V4: =COUNTIF('Apr-Raw'!AV:AV,"no") -> 0 | W4: =COUNTIF('Apr-Raw'!AX:AX,"no") -> 0 | X4: =COUNTIF('Apr-Raw'!AZ:AZ,"no") -> 0 | Y4: =COUNTIF('Apr-Raw'!BB:BB,"no") -> 0 | Z4: =COUNTIF('Apr-Raw'!BD:BD,"no") -> 0 | AA4: =COUNTIF('Apr-Raw'!BF:BF,"no") -> 0 | AB4: =COUNTIF('Apr-Raw'!BH:BH,"no") -> 0 | AC4: =COUNTIF('Apr-Raw'!BJ:BJ,"no") -> 0 | AD4: =COUNTIF('Apr-Raw'!BL:BL,"no") -> 0 | AE4: =COUNTIF('Apr-Raw'!BN:BN,"no") -> 0 | AF4: =COUNTIF('Apr-Raw'!BP:BP,"no") -> 0 | AG4: =COUNTIF('Apr-Raw'!BR:BR,"no") -> 0 | AH4: =COUNTIF('Apr-Raw'!BT:BT,"no") -> 0 | AI4: =COUNTIF('Apr-Raw'!BV:BV,"no") -> 0 | AJ4: =COUNTIF('Apr-Raw'!BX:BX,"no") -> 0 | AK4: =COUNTIF('Apr-Raw'!BZ:BZ,"no") -> 0 | AL4: =COUNTIF('Apr-Raw'!CB:CB,"no") -> 0 | AM4: =COUNTIF('Apr-Raw'!CD:CD,"no") -> 0 | AN4: =COUNTIF('Apr-Raw'!CF:CF,"no") -> 0 | AO4: =COUNTIF('Apr-Raw'!CH:CH,"no") -> 0
A5: Total Justified | B5: =COUNTIF('Apr-Raw'!H:H,"Justified") -> 0 | C5: =COUNTIF('Apr-Raw'!J:J,"Justified") -> 0 | D5: =COUNTIF('Apr-Raw'!L:L,"Justified") -> 0 | E5: =COUNTIF('Apr-Raw'!N:N,"Justified") -> 0 | F5: =COUNTIF('Apr-Raw'!P:P,"Justified") -> 0 | G5: =COUNTIF('Apr-Raw'!R:R,"Justified") -> 0 | H5: =COUNTIF('Apr-Raw'!T:T,"Justified") -> 2 | I5: =COUNTIF('Apr-Raw'!V:V,"Justified") -> 0 | J5: =COUNTIF('Apr-Raw'!X:X,"Justified") -> 2 | K5: =COUNTIF('Apr-Raw'!Z:Z,"Justified") -> 0 | L5: =COUNTIF('Apr-Raw'!AB:AB,"Justified") -> 0 | M5: =COUNTIF('Apr-Raw'!AD:AD,"Justified") -> 0 | N5: =COUNTIF('Apr-Raw'!AF:AF,"Justified") -> 0 | O5: =COUNTIF('Apr-Raw'!AH:AH,"Justified") -> 0 | P5: =COUNTIF('Apr-Raw'!AJ:AJ,"Justified") -> 0 | Q5: =COUNTIF('Apr-Raw'!AL:AL,"Justified") -> 0 | R5: =COUNTIF('Apr-Raw'!AN:AN,"Justified") -> 0 | S5: =COUNTIF('Apr-Raw'!AP:AP,"Justified") -> 0 | T5: =COUNTIF('Apr-Raw'!AR:AR,"Justified") -> 0 | U5: =COUNTIF('Apr-Raw'!AT:AT,"Justified") -> 0 | V5: =COUNTIF('Apr-Raw'!AV:AV,"Justified") -> 0 | W5: =COUNTIF('Apr-Raw'!AX:AX,"Justified") -> 0 | X5: =COUNTIF('Apr-Raw'!AZ:AZ,"Justified") -> 0 | Y5: =COUNTIF('Apr-Raw'!BB:BB,"Justified") -> 0 | Z5: =COUNTIF('Apr-Raw'!BD:BD,"Justified") -> 0 | AA5: =COUNTIF('Apr-Raw'!BF:BF,"Justified") -> 0 | AB5: =COUNTIF('Apr-Raw'!BH:BH,"Justified") -> 0 | AC5: =COUNTIF('Apr-Raw'!BJ:BJ,"Justified") -> 0 | AD5: =COUNTIF('Apr-Raw'!BL:BL,"Justified") -> 0 | AE5: =COUNTIF('Apr-Raw'!BN:BN,"Justified") -> 0 | AF5: =COUNTIF('Apr-Raw'!BP:BP,"Justified") -> 0 | AG5: =COUNTIF('Apr-Raw'!BR:BR,"Justified") -> 0 | AH5: =COUNTIF('Apr-Raw'!BT:BT,"Justified") -> 0 | AI5: =COUNTIF('Apr-Raw'!BV:BV,"Justified") -> 0 | AJ5: =COUNTIF('Apr-Raw'!BX:BX,"Justified") -> 0 | AK5: =COUNTIF('Apr-Raw'!BZ:BZ,"Justified") -> 0 | AL5: =COUNTIF('Apr-Raw'!CB:CB,"Justified") -> 0 | AM5: =COUNTIF('Apr-Raw'!CD:CD,"Justified") -> 0 | AN5: =COUNTIF('Apr-Raw'!CF:CF,"Justified") -> 0 | AO5: =COUNTIF('Apr-Raw'!CH:CH,"Justified") -> 0
A6: Total NA | B6: =COUNTIF('Apr-Raw'!H:H,"NA") -> 0 | C6: =COUNTIF('Apr-Raw'!J:J,"NA") -> 0 | D6: =COUNTIF('Apr-Raw'!L:L,"NA") -> 0 | E6: =COUNTIF('Apr-Raw'!N:N,"NA") -> 0 | F6: =COUNTIF('Apr-Raw'!P:P,"NA") -> 0 | G6: =COUNTIF('Apr-Raw'!R:R,"NA") -> 0 | H6: =COUNTIF('Apr-Raw'!T:T,"NA") -> 0 | I6: =COUNTIF('Apr-Raw'!V:V,"NA") -> 0 | J6: =COUNTIF('Apr-Raw'!X:X,"NA") -> 0 | K6: =COUNTIF('Apr-Raw'!Z:Z,"NA") -> 0 | L6: =COUNTIF('Apr-Raw'!AB:AB,"NA") -> 0 | M6: =COUNTIF('Apr-Raw'!AD:AD,"NA") -> 0 | N6: =COUNTIF('Apr-Raw'!AF:AF,"NA") -> 0 | O6: =COUNTIF('Apr-Raw'!AH:AH,"NA") -> 0 | P6: =COUNTIF('Apr-Raw'!AJ:AJ,"NA") -> 0 | Q6: =COUNTIF('Apr-Raw'!AL:AL,"NA") -> 0 | R6: =COUNTIF('Apr-Raw'!AN:AN,"NA") -> 0 | S6: =COUNTIF('Apr-Raw'!AP:AP,"NA") -> 0 | T6: =COUNTIF('Apr-Raw'!AR:AR,"NA") -> 0 | U6: =COUNTIF('Apr-Raw'!AT:AT,"NA") -> 0 | V6: =COUNTIF('Apr-Raw'!AV:AV,"NA") -> 0 | W6: =COUNTIF('Apr-Raw'!AX:AX,"NA") -> 0 | X6: =COUNTIF('Apr-Raw'!AZ:AZ,"NA") -> 0 | Y6: =COUNTIF('Apr-Raw'!BB:BB,"NA") -> 0 | Z6: =COUNTIF('Apr-Raw'!BD:BD,"NA") -> 0 | AA6: =COUNTIF('Apr-Raw'!BF:BF,"NA") -> 0 | AB6: =COUNTIF('Apr-Raw'!BH:BH,"NA") -> 0 | AC6: =COUNTIF('Apr-Raw'!BJ:BJ,"NA") -> 0 | AD6: =COUNTIF('Apr-Raw'!BL:BL,"NA") -> 0 | AE6: =COUNTIF('Apr-Raw'!BN:BN,"NA") -> 0 | AF6: =COUNTIF('Apr-Raw'!BP:BP,"NA") -> 0 | AG6: =COUNTIF('Apr-Raw'!BR:BR,"NA") -> 0 | AH6: =COUNTIF('Apr-Raw'!BT:BT,"NA") -> 0 | AI6: =COUNTIF('Apr-Raw'!BV:BV,"NA") -> 0 | AJ6: =COUNTIF('Apr-Raw'!BX:BX,"NA") -> 0 | AK6: =COUNTIF('Apr-Raw'!BZ:BZ,"NA") -> 0 | AL6: =COUNTIF('Apr-Raw'!CB:CB,"NA") -> 0 | AM6: =COUNTIF('Apr-Raw'!CD:CD,"NA") -> 0 | AN6: =COUNTIF('Apr-Raw'!CF:CF,"NA") -> 0 | AO6: =COUNTIF('Apr-Raw'!CH:CH,"NA") -> 0
A7: Blanks | B7: =B8-(SUM(B3:B6)) -> 0 | C7: =C8-(SUM(C3:C6)) -> 0 | D7: 0 | E7: 0 | F7: 0 | G7: 0 | H7: 0 | I7: 0 | J7: 0 | K7: 0 | L7: 0 | M7: 5 | N7: 5 | O7: 5 | P7: 5 | Q7: 5 | R7: 5 | S7: 5 | T7: 5 | U7: 5 | V7: 5 | W7: 5 | X7: 5 | Y7: 5 | Z7: 5 | AA7: 5 | AB7: 5 | AC7: 5 | AD7: 5 | AE7: 5 | AF7: 5 | AG7: 5 | AH7: 5 | AI7: 5 | AJ7: 5 | AK7: 5 | AL7: 5 | AM7: 5 | AN7: 5 | AO7: 5
A8: full sample size | B8: =COUNTA('Apr-Raw'!A:A)-2 -> 5 | C8: =B8 -> 5 | D8: 5 | E8: 5 | F8: 5 | G8: 5 | H8: 5 | I8: 5 | J8: 5 | K8: 5 | L8: 5 | M8: 5 | N8: 5 | O8: 5 | P8: 5 | Q8: 5 | R8: 5 | S8: 5 | T8: 5 | U8: 5 | V8: 5 | W8: 5 | X8: 5 | Y8: 5 | Z8: 5 | AA8: 5 | AB8: 5 | AC8: 5 | AD8: 5 | AE8: 5 | AF8: 5 | AG8: 5 | AH8: 5 | AI8: 5 | AJ8: 5 | AK8: 5 | AL8: 5 | AM8: 5 | AN8: 5 | AO8: 5
A9: True sample size (-NA + blanks) | B9: =IF(ISERROR(B8-(B6+B7)),"",B8-(B6+B7)) -> 5 | C9: =IF(ISERROR(C8-(C6+C7)),"",C8-(C6+C7)) -> 5 | D9: 5 | E9: 5 | F9: 5 | G9: 5 | H9: 5 | I9: 5 | J9: 5 | K9: 5 | L9: 5 | M9: 0 | N9: 0 | O9: 0 | P9: 0 | Q9: 0 | R9: 0 | S9: 0 | T9: 0 | U9: 0 | V9: 0 | W9: 0 | X9: 0 | Y9: 0 | Z9: 0 | AA9: 0 | AB9: 0 | AC9: 0 | AD9: 0 | AE9: 0 | AF9: 0 | AG9: 0 | AH9: 0 | AI9: 0 | AJ9: 0 | AK9: 0 | AL9: 0 | AM9: 0 | AN9: 0 | AO9: 0
A10: %Y | B10: =IF(ISERROR(B3/B9),"",B3/B9) -> 1 | C10: =IF(ISERROR(C3/C9),"",C3/C9) -> 1 | D10: 0.6 | E10: 1 | F10: 1 | G10: 1 | H10: 0.6 | I10: 0.8 | J10: 0.6 | K10: 1 | L10: 1
A11: %N | B11: =IF(ISERROR(B4/B9),"",B4/B9) -> 0 | C11: =IF(ISERROR(C4/C9),"",C4/C9) -> 0 | D11: 0.4 | E11: 0 | F11: 0 | G11: 0 | H11: 0 | I11: 0.2 | J11: 0 | K11: 0 | L11: 0
A12: %N - Justified | B12: =IF(ISERROR(B5/B9),"",B5/B9) -> 0 | C12: =IF(ISERROR(C5/C9),"",C5/C9) -> 0 | D12: 0 | E12: 0 | F12: 0 | G12: 0 | H12: 0.4 | I12: 0 | J12: 0.4 | K12: 0 | L12: 0

Sheet May
A1: Click here to go to year overview
A3: Date | D3: Total by Apt type
A4: Completed by | D4: New | E4: =COUNTIF('May-Raw'!E3:E103,"New") -> 4
A5: Sample group size | B5: =COUNTA('May-Raw'!A:A)-2 -> 4 | D5: Follow up | E5: =COUNTIF('May-Raw'!E3:E103,"Fup") -> 0 | H5: =Year!H5 -> 0.95
A6: Overall Result (compliant only) | B6: =IF(ISERROR(SUM(D11:D50)/G51),"",SUM(D11:D50)/G51) -> 0.8863636364 | D6: Total by apt Code | H6: =Year!H6 -> 80-95%
A7: Overall Result (compliant & Justified) | B7: =IF(ISERROR(SUM(C11:C50)/G51),"",SUM(C11:C50)/G51) -> 0.9318181818 | D7: code goes in here | E7: =COUNTIF('May-Raw'!F3:F103,D7) -> 0 | H7: =Year!H7 -> 0.8
A8: viable qs | B8: =G51 -> 11
A10: Metric | B10: Target % | C10: Compliant + Justified | D10: Compliant | E10: Justified | F10: Not compliant | G10: Irritating math
A11: =IF(ISERROR(Q!A2),"",Q!A2) -> Was a Room number documented? | B11: =IF(ISERROR(Q!B2),"",Q!B2) -> 0 | C11: =IF(ISERROR(D11+E11),"",D11+E11) -> 1 | D11: ='May-Data'!B10 -> 1 | E11: ='May-Data'!B12 -> 0 | F11: ='May-Data'!B11 -> 0 | G11: =COUNTIF(D11:F11,">0") -> 1
A12: =IF(ISERROR(Q!A3),"",Q!A3) -> Were stage A checks completed as appropriate? | B12: =IF(ISERROR(Q!B3),"",Q!B3) -> 0 | C12: 0.75 | D12: ='May-Data'!C10 -> 0.75 | E12: ='May-Data'!C12 -> 0 | F12: ='May-Data'!C11 -> 0.25 | G12: 2
A13: =IF(ISERROR(Q!A4),"",Q!A4) -> Was COSI Part 1 performed? | B13: =IF(ISERROR(Q!B4),"",Q!B4) -> 0 | C13: 0.5 | D13: ='May-Data'!D10 -> 0.5 | E13: ='May-Data'!D12 -> 0 | F13: ='May-Data'!D11 -> 0.5 | G13: 2
A14: =IF(ISERROR(Q!A5),"",Q!A5) -> Was PVP documented? | B14: =IF(ISERROR(Q!B5),"",Q!B5) -> 0 | C14: 1 | D14: ='May-Data'!E10 -> 1 | E14: ='May-Data'!E12 -> 0 | F14: ='May-Data'!E11 -> 0 | G14: 1
A15: =IF(ISERROR(Q!A6),"",Q!A6) -> Was Otoscopy documented? | B15: =IF(ISERROR(Q!B6),"",Q!B6) -> 0 | C15: 1 | D15: ='May-Data'!F10 -> 1 | E15: ='May-Data'!F12 -> 0 | F15: ='May-Data'!F11 -> 0 | G15: 1
A16: =IF(ISERROR(Q!A7),"",Q!A7) -> Document bc at 3 & 4kHz is for programming purposes? | B16: =IF(ISERROR(Q!B7),"",Q!B7) -> 0 | C16: 1 | D16: ='May-Data'!G10 -> 1 | E16: ='May-Data'!G12 -> 0 | F16: ='May-Data'!G11 -> 0 | G16: 1
A17: =IF(ISERROR(Q!A8),"",Q!A8) -> Was Speech testing performed? | B17: =IF(ISERROR(Q!B8),"",Q!B8) -> 0 | C17: 1 | D17: ='May-Data'!H10 -> 0.5 | E17: ='May-Data'!H12 -> 0.5 | F17: ='May-Data'!H11 -> 0 | G17: 2
A18: =IF(ISERROR(Q!A9),"",Q!A9) -> Is it documented whether national criteria were/were not met? | B18: =IF(ISERROR(Q!B9),"",Q!B9) -> 0 | C18: 1 | D18: ='May-Data'!I10 -> 1 | E18: ='May-Data'!I12 -> 0 | F18: ='May-Data'!I11 -> 0 | G18: 1
A19: =IF(ISERROR(Q!A10),"",Q!A10) -> Was a BCHI info pack supplied? | B19: =IF(ISERROR(Q!B10),"",Q!B10) -> 0 | C19: 1 | D19: ='May-Data'!J10 -> 1 | E19: ='May-Data'!J12 -> 0 | F19: ='May-Data'!J11 -> 0 | G19: 1
A20: =IF(ISERROR(Q!A11),"",Q!A11) -> Was the report authorised & issued within target (7 days)? | B20: =IF(ISERROR(Q!B11),"",Q!B11) -> 0 | C20: 1 | D20: ='May-Data'!K10 -> 1 | E20: ='May-Data'!K12 -> 0 | F20: ='May-Data'!K11 -> 0 | G20: 1
A21: =IF(ISERROR(Q!A12),"",Q!A12) -> Was consent documented as appropriate? | B21: =IF(ISERROR(Q!B12),"",Q!B12) -> 0 | C21: 1 | D21: ='May-Data'!L10 -> 1 | E21: ='May-Data'!L12 -> 0 | F21: ='May-Data'!L11 -> 0 | G21: 1
A22: =IF(ISERROR(Q!A13),"",Q!A13) -> 0 | B22: =IF(ISERROR(Q!B13),"",Q!B13) -> 0 | D22: ='May-Data'!M10 ->  | E22: ='May-Data'!M12 ->  | F22: ='May-Data'!M11 ->  | G22: 0
A23: =IF(ISERROR(Q!A14),"",Q!A14) -> 0 | B23: =IF(ISERROR(Q!B14),"",Q!B14) -> 0 | D23: ='May-Data'!N10 ->  | E23: ='May-Data'!N12 ->  | F23: ='May-Data'!N11 ->  | G23: 0
A24: =IF(ISERROR(Q!A15),"",Q!A15) -> 0 | B24: =IF(ISERROR(Q!B15),"",Q!B15) -> 0 | D24: ='May-Data'!O10 ->  | E24: ='May-Data'!O12 ->  | F24: ='May-Data'!O11 ->  | G24: 0
A25: =IF(ISERROR(Q!A16),"",Q!A16) -> 0 | B25: =IF(ISERROR(Q!B16),"",Q!B16) -> 0 | D25: ='May-Data'!P10 ->  | E25: ='May-Data'!P12 ->  | F25: ='May-Data'!P11 ->  | G25: 0
A26: =IF(ISERROR(Q!A17),"",Q!A17) -> 0 | B26: =IF(ISERROR(Q!B17),"",Q!B17) -> 0 | D26: ='May-Data'!Q10 ->  | E26: ='May-Data'!Q12 ->  | F26: ='May-Data'!Q11 ->  | G26: 0
A27: =IF(ISERROR(Q!A18),"",Q!A18) -> 0 | B27: =IF(ISERROR(Q!B18),"",Q!B18) -> 0 | D27: ='May-Data'!R10 ->  | E27: ='May-Data'!R12 ->  | F27: ='May-Data'!R11 ->  | G27: 0
A28: =IF(ISERROR(Q!A19),"",Q!A19) -> 0 | B28: =IF(ISERROR(Q!B19),"",Q!B19) -> 0 | D28: ='May-Data'!S10 ->  | E28: ='May-Data'!S12 ->  | F28: ='May-Data'!S11 ->  | G28: 0
A29: =IF(ISERROR(Q!A20),"",Q!A20) -> 0 | B29: =IF(ISERROR(Q!B20),"",Q!B20) -> 0 | D29: ='May-Data'!T10 ->  | E29: ='May-Data'!T12 ->  | F29: ='May-Data'!T11 ->  | G29: 0
A30: =IF(ISERROR(Q!A21),"",Q!A21) -> 0 | B30: =IF(ISERROR(Q!B21),"",Q!B21) -> 0 | D30: ='May-Data'!U10 ->  | E30: ='May-Data'!U12 ->  | F30: ='May-Data'!U11 ->  | G30: 0
A31: =IF(ISERROR(Q!A22),"",Q!A22) -> 0 | B31: =IF(ISERROR(Q!B22),"",Q!B22) -> 0 | D31: ='May-Data'!V10 ->  | E31: ='May-Data'!V12 ->  | F31: ='May-Data'!V11 ->  | G31: 0
A32: =IF(ISERROR(Q!A23),"",Q!A23) -> 0 | B32: =IF(ISERROR(Q!B23),"",Q!B23) -> 0 | D32: ='May-Data'!W10 ->  | E32: ='May-Data'!W12 ->  | F32: ='May-Data'!W11 ->  | G32: 0
A33: =IF(ISERROR(Q!A24),"",Q!A24) -> 0 | B33: =IF(ISERROR(Q!B24),"",Q!B24) -> 0 | D33: ='May-Data'!X10 ->  | E33: ='May-Data'!X12 ->  | F33: ='May-Data'!X11 ->  | G33: 0
A34: =IF(ISERROR(Q!A25),"",Q!A25) -> 0 | B34: =IF(ISERROR(Q!B25),"",Q!B25) -> 0 | D34: ='May-Data'!Y10 ->  | E34: ='May-Data'!Y12 ->  | F34: ='May-Data'!Y11 ->  | G34: 0
A35: =IF(ISERROR(Q!A26),"",Q!A26) -> 0 | B35: =IF(ISERROR(Q!B26),"",Q!B26) -> 0 | D35: ='May-Data'!Z10 ->  | E35: ='May-Data'!Z12 ->  | F35: ='May-Data'!Z11 ->  | G35: 0
A36: =IF(ISERROR(Q!A27),"",Q!A27) -> 0 | B36: =IF(ISERROR(Q!B27),"",Q!B27) -> 0 | D36: ='May-Data'!AA10 ->  | E36: ='May-Data'!AA12 ->  | F36: ='May-Data'!AA11 ->  | G36: 0
A37: =IF(ISERROR(Q!A28),"",Q!A28) -> 0 | B37: =IF(ISERROR(Q!B28),"",Q!B28) -> 0 | D37: ='May-Data'!AB10 ->  | E37: ='May-Data'!AB12 ->  | F37: ='May-Data'!AB11 ->  | G37: 0
A38: =IF(ISERROR(Q!A29),"",Q!A29) -> 0 | B38: =IF(ISERROR(Q!B29),"",Q!B29) -> 0 | D38: ='May-Data'!AC10 ->  | E38: ='May-Data'!AC12 ->  | F38: ='May-Data'!AC11 ->  | G38: 0
A39: =IF(ISERROR(Q!A30),"",Q!A30) -> 0 | B39: =IF(ISERROR(Q!B30),"",Q!B30) -> 0 | D39: ='May-Data'!AD10 ->  | E39: ='May-Data'!AD12 ->  | F39: ='May-Data'!AD11 ->  | G39: 0
A40: =IF(ISERROR(Q!A31),"",Q!A31) -> 0 | B40: =IF(ISERROR(Q!B31),"",Q!B31) -> 0 | D40: ='May-Data'!AE10 ->  | E40: ='May-Data'!AE12 ->  | F40: ='May-Data'!AE11 ->  | G40: 0
A41: =IF(ISERROR(Q!A32),"",Q!A32) -> 0 | B41: =IF(ISERROR(Q!B32),"",Q!B32) -> 0 | D41: ='May-Data'!AF10 ->  | E41: ='May-Data'!AF12 ->  | F41: ='May-Data'!AF11 ->  | G41: 0
A42: =IF(ISERROR(Q!A33),"",Q!A33) -> 0 | B42: =IF(ISERROR(Q!B33),"",Q!B33) -> 0 | D42: ='May-Data'!AG10 ->  | E42: ='May-Data'!AG12 ->  | F42: ='May-Data'!AG11 ->  | G42: 0
A43: =IF(ISERROR(Q!A34),"",Q!A34) -> 0 | B43: =IF(ISERROR(Q!B34),"",Q!B34) -> 0 | D43: ='May-Data'!AH10 ->  | E43: ='May-Data'!AH12 ->  | F43: ='May-Data'!AH11 ->  | G43: 0
A44: =IF(ISERROR(Q!A35),"",Q!A35) -> 0 | B44: =IF(ISERROR(Q!B35),"",Q!B35) -> 0 | D44: ='May-Data'!AI10 ->  | E44: ='May-Data'!AI12 ->  | F44: ='May-Data'!AI11 ->  | G44: 0
A45: =IF(ISERROR(Q!A36),"",Q!A36) -> 0 | B45: =IF(ISERROR(Q!B36),"",Q!B36) -> 0 | D45: ='May-Data'!AJ10 ->  | E45: ='May-Data'!AJ12 ->  | F45: ='May-Data'!AJ11 ->  | G45: 0
A46: =IF(ISERROR(Q!A37),"",Q!A37) -> 0 | B46: =IF(ISERROR(Q!B37),"",Q!B37) -> 0 | D46: ='May-Data'!AK10 ->  | E46: ='May-Data'!AK12 ->  | F46: ='May-Data'!AK11 ->  | G46: 0
A47: =IF(ISERROR(Q!A38),"",Q!A38) -> 0 | B47: =IF(ISERROR(Q!B38),"",Q!B38) -> 0 | D47: ='May-Data'!AL10 ->  | E47: ='May-Data'!AL12 ->  | F47: ='May-Data'!AL11 ->  | G47: 0
A48: =IF(ISERROR(Q!A39),"",Q!A39) -> 0 | B48: =IF(ISERROR(Q!B39),"",Q!B39) -> 0 | D48: ='May-Data'!AM10 ->  | E48: ='May-Data'!AM12 ->  | F48: ='May-Data'!AM11 ->  | G48: 0
A49: =IF(ISERROR(Q!A40),"",Q!A40) -> 0 | B49: =IF(ISERROR(Q!B40),"",Q!B40) -> 0 | D49: ='May-Data'!AN10 ->  | E49: ='May-Data'!AN12 ->  | F49: ='May-Data'!AN11 ->  | G49: 0
A50: =IF(ISERROR(Q!A41),"",Q!A41) -> 0 | B50: =IF(ISERROR(Q!B41),"",Q!B41) -> 0 | D50: ='May-Data'!AO10 ->  | E50: ='May-Data'!AO12 ->  | F50: ='May-Data'!AO11 ->  | G50: 0
G51: =COUNTIF(G11:G50,">=1") -> 11

Sheet May-Raw (hidden)
A1: Record details | G1: Notes | H1: =Q!A2 -> Was a Room number documented? | J1: =Q!A3 -> Were stage A checks completed as appropriate? | L1: =Q!A4 -> Was COSI Part 1 performed? | N1: =Q!A5 -> Was PVP documented? | P1: =Q!A6 -> Was Otoscopy documented? | R1: =Q!A7 -> Document bc at 3 & 4kHz is for programming purposes? | T1: =Q!A8 -> Was Speech testing performed? | V1: =Q!A9 -> Is it documented whether national criteria were/were not met? | X1: =Q!A10 -> Was a BCHI info pack supplied? | Z1: =Q!A11 -> Was the report authorised & issued within target (7 days)? | AB1: =Q!A12 -> Was consent documented as appropriate? | AD1: =Q!A13 -> 0 | AF1: =Q!A14 -> 0 | AH1: =Q!A15 -> 0 | AJ1: =Q!A16 -> 0 | AL1: =Q!A17 -> 0 | AN1: =Q!A18 -> 0 | AP1: =Q!A19 -> 0 | AR1: =Q!A20 -> 0 | AT1: =Q!A21 -> 0 | AV1: =Q!A22 -> 0 | AX1: =Q!A23 -> 0 | AZ1: =Q!A24 -> 0 | BB1: =Q!A25 -> 0 | BD1: =Q!A26 -> 0 | BF1: =Q!A27 -> 0 | BH1: =Q!A28 -> 0 | BJ1: =Q!A29 -> 0 | BL1: =Q!A30 -> 0 | BN1: =Q!A31 -> 0 | BP1: =Q!A32 -> 0 | BR1: =Q!A33 -> 0 | BT1: =Q!A34 -> 0 | BV1: =Q!A35 -> 0 | BX1: =Q!A36 -> 0 | BZ1: =Q!A37 -> 0 | CB1: =Q!A38 -> 0 | CD1: =Q!A39 -> 0 | CF1: =Q!A40 -> 0 | CH1: =Q!A41 -> 0
A2: Pt number | B2: Date seen | C2: Clinician 1 | D2: clinician 2 | E2: New/ F-up | F2: Apt code | H2: Compliant? | I2: Other result | J2: Compliant? | K2: Other result | L2: Compliant? | M2: Other result | N2: Compliant? | O2: Other result | P2: Compliant? | Q2: Other result | R2: Compliant? | S2: Other result | T2: Compliant? | U2: Other result | V2: Compliant? | W2: Other result | X2: Compliant? | Y2: Other result | Z2: Compliant? | AA2: Other result | AB2: Compliant? | AC2: Other result | AD2: Compliant? | AE2: Other result | AF2: Compliant? | AG2: Other result | AH2: Compliant? | AI2: Other result | AJ2: Compliant? | AK2: Other result | AL2: Compliant? | AM2: Other result | AN2: Compliant? | AO2: Other result | AP2: Compliant? | AQ2: Other result | AR2: Compliant? | AS2: Other result | AT2: Compliant? | AU2: Other result | AV2: Compliant? | AW2: Other result | AX2: Compliant? | AY2: Other result | AZ2: Compliant? | BA2: Other result | BB2: Compliant? | BC2: Other result | BD2: Compliant? | BE2: Other result | BF2: Compliant? | BG2: Other result | BH2: Compliant? | BI2: Other result | BJ2: Compliant? | BK2: Other result | BL2: Compliant? | BM2: Other result | BN2: Compliant? | BO2: Other result | BP2: Compliant? | BQ2: Other result | BR2: Compliant? | BS2: Other result | BT2: Compliant? | BU2: Other result | BV2: Compliant? | BW2: Other result | BX2: Compliant? | BY2: Other result | BZ2: Compliant? | CA2: Other result | CB2: Compliant? | CC2: Other result | CD2: Compliant? | CE2: Other result | CF2: Compliant? | CG2: Other result | CH2: Compliant? | CI2: Other result
A3: AB0001 | B3: 2023-05-04 | C3: AA | E3: New | F3: BA | H3: Yes | J3: Yes | L3: Yes | N3: Yes | P3: Yes | R3: Yes | T3: Justified | U3: Pt has learning disabilty & unable to perform | V3: Yes | X3: Yes | Z3: Yes | AB3: Yes
A4: AB0002 | B4: 2023-05-17 | C4: AA | E4: New | F4: BA | H4: Yes | J4: Yes | L4: Yes | N4: Yes | P4: Yes | R4: Yes | T4: Justified | U4: No value due to unilateral loss | V4: Yes | X4: Yes | Z4: Yes | AB4: Yes
A5: AB0003 | B5: 2023-05-24 | C5: BB | E5: New | F5: BA | H5: Yes | J5: No | L5: No | N5: Yes | P5: Yes | R5: Yes | T5: Yes | V5: Yes | X5: Yes | Z5: Yes | AB5: Yes
A6: AB0004 | B6: 2023-05-26 | C6: BB | E6: New | F6: BA | H6: Yes | J6: Yes | L6: No | N6: Yes | P6: Yes | R6: Yes | T6: Yes | V6: Yes | X6: Yes | Z6: Yes | AB6: Yes

Sheet May-Data (hidden)
A1: Results | B1: =Q!A2 -> Was a Room number documented? | C1: =Q!A3 -> Were stage A checks completed as appropriate? | D1: =Q!A4 -> Was COSI Part 1 performed? | E1: =Q!A5 -> Was PVP documented? | F1: =Q!A6 -> Was Otoscopy documented? | G1: =Q!A7 -> Document bc at 3 & 4kHz is for programming purposes? | H1: =Q!A8 -> Was Speech testing performed? | I1: =Q!A9 -> Is it documented whether national criteria were/were not met? | J1: =Q!A10 -> Was a BCHI info pack supplied? | K1: =Q!A11 -> Was the report authorised & issued within target (7 days)? | L1: =Q!A12 -> Was consent documented as appropriate? | M1: =Q!A13 -> 0 | N1: =Q!A14 -> 0 | O1: =Q!A15 -> 0 | P1: =Q!A16 -> 0 | Q1: =Q!A17 -> 0 | R1: =Q!A18 -> 0 | S1: =Q!A19 -> 0 | T1: =Q!A20 -> 0 | U1: =Q!A21 -> 0 | V1: =Q!A22 -> 0 | W1: =Q!A23 -> 0 | X1: =Q!A24 -> 0 | Y1: =Q!A25 -> 0 | Z1: =Q!A26 -> 0 | AA1: =Q!A27 -> 0 | AB1: =Q!A28 -> 0 | AC1: =Q!A29 -> 0 | AD1: =Q!A30 -> 0 | AE1: =Q!A31 -> 0 | AF1: =Q!A32 -> 0 | AG1: =Q!A33 -> 0 | AH1: =Q!A34 -> 0 | AI1: =Q!A35 -> 0 | AJ1: =Q!A36 -> 0 | AK1: =Q!A37 -> 0 | AL1: =Q!A38 -> 0 | AM1: =Q!A39 -> 0 | AN1: =Q!A40 -> 0 | AO1: =Q!A41 -> 0
B2: Compliant? | C2: Compliant? | D2: Compliant? | E2: Compliant? | F2: Compliant? | G2: Compliant? | H2: Compliant? | I2: Compliant? | J2: Compliant? | K2: Compliant? | L2: Compliant? | M2: Compliant? | N2: Compliant? | O2: Compliant? | P2: Compliant? | Q2: Compliant? | R2: Compliant? | S2: Compliant? | T2: Compliant? | U2: Compliant? | V2: Compliant? | W2: Compliant? | X2: Compliant? | Y2: Compliant? | Z2: Compliant? | AA2: Compliant? | AB2: Compliant? | AC2: Compliant? | AD2: Compliant? | AE2: Compliant? | AF2: Compliant? | AG2: Compliant? | AH2: Compliant? | AI2: Compliant? | AJ2: Compliant? | AK2: Compliant? | AL2: Compliant? | AM2: Compliant? | AN2: Compliant? | AO2: Compliant?
A3: Total Y | B3: =COUNTIF('May-Raw'!H:H,"yes") -> 4 | C3: =COUNTIF('May-Raw'!J:J,"yes") -> 3 | D3: =COUNTIF('May-Raw'!L:L,"yes") -> 2 | E3: =COUNTIF('May-Raw'!N:N,"yes") -> 4 | F3: =COUNTIF('May-Raw'!P:P,"yes") -> 4 | G3: =COUNTIF('May-Raw'!R:R,"yes") -> 4 | H3: =COUNTIF('May-Raw'!T:T,"yes") -> 2 | I3: =COUNTIF('May-Raw'!V:V,"yes") -> 4 | J3: =COUNTIF('May-Raw'!X:X,"yes") -> 4 | K3: =COUNTIF('May-Raw'!Z:Z,"yes") -> 4 | L3: =COUNTIF('May-Raw'!AB:AB,"yes") -> 4 | M3: =COUNTIF('May-Raw'!AD:AD,"yes") -> 0 | N3: =COUNTIF('May-Raw'!AF:AF,"yes") -> 0 | O3: =COUNTIF('May-Raw'!AH:AH,"yes") -> 0 | P3: =COUNTIF('May-Raw'!AJ:AJ,"yes") -> 0 | Q3: =COUNTIF('May-Raw'!AL:AL,"yes") -> 0 | R3: =COUNTIF('May-Raw'!AN:AN,"yes") -> 0 | S3: =COUNTIF('May-Raw'!AP:AP,"yes") -> 0 | T3: =COUNTIF('May-Raw'!AR:AR,"yes") -> 0 | U3: =COUNTIF('May-Raw'!AT:AT,"yes") -> 0 | V3: =COUNTIF('May-Raw'!AV:AV,"yes") -> 0 | W3: =COUNTIF('May-Raw'!AX:AX,"yes") -> 0 | X3: =COUNTIF('May-Raw'!AZ:AZ,"yes") -> 0 | Y3: =COUNTIF('May-Raw'!BB:BB,"yes") -> 0 | Z3: =COUNTIF('May-Raw'!BD:BD,"yes") -> 0 | AA3: =COUNTIF('May-Raw'!BF:BF,"yes") -> 0 | AB3: =COUNTIF('May-Raw'!BH:BH,"yes") -> 0 | AC3: =COUNTIF('May-Raw'!BJ:BJ,"yes") -> 0 | AD3: =COUNTIF('May-Raw'!BL:BL,"yes") -> 0 | AE3: =COUNTIF('May-Raw'!BN:BN,"yes") -> 0 | AF3: =COUNTIF('May-Raw'!BP:BP,"yes") -> 0 | AG3: =COUNTIF('May-Raw'!BR:BR,"yes") -> 0 | AH3: =COUNTIF('May-Raw'!BT:BT,"yes") -> 0 | AI3: =COUNTIF('May-Raw'!BV:BV,"yes") -> 0 | AJ3: =COUNTIF('May-Raw'!BX:BX,"yes") -> 0 | AK3: =COUNTIF('May-Raw'!BZ:BZ,"yes") -> 0 | AL3: =COUNTIF('May-Raw'!CB:CB,"yes") -> 0 | AM3: =COUNTIF('May-Raw'!CD:CD,"yes") -> 0 | AN3: =COUNTIF('May-Raw'!CF:CF,"yes") -> 0 | AO3: =COUNTIF('May-Raw'!CH:CH,"yes") -> 0
A4: Total N | B4: =COUNTIF('May-Raw'!H:H,"no") -> 0 | C4: =COUNTIF('May-Raw'!J:J,"no") -> 1 | D4: =COUNTIF('May-Raw'!L:L,"no") -> 2 | E4: =COUNTIF('May-Raw'!N:N,"no") -> 0 | F4: =COUNTIF('May-Raw'!P:P,"no") -> 0 | G4: =COUNTIF('May-Raw'!R:R,"no") -> 0 | H4: =COUNTIF('May-Raw'!T:T,"no") -> 0 | I4: =COUNTIF('May-Raw'!V:V,"no") -> 0 | J4: =COUNTIF('May-Raw'!X:X,"no") -> 0 | K4: =COUNTIF('May-Raw'!Z:Z,"no") -> 0 | L4: =COUNTIF('May-Raw'!AB:AB,"no") -> 0 | M4: =COUNTIF('May-Raw'!AD:AD,"no") -> 0 | N4: =COUNTIF('May-Raw'!AF:AF,"no") -> 0 | O4: =COUNTIF('May-Raw'!AH:AH,"no") -> 0 | P4: =COUNTIF('May-Raw'!AJ:AJ,"no") -> 0 | Q4: =COUNTIF('May-Raw'!AL:AL,"no") -> 0 | R4: =COUNTIF('May-Raw'!AN:AN,"no") -> 0 | S4: =COUNTIF('May-Raw'!AP:AP,"no") -> 0 | T4: =COUNTIF('May-Raw'!AR:AR,"no") -> 0 | U4: =COUNTIF('May-Raw'!AT:AT,"no") -> 0 | V4: =COUNTIF('May-Raw'!AV:AV,"no") -> 0 | W4: =COUNTIF('May-Raw'!AX:AX,"no") -> 0 | X4: =COUNTIF('May-Raw'!AZ:AZ,"no") -> 0 | Y4: =COUNTIF('May-Raw'!BB:BB,"no") -> 0 | Z4: =COUNTIF('May-Raw'!BD:BD,"no") -> 0 | AA4: =COUNTIF('May-Raw'!BF:BF,"no") -> 0 | AB4: =COUNTIF('May-Raw'!BH:BH,"no") -> 0 | AC4: =COUNTIF('May-Raw'!BJ:BJ,"no") -> 0 | AD4: =COUNTIF('May-Raw'!BL:BL,"no") -> 0 | AE4: =COUNTIF('May-Raw'!BN:BN,"no") -> 0 | AF4: =COUNTIF('May-Raw'!BP:BP,"no") -> 0 | AG4: =COUNTIF('May-Raw'!BR:BR,"no") -> 0 | AH4: =COUNTIF('May-Raw'!BT:BT,"no") -> 0 | AI4: =COUNTIF('May-Raw'!BV:BV,"no") -> 0 | AJ4: =COUNTIF('May-Raw'!BX:BX,"no") -> 0 | AK4: =COUNTIF('May-Raw'!BZ:BZ,"no") -> 0 | AL4: =COUNTIF('May-Raw'!CB:CB,"no") -> 0 | AM4: =COUNTIF('May-Raw'!CD:CD,"no") -> 0 | AN4: =COUNTIF('May-Raw'!CF:CF,"no") -> 0 | AO4: =COUNTIF('May-Raw'!CH:CH,"no") -> 0
A5: Total Justified | B5: =COUNTIF('May-Raw'!H:H,"Justified") -> 0 | C5: =COUNTIF('May-Raw'!J:J,"Justified") -> 0 | D5: =COUNTIF('May-Raw'!L:L,"Justified") -> 0 | E5: =COUNTIF('May-Raw'!N:N,"Justified") -> 0 | F5: =COUNTIF('May-Raw'!P:P,"Justified") -> 0 | G5: =COUNTIF('May-Raw'!R:R,"Justified") -> 0 | H5: =COUNTIF('May-Raw'!T:T,"Justified") -> 2 | I5: =COUNTIF('May-Raw'!V:V,"Justified") -> 0 | J5: =COUNTIF('May-Raw'!X:X,"Justified") -> 0 | K5: =COUNTIF('May-Raw'!Z:Z,"Justified") -> 0 | L5: =COUNTIF('May-Raw'!AB:AB,"Justified") -> 0 | M5: =COUNTIF('May-Raw'!AD:AD,"Justified") -> 0 | N5: =COUNTIF('May-Raw'!AF:AF,"Justified") -> 0 | O5: =COUNTIF('May-Raw'!AH:AH,"Justified") -> 0 | P5: =COUNTIF('May-Raw'!AJ:AJ,"Justified") -> 0 | Q5: =COUNTIF('May-Raw'!AL:AL,"Justified") -> 0 | R5: =COUNTIF('May-Raw'!AN:AN,"Justified") -> 0 | S5: =COUNTIF('May-Raw'!AP:AP,"Justified") -> 0 | T5: =COUNTIF('May-Raw'!AR:AR,"Justified") -> 0 | U5: =COUNTIF('May-Raw'!AT:AT,"Justified") -> 0 | V5: =COUNTIF('May-Raw'!AV:AV,"Justified") -> 0 | W5: =COUNTIF('May-Raw'!AX:AX,"Justified") -> 0 | X5: =COUNTIF('May-Raw'!AZ:AZ,"Justified") -> 0 | Y5: =COUNTIF('May-Raw'!BB:BB,"Justified") -> 0 | Z5: =COUNTIF('May-Raw'!BD:BD,"Justified") -> 0 | AA5: =COUNTIF('May-Raw'!BF:BF,"Justified") -> 0 | AB5: =COUNTIF('May-Raw'!BH:BH,"Justified") -> 0 | AC5: =COUNTIF('May-Raw'!BJ:BJ,"Justified") -> 0 | AD5: =COUNTIF('May-Raw'!BL:BL,"Justified") -> 0 | AE5: =COUNTIF('May-Raw'!BN:BN,"Justified") -> 0 | AF5: =COUNTIF('May-Raw'!BP:BP,"Justified") -> 0 | AG5: =COUNTIF('May-Raw'!BR:BR,"Justified") -> 0 | AH5: =COUNTIF('May-Raw'!BT:BT,"Justified") -> 0 | AI5: =COUNTIF('May-Raw'!BV:BV,"Justified") -> 0 | AJ5: =COUNTIF('May-Raw'!BX:BX,"Justified") -> 0 | AK5: =COUNTIF('May-Raw'!BZ:BZ,"Justified") -> 0 | AL5: =COUNTIF('May-Raw'!CB:CB,"Justified") -> 0 | AM5: =COUNTIF('May-Raw'!CD:CD,"Justified") -> 0 | AN5: =COUNTIF('May-Raw'!CF:CF,"Justified") -> 0 | AO5: =COUNTIF('May-Raw'!CH:CH,"Justified") -> 0
A6: Total NA | B6: =COUNTIF('May-Raw'!H:H,"NA") -> 0 | C6: =COUNTIF('May-Raw'!J:J,"NA") -> 0 | D6: =COUNTIF('May-Raw'!L:L,"NA") -> 0 | E6: =COUNTIF('May-Raw'!N:N,"NA") -> 0 | F6: =COUNTIF('May-Raw'!P:P,"NA") -> 0 | G6: =COUNTIF('May-Raw'!R:R,"NA") -> 0 | H6: =COUNTIF('May-Raw'!T:T,"NA") -> 0 | I6: =COUNTIF('May-Raw'!V:V,"NA") -> 0 | J6: =COUNTIF('May-Raw'!X:X,"NA") -> 0 | K6: =COUNTIF('May-Raw'!Z:Z,"NA") -> 0 | L6: =COUNTIF('May-Raw'!AB:AB,"NA") -> 0 | M6: =COUNTIF('May-Raw'!AD:AD,"NA") -> 0 | N6: =COUNTIF('May-Raw'!AF:AF,"NA") -> 0 | O6: =COUNTIF('May-Raw'!AH:AH,"NA") -> 0 | P6: =COUNTIF('May-Raw'!AJ:AJ,"NA") -> 0 | Q6: =COUNTIF('May-Raw'!AL:AL,"NA") -> 0 | R6: =COUNTIF('May-Raw'!AN:AN,"NA") -> 0 | S6: =COUNTIF('May-Raw'!AP:AP,"NA") -> 0 | T6: =COUNTIF('May-Raw'!AR:AR,"NA") -> 0 | U6: =COUNTIF('May-Raw'!AT:AT,"NA") -> 0 | V6: =COUNTIF('May-Raw'!AV:AV,"NA") -> 0 | W6: =COUNTIF('May-Raw'!AX:AX,"NA") -> 0 | X6: =COUNTIF('May-Raw'!AZ:AZ,"NA") -> 0 | Y6: =COUNTIF('May-Raw'!BB:BB,"NA") -> 0 | Z6: =COUNTIF('May-Raw'!BD:BD,"NA") -> 0 | AA6: =COUNTIF('May-Raw'!BF:BF,"NA") -> 0 | AB6: =COUNTIF('May-Raw'!BH:BH,"NA") -> 0 | AC6: =COUNTIF('May-Raw'!BJ:BJ,"NA") -> 0 | AD6: =COUNTIF('May-Raw'!BL:BL,"NA") -> 0 | AE6: =COUNTIF('May-Raw'!BN:BN,"NA") -> 0 | AF6: =COUNTIF('May-Raw'!BP:BP,"NA") -> 0 | AG6: =COUNTIF('May-Raw'!BR:BR,"NA") -> 0 | AH6: =COUNTIF('May-Raw'!BT:BT,"NA") -> 0 | AI6: =COUNTIF('May-Raw'!BV:BV,"NA") -> 0 | AJ6: =COUNTIF('May-Raw'!BX:BX,"NA") -> 0 | AK6: =COUNTIF('May-Raw'!BZ:BZ,"NA") -> 0 | AL6: =COUNTIF('May-Raw'!CB:CB,"NA") -> 0 | AM6: =COUNTIF('May-Raw'!CD:CD,"NA") -> 0 | AN6: =COUNTIF('May-Raw'!CF:CF,"NA") -> 0 | AO6: =COUNTIF('May-Raw'!CH:CH,"NA") -> 0
A7: Blanks | B7: =B8-(SUM(B3:B6)) -> 0 | C7: =C8-(SUM(C3:C6)) -> 0 | D7: 0 | E7: 0 | F7: 0 | G7: 0 | H7: 0 | I7: 0 | J7: 0 | K7: 0 | L7: 0 | M7: 4 | N7: 4 | O7: 4 | P7: 4 | Q7: 4 | R7: 4 | S7: 4 | T7: 4 | U7: 4 | V7: 4 | W7: 4 | X7: 4 | Y7: 4 | Z7: 4 | AA7: 4 | AB7: 4 | AC7: 4 | AD7: 4 | AE7: 4 | AF7: 4 | AG7: 4 | AH7: 4 | AI7: 4 | AJ7: 4 | AK7: 4 | AL7: 4 | AM7: 4 | AN7: 4 | AO7: 4
A8: full sample size | B8: =COUNTA('May-Raw'!A:A)-2 -> 4 | C8: =B8 -> 4 | D8: 4 | E8: 4 | F8: 4 | G8: 4 | H8: 4 | I8: 4 | J8: 4 | K8: 4 | L8: 4 | M8: 4 | N8: 4 | O8: 4 | P8: 4 | Q8: 4 | R8: 4 | S8: 4 | T8: 4 | U8: 4 | V8: 4 | W8: 4 | X8: 4 | Y8: 4 | Z8: 4 | AA8: 4 | AB8: 4 | AC8: 4 | AD8: 4 | AE8: 4 | AF8: 4 | AG8: 4 | AH8: 4 | AI8: 4 | AJ8: 4 | AK8: 4 | AL8: 4 | AM8: 4 | AN8: 4 | AO8: 4
A9: True sample size (-NA + blanks) | B9: =IF(ISERROR(B8-(B6+B7)),"",B8-(B6+B7)) -> 4 | C9: =IF(ISERROR(C8-(C6+C7)),"",C8-(C6+C7)) -> 4 | D9: 4 | E9: 4 | F9: 4 | G9: 4 | H9: 4 | I9: 4 | J9: 4 | K9: 4 | L9: 4 | M9: 0 | N9: 0 | O9: 0 | P9: 0 | Q9: 0 | R9: 0 | S9: 0 | T9: 0 | U9: 0 | V9: 0 | W9: 0 | X9: 0 | Y9: 0 | Z9: 0 | AA9: 0 | AB9: 0 | AC9: 0 | AD9: 0 | AE9: 0 | AF9: 0 | AG9: 0 | AH9: 0 | AI9: 0 | AJ9: 0 | AK9: 0 | AL9: 0 | AM9: 0 | AN9: 0 | AO9: 0
A10: %Y | B10: =IF(ISERROR(B3/B9),"",B3/B9) -> 1 | C10: =IF(ISERROR(C3/C9),"",C3/C9) -> 0.75 | D10: 0.5 | E10: 1 | F10: 1 | G10: 1 | H10: 0.5 | I10: 1 | J10: 1 | K10: 1 | L10: 1
A11: %N | B11: =IF(ISERROR(B4/B9),"",B4/B9) -> 0 | C11: =IF(ISERROR(C4/C9),"",C4/C9) -> 0.25 | D11: 0.5 | E11: 0 | F11: 0 | G11: 0 | H11: 0 | I11: 0 | J11: 0 | K11: 0 | L11: 0
A12: %N - Justified | B12: =IF(ISERROR(B5/B9),"",B5/B9) -> 0 | C12: =IF(ISERROR(C5/C9),"",C5/C9) -> 0 | D12: 0 | E12: 0 | F12: 0 | G12: 0 | H12: 0.5 | I12: 0 | J12: 0 | K12: 0 | L12: 0

Sheet June
A1: Click here to go to year overview
A3: Date | D3: Total by Apt type
A4: Completed by | D4: New | E4: =COUNTIF('June-Raw'!E3:E103,"New") -> 5
A5: Sample group size | B5: =COUNTA('June-Raw'!A:A)-2 -> 5 | D5: Follow up | E5: =COUNTIF('June-Raw'!E3:E103,"Fup") -> 0 | H5: =Year!H5 -> 0.95
A6: Overall Result (compliant only) | B6: =IF(ISERROR(SUM(D11:D50)/G51),"",SUM(D11:D50)/G51) -> 0.9454545455 | D6: Total by apt Code | H6: =Year!H6 -> 80-95%
A7: Overall Result (compliant & Justified) | B7: =IF(ISERROR(SUM(C11:C50)/G51),"",SUM(C11:C50)/G51) -> 0.9818181818 | D7: code goes in here | E7: =COUNTIF('June-Raw'!F3:F103,D7) -> 0 | H7: =Year!H7 -> 0.8
A8: viable qs | B8: =G51 -> 11
A10: Metric | B10: Target % | C10: Compliant + Justified | D10: Compliant | E10: Justified | F10: Not compliant | G10: Irritating math
A11: =IF(ISERROR(Q!A2),"",Q!A2) -> Was a Room number documented? | B11: =IF(ISERROR(Q!B2),"",Q!B2) -> 0 | C11: =IF(ISERROR(D11+E11),"",D11+E11) -> 1 | D11: ='June-Data'!B10 -> 1 | E11: ='June-Data'!B12 -> 0 | F11: ='June-Data'!B11 -> 0 | G11: =COUNTIF(D11:F11,">0") -> 1
A12: =IF(ISERROR(Q!A3),"",Q!A3) -> Were stage A checks completed as appropriate? | B12: =IF(ISERROR(Q!B3),"",Q!B3) -> 0 | C12: 1 | D12: ='June-Data'!C10 -> 1 | E12: ='June-Data'!C12 -> 0 | F12: ='June-Data'!C11 -> 0 | G12: 1
A13: =IF(ISERROR(Q!A4),"",Q!A4) -> Was COSI Part 1 performed? | B13: =IF(ISERROR(Q!B4),"",Q!B4) -> 0 | C13: 0.8 | D13: ='June-Data'!D10 -> 0.8 | E13: ='June-Data'!D12 -> 0 | F13: ='June-Data'!D11 -> 0.2 | G13: 2
A14: =IF(ISERROR(Q!A5),"",Q!A5) -> Was PVP documented? | B14: =IF(ISERROR(Q!B5),"",Q!B5) -> 0 | C14: 1 | D14: ='June-Data'!E10 -> 1 | E14: ='June-Data'!E12 -> 0 | F14: ='June-Data'!E11 -> 0 | G14: 1
A15: =IF(ISERROR(Q!A6),"",Q!A6) -> Was Otoscopy documented? | B15: =IF(ISERROR(Q!B6),"",Q!B6) -> 0 | C15: 1 | D15: ='June-Data'!F10 -> 1 | E15: ='June-Data'!F12 -> 0 | F15: ='June-Data'!F11 -> 0 | G15: 1
A16: =IF(ISERROR(Q!A7),"",Q!A7) -> Document bc at 3 & 4kHz is for programming purposes? | B16: =IF(ISERROR(Q!B7),"",Q!B7) -> 0 | C16: 1 | D16: ='June-Data'!G10 -> 1 | E16: ='June-Data'!G12 -> 0 | F16: ='June-Data'!G11 -> 0 | G16: 1
A17: =IF(ISERROR(Q!A8),"",Q!A8) -> Was Speech testing performed? | B17: =IF(ISERROR(Q!B8),"",Q!B8) -> 0 | C17: 1 | D17: ='June-Data'!H10 -> 0.8 | E17: ='June-Data'!H12 -> 0.2 | F17: ='June-Data'!H11 -> 0 | G17: 2
A18: =IF(ISERROR(Q!A9),"",Q!A9) -> Is it documented whether national criteria were/were not met? | B18: =IF(ISERROR(Q!B9),"",Q!B9) -> 0 | C18: 1 | D18: ='June-Data'!I10 -> 1 | E18: ='June-Data'!I12 -> 0 | F18: ='June-Data'!I11 -> 0 | G18: 1
A19: =IF(ISERROR(Q!A10),"",Q!A10) -> Was a BCHI info pack supplied? | B19: =IF(ISERROR(Q!B10),"",Q!B10) -> 0 | C19: 1 | D19: ='June-Data'!J10 -> 0.8 | E19: ='June-Data'!J12 -> 0.2 | F19: ='June-Data'!J11 -> 0 | G19: 2
A20: =IF(ISERROR(Q!A11),"",Q!A11) -> Was the report authorised & issued within target (7 days)? | B20: =IF(ISERROR(Q!B11),"",Q!B11) -> 0 | C20: 1 | D20: ='June-Data'!K10 -> 1 | E20: ='June-Data'!K12 -> 0 | F20: ='June-Data'!K11 -> 0 | G20: 1
A21: =IF(ISERROR(Q!A12),"",Q!A12) -> Was consent documented as appropriate? | B21: =IF(ISERROR(Q!B12),"",Q!B12) -> 0 | C21: 1 | D21: ='June-Data'!L10 -> 1 | E21: ='June-Data'!L12 -> 0 | F21: ='June-Data'!L11 -> 0 | G21: 1
A22: =IF(ISERROR(Q!A13),"",Q!A13) -> 0 | B22: =IF(ISERROR(Q!B13),"",Q!B13) -> 0 | D22: ='June-Data'!M10 ->  | E22: ='June-Data'!M12 ->  | F22: ='June-Data'!M11 ->  | G22: 0
A23: =IF(ISERROR(Q!A14),"",Q!A14) -> 0 | B23: =IF(ISERROR(Q!B14),"",Q!B14) -> 0 | D23: ='June-Data'!N10 ->  | E23: ='June-Data'!N12 ->  | F23: ='June-Data'!N11 ->  | G23: 0
A24: =IF(ISERROR(Q!A15),"",Q!A15) -> 0 | B24: =IF(ISERROR(Q!B15),"",Q!B15) -> 0 | D24: ='June-Data'!O10 ->  | E24: ='June-Data'!O12 ->  | F24: ='June-Data'!O11 ->  | G24: 0
A25: =IF(ISERROR(Q!A16),"",Q!A16) -> 0 | B25: =IF(ISERROR(Q!B16),"",Q!B16) -> 0 | D25: ='June-Data'!P10 ->  | E25: ='June-Data'!P12 ->  | F25: ='June-Data'!P11 ->  | G25: 0
A26: =IF(ISERROR(Q!A17),"",Q!A17) -> 0 | B26: =IF(ISERROR(Q!B17),"",Q!B17) -> 0 | D26: ='June-Data'!Q10 ->  | E26: ='June-Data'!Q12 ->  | F26: ='June-Data'!Q11 ->  | G26: 0
A27: =IF(ISERROR(Q!A18),"",Q!A18) -> 0 | B27: =IF(ISERROR(Q!B18),"",Q!B18) -> 0 | D27: ='June-Data'!R10 ->  | E27: ='June-Data'!R12 ->  | F27: ='June-Data'!R11 ->  | G27: 0
A28: =IF(ISERROR(Q!A19),"",Q!A19) -> 0 | B28: =IF(ISERROR(Q!B19),"",Q!B19) -> 0 | D28: ='June-Data'!S10 ->  | E28: ='June-Data'!S12 ->  | F28: ='June-Data'!S11 ->  | G28: 0
A29: =IF(ISERROR(Q!A20),"",Q!A20) -> 0 | B29: =IF(ISERROR(Q!B20),"",Q!B20) -> 0 | D29: ='June-Data'!T10 ->  | E29: ='June-Data'!T12 ->  | F29: ='June-Data'!T11 ->  | G29: 0
A30: =IF(ISERROR(Q!A21),"",Q!A21) -> 0 | B30: =IF(ISERROR(Q!B21),"",Q!B21) -> 0 | D30: ='June-Data'!U10 ->  | E30: ='June-Data'!U12 ->  | F30: ='June-Data'!U11 ->  | G30: 0
A31: =IF(ISERROR(Q!A22),"",Q!A22) -> 0 | B31: =IF(ISERROR(Q!B22),"",Q!B22) -> 0 | D31: ='June-Data'!V10 ->  | E31: ='June-Data'!V12 ->  | F31: ='June-Data'!V11 ->  | G31: 0
A32: =IF(ISERROR(Q!A23),"",Q!A23) -> 0 | B32: =IF(ISERROR(Q!B23),"",Q!B23) -> 0 | D32: ='June-Data'!W10 ->  | E32: ='June-Data'!W12 ->  | F32: ='June-Data'!W11 ->  | G32: 0
A33: =IF(ISERROR(Q!A24),"",Q!A24) -> 0 | B33: =IF(ISERROR(Q!B24),"",Q!B24) -> 0 | D33: ='June-Data'!X10 ->  | E33: ='June-Data'!X12 ->  | F33: ='June-Data'!X11 ->  | G33: 0
A34: =IF(ISERROR(Q!A25),"",Q!A25) -> 0 | B34: =IF(ISERROR(Q!B25),"",Q!B25) -> 0 | D34: ='June-Data'!Y10 ->  | E34: ='June-Data'!Y12 ->  | F34: ='June-Data'!Y11 ->  | G34: 0
A35: =IF(ISERROR(Q!A26),"",Q!A26) -> 0 | B35: =IF(ISERROR(Q!B26),"",Q!B26) -> 0 | D35: ='June-Data'!Z10 ->  | E35: ='June-Data'!Z12 ->  | F35: ='June-Data'!Z11 ->  | G35: 0
A36: =IF(ISERROR(Q!A27),"",Q!A27) -> 0 | B36: =IF(ISERROR(Q!B27),"",Q!B27) -> 0 | D36: ='June-Data'!AA10 ->  | E36: ='June-Data'!AA12 ->  | F36: ='June-Data'!AA11 ->  | G36: 0
A37: =IF(ISERROR(Q!A28),"",Q!A28) -> 0 | B37: =IF(ISERROR(Q!B28),"",Q!B28) -> 0 | D37: ='June-Data'!AB10 ->  | E37: ='June-Data'!AB12 ->  | F37: ='June-Data'!AB11 ->  | G37: 0
A38: =IF(ISERROR(Q!A29),"",Q!A29) -> 0 | B38: =IF(ISERROR(Q!B29),"",Q!B29) -> 0 | D38: ='June-Data'!AC10 ->  | E38: ='June-Data'!AC12 ->  | F38: ='June-Data'!AC11 ->  | G38: 0
A39: =IF(ISERROR(Q!A30),"",Q!A30) -> 0 | B39: =IF(ISERROR(Q!B30),"",Q!B30) -> 0 | D39: ='June-Data'!AD10 ->  | E39: ='June-Data'!AD12 ->  | F39: ='June-Data'!AD11 ->  | G39: 0
A40: =IF(ISERROR(Q!A31),"",Q!A31) -> 0 | B40: =IF(ISERROR(Q!B31),"",Q!B31) -> 0 | D40: ='June-Data'!AE10 ->  | E40: ='June-Data'!AE12 ->  | F40: ='June-Data'!AE11 ->  | G40: 0
A41: =IF(ISERROR(Q!A32),"",Q!A32) -> 0 | B41: =IF(ISERROR(Q!B32),"",Q!B32) -> 0 | D41: ='June-Data'!AF10 ->  | E41: ='June-Data'!AF12 ->  | F41: ='June-Data'!AF11 ->  | G41: 0
A42: =IF(ISERROR(Q!A33),"",Q!A33) -> 0 | B42: =IF(ISERROR(Q!B33),"",Q!B33) -> 0 | D42: ='June-Data'!AG10 ->  | E42: ='June-Data'!AG12 ->  | F42: ='June-Data'!AG11 ->  | G42: 0
A43: =IF(ISERROR(Q!A34),"",Q!A34) -> 0 | B43: =IF(ISERROR(Q!B34),"",Q!B34) -> 0 | D43: ='June-Data'!AH10 ->  | E43: ='June-Data'!AH12 ->  | F43: ='June-Data'!AH11 ->  | G43: 0
A44: =IF(ISERROR(Q!A35),"",Q!A35) -> 0 | B44: =IF(ISERROR(Q!B35),"",Q!B35) -> 0 | D44: ='June-Data'!AI10 ->  | E44: ='June-Data'!AI12 ->  | F44: ='June-Data'!AI11 ->  | G44: 0
A45: =IF(ISERROR(Q!A36),"",Q!A36) -> 0 | B45: =IF(ISERROR(Q!B36),"",Q!B36) -> 0 | D45: ='June-Data'!AJ10 ->  | E45: ='June-Data'!AJ12 ->  | F45: ='June-Data'!AJ11 ->  | G45: 0
A46: =IF(ISERROR(Q!A37),"",Q!A37) -> 0 | B46: =IF(ISERROR(Q!B37),"",Q!B37) -> 0 | D46: ='June-Data'!AK10 ->  | E46: ='June-Data'!AK12 ->  | F46: ='June-Data'!AK11 ->  | G46: 0
A47: =IF(ISERROR(Q!A38),"",Q!A38) -> 0 | B47: =IF(ISERROR(Q!B38),"",Q!B38) -> 0 | D47: ='June-Data'!AL10 ->  | E47: ='June-Data'!AL12 ->  | F47: ='June-Data'!AL11 ->  | G47: 0
A48: =IF(ISERROR(Q!A39),"",Q!A39) -> 0 | B48: =IF(ISERROR(Q!B39),"",Q!B39) -> 0 | D48: ='June-Data'!AM10 ->  | E48: ='June-Data'!AM12 ->  | F48: ='June-Data'!AM11 ->  | G48: 0
A49: =IF(ISERROR(Q!A40),"",Q!A40) -> 0 | B49: =IF(ISERROR(Q!B40),"",Q!B40) -> 0 | D49: ='June-Data'!AN10 ->  | E49: ='June-Data'!AN12 ->  | F49: ='June-Data'!AN11 ->  | G49: 0
A50: =IF(ISERROR(Q!A41),"",Q!A41) -> 0 | B50: =IF(ISERROR(Q!B41),"",Q!B41) -> 0 | D50: ='June-Data'!AO10 ->  | E50: ='June-Data'!AO12 ->  | F50: ='June-Data'!AO11 ->  | G50: 0
G51: =COUNTIF(G11:G50,">=1") -> 11

Sheet June-Raw (hidden)
A1: Record details | G1: Notes | H1: =Q!A2 -> Was a Room number documented? | J1: =Q!A3 -> Were stage A checks completed as appropriate? | L1: =Q!A4 -> Was COSI Part 1 performed? | N1: =Q!A5 -> Was PVP documented? | P1: =Q!A6 -> Was Otoscopy documented? | R1: =Q!A7 -> Document bc at 3 & 4kHz is for programming purposes? | T1: =Q!A8 -> Was Speech testing performed? | V1: =Q!A9 -> Is it documented whether national criteria were/were not met? | X1: =Q!A10 -> Was a BCHI info pack supplied? | Z1: =Q!A11 -> Was the report authorised & issued within target (7 days)? | AB1: =Q!A12 -> Was consent documented as appropriate? | AD1: =Q!A13 -> 0 | AF1: =Q!A14 -> 0 | AH1: =Q!A15 -> 0 | AJ1: =Q!A16 -> 0 | AL1: =Q!A17 -> 0 | AN1: =Q!A18 -> 0 | AP1: =Q!A19 -> 0 | AR1: =Q!A20 -> 0 | AT1: =Q!A21 -> 0 | AV1: =Q!A22 -> 0 | AX1: =Q!A23 -> 0 | AZ1: =Q!A24 -> 0 | BB1: =Q!A25 -> 0 | BD1: =Q!A26 -> 0 | BF1: =Q!A27 -> 0 | BH1: =Q!A28 -> 0 | BJ1: =Q!A29 -> 0 | BL1: =Q!A30 -> 0 | BN1: =Q!A31 -> 0 | BP1: =Q!A32 -> 0 | BR1: =Q!A33 -> 0 | BT1: =Q!A34 -> 0 | BV1: =Q!A35 -> 0 | BX1: =Q!A36 -> 0 | BZ1: =Q!A37 -> 0 | CB1: =Q!A38 -> 0 | CD1: =Q!A39 -> 0 | CF1: =Q!A40 -> 0 | CH1: =Q!A41 -> 0
A2: Pt number | B2: Date seen | C2: Clinician 1 | D2: clinician 2 | E2: New/ F-up | F2: Apt code | H2: Compliant? | I2: Other result | J2: Compliant? | K2: Other result | L2: Compliant? | M2: Other result | N2: Compliant? | O2: Other result | P2: Compliant? | Q2: Other result | R2: Compliant? | S2: Other result | T2: Compliant? | U2: Other result | V2: Compliant? | W2: Other result | X2: Compliant? | Y2: Other result | Z2: Compliant? | AA2: Other result | AB2: Compliant? | AC2: Other result | AD2: Compliant? | AE2: Other result | AF2: Compliant? | AG2: Other result | AH2: Compliant? | AI2: Other result | AJ2: Compliant? | AK2: Other result | AL2: Compliant? | AM2: Other result | AN2: Compliant? | AO2: Other result | AP2: Compliant? | AQ2: Other result | AR2: Compliant? | AS2: Other result | AT2: Compliant? | AU2: Other result | AV2: Compliant? | AW2: Other result | AX2: Compliant? | AY2: Other result | AZ2: Compliant? | BA2: Other result | BB2: Compliant? | BC2: Other result | BD2: Compliant? | BE2: Other result | BF2: Compliant? | BG2: Other result | BH2: Compliant? | BI2: Other result | BJ2: Compliant? | BK2: Other result | BL2: Compliant? | BM2: Other result | BN2: Compliant? | BO2: Other result | BP2: Compliant? | BQ2: Other result | BR2: Compliant? | BS2: Other result | BT2: Compliant? | BU2: Other result | BV2: Compliant? | BW2: Other result | BX2: Compliant? | BY2: Other result | BZ2: Compliant? | CA2: Other result | CB2: Compliant? | CC2: Other result | CD2: Compliant? | CE2: Other result | CF2: Compliant? | CG2: Other result | CH2: Compliant? | CI2: Other result
A3: AB0001 | B3: 2023-06-06 | C3: AA | E3: New | F3: BA | H3: Yes | J3: Yes | L3: Yes | N3: Yes | P3: Yes | R3: Yes | T3: Justified | U3: English not first language | V3: Yes | X3: Yes | Z3: Yes | AB3: Yes
A4: AB0002 | B4: 2023-06-17 | C4: AA | E4: New | F4: BA | H4: Yes | J4: Yes | L4: No | N4: Yes | P4: Yes | R4: Yes | T4: Yes | V4: Yes | X4: Yes | Z4: Yes | AB4: Yes
A5: AB0003 | B5: 2023-06-24 | C5: BB | E5: New | F5: BA | H5: Yes | J5: Yes | L5: Yes | N5: Yes | P5: Yes | R5: Yes | T5: Yes | V5: Yes | X5: Yes | Z5: Yes | AB5: Yes
A6: AB0004 | B6: 2023-06-26 | C6: BB | E6: New | F6: BA | H6: Yes | J6: Yes | L6: Yes | N6: Yes | P6: Yes | R6: Yes | T6: Yes | V6: Yes | X6: Yes | Z6: Yes | AB6: Yes
A7: AB0005 | B7: 2023-06-28 | C7: CC | E7: New | F7: BA | H7: Yes | J7: Yes | L7: Yes | N7: Yes | P7: Yes | R7: Yes | T7: Yes | V7: Yes | X7: Justified | Y7: Not in criteria for BCHI | Z7: Yes | AB7: Yes

Sheet June-Data (hidden)
A1: Results | B1: =Q!A2 -> Was a Room number documented? | C1: =Q!A3 -> Were stage A checks completed as appropriate? | D1: =Q!A4 -> Was COSI Part 1 performed? | E1: =Q!A5 -> Was PVP documented? | F1: =Q!A6 -> Was Otoscopy documented? | G1: =Q!A7 -> Document bc at 3 & 4kHz is for programming purposes? | H1: =Q!A8 -> Was Speech testing performed? | I1: =Q!A9 -> Is it documented whether national criteria were/were not met? | J1: =Q!A10 -> Was a BCHI info pack supplied? | K1: =Q!A11 -> Was the report authorised & issued within target (7 days)? | L1: =Q!A12 -> Was consent documented as appropriate? | M1: =Q!A13 -> 0 | N1: =Q!A14 -> 0 | O1: =Q!A15 -> 0 | P1: =Q!A16 -> 0 | Q1: =Q!A17 -> 0 | R1: =Q!A18 -> 0 | S1: =Q!A19 -> 0 | T1: =Q!A20 -> 0 | U1: =Q!A21 -> 0 | V1: =Q!A22 -> 0 | W1: =Q!A23 -> 0 | X1: =Q!A24 -> 0 | Y1: =Q!A25 -> 0 | Z1: =Q!A26 -> 0 | AA1: =Q!A27 -> 0 | AB1: =Q!A28 -> 0 | AC1: =Q!A29 -> 0 | AD1: =Q!A30 -> 0 | AE1: =Q!A31 -> 0 | AF1: =Q!A32 -> 0 | AG1: =Q!A33 -> 0 | AH1: =Q!A34 -> 0 | AI1: =Q!A35 -> 0 | AJ1: =Q!A36 -> 0 | AK1: =Q!A37 -> 0 | AL1: =Q!A38 -> 0 | AM1: =Q!A39 -> 0 | AN1: =Q!A40 -> 0 | AO1: =Q!A41 -> 0
B2: Compliant? | C2: Compliant? | D2: Compliant? | E2: Compliant? | F2: Compliant? | G2: Compliant? | H2: Compliant? | I2: Compliant? | J2: Compliant? | K2: Compliant? | L2: Compliant? | M2: Compliant? | N2: Compliant? | O2: Compliant? | P2: Compliant? | Q2: Compliant? | R2: Compliant? | S2: Compliant? | T2: Compliant? | U2: Compliant? | V2: Compliant? | W2: Compliant? | X2: Compliant? | Y2: Compliant? | Z2: Compliant? | AA2: Compliant? | AB2: Compliant? | AC2: Compliant? | AD2: Compliant? | AE2: Compliant? | AF2: Compliant? | AG2: Compliant? | AH2: Compliant? | AI2: Compliant? | AJ2: Compliant? | AK2: Compliant? | AL2: Compliant? | AM2: Compliant? | AN2: Compliant? | AO2: Compliant?
A3: Total Y | B3: =COUNTIF('June-Raw'!H:H,"yes") -> 5 | C3: =COUNTIF('June-Raw'!J:J,"yes") -> 5 | D3: =COUNTIF('June-Raw'!L:L,"yes") -> 4 | E3: =COUNTIF('June-Raw'!N:N,"yes") -> 5 | F3: =COUNTIF('June-Raw'!P:P,"yes") -> 5 | G3: =COUNTIF('June-Raw'!R:R,"yes") -> 5 | H3: =COUNTIF('June-Raw'!T:T,"yes") -> 4 | I3: =COUNTIF('June-Raw'!V:V,"yes") -> 5 | J3: =COUNTIF('June-Raw'!X:X,"yes") -> 4 | K3: =COUNTIF('June-Raw'!Z:Z,"yes") -> 5 | L3: =COUNTIF('June-Raw'!AB:AB,"yes") -> 5 | M3: =COUNTIF('June-Raw'!AD:AD,"yes") -> 0 | N3: =COUNTIF('June-Raw'!AF:AF,"yes") -> 0 | O3: =COUNTIF('June-Raw'!AH:AH,"yes") -> 0 | P3: =COUNTIF('June-Raw'!AJ:AJ,"yes") -> 0 | Q3: =COUNTIF('June-Raw'!AL:AL,"yes") -> 0 | R3: =COUNTIF('June-Raw'!AN:AN,"yes") -> 0 | S3: =COUNTIF('June-Raw'!AP:AP,"yes") -> 0 | T3: =COUNTIF('June-Raw'!AR:AR,"yes") -> 0 | U3: =COUNTIF('June-Raw'!AT:AT,"yes") -> 0 | V3: =COUNTIF('June-Raw'!AV:AV,"yes") -> 0 | W3: =COUNTIF('June-Raw'!AX:AX,"yes") -> 0 | X3: =COUNTIF('June-Raw'!AZ:AZ,"yes") -> 0 | Y3: =COUNTIF('June-Raw'!BB:BB,"yes") -> 0 | Z3: =COUNTIF('June-Raw'!BD:BD,"yes") -> 0 | AA3: =COUNTIF('June-Raw'!BF:BF,"yes") -> 0 | AB3: =COUNTIF('June-Raw'!BH:BH,"yes") -> 0 | AC3: =COUNTIF('June-Raw'!BJ:BJ,"yes") -> 0 | AD3: =COUNTIF('June-Raw'!BL:BL,"yes") -> 0 | AE3: =COUNTIF('June-Raw'!BN:BN,"yes") -> 0 | AF3: =COUNTIF('June-Raw'!BP:BP,"yes") -> 0 | AG3: =COUNTIF('June-Raw'!BR:BR,"yes") -> 0 | AH3: =COUNTIF('June-Raw'!BT:BT,"yes") -> 0 | AI3: =COUNTIF('June-Raw'!BV:BV,"yes") -> 0 | AJ3: =COUNTIF('June-Raw'!BX:BX,"yes") -> 0 | AK3: =COUNTIF('June-Raw'!BZ:BZ,"yes") -> 0 | AL3: =COUNTIF('June-Raw'!CB:CB,"yes") -> 0 | AM3: =COUNTIF('June-Raw'!CD:CD,"yes") -> 0 | AN3: =COUNTIF('June-Raw'!CF:CF,"yes") -> 0 | AO3: =COUNTIF('June-Raw'!CH:CH,"yes") -> 0
A4: Total N | B4: =COUNTIF('June-Raw'!H:H,"no") -> 0 | C4: =COUNTIF('June-Raw'!J:J,"no") -> 0 | D4: =COUNTIF('June-Raw'!L:L,"no") -> 1 | E4: =COUNTIF('June-Raw'!N:N,"no") -> 0 | F4: =COUNTIF('June-Raw'!P:P,"no") -> 0 | G4: =COUNTIF('June-Raw'!R:R,"no") -> 0 | H4: =COUNTIF('June-Raw'!T:T,"no") -> 0 | I4: =COUNTIF('June-Raw'!V:V,"no") -> 0 | J4: =COUNTIF('June-Raw'!X:X,"no") -> 0 | K4: =COUNTIF('June-Raw'!Z:Z,"no") -> 0 | L4: =COUNTIF('June-Raw'!AB:AB,"no") -> 0 | M4: =COUNTIF('June-Raw'!AD:AD,"no") -> 0 | N4: =COUNTIF('June-Raw'!AF:AF,"no") -> 0 | O4: =COUNTIF('June-Raw'!AH:AH,"no") -> 0 | P4: =COUNTIF('June-Raw'!AJ:AJ,"no") -> 0 | Q4: =COUNTIF('June-Raw'!AL:AL,"no") -> 0 | R4: =COUNTIF('June-Raw'!AN:AN,"no") -> 0 | S4: =COUNTIF('June-Raw'!AP:AP,"no") -> 0 | T4: =COUNTIF('June-Raw'!AR:AR,"no") -> 0 | U4: =COUNTIF('June-Raw'!AT:AT,"no") -> 0 | V4: =COUNTIF('June-Raw'!AV:AV,"no") -> 0 | W4: =COUNTIF('June-Raw'!AX:AX,"no") -> 0 | X4: =COUNTIF('June-Raw'!AZ:AZ,"no") -> 0 | Y4: =COUNTIF('June-Raw'!BB:BB,"no") -> 0 | Z4: =COUNTIF('June-Raw'!BD:BD,"no") -> 0 | AA4: =COUNTIF('June-Raw'!BF:BF,"no") -> 0 | AB4: =COUNTIF('June-Raw'!BH:BH,"no") -> 0 | AC4: =COUNTIF('June-Raw'!BJ:BJ,"no") -> 0 | AD4: =COUNTIF('June-Raw'!BL:BL,"no") -> 0 | AE4: =COUNTIF('June-Raw'!BN:BN,"no") -> 0 | AF4: =COUNTIF('June-Raw'!BP:BP,"no") -> 0 | AG4: =COUNTIF('June-Raw'!BR:BR,"no") -> 0 | AH4: =COUNTIF('June-Raw'!BT:BT,"no") -> 0 | AI4: =COUNTIF('June-Raw'!BV:BV,"no") -> 0 | AJ4: =COUNTIF('June-Raw'!BX:BX,"no") -> 0 | AK4: =COUNTIF('June-Raw'!BZ:BZ,"no") -> 0 | AL4: =COUNTIF('June-Raw'!CB:CB,"no") -> 0 | AM4: =COUNTIF('June-Raw'!CD:CD,"no") -> 0 | AN4: =COUNTIF('June-Raw'!CF:CF,"no") -> 0 | AO4: =COUNTIF('June-Raw'!CH:CH,"no") -> 0
A5: Total Justified | B5: =COUNTIF('June-Raw'!H:H,"Justified") -> 0 | C5: =COUNTIF('June-Raw'!J:J,"Justified") -> 0 | D5: =COUNTIF('June-Raw'!L:L,"Justified") -> 0 | E5: =COUNTIF('June-Raw'!N:N,"Justified") -> 0 | F5: =COUNTIF('June-Raw'!P:P,"Justified") -> 0 | G5: =COUNTIF('June-Raw'!R:R,"Justified") -> 0 | H5: =COUNTIF('June-Raw'!T:T,"Justified") -> 1 | I5: =COUNTIF('June-Raw'!V:V,"Justified") -> 0 | J5: =COUNTIF('June-Raw'!X:X,"Justified") -> 1 | K5: =COUNTIF('June-Raw'!Z:Z,"Justified") -> 0 | L5: =COUNTIF('June-Raw'!AB:AB,"Justified") -> 0 | M5: =COUNTIF('June-Raw'!AD:AD,"Justified") -> 0 | N5: =COUNTIF('June-Raw'!AF:AF,"Justified") -> 0 | O5: =COUNTIF('June-Raw'!AH:AH,"Justified") -> 0 | P5: =COUNTIF('June-Raw'!AJ:AJ,"Justified") -> 0 | Q5: =COUNTIF('June-Raw'!AL:AL,"Justified") -> 0 | R5: =COUNTIF('June-Raw'!AN:AN,"Justified") -> 0 | S5: =COUNTIF('June-Raw'!AP:AP,"Justified") -> 0 | T5: =COUNTIF('June-Raw'!AR:AR,"Justified") -> 0 | U5: =COUNTIF('June-Raw'!AT:AT,"Justified") -> 0 | V5: =COUNTIF('June-Raw'!AV:AV,"Justified") -> 0 | W5: =COUNTIF('June-Raw'!AX:AX,"Justified") -> 0 | X5: =COUNTIF('June-Raw'!AZ:AZ,"Justified") -> 0 | Y5: =COUNTIF('June-Raw'!BB:BB,"Justified") -> 0 | Z5: =COUNTIF('June-Raw'!BD:BD,"Justified") -> 0 | AA5: =COUNTIF('June-Raw'!BF:BF,"Justified") -> 0 | AB5: =COUNTIF('June-Raw'!BH:BH,"Justified") -> 0 | AC5: =COUNTIF('June-Raw'!BJ:BJ,"Justified") -> 0 | AD5: =COUNTIF('June-Raw'!BL:BL,"Justified") -> 0 | AE5: =COUNTIF('June-Raw'!BN:BN,"Justified") -> 0 | AF5: =COUNTIF('June-Raw'!BP:BP,"Justified") -> 0 | AG5: =COUNTIF('June-Raw'!BR:BR,"Justified") -> 0 | AH5: =COUNTIF('June-Raw'!BT:BT,"Justified") -> 0 | AI5: =COUNTIF('June-Raw'!BV:BV,"Justified") -> 0 | AJ5: =COUNTIF('June-Raw'!BX:BX,"Justified") -> 0 | AK5: =COUNTIF('June-Raw'!BZ:BZ,"Justified") -> 0 | AL5: =COUNTIF('June-Raw'!CB:CB,"Justified") -> 0 | AM5: =COUNTIF('June-Raw'!CD:CD,"Justified") -> 0 | AN5: =COUNTIF('June-Raw'!CF:CF,"Justified") -> 0 | AO5: =COUNTIF('June-Raw'!CH:CH,"Justified") -> 0
A6: Total NA | B6: =COUNTIF('June-Raw'!H:H,"NA") -> 0 | C6: =COUNTIF('June-Raw'!J:J,"NA") -> 0 | D6: =COUNTIF('June-Raw'!L:L,"NA") -> 0 | E6: =COUNTIF('June-Raw'!N:N,"NA") -> 0 | F6: =COUNTIF('June-Raw'!P:P,"NA") -> 0 | G6: =COUNTIF('June-Raw'!R:R,"NA") -> 0 | H6: =COUNTIF('June-Raw'!T:T,"NA") -> 0 | I6: =COUNTIF('June-Raw'!V:V,"NA") -> 0 | J6: =COUNTIF('June-Raw'!X:X,"NA") -> 0 | K6: =COUNTIF('June-Raw'!Z:Z,"NA") -> 0 | L6: =COUNTIF('June-Raw'!AB:AB,"NA") -> 0 | M6: =COUNTIF('June-Raw'!AD:AD,"NA") -> 0 | N6: =COUNTIF('June-Raw'!AF:AF,"NA") -> 0 | O6: =COUNTIF('June-Raw'!AH:AH,"NA") -> 0 | P6: =COUNTIF('June-Raw'!AJ:AJ,"NA") -> 0 | Q6: =COUNTIF('June-Raw'!AL:AL,"NA") -> 0 | R6: =COUNTIF('June-Raw'!AN:AN,"NA") -> 0 | S6: =COUNTIF('June-Raw'!AP:AP,"NA") -> 0 | T6: =COUNTIF('June-Raw'!AR:AR,"NA") -> 0 | U6: =COUNTIF('June-Raw'!AT:AT,"NA") -> 0 | V6: =COUNTIF('June-Raw'!AV:AV,"NA") -> 0 | W6: =COUNTIF('June-Raw'!AX:AX,"NA") -> 0 | X6: =COUNTIF('June-Raw'!AZ:AZ,"NA") -> 0 | Y6: =COUNTIF('June-Raw'!BB:BB,"NA") -> 0 | Z6: =COUNTIF('June-Raw'!BD:BD,"NA") -> 0 | AA6: =COUNTIF('June-Raw'!BF:BF,"NA") -> 0 | AB6: =COUNTIF('June-Raw'!BH:BH,"NA") -> 0 | AC6: =COUNTIF('June-Raw'!BJ:BJ,"NA") -> 0 | AD6: =COUNTIF('June-Raw'!BL:BL,"NA") -> 0 | AE6: =COUNTIF('June-Raw'!BN:BN,"NA") -> 0 | AF6: =COUNTIF('June-Raw'!BP:BP,"NA") -> 0 | AG6: =COUNTIF('June-Raw'!BR:BR,"NA") -> 0 | AH6: =COUNTIF('June-Raw'!BT:BT,"NA") -> 0 | AI6: =COUNTIF('June-Raw'!BV:BV,"NA") -> 0 | AJ6: =COUNTIF('June-Raw'!BX:BX,"NA") -> 0 | AK6: =COUNTIF('June-Raw'!BZ:BZ,"NA") -> 0 | AL6: =COUNTIF('June-Raw'!CB:CB,"NA") -> 0 | AM6: =COUNTIF('June-Raw'!CD:CD,"NA") -> 0 | AN6: =COUNTIF('June-Raw'!CF:CF,"NA") -> 0 | AO6: =COUNTIF('June-Raw'!CH:CH,"NA") -> 0
A7: Blanks | B7: =B8-(SUM(B3:B6)) -> 0 | C7: =C8-(SUM(C3:C6)) -> 0 | D7: 0 | E7: 0 | F7: 0 | G7: 0 | H7: 0 | I7: 0 | J7: 0 | K7: 0 | L7: 0 | M7: 5 | N7: 5 | O7: 5 | P7: 5 | Q7: 5 | R7: 5 | S7: 5 | T7: 5 | U7: 5 | V7: 5 | W7: 5 | X7: 5 | Y7: 5 | Z7: 5 | AA7: 5 | AB7: 5 | AC7: 5 | AD7: 5 | AE7: 5 | AF7: 5 | AG7: 5 | AH7: 5 | AI7: 5 | AJ7: 5 | AK7: 5 | AL7: 5 | AM7: 5 | AN7: 5 | AO7: 5
A8: full sample size | B8: =COUNTA('June-Raw'!A:A)-2 -> 5 | C8: =B8 -> 5 | D8: 5 | E8: 5 | F8: 5 | G8: 5 | H8: 5 | I8: 5 | J8: 5 | K8: 5 | L8: 5 | M8: 5 | N8: 5 | O8: 5 | P8: 5 | Q8: 5 | R8: 5 | S8: 5 | T8: 5 | U8: 5 | V8: 5 | W8: 5 | X8: 5 | Y8: 5 | Z8: 5 | AA8: 5 | AB8: 5 | AC8: 5 | AD8: 5 | AE8: 5 | AF8: 5 | AG8: 5 | AH8: 5 | AI8: 5 | AJ8: 5 | AK8: 5 | AL8: 5 | AM8: 5 | AN8: 5 | AO8: 5
A9: True sample size (-NA + blanks) | B9: =IF(ISERROR(B8-(B6+B7)),"",B8-(B6+B7)) -> 5 | C9: =IF(ISERROR(C8-(C6+C7)),"",C8-(C6+C7)) -> 5 | D9: 5 | E9: 5 | F9: 5 | G9: 5 | H9: 5 | I9: 5 | J9: 5 | K9: 5 | L9: 5 | M9: 0 | N9: 0 | O9: 0 | P9: 0 | Q9: 0 | R9: 0 | S9: 0 | T9: 0 | U9: 0 | V9: 0 | W9: 0 | X9: 0 | Y9: 0 | Z9: 0 | AA9: 0 | AB9: 0 | AC9: 0 | AD9: 0 | AE9: 0 | AF9: 0 | AG9: 0 | AH9: 0 | AI9: 0 | AJ9: 0 | AK9: 0 | AL9: 0 | AM9: 0 | AN9: 0 | AO9: 0
A10: %Y | B10: =IF(ISERROR(B3/B9),"",B3/B9) -> 1 | C10: =IF(ISERROR(C3/C9),"",C3/C9) -> 1 | D10: 0.8 | E10: 1 | F10: 1 | G10: 1 | H10: 0.8 | I10: 1 | J10: 0.8 | K10: 1 | L10: 1
A11: %N | B11: =IF(ISERROR(B4/B9),"",B4/B9) -> 0 | C11: =IF(ISERROR(C4/C9),"",C4/C9) -> 0 | D11: 0.2 | E11: 0 | F11: 0 | G11: 0 | H11: 0 | I11: 0 | J11: 0 | K11: 0 | L11: 0
A12: %N - Justified | B12: =IF(ISERROR(B5/B9),"",B5/B9) -> 0 | C12: =IF(ISERROR(C5/C9),"",C5/C9) -> 0 | D12: 0 | E12: 0 | F12: 0 | G12: 0 | H12: 0.2 | I12: 0 | J12: 0.2 | K12: 0 | L12: 0

Sheet July
A1: Click here to go to year overview
A3: Date | D3: Total by Apt type
A4: Completed by | D4: New | E4: =COUNTIF('July-Raw'!E3:E103,"New") -> 5
A5: Sample group size | B5: =COUNTA('July-Raw'!A:A)-2 -> 5 | D5: Follow up | E5: =COUNTIF('July-Raw'!E3:E103,"Fup") -> 0 | H5: =Year!H5 -> 0.95
A6: Overall Result (compliant only) | B6: =IF(ISERROR(SUM(D11:D50)/G51),"",SUM(D11:D50)/G51) -> 0.9636363636 | D6: Total by apt Code | H6: =Year!H6 -> 80-95%
A7: Overall Result (compliant & Justified) | B7: =IF(ISERROR(SUM(C11:C50)/G51),"",SUM(C11:C50)/G51) -> 0.9818181818 | D7: code goes in here | E7: =COUNTIF('July-Raw'!F3:F103,D7) -> 0 | H7: =Year!H7 -> 0.8
A8: viable qs | B8: =G51 -> 11
A10: Metric | B10: Target % | C10: Compliant + Justified | D10: Compliant | E10: Justified | F10: Not compliant | G10: Irritating math
A11: =IF(ISERROR(Q!A2),"",Q!A2) -> Was a Room number documented? | B11: =IF(ISERROR(Q!B2),"",Q!B2) -> 0 | C11: =IF(ISERROR(D11+E11),"",D11+E11) -> 1 | D11: ='July-Data'!B10 -> 1 | E11: ='July-Data'!B12 -> 0 | F11: ='July-Data'!B11 -> 0 | G11: =COUNTIF(D11:F11,">0") -> 1
A12: =IF(ISERROR(Q!A3),"",Q!A3) -> Were stage A checks completed as appropriate? | B12: =IF(ISERROR(Q!B3),"",Q!B3) -> 0 | C12: 1 | D12: ='July-Data'!C10 -> 1 | E12: ='July-Data'!C12 -> 0 | F12: ='July-Data'!C11 -> 0 | G12: 1
A13: =IF(ISERROR(Q!A4),"",Q!A4) -> Was COSI Part 1 performed? | B13: =IF(ISERROR(Q!B4),"",Q!B4) -> 0 | C13: 0.8 | D13: ='July-Data'!D10 -> 0.8 | E13: ='July-Data'!D12 -> 0 | F13: ='July-Data'!D11 -> 0.2 | G13: 2
A14: =IF(ISERROR(Q!A5),"",Q!A5) -> Was PVP documented? | B14: =IF(ISERROR(Q!B5),"",Q!B5) -> 0 | C14: 1 | D14: ='July-Data'!E10 -> 1 | E14: ='July-Data'!E12 -> 0 | F14: ='July-Data'!E11 -> 0 | G14: 1
A15: =IF(ISERROR(Q!A6),"",Q!A6) -> Was Otoscopy documented? | B15: =IF(ISERROR(Q!B6),"",Q!B6) -> 0 | C15: 1 | D15: ='July-Data'!F10 -> 1 | E15: ='July-Data'!F12 -> 0 | F15: ='July-Data'!F11 -> 0 | G15: 1
A16: =IF(ISERROR(Q!A7),"",Q!A7) -> Document bc at 3 & 4kHz is for programming purposes? | B16: =IF(ISERROR(Q!B7),"",Q!B7) -> 0 | C16: 1 | D16: ='July-Data'!G10 -> 1 | E16: ='July-Data'!G12 -> 0 | F16: ='July-Data'!G11 -> 0 | G16: 1
A17: =IF(ISERROR(Q!A8),"",Q!A8) -> Was Speech testing performed? | B17: =IF(ISERROR(Q!B8),"",Q!B8) -> 0 | C17: 1 | D17: ='July-Data'!H10 -> 0.8 | E17: ='July-Data'!H12 -> 0.2 | F17: ='July-Data'!H11 -> 0 | G17: 2
A18: =IF(ISERROR(Q!A9),"",Q!A9) -> Is it documented whether national criteria were/were not met? | B18: =IF(ISERROR(Q!B9),"",Q!B9) -> 0 | C18: 1 | D18: ='July-Data'!I10 -> 1 | E18: ='July-Data'!I12 -> 0 | F18: ='July-Data'!I11 -> 0 | G18: 1
A19: =IF(ISERROR(Q!A10),"",Q!A10) -> Was a BCHI info pack supplied? | B19: =IF(ISERROR(Q!B10),"",Q!B10) -> 0 | C19: 1 | D19: ='July-Data'!J10 -> 1 | E19: ='July-Data'!J12 -> 0 | F19: ='July-Data'!J11 -> 0 | G19: 1
A20: =IF(ISERROR(Q!A11),"",Q!A11) -> Was the report authorised & issued within target (7 days)? | B20: =IF(ISERROR(Q!B11),"",Q!B11) -> 0 | C20: 1 | D20: ='July-Data'!K10 -> 1 | E20: ='July-Data'!K12 -> 0 | F20: ='July-Data'!K11 -> 0 | G20: 1
A21: =IF(ISERROR(Q!A12),"",Q!A12) -> Was consent documented as appropriate? | B21: =IF(ISERROR(Q!B12),"",Q!B12) -> 0 | C21: 1 | D21: ='July-Data'!L10 -> 1 | E21: ='July-Data'!L12 -> 0 | F21: ='July-Data'!L11 -> 0 | G21: 1
A22: =IF(ISERROR(Q!A13),"",Q!A13) -> 0 | B22: =IF(ISERROR(Q!B13),"",Q!B13) -> 0 | D22: ='July-Data'!M10 ->  | E22: ='July-Data'!M12 ->  | F22: ='July-Data'!M11 ->  | G22: 0
A23: =IF(ISERROR(Q!A14),"",Q!A14) -> 0 | B23: =IF(ISERROR(Q!B14),"",Q!B14) -> 0 | D23: ='July-Data'!N10 ->  | E23: ='July-Data'!N12 ->  | F23: ='July-Data'!N11 ->  | G23: 0
A24: =IF(ISERROR(Q!A15),"",Q!A15) -> 0 | B24: =IF(ISERROR(Q!B15),"",Q!B15) -> 0 | D24: ='July-Data'!O10 ->  | E24: ='July-Data'!O12 ->  | F24: ='July-Data'!O11 ->  | G24: 0
A25: =IF(ISERROR(Q!A16),"",Q!A16) -> 0 | B25: =IF(ISERROR(Q!B16),"",Q!B16) -> 0 | D25: ='July-Data'!P10 ->  | E25: ='July-Data'!P12 ->  | F25: ='July-Data'!P11 ->  | G25: 0
A26: =IF(ISERROR(Q!A17),"",Q!A17) -> 0 | B26: =IF(ISERROR(Q!B17),"",Q!B17) -> 0 | D26: ='July-Data'!Q10 ->  | E26: ='July-Data'!Q12 ->  | F26: ='July-Data'!Q11 ->  | G26: 0
A27: =IF(ISERROR(Q!A18),"",Q!A18) -> 0 | B27: =IF(ISERROR(Q!B18),"",Q!B18) -> 0 | D27: ='July-Data'!R10 ->  | E27: ='July-Data'!R12 ->  | F27: ='July-Data'!R11 ->  | G27: 0
A28: =IF(ISERROR(Q!A19),"",Q!A19) -> 0 | B28: =IF(ISERROR(Q!B19),"",Q!B19) -> 0 | D28: ='July-Data'!S10 ->  | E28: ='July-Data'!S12 ->  | F28: ='July-Data'!S11 ->  | G28: 0
A29: =IF(ISERROR(Q!A20),"",Q!A20) -> 0 | B29: =IF(ISERROR(Q!B20),"",Q!B20) -> 0 | D29: ='July-Data'!T10 ->  | E29: ='July-Data'!T12 ->  | F29: ='July-Data'!T11 ->  | G29: 0
A30: =IF(ISERROR(Q!A21),"",Q!A21) -> 0 | B30: =IF(ISERROR(Q!B21),"",Q!B21) -> 0 | D30: ='July-Data'!U10 ->  | E30: ='July-Data'!U12 ->  | F30: ='July-Data'!U11 ->  | G30: 0
A31: =IF(ISERROR(Q!A22),"",Q!A22) -> 0 | B31: =IF(ISERROR(Q!B22),"",Q!B22) -> 0 | D31: ='July-Data'!V10 ->  | E31: ='July-Data'!V12 ->  | F31: ='July-Data'!V11 ->  | G31: 0
A32: =IF(ISERROR(Q!A23),"",Q!A23) -> 0 | B32: =IF(ISERROR(Q!B23),"",Q!B23) -> 0 | D32: ='July-Data'!W10 ->  | E32: ='July-Data'!W12 ->  | F32: ='July-Data'!W11 ->  | G32: 0
A33: =IF(ISERROR(Q!A24),"",Q!A24) -> 0 | B33: =IF(ISERROR(Q!B24),"",Q!B24) -> 0 | D33: ='July-Data'!X10 ->  | E33: ='July-Data'!X12 ->  | F33: ='July-Data'!X11 ->  | G33: 0
A34: =IF(ISERROR(Q!A25),"",Q!A25) -> 0 | B34: =IF(ISERROR(Q!B25),"",Q!B25) -> 0 | D34: ='July-Data'!Y10 ->  | E34: ='July-Data'!Y12 ->  | F34: ='July-Data'!Y11 ->  | G34: 0
A35: =IF(ISERROR(Q!A26),"",Q!A26) -> 0 | B35: =IF(ISERROR(Q!B26),"",Q!B26) -> 0 | D35: ='July-Data'!Z10 ->  | E35: ='July-Data'!Z12 ->  | F35: ='July-Data'!Z11 ->  | G35: 0
A36: =IF(ISERROR(Q!A27),"",Q!A27) -> 0 | B36: =IF(ISERROR(Q!B27),"",Q!B27) -> 0 | D36: ='July-Data'!AA10 ->  | E36: ='July-Data'!AA12 ->  | F36: ='July-Data'!AA11 ->  | G36: 0
A37: =IF(ISERROR(Q!A28),"",Q!A28) -> 0 | B37: =IF(ISERROR(Q!B28),"",Q!B28) -> 0 | D37: ='July-Data'!AB10 ->  | E37: ='July-Data'!AB12 ->  | F37: ='July-Data'!AB11 ->  | G37: 0
A38: =IF(ISERROR(Q!A29),"",Q!A29) -> 0 | B38: =IF(ISERROR(Q!B29),"",Q!B29) -> 0 | D38: ='July-Data'!AC10 ->  | E38: ='July-Data'!AC12 ->  | F38: ='July-Data'!AC11 ->  | G38: 0
A39: =IF(ISERROR(Q!A30),"",Q!A30) -> 0 | B39: =IF(ISERROR(Q!B30),"",Q!B30) -> 0 | D39: ='July-Data'!AD10 ->  | E39: ='July-Data'!AD12 ->  | F39: ='July-Data'!AD11 ->  | G39: 0
A40: =IF(ISERROR(Q!A31),"",Q!A31) -> 0 | B40: =IF(ISERROR(Q!B31),"",Q!B31) -> 0 | D40: ='July-Data'!AE10 ->  | E40: ='July-Data'!AE12 ->  | F40: ='July-Data'!AE11 ->  | G40: 0
A41: =IF(ISERROR(Q!A32),"",Q!A32) -> 0 | B41: =IF(ISERROR(Q!B32),"",Q!B32) -> 0 | D41: ='July-Data'!AF10 ->  | E41: ='July-Data'!AF12 ->  | F41: ='July-Data'!AF11 ->  | G41: 0
A42: =IF(ISERROR(Q!A33),"",Q!A33) -> 0 | B42: =IF(ISERROR(Q!B33),"",Q!B33) -> 0 | D42: ='July-Data'!AG10 ->  | E42: ='July-Data'!AG12 ->  | F42: ='July-Data'!AG11 ->  | G42: 0
A43: =IF(ISERROR(Q!A34),"",Q!A34) -> 0 | B43: =IF(ISERROR(Q!B34),"",Q!B34) -> 0 | D43: ='July-Data'!AH10 ->  | E43: ='July-Data'!AH12 ->  | F43: ='July-Data'!AH11 ->  | G43: 0
A44: =IF(ISERROR(Q!A35),"",Q!A35) -> 0 | B44: =IF(ISERROR(Q!B35),"",Q!B35) -> 0 | D44: ='July-Data'!AI10 ->  | E44: ='July-Data'!AI12 ->  | F44: ='July-Data'!AI11 ->  | G44: 0
A45: =IF(ISERROR(Q!A36),"",Q!A36) -> 0 | B45: =IF(ISERROR(Q!B36),"",Q!B36) -> 0 | D45: ='July-Data'!AJ10 ->  | E45: ='July-Data'!AJ12 ->  | F45: ='July-Data'!AJ11 ->  | G45: 0
A46: =IF(ISERROR(Q!A37),"",Q!A37) -> 0 | B46: =IF(ISERROR(Q!B37),"",Q!B37) -> 0 | D46: ='July-Data'!AK10 ->  | E46: ='July-Data'!AK12 ->  | F46: ='July-Data'!AK11 ->  | G46: 0
A47: =IF(ISERROR(Q!A38),"",Q!A38) -> 0 | B47: =IF(ISERROR(Q!B38),"",Q!B38) -> 0 | D47: ='July-Data'!AL10 ->  | E47: ='July-Data'!AL12 ->  | F47: ='July-Data'!AL11 ->  | G47: 0
A48: =IF(ISERROR(Q!A39),"",Q!A39) -> 0 | B48: =IF(ISERROR(Q!B39),"",Q!B39) -> 0 | D48: ='July-Data'!AM10 ->  | E48: ='July-Data'!AM12 ->  | F48: ='July-Data'!AM11 ->  | G48: 0
A49: =IF(ISERROR(Q!A40),"",Q!A40) -> 0 | B49: =IF(ISERROR(Q!B40),"",Q!B40) -> 0 | D49: ='July-Data'!AN10 ->  | E49: ='July-Data'!AN12 ->  | F49: ='July-Data'!AN11 ->  | G49: 0
A50: =IF(ISERROR(Q!A41),"",Q!A41) -> 0 | B50: =IF(ISERROR(Q!B41),"",Q!B41) -> 0 | D50: ='July-Data'!AO10 ->  | E50: ='July-Data'!AO12 ->  | F50: ='July-Data'!AO11 ->  | G50: 0
G51: =COUNTIF(G11:G50,">=1") -> 11

Sheet July-Raw (hidden)
A1: Record details | G1: Notes | H1: =Q!A2 -> Was a Room number documented? | J1: =Q!A3 -> Were stage A checks completed as appropriate? | L1: =Q!A4 -> Was COSI Part 1 performed? | N1: =Q!A5 -> Was PVP documented? | P1: =Q!A6 -> Was Otoscopy documented? | R1: =Q!A7 -> Document bc at 3 & 4kHz is for programming purposes? | T1: =Q!A8 -> Was Speech testing performed? | V1: =Q!A9 -> Is it documented whether national criteria were/were not met? | X1: =Q!A10 -> Was a BCHI info pack supplied? | Z1: =Q!A11 -> Was the report authorised & issued within target (7 days)? | AB1: =Q!A12 -> Was consent documented as appropriate? | AD1: =Q!A13 -> 0 | AF1: =Q!A14 -> 0 | AH1: =Q!A15 -> 0 | AJ1: =Q!A16 -> 0 | AL1: =Q!A17 -> 0 | AN1: =Q!A18 -> 0 | AP1: =Q!A19 -> 0 | AR1: =Q!A20 -> 0 | AT1: =Q!A21 -> 0 | AV1: =Q!A22 -> 0 | AX1: =Q!A23 -> 0 | AZ1: =Q!A24 -> 0 | BB1: =Q!A25 -> 0 | BD1: =Q!A26 -> 0 | BF1: =Q!A27 -> 0 | BH1: =Q!A28 -> 0 | BJ1: =Q!A29 -> 0 | BL1: =Q!A30 -> 0 | BN1: =Q!A31 -> 0 | BP1: =Q!A32 -> 0 | BR1: =Q!A33 -> 0 | BT1: =Q!A34 -> 0 | BV1: =Q!A35 -> 0 | BX1: =Q!A36 -> 0 | BZ1: =Q!A37 -> 0 | CB1: =Q!A38 -> 0 | CD1: =Q!A39 -> 0 | CF1: =Q!A40 -> 0 | CH1: =Q!A41 -> 0
A2: Pt number | B2: Date seen | C2: Clinician 1 | D2: clinician 2 | E2: New/ F-up | F2: Apt code | H2: Compliant? | I2: Other result | J2: Compliant? | K2: Other result | L2: Compliant? | M2: Other result | N2: Compliant? | O2: Other result | P2: Compliant? | Q2: Other result | R2: Compliant? | S2: Other result | T2: Compliant? | U2: Other result | V2: Compliant? | W2: Other result | X2: Compliant? | Y2: Other result | Z2: Compliant? | AA2: Other result | AB2: Compliant? | AC2: Other result | AD2: Compliant? | AE2: Other result | AF2: Compliant? | AG2: Other result | AH2: Compliant? | AI2: Other result | AJ2: Compliant? | AK2: Other result | AL2: Compliant? | AM2: Other result | AN2: Compliant? | AO2: Other result | AP2: Compliant? | AQ2: Other result | AR2: Compliant? | AS2: Other result | AT2: Compliant? | AU2: Other result | AV2: Compliant? | AW2: Other result | AX2: Compliant? | AY2: Other result | AZ2: Compliant? | BA2: Other result | BB2: Compliant? | BC2: Other result | BD2: Compliant? | BE2: Other result | BF2: Compliant? | BG2: Other result | BH2: Compliant? | BI2: Other result | BJ2: Compliant? | BK2: Other result | BL2: Compliant? | BM2: Other result | BN2: Compliant? | BO2: Other result | BP2: Compliant? | BQ2: Other result | BR2: Compliant? | BS2: Other result | BT2: Compliant? | BU2: Other result | BV2: Compliant? | BW2: Other result | BX2: Compliant? | BY2: Other result | BZ2: Compliant? | CA2: Other result | CB2: Compliant? | CC2: Other result | CD2: Compliant? | CE2: Other result | CF2: Compliant? | CG2: Other result | CH2: Compliant? | CI2: Other result
A3: AB0001 | B3: 2023-07-07 | C3: AA | E3: New | F3: BA | H3: Yes | J3: Yes | L3: No | N3: Yes | P3: Yes | R3: Yes | T3: Yes | V3: Yes | X3: Yes | Z3: Yes | AB3: Yes
A4: AB0002 | B4: 2023-07-17 | C4: AA | E4: New | F4: BA | H4: Yes | J4: Yes | L4: Yes | N4: Yes | P4: Yes | R4: Yes | T4: Yes | V4: Yes | X4: Yes | Z4: Yes | AB4: Yes
A5: AB0003 | B5: 2023-07-24 | C5: BB | E5: New | F5: BA | H5: Yes | J5: Yes | L5: Yes | N5: Yes | P5: Yes | R5: Yes | T5: Yes | V5: Yes | X5: Yes | Z5: Yes | AB5: Yes
A6: AB0004 | B6: 2023-07-26 | C6: BB | E6: New | F6: BA | H6: Yes | J6: Yes | L6: Yes | N6: Yes | P6: Yes | R6: Yes | T6: Justified | U6: Pt has poor speech so unable to correctly score | V6: Yes | X6: Yes | Z6: Yes | AB6: Yes
A7: AB0005 | B7: 2023-07-28 | C7: CC | E7: New | F7: BA | H7: Yes | J7: Yes | L7: Yes | N7: Yes | P7: Yes | R7: Yes | T7: Yes | V7: Yes | X7: Yes | Z7: Yes | AB7: Yes

Sheet July-Data (hidden)
A1: Results | B1: =Q!A2 -> Was a Room number documented? | C1: =Q!A3 -> Were stage A checks completed as appropriate? | D1: =Q!A4 -> Was COSI Part 1 performed? | E1: =Q!A5 -> Was PVP documented? | F1: =Q!A6 -> Was Otoscopy documented? | G1: =Q!A7 -> Document bc at 3 & 4kHz is for programming purposes? | H1: =Q!A8 -> Was Speech testing performed? | I1: =Q!A9 -> Is it documented whether national criteria were/were not met? | J1: =Q!A10 -> Was a BCHI info pack supplied? | K1: =Q!A11 -> Was the report authorised & issued within target (7 days)? | L1: =Q!A12 -> Was consent documented as appropriate? | M1: =Q!A13 -> 0 | N1: =Q!A14 -> 0 | O1: =Q!A15 -> 0 | P1: =Q!A16 -> 0 | Q1: =Q!A17 -> 0 | R1: =Q!A18 -> 0 | S1: =Q!A19 -> 0 | T1: =Q!A20 -> 0 | U1: =Q!A21 -> 0 | V1: =Q!A22 -> 0 | W1: =Q!A23 -> 0 | X1: =Q!A24 -> 0 | Y1: =Q!A25 -> 0 | Z1: =Q!A26 -> 0 | AA1: =Q!A27 -> 0 | AB1: =Q!A28 -> 0 | AC1: =Q!A29 -> 0 | AD1: =Q!A30 -> 0 | AE1: =Q!A31 -> 0 | AF1: =Q!A32 -> 0 | AG1: =Q!A33 -> 0 | AH1: =Q!A34 -> 0 | AI1: =Q!A35 -> 0 | AJ1: =Q!A36 -> 0 | AK1: =Q!A37 -> 0 | AL1: =Q!A38 -> 0 | AM1: =Q!A39 -> 0 | AN1: =Q!A40 -> 0 | AO1: =Q!A41 -> 0
B2: Compliant? | C2: Compliant? | D2: Compliant? | E2: Compliant? | F2: Compliant? | G2: Compliant? | H2: Compliant? | I2: Compliant? | J2: Compliant? | K2: Compliant? | L2: Compliant? | M2: Compliant? | N2: Compliant? | O2: Compliant? | P2: Compliant? | Q2: Compliant? | R2: Compliant? | S2: Compliant? | T2: Compliant? | U2: Compliant? | V2: Compliant? | W2: Compliant? | X2: Compliant? | Y2: Compliant? | Z2: Compliant? | AA2: Compliant? | AB2: Compliant? | AC2: Compliant? | AD2: Compliant? | AE2: Compliant? | AF2: Compliant? | AG2: Compliant? | AH2: Compliant? | AI2: Compliant? | AJ2: Compliant? | AK2: Compliant? | AL2: Compliant? | AM2: Compliant? | AN2: Compliant? | AO2: Compliant?
A3: Total Y | B3: =COUNTIF('July-Raw'!H:H,"yes") -> 5 | C3: =COUNTIF('July-Raw'!J:J,"yes") -> 5 | D3: =COUNTIF('July-Raw'!L:L,"yes") -> 4 | E3: =COUNTIF('July-Raw'!N:N,"yes") -> 5 | F3: =COUNTIF('July-Raw'!P:P,"yes") -> 5 | G3: =COUNTIF('July-Raw'!R:R,"yes") -> 5 | H3: =COUNTIF('July-Raw'!T:T,"yes") -> 4 | I3: =COUNTIF('July-Raw'!V:V,"yes") -> 5 | J3: =COUNTIF('July-Raw'!X:X,"yes") -> 5 | K3: =COUNTIF('July-Raw'!Z:Z,"yes") -> 5 | L3: =COUNTIF('July-Raw'!AB:AB,"yes") -> 5 | M3: =COUNTIF('July-Raw'!AD:AD,"yes") -> 0 | N3: =COUNTIF('July-Raw'!AF:AF,"yes") -> 0 | O3: =COUNTIF('July-Raw'!AH:AH,"yes") -> 0 | P3: =COUNTIF('July-Raw'!AJ:AJ,"yes") -> 0 | Q3: =COUNTIF('July-Raw'!AL:AL,"yes") -> 0 | R3: =COUNTIF('July-Raw'!AN:AN,"yes") -> 0 | S3: =COUNTIF('July-Raw'!AP:AP,"yes") -> 0 | T3: =COUNTIF('July-Raw'!AR:AR,"yes") -> 0 | U3: =COUNTIF('July-Raw'!AT:AT,"yes") -> 0 | V3: =COUNTIF('July-Raw'!AV:AV,"yes") -> 0 | W3: =COUNTIF('July-Raw'!AX:AX,"yes") -> 0 | X3: =COUNTIF('July-Raw'!AZ:AZ,"yes") -> 0 | Y3: =COUNTIF('July-Raw'!BB:BB,"yes") -> 0 | Z3: =COUNTIF('July-Raw'!BD:BD,"yes") -> 0 | AA3: =COUNTIF('July-Raw'!BF:BF,"yes") -> 0 | AB3: =COUNTIF('July-Raw'!BH:BH,"yes") -> 0 | AC3: =COUNTIF('July-Raw'!BJ:BJ,"yes") -> 0 | AD3: =COUNTIF('July-Raw'!BL:BL,"yes") -> 0 | AE3: =COUNTIF('July-Raw'!BN:BN,"yes") -> 0 | AF3: =COUNTIF('July-Raw'!BP:BP,"yes") -> 0 | AG3: =COUNTIF('July-Raw'!BR:BR,"yes") -> 0 | AH3: =COUNTIF('July-Raw'!BT:BT,"yes") -> 0 | AI3: =COUNTIF('July-Raw'!BV:BV,"yes") -> 0 | AJ3: =COUNTIF('July-Raw'!BX:BX,"yes") -> 0 | AK3: =COUNTIF('July-Raw'!BZ:BZ,"yes") -> 0 | AL3: =COUNTIF('July-Raw'!CB:CB,"yes") -> 0 | AM3: =COUNTIF('July-Raw'!CD:CD,"yes") -> 0 | AN3: =COUNTIF('July-Raw'!CF:CF,"yes") -> 0 | AO3: =COUNTIF('July-Raw'!CH:CH,"yes") -> 0
A4: Total N | B4: =COUNTIF('July-Raw'!H:H,"no") -> 0 | C4: =COUNTIF('July-Raw'!J:J,"no") -> 0 | D4: =COUNTIF('July-Raw'!L:L,"no") -> 1 | E4: =COUNTIF('July-Raw'!N:N,"no") -> 0 | F4: =COUNTIF('July-Raw'!P:P,"no") -> 0 | G4: =COUNTIF('July-Raw'!R:R,"no") -> 0 | H4: =COUNTIF('July-Raw'!T:T,"no") -> 0 | I4: =COUNTIF('July-Raw'!V:V,"no") -> 0 | J4: =COUNTIF('July-Raw'!X:X,"no") -> 0 | K4: =COUNTIF('July-Raw'!Z:Z,"no") -> 0 | L4: =COUNTIF('July-Raw'!AB:AB,"no") -> 0 | M4: =COUNTIF('July-Raw'!AD:AD,"no") -> 0 | N4: =COUNTIF('July-Raw'!AF:AF,"no") -> 0 | O4: =COUNTIF('July-Raw'!AH:AH,"no") -> 0 | P4: =COUNTIF('July-Raw'!AJ:AJ,"no") -> 0 | Q4: =COUNTIF('July-Raw'!AL:AL,"no") -> 0 | R4: =COUNTIF('July-Raw'!AN:AN,"no") -> 0 | S4: =COUNTIF('July-Raw'!AP:AP,"no") -> 0 | T4: =COUNTIF('July-Raw'!AR:AR,"no") -> 0 | U4: =COUNTIF('July-Raw'!AT:AT,"no") -> 0 | V4: =COUNTIF('July-Raw'!AV:AV,"no") -> 0 | W4: =COUNTIF('July-Raw'!AX:AX,"no") -> 0 | X4: =COUNTIF('July-Raw'!AZ:AZ,"no") -> 0 | Y4: =COUNTIF('July-Raw'!BB:BB,"no") -> 0 | Z4: =COUNTIF('July-Raw'!BD:BD,"no") -> 0 | AA4: =COUNTIF('July-Raw'!BF:BF,"no") -> 0 | AB4: =COUNTIF('July-Raw'!BH:BH,"no") -> 0 | AC4: =COUNTIF('July-Raw'!BJ:BJ,"no") -> 0 | AD4: =COUNTIF('July-Raw'!BL:BL,"no") -> 0 | AE4: =COUNTIF('July-Raw'!BN:BN,"no") -> 0 | AF4: =COUNTIF('July-Raw'!BP:BP,"no") -> 0 | AG4: =COUNTIF('July-Raw'!BR:BR,"no") -> 0 | AH4: =COUNTIF('July-Raw'!BT:BT,"no") -> 0 | AI4: =COUNTIF('July-Raw'!BV:BV,"no") -> 0 | AJ4: =COUNTIF('July-Raw'!BX:BX,"no") -> 0 | AK4: =COUNTIF('July-Raw'!BZ:BZ,"no") -> 0 | AL4: =COUNTIF('July-Raw'!CB:CB,"no") -> 0 | AM4: =COUNTIF('July-Raw'!CD:CD,"no") -> 0 | AN4: =COUNTIF('July-Raw'!CF:CF,"no") -> 0 | AO4: =COUNTIF('July-Raw'!CH:CH,"no") -> 0
A5: Total Justified | B5: =COUNTIF('July-Raw'!H:H,"Justified") -> 0 | C5: =COUNTIF('July-Raw'!J:J,"Justified") -> 0 | D5: =COUNTIF('July-Raw'!L:L,"Justified") -> 0 | E5: =COUNTIF('July-Raw'!N:N,"Justified") -> 0 | F5: =COUNTIF('July-Raw'!P:P,"Justified") -> 0 | G5: =COUNTIF('July-Raw'!R:R,"Justified") -> 0 | H5: =COUNTIF('July-Raw'!T:T,"Justified") -> 1 | I5: =COUNTIF('July-Raw'!V:V,"Justified") -> 0 | J5: =COUNTIF('July-Raw'!X:X,"Justified") -> 0 | K5: =COUNTIF('July-Raw'!Z:Z,"Justified") -> 0 | L5: =COUNTIF('July-Raw'!AB:AB,"Justified") -> 0 | M5: =COUNTIF('July-Raw'!AD:AD,"Justified") -> 0 | N5: =COUNTIF('July-Raw'!AF:AF,"Justified") -> 0 | O5: =COUNTIF('July-Raw'!AH:AH,"Justified") -> 0 | P5: =COUNTIF('July-Raw'!AJ:AJ,"Justified") -> 0 | Q5: =COUNTIF('July-Raw'!AL:AL,"Justified") -> 0 | R5: =COUNTIF('July-Raw'!AN:AN,"Justified") -> 0 | S5: =COUNTIF('July-Raw'!AP:AP,"Justified") -> 0 | T5: =COUNTIF('July-Raw'!AR:AR,"Justified") -> 0 | U5: =COUNTIF('July-Raw'!AT:AT,"Justified") -> 0 | V5: =COUNTIF('July-Raw'!AV:AV,"Justified") -> 0 | W5: =COUNTIF('July-Raw'!AX:AX,"Justified") -> 0 | X5: =COUNTIF('July-Raw'!AZ:AZ,"Justified") -> 0 | Y5: =COUNTIF('July-Raw'!BB:BB,"Justified") -> 0 | Z5: =COUNTIF('July-Raw'!BD:BD,"Justified") -> 0 | AA5: =COUNTIF('July-Raw'!BF:BF,"Justified") -> 0 | AB5: =COUNTIF('July-Raw'!BH:BH,"Justified") -> 0 | AC5: =COUNTIF('July-Raw'!BJ:BJ,"Justified") -> 0 | AD5: =COUNTIF('July-Raw'!BL:BL,"Justified") -> 0 | AE5: =COUNTIF('July-Raw'!BN:BN,"Justified") -> 0 | AF5: =COUNTIF('July-Raw'!BP:BP,"Justified") -> 0 | AG5: =COUNTIF('July-Raw'!BR:BR,"Justified") -> 0 | AH5: =COUNTIF('July-Raw'!BT:BT,"Justified") -> 0 | AI5: =COUNTIF('July-Raw'!BV:BV,"Justified") -> 0 | AJ5: =COUNTIF('July-Raw'!BX:BX,"Justified") -> 0 | AK5: =COUNTIF('July-Raw'!BZ:BZ,"Justified") -> 0 | AL5: =COUNTIF('July-Raw'!CB:CB,"Justified") -> 0 | AM5: =COUNTIF('July-Raw'!CD:CD,"Justified") -> 0 | AN5: =COUNTIF('July-Raw'!CF:CF,"Justified") -> 0 | AO5: =COUNTIF('July-Raw'!CH:CH,"Justified") -> 0
A6: Total NA | B6: =COUNTIF('July-Raw'!H:H,"NA") -> 0 | C6: =COUNTIF('July-Raw'!J:J,"NA") -> 0 | D6: =COUNTIF('July-Raw'!L:L,"NA") -> 0 | E6: =COUNTIF('July-Raw'!N:N,"NA") -> 0 | F6: =COUNTIF('July-Raw'!P:P,"NA") -> 0 | G6: =COUNTIF('July-Raw'!R:R,"NA") -> 0 | H6: =COUNTIF('July-Raw'!T:T,"NA") -> 0 | I6: =COUNTIF('July-Raw'!V:V,"NA") -> 0 | J6: =COUNTIF('July-Raw'!X:X,"NA") -> 0 | K6: =COUNTIF('July-Raw'!Z:Z,"NA") -> 0 | L6: =COUNTIF('July-Raw'!AB:AB,"NA") -> 0 | M6: =COUNTIF('July-Raw'!AD:AD,"NA") -> 0 | N6: =COUNTIF('July-Raw'!AF:AF,"NA") -> 0 | O6: =COUNTIF('July-Raw'!AH:AH,"NA") -> 0 | P6: =COUNTIF('July-Raw'!AJ:AJ,"NA") -> 0 | Q6: =COUNTIF('July-Raw'!AL:AL,"NA") -> 0 | R6: =COUNTIF('July-Raw'!AN:AN,"NA") -> 0 | S6: =COUNTIF('July-Raw'!AP:AP,"NA") -> 0 | T6: =COUNTIF('July-Raw'!AR:AR,"NA") -> 0 | U6: =COUNTIF('July-Raw'!AT:AT,"NA") -> 0 | V6: =COUNTIF('July-Raw'!AV:AV,"NA") -> 0 | W6: =COUNTIF('July-Raw'!AX:AX,"NA") -> 0 | X6: =COUNTIF('July-Raw'!AZ:AZ,"NA") -> 0 | Y6: =COUNTIF('July-Raw'!BB:BB,"NA") -> 0 | Z6: =COUNTIF('July-Raw'!BD:BD,"NA") -> 0 | AA6: =COUNTIF('July-Raw'!BF:BF,"NA") -> 0 | AB6: =COUNTIF('July-Raw'!BH:BH,"NA") -> 0 | AC6: =COUNTIF('July-Raw'!BJ:BJ,"NA") -> 0 | AD6: =COUNTIF('July-Raw'!BL:BL,"NA") -> 0 | AE6: =COUNTIF('July-Raw'!BN:BN,"NA") -> 0 | AF6: =COUNTIF('July-Raw'!BP:BP,"NA") -> 0 | AG6: =COUNTIF('July-Raw'!BR:BR,"NA") -> 0 | AH6: =COUNTIF('July-Raw'!BT:BT,"NA") -> 0 | AI6: =COUNTIF('July-Raw'!BV:BV,"NA") -> 0 | AJ6: =COUNTIF('July-Raw'!BX:BX,"NA") -> 0 | AK6: =COUNTIF('July-Raw'!BZ:BZ,"NA") -> 0 | AL6: =COUNTIF('July-Raw'!CB:CB,"NA") -> 0 | AM6: =COUNTIF('July-Raw'!CD:CD,"NA") -> 0 | AN6: =COUNTIF('July-Raw'!CF:CF,"NA") -> 0 | AO6: =COUNTIF('July-Raw'!CH:CH,"NA") -> 0
A7: Blanks | B7: =B8-(SUM(B3:B6)) -> 0 | C7: =C8-(SUM(C3:C6)) -> 0 | D7: 0 | E7: 0 | F7: 0 | G7: 0 | H7: 0 | I7: 0 | J7: 0 | K7: 0 | L7: 0 | M7: 5 | N7: 5 | O7: 5 | P7: 5 | Q7: 5 | R7: 5 | S7: 5 | T7: 5 | U7: 5 | V7: 5 | W7: 5 | X7: 5 | Y7: 5 | Z7: 5 | AA7: 5 | AB7: 5 | AC7: 5 | AD7: 5 | AE7: 5 | AF7: 5 | AG7: 5 | AH7: 5 | AI7: 5 | AJ7: 5 | AK7: 5 | AL7: 5 | AM7: 5 | AN7: 5 | AO7: 5
A8: full sample size | B8: =COUNTA('July-Raw'!A:A)-2 -> 5 | C8: =B8 -> 5 | D8: 5 | E8: 5 | F8: 5 | G8: 5 | H8: 5 | I8: 5 | J8: 5 | K8: 5 | L8: 5 | M8: 5 | N8: 5 | O8: 5 | P8: 5 | Q8: 5 | R8: 5 | S8: 5 | T8: 5 | U8: 5 | V8: 5 | W8: 5 | X8: 5 | Y8: 5 | Z8: 5 | AA8: 5 | AB8: 5 | AC8: 5 | AD8: 5 | AE8: 5 | AF8: 5 | AG8: 5 | AH8: 5 | AI8: 5 | AJ8: 5 | AK8: 5 | AL8: 5 | AM8: 5 | AN8: 5 | AO8: 5
A9: True sample size (-NA + blanks) | B9: =IF(ISERROR(B8-(B6+B7)),"",B8-(B6+B7)) -> 5 | C9: =IF(ISERROR(C8-(C6+C7)),"",C8-(C6+C7)) -> 5 | D9: 5 | E9: 5 | F9: 5 | G9: 5 | H9: 5 | I9: 5 | J9: 5 | K9: 5 | L9: 5 | M9: 0 | N9: 0 | O9: 0 | P9: 0 | Q9: 0 | R9: 0 | S9: 0 | T9: 0 | U9: 0 | V9: 0 | W9: 0 | X9: 0 | Y9: 0 | Z9: 0 | AA9: 0 | AB9: 0 | AC9: 0 | AD9: 0 | AE9: 0 | AF9: 0 | AG9: 0 | AH9: 0 | AI9: 0 | AJ9: 0 | AK9: 0 | AL9: 0 | AM9: 0 | AN9: 0 | AO9: 0
A10: %Y | B10: =IF(ISERROR(B3/B9),"",B3/B9) -> 1 | C10: =IF(ISERROR(C3/C9),"",C3/C9) -> 1 | D10: 0.8 | E10: 1 | F10: 1 | G10: 1 | H10: 0.8 | I10: 1 | J10: 1 | K10: 1 | L10: 1
A11: %N | B11: =IF(ISERROR(B4/B9),"",B4/B9) -> 0 | C11: =IF(ISERROR(C4/C9),"",C4/C9) -> 0 | D11: 0.2 | E11: 0 | F11: 0 | G11: 0 | H11: 0 | I11: 0 | J11: 0 | K11: 0 | L11: 0
A12: %N - Justified | B12: =IF(ISERROR(B5/B9),"",B5/B9) -> 0 | C12: =IF(ISERROR(C5/C9),"",C5/C9) -> 0 | D12: 0 | E12: 0 | F12: 0 | G12: 0 | H12: 0.2 | I12: 0 | J12: 0 | K12: 0 | L12: 0

Sheet Aug
A1: Click here to go to year overview
A3: Date | D3: Total by Apt type
A4: Completed by | D4: New | E4: =COUNTIF('Aug-Raw'!E3:E103,"New") -> 5
A5: Sample group size | B5: =COUNTA('Aug-Raw'!A:A)-2 -> 5 | D5: Follow up | E5: =COUNTIF('Aug-Raw'!E3:E103,"Fup") -> 0 | H5: =Year!H5 -> 0.95
A6: Overall Result (compliant only) | B6: =IF(ISERROR(SUM(D11:D50)/G51),"",SUM(D11:D50)/G51) -> 0.9636363636 | D6: Total by apt Code | H6: =Year!H6 -> 80-95%
A7: Overall Result (compliant & Justified) | B7: =IF(ISERROR(SUM(C11:C50)/G51),"",SUM(C11:C50)/G51) -> 0.9818181818 | D7: code goes in here | E7: =COUNTIF('Aug-Raw'!F3:F103,D7) -> 0 | H7: =Year!H7 -> 0.8
A8: viable qs | B8: =G51 -> 11
A10: Metric | B10: Target % | C10: Compliant + Justified | D10: Compliant | E10: Justified | F10: Not compliant | G10: Irritating math
A11: =IF(ISERROR(Q!A2),"",Q!A2) -> Was a Room number documented? | B11: =IF(ISERROR(Q!B2),"",Q!B2) -> 0 | C11: =IF(ISERROR(D11+E11),"",D11+E11) -> 1 | D11: ='Aug-Data'!B10 -> 1 | E11: ='Aug-Data'!B12 -> 0 | F11: ='Aug-Data'!B11 -> 0 | G11: =COUNTIF(D11:F11,">0") -> 1
A12: =IF(ISERROR(Q!A3),"",Q!A3) -> Were stage A checks completed as appropriate? | B12: =IF(ISERROR(Q!B3),"",Q!B3) -> 0 | C12: 0.8 | D12: ='Aug-Data'!C10 -> 0.8 | E12: ='Aug-Data'!C12 -> 0 | F12: ='Aug-Data'!C11 -> 0.2 | G12: 2
A13: =IF(ISERROR(Q!A4),"",Q!A4) -> Was COSI Part 1 performed? | B13: =IF(ISERROR(Q!B4),"",Q!B4) -> 0 | C13: 1 | D13: ='Aug-Data'!D10 -> 1 | E13: ='Aug-Data'!D12 -> 0 | F13: ='Aug-Data'!D11 -> 0 | G13: 1
A14: =IF(ISERROR(Q!A5),"",Q!A5) -> Was PVP documented? | B14: =IF(ISERROR(Q!B5),"",Q!B5) -> 0 | C14: 1 | D14: ='Aug-Data'!E10 -> 1 | E14: ='Aug-Data'!E12 -> 0 | F14: ='Aug-Data'!E11 -> 0 | G14: 1
A15: =IF(ISERROR(Q!A6),"",Q!A6) -> Was Otoscopy documented? | B15: =IF(ISERROR(Q!B6),"",Q!B6) -> 0 | C15: 1 | D15: ='Aug-Data'!F10 -> 1 | E15: ='Aug-Data'!F12 -> 0 | F15: ='Aug-Data'!F11 -> 0 | G15: 1
A16: =IF(ISERROR(Q!A7),"",Q!A7) -> Document bc at 3 & 4kHz is for programming purposes? | B16: =IF(ISERROR(Q!B7),"",Q!B7) -> 0 | C16: 1 | D16: ='Aug-Data'!G10 -> 1 | E16: ='Aug-Data'!G12 -> 0 | F16: ='Aug-Data'!G11 -> 0 | G16: 1
A17: =IF(ISERROR(Q!A8),"",Q!A8) -> Was Speech testing performed? | B17: =IF(ISERROR(Q!B8),"",Q!B8) -> 0 | C17: 1 | D17: ='Aug-Data'!H10 -> 1 | E17: ='Aug-Data'!H12 -> 0 | F17: ='Aug-Data'!H11 -> 0 | G17: 1
A18: =IF(ISERROR(Q!A9),"",Q!A9) -> Is it documented whether national criteria were/were not met? | B18: =IF(ISERROR(Q!B9),"",Q!B9) -> 0 | C18: 1 | D18: ='Aug-Data'!I10 -> 1 | E18: ='Aug-Data'!I12 -> 0 | F18: ='Aug-Data'!I11 -> 0 | G18: 1
A19: =IF(ISERROR(Q!A10),"",Q!A10) -> Was a BCHI info pack supplied? | B19: =IF(ISERROR(Q!B10),"",Q!B10) -> 0 | C19: 1 | D19: ='Aug-Data'!J10 -> 0.8 | E19: ='Aug-Data'!J12 -> 0.2 | F19: ='Aug-Data'!J11 -> 0 | G19: 2
A20: =IF(ISERROR(Q!A11),"",Q!A11) -> Was the report authorised & issued within target (7 days)? | B20: =IF(ISERROR(Q!B11),"",Q!B11) -> 0 | C20: 1 | D20: ='Aug-Data'!K10 -> 1 | E20: ='Aug-Data'!K12 -> 0 | F20: ='Aug-Data'!K11 -> 0 | G20: 1
A21: =IF(ISERROR(Q!A12),"",Q!A12) -> Was consent documented as appropriate? | B21: =IF(ISERROR(Q!B12),"",Q!B12) -> 0 | C21: 1 | D21: ='Aug-Data'!L10 -> 1 | E21: ='Aug-Data'!L12 -> 0 | F21: ='Aug-Data'!L11 -> 0 | G21: 1
A22: =IF(ISERROR(Q!A13),"",Q!A13) -> 0 | B22: =IF(ISERROR(Q!B13),"",Q!B13) -> 0 | D22: ='Aug-Data'!M10 ->  | E22: ='Aug-Data'!M12 ->  | F22: ='Aug-Data'!M11 ->  | G22: 0
A23: =IF(ISERROR(Q!A14),"",Q!A14) -> 0 | B23: =IF(ISERROR(Q!B14),"",Q!B14) -> 0 | D23: ='Aug-Data'!N10 ->  | E23: ='Aug-Data'!N12 ->  | F23: ='Aug-Data'!N11 ->  | G23: 0
A24: =IF(ISERROR(Q!A15),"",Q!A15) -> 0 | B24: =IF(ISERROR(Q!B15),"",Q!B15) -> 0 | D24: ='Aug-Data'!O10 ->  | E24: ='Aug-Data'!O12 ->  | F24: ='Aug-Data'!O11 ->  | G24: 0
A25: =IF(ISERROR(Q!A16),"",Q!A16) -> 0 | B25: =IF(ISERROR(Q!B16),"",Q!B16) -> 0 | D25: ='Aug-Data'!P10 ->  | E25: ='Aug-Data'!P12 ->  | F25: ='Aug-Data'!P11 ->  | G25: 0
A26: =IF(ISERROR(Q!A17),"",Q!A17) -> 0 | B26: =IF(ISERROR(Q!B17),"",Q!B17) -> 0 | D26: ='Aug-Data'!Q10 ->  | E26: ='Aug-Data'!Q12 ->  | F26: ='Aug-Data'!Q11 ->  | G26: 0
A27: =IF(ISERROR(Q!A18),"",Q!A18) -> 0 | B27: =IF(ISERROR(Q!B18),"",Q!B18) -> 0 | D27: ='Aug-Data'!R10 ->  | E27: ='Aug-Data'!R12 ->  | F27: ='Aug-Data'!R11 ->  | G27: 0
A28: =IF(ISERROR(Q!A19),"",Q!A19) -> 0 | B28: =IF(ISERROR(Q!B19),"",Q!B19) -> 0 | D28: ='Aug-Data'!S10 ->  | E28: ='Aug-Data'!S12 ->  | F28: ='Aug-Data'!S11 ->  | G28: 0
A29: =IF(ISERROR(Q!A20),"",Q!A20) -> 0 | B29: =IF(ISERROR(Q!B20),"",Q!B20) -> 0 | D29: ='Aug-Data'!T10 ->  | E29: ='Aug-Data'!T12 ->  | F29: ='Aug-Data'!T11 ->  | G29: 0
A30: =IF(ISERROR(Q!A21),"",Q!A21) -> 0 | B30: =IF(ISERROR(Q!B21),"",Q!B21) -> 0 | D30: ='Aug-Data'!U10 ->  | E30: ='Aug-Data'!U12 ->  | F30: ='Aug-Data'!U11 ->  | G30: 0
A31: =IF(ISERROR(Q!A22),"",Q!A22) -> 0 | B31: =IF(ISERROR(Q!B22),"",Q!B22) -> 0 | D31: ='Aug-Data'!V10 ->  | E31: ='Aug-Data'!V12 ->  | F31: ='Aug-Data'!V11 ->  | G31: 0
A32: =IF(ISERROR(Q!A23),"",Q!A23) -> 0 | B32: =IF(ISERROR(Q!B23),"",Q!B23) -> 0 | D32: ='Aug-Data'!W10 ->  | E32: ='Aug-Data'!W12 ->  | F32: ='Aug-Data'!W11 ->  | G32: 0
A33: =IF(ISERROR(Q!A24),"",Q!A24) -> 0 | B33: =IF(ISERROR(Q!B24),"",Q!B24) -> 0 | D33: ='Aug-Data'!X10 ->  | E33: ='Aug-Data'!X12 ->  | F33: ='Aug-Data'!X11 ->  | G33: 0
A34: =IF(ISERROR(Q!A25),"",Q!A25) -> 0 | B34: =IF(ISERROR(Q!B25),"",Q!B25) -> 0 | D34: ='Aug-Data'!Y10 ->  | E34: ='Aug-Data'!Y12 ->  | F34: ='Aug-Data'!Y11 ->  | G34: 0
A35: =IF(ISERROR(Q!A26),"",Q!A26) -> 0 | B35: =IF(ISERROR(Q!B26),"",Q!B26) -> 0 | D35: ='Aug-Data'!Z10 ->  | E35: ='Aug-Data'!Z12 ->  | F35: ='Aug-Data'!Z11 ->  | G35: 0
A36: =IF(ISERROR(Q!A27),"",Q!A27) -> 0 | B36: =IF(ISERROR(Q!B27),"",Q!B27) -> 0 | D36: ='Aug-Data'!AA10 ->  | E36: ='Aug-Data'!AA12 ->  | F36: ='Aug-Data'!AA11 ->  | G36: 0
A37: =IF(ISERROR(Q!A28),"",Q!A28) -> 0 | B37: =IF(ISERROR(Q!B28),"",Q!B28) -> 0 | D37: ='Aug-Data'!AB10 ->  | E37: ='Aug-Data'!AB12 ->  | F37: ='Aug-Data'!AB11 ->  | G37: 0
A38: =IF(ISERROR(Q!A29),"",Q!A29) -> 0 | B38: =IF(ISERROR(Q!B29),"",Q!B29) -> 0 | D38: ='Aug-Data'!AC10 ->  | E38: ='Aug-Data'!AC12 ->  | F38: ='Aug-Data'!AC11 ->  | G38: 0
A39: =IF(ISERROR(Q!A30),"",Q!A30) -> 0 | B39: =IF(ISERROR(Q!B30),"",Q!B30) -> 0 | D39: ='Aug-Data'!AD10 ->  | E39: ='Aug-Data'!AD12 ->  | F39: ='Aug-Data'!AD11 ->  | G39: 0
A40: =IF(ISERROR(Q!A31),"",Q!A31) -> 0 | B40: =IF(ISERROR(Q!B31),"",Q!B31) -> 0 | D40: ='Aug-Data'!AE10 ->  | E40: ='Aug-Data'!AE12 ->  | F40: ='Aug-Data'!AE11 ->  | G40: 0
A41: =IF(ISERROR(Q!A32),"",Q!A32) -> 0 | B41: =IF(ISERROR(Q!B32),"",Q!B32) -> 0 | D41: ='Aug-Data'!AF10 ->  | E41: ='Aug-Data'!AF12 ->  | F41: ='Aug-Data'!AF11 ->  | G41: 0
A42: =IF(ISERROR(Q!A33),"",Q!A33) -> 0 | B42: =IF(ISERROR(Q!B33),"",Q!B33) -> 0 | D42: ='Aug-Data'!AG10 ->  | E42: ='Aug-Data'!AG12 ->  | F42: ='Aug-Data'!AG11 ->  | G42: 0
A43: =IF(ISERROR(Q!A34),"",Q!A34) -> 0 | B43: =IF(ISERROR(Q!B34),"",Q!B34) -> 0 | D43: ='Aug-Data'!AH10 ->  | E43: ='Aug-Data'!AH12 ->  | F43: ='Aug-Data'!AH11 ->  | G43: 0
A44: =IF(ISERROR(Q!A35),"",Q!A35) -> 0 | B44: =IF(ISERROR(Q!B35),"",Q!B35) -> 0 | D44: ='Aug-Data'!AI10 ->  | E44: ='Aug-Data'!AI12 ->  | F44: ='Aug-Data'!AI11 ->  | G44: 0
A45: =IF(ISERROR(Q!A36),"",Q!A36) -> 0 | B45: =IF(ISERROR(Q!B36),"",Q!B36) -> 0 | D45: ='Aug-Data'!AJ10 ->  | E45: ='Aug-Data'!AJ12 ->  | F45: ='Aug-Data'!AJ11 ->  | G45: 0
A46: =IF(ISERROR(Q!A37),"",Q!A37) -> 0 | B46: =IF(ISERROR(Q!B37),"",Q!B37) -> 0 | D46: ='Aug-Data'!AK10 ->  | E46: ='Aug-Data'!AK12 ->  | F46: ='Aug-Data'!AK11 ->  | G46: 0
A47: =IF(ISERROR(Q!A38),"",Q!A38) -> 0 | B47: =IF(ISERROR(Q!B38),"",Q!B38) -> 0 | D47: ='Aug-Data'!AL10 ->  | E47: ='Aug-Data'!AL12 ->  | F47: ='Aug-Data'!AL11 ->  | G47: 0
A48: =IF(ISERROR(Q!A39),"",Q!A39) -> 0 | B48: =IF(ISERROR(Q!B39),"",Q!B39) -> 0 | D48: ='Aug-Data'!AM10 ->  | E48: ='Aug-Data'!AM12 ->  | F48: ='Aug-Data'!AM11 ->  | G48: 0
A49: =IF(ISERROR(Q!A40),"",Q!A40) -> 0 | B49: =IF(ISERROR(Q!B40),"",Q!B40) -> 0 | D49: ='Aug-Data'!AN10 ->  | E49: ='Aug-Data'!AN12 ->  | F49: ='Aug-Data'!AN11 ->  | G49: 0
A50: =IF(ISERROR(Q!A41),"",Q!A41) -> 0 | B50: =IF(ISERROR(Q!B41),"",Q!B41) -> 0 | D50: ='Aug-Data'!AO10 ->  | E50: ='Aug-Data'!AO12 ->  | F50: ='Aug-Data'!AO11 ->  | G50: 0
G51: =COUNTIF(G11:G50,">=1") -> 11

Sheet Aug-Raw (hidden)
A1: Record details | G1: Notes | H1: =Q!A2 -> Was a Room number documented? | J1: =Q!A3 -> Were stage A checks completed as appropriate? | L1: =Q!A4 -> Was COSI Part 1 performed? | N1: =Q!A5 -> Was PVP documented? | P1: =Q!A6 -> Was Otoscopy documented? | R1: =Q!A7 -> Document bc at 3 & 4kHz is for programming purposes? | T1: =Q!A8 -> Was Speech testing performed? | V1: =Q!A9 -> Is it documented whether national criteria were/were not met? | X1: =Q!A10 -> Was a BCHI info pack supplied? | Z1: =Q!A11 -> Was the report authorised & issued within target (7 days)? | AB1: =Q!A12 -> Was consent documented as appropriate? | AD1: =Q!A13 -> 0 | AF1: =Q!A14 -> 0 | AH1: =Q!A15 -> 0 | AJ1: =Q!A16 -> 0 | AL1: =Q!A17 -> 0 | AN1: =Q!A18 -> 0 | AP1: =Q!A19 -> 0 | AR1: =Q!A20 -> 0 | AT1: =Q!A21 -> 0 | AV1: =Q!A22 -> 0 | AX1: =Q!A23 -> 0 | AZ1: =Q!A24 -> 0 | BB1: =Q!A25 -> 0 | BD1: =Q!A26 -> 0 | BF1: =Q!A27 -> 0 | BH1: =Q!A28 -> 0 | BJ1: =Q!A29 -> 0 | BL1: =Q!A30 -> 0 | BN1: =Q!A31 -> 0 | BP1: =Q!A32 -> 0 | BR1: =Q!A33 -> 0 | BT1: =Q!A34 -> 0 | BV1: =Q!A35 -> 0 | BX1: =Q!A36 -> 0 | BZ1: =Q!A37 -> 0 | CB1: =Q!A38 -> 0 | CD1: =Q!A39 -> 0 | CF1: =Q!A40 -> 0 | CH1: =Q!A41 -> 0
A2: Pt number | B2: Date seen | C2: Clinician 1 | D2: clinician 2 | E2: New/ F-up | F2: Apt code | H2: Compliant? | I2: Other result | J2: Compliant? | K2: Other result | L2: Compliant? | M2: Other result | N2: Compliant? | O2: Other result | P2: Compliant? | Q2: Other result | R2: Compliant? | S2: Other result | T2: Compliant? | U2: Other result | V2: Compliant? | W2: Other result | X2: Compliant? | Y2: Other result | Z2: Compliant? | AA2: Other result | AB2: Compliant? | AC2: Other result | AD2: Compliant? | AE2: Other result | AF2: Compliant? | AG2: Other result | AH2: Compliant? | AI2: Other result | AJ2: Compliant? | AK2: Other result | AL2: Compliant? | AM2: Other result | AN2: Compliant? | AO2: Other result | AP2: Compliant? | AQ2: Other result | AR2: Compliant? | AS2: Other result | AT2: Compliant? | AU2: Other result | AV2: Compliant? | AW2: Other result | AX2: Compliant? | AY2: Other result | AZ2: Compliant? | BA2: Other result | BB2: Compliant? | BC2: Other result | BD2: Compliant? | BE2: Other result | BF2: Compliant? | BG2: Other result | BH2: Compliant? | BI2: Other result | BJ2: Compliant? | BK2: Other result | BL2: Compliant? | BM2: Other result | BN2: Compliant? | BO2: Other result | BP2: Compliant? | BQ2: Other result | BR2: Compliant? | BS2: Other result | BT2: Compliant? | BU2: Other result | BV2: Compliant? | BW2: Other result | BX2: Compliant? | BY2: Other result | BZ2: Compliant? | CA2: Other result | CB2: Compliant? | CC2: Other result | CD2: Compliant? | CE2: Other result | CF2: Compliant? | CG2: Other result | CH2: Compliant? | CI2: Other result
A3: AB0001 | B3: 2023-08-08 | C3: AA | E3: New | F3: BA | H3: Yes | J3: Yes | L3: Yes | N3: Yes | P3: Yes | R3: Yes | T3: Yes | V3: Yes | X3: Yes | Z3: Yes | AB3: Yes
A4: AB0002 | B4: 2023-08-17 | C4: AA | E4: New | F4: BA | H4: Yes | J4: No | L4: Yes | N4: Yes | P4: Yes | R4: Yes | T4: Yes | V4: Yes | X4: Yes | Z4: Yes | AB4: Yes
A5: AB0003 | B5: 2023-08-24 | C5: BB | E5: New | F5: BA | H5: Yes | J5: Yes | L5: Yes | N5: Yes | P5: Yes | R5: Yes | T5: Yes | V5: Yes | X5: Yes | Z5: Yes | AB5: Yes
A6: AB0004 | B6: 2023-08-26 | C6: BB | E6: New | F6: BA | H6: Yes | J6: Yes | L6: Yes | N6: Yes | P6: Yes | R6: Yes | T6: Yes | V6: Yes | X6: Yes | Z6: Yes | AB6: Yes
A7: AB0005 | B7: 2023-08-28 | C7: CC | E7: New | F7: BA | H7: Yes | J7: Yes | L7: Yes | N7: Yes | P7: Yes | R7: Yes | T7: Yes | V7: Yes | X7: Justified | Y7: Not proceeding with BCHI | Z7: Yes | AB7: Yes

Sheet Aug-Data (hidden)
A1: Results | B1: =Q!A2 -> Was a Room number documented? | C1: =Q!A3 -> Were stage A checks completed as appropriate? | D1: =Q!A4 -> Was COSI Part 1 performed? | E1: =Q!A5 -> Was PVP documented? | F1: =Q!A6 -> Was Otoscopy documented? | G1: =Q!A7 -> Document bc at 3 & 4kHz is for programming purposes? | H1: =Q!A8 -> Was Speech testing performed? | I1: =Q!A9 -> Is it documented whether national criteria were/were not met? | J1: =Q!A10 -> Was a BCHI info pack supplied? | K1: =Q!A11 -> Was the report authorised & issued within target (7 days)? | L1: =Q!A12 -> Was consent documented as appropriate? | M1: =Q!A13 -> 0 | N1: =Q!A14 -> 0 | O1: =Q!A15 -> 0 | P1: =Q!A16 -> 0 | Q1: =Q!A17 -> 0 | R1: =Q!A18 -> 0 | S1: =Q!A19 -> 0 | T1: =Q!A20 -> 0 | U1: =Q!A21 -> 0 | V1: =Q!A22 -> 0 | W1: =Q!A23 -> 0 | X1: =Q!A24 -> 0 | Y1: =Q!A25 -> 0 | Z1: =Q!A26 -> 0 | AA1: =Q!A27 -> 0 | AB1: =Q!A28 -> 0 | AC1: =Q!A29 -> 0 | AD1: =Q!A30 -> 0 | AE1: =Q!A31 -> 0 | AF1: =Q!A32 -> 0 | AG1: =Q!A33 -> 0 | AH1: =Q!A34 -> 0 | AI1: =Q!A35 -> 0 | AJ1: =Q!A36 -> 0 | AK1: =Q!A37 -> 0 | AL1: =Q!A38 -> 0 | AM1: =Q!A39 -> 0 | AN1: =Q!A40 -> 0 | AO1: =Q!A41 -> 0
B2: Compliant? | C2: Compliant? | D2: Compliant? | E2: Compliant? | F2: Compliant? | G2: Compliant? | H2: Compliant? | I2: Compliant? | J2: Compliant? | K2: Compliant? | L2: Compliant? | M2: Compliant? | N2: Compliant? | O2: Compliant? | P2: Compliant? | Q2: Compliant? | R2: Compliant? | S2: Compliant? | T2: Compliant? | U2: Compliant? | V2: Compliant? | W2: Compliant? | X2: Compliant? | Y2: Compliant? | Z2: Compliant? | AA2: Compliant? | AB2: Compliant? | AC2: Compliant? | AD2: Compliant? | AE2: Compliant? | AF2: Compliant? | AG2: Compliant? | AH2: Compliant? | AI2: Compliant? | AJ2: Compliant? | AK2: Compliant? | AL2: Compliant? | AM2: Compliant? | AN2: Compliant? | AO2: Compliant?
A3: Total Y | B3: =COUNTIF('Aug-Raw'!H:H,"yes") -> 5 | C3: =COUNTIF('Aug-Raw'!J:J,"yes") -> 4 | D3: =COUNTIF('Aug-Raw'!L:L,"yes") -> 5 | E3: =COUNTIF('Aug-Raw'!N:N,"yes") -> 5 | F3: =COUNTIF('Aug-Raw'!P:P,"yes") -> 5 | G3: =COUNTIF('Aug-Raw'!R:R,"yes") -> 5 | H3: =COUNTIF('Aug-Raw'!T:T,"yes") -> 5 | I3: =COUNTIF('Aug-Raw'!V:V,"yes") -> 5 | J3: =COUNTIF('Aug-Raw'!X:X,"yes") -> 4 | K3: =COUNTIF('Aug-Raw'!Z:Z,"yes") -> 5 | L3: =COUNTIF('Aug-Raw'!AB:AB,"yes") -> 5 | M3: =COUNTIF('Aug-Raw'!AD:AD,"yes") -> 0 | N3: =COUNTIF('Aug-Raw'!AF:AF,"yes") -> 0 | O3: =COUNTIF('Aug-Raw'!AH:AH,"yes") -> 0 | P3: =COUNTIF('Aug-Raw'!AJ:AJ,"yes") -> 0 | Q3: =COUNTIF('Aug-Raw'!AL:AL,"yes") -> 0 | R3: =COUNTIF('Aug-Raw'!AN:AN,"yes") -> 0 | S3: =COUNTIF('Aug-Raw'!AP:AP,"yes") -> 0 | T3: =COUNTIF('Aug-Raw'!AR:AR,"yes") -> 0 | U3: =COUNTIF('Aug-Raw'!AT:AT,"yes") -> 0 | V3: =COUNTIF('Aug-Raw'!AV:AV,"yes") -> 0 | W3: =COUNTIF('Aug-Raw'!AX:AX,"yes") -> 0 | X3: =COUNTIF('Aug-Raw'!AZ:AZ,"yes") -> 0 | Y3: =COUNTIF('Aug-Raw'!BB:BB,"yes") -> 0 | Z3: =COUNTIF('Aug-Raw'!BD:BD,"yes") -> 0 | AA3: =COUNTIF('Aug-Raw'!BF:BF,"yes") -> 0 | AB3: =COUNTIF('Aug-Raw'!BH:BH,"yes") -> 0 | AC3: =COUNTIF('Aug-Raw'!BJ:BJ,"yes") -> 0 | AD3: =COUNTIF('Aug-Raw'!BL:BL,"yes") -> 0 | AE3: =COUNTIF('Aug-Raw'!BN:BN,"yes") -> 0 | AF3: =COUNTIF('Aug-Raw'!BP:BP,"yes") -> 0 | AG3: =COUNTIF('Aug-Raw'!BR:BR,"yes") -> 0 | AH3: =COUNTIF('Aug-Raw'!BT:BT,"yes") -> 0 | AI3: =COUNTIF('Aug-Raw'!BV:BV,"yes") -> 0 | AJ3: =COUNTIF('Aug-Raw'!BX:BX,"yes") -> 0 | AK3: =COUNTIF('Aug-Raw'!BZ:BZ,"yes") -> 0 | AL3: =COUNTIF('Aug-Raw'!CB:CB,"yes") -> 0 | AM3: =COUNTIF('Aug-Raw'!CD:CD,"yes") -> 0 | AN3: =COUNTIF('Aug-Raw'!CF:CF,"yes") -> 0 | AO3: =COUNTIF('Aug-Raw'!CH:CH,"yes") -> 0
A4: Total N | B4: =COUNTIF('Aug-Raw'!H:H,"no") -> 0 | C4: =COUNTIF('Aug-Raw'!J:J,"no") -> 1 | D4: =COUNTIF('Aug-Raw'!L:L,"no") -> 0 | E4: =COUNTIF('Aug-Raw'!N:N,"no") -> 0 | F4: =COUNTIF('Aug-Raw'!P:P,"no") -> 0 | G4: =COUNTIF('Aug-Raw'!R:R,"no") -> 0 | H4: =COUNTIF('Aug-Raw'!T:T,"no") -> 0 | I4: =COUNTIF('Aug-Raw'!V:V,"no") -> 0 | J4: =COUNTIF('Aug-Raw'!X:X,"no") -> 0 | K4: =COUNTIF('Aug-Raw'!Z:Z,"no") -> 0 | L4: =COUNTIF('Aug-Raw'!AB:AB,"no") -> 0 | M4: =COUNTIF('Aug-Raw'!AD:AD,"no") -> 0 | N4: =COUNTIF('Aug-Raw'!AF:AF,"no") -> 0 | O4: =COUNTIF('Aug-Raw'!AH:AH,"no") -> 0 | P4: =COUNTIF('Aug-Raw'!AJ:AJ,"no") -> 0 | Q4: =COUNTIF('Aug-Raw'!AL:AL,"no") -> 0 | R4: =COUNTIF('Aug-Raw'!AN:AN,"no") -> 0 | S4: =COUNTIF('Aug-Raw'!AP:AP,"no") -> 0 | T4: =COUNTIF('Aug-Raw'!AR:AR,"no") -> 0 | U4: =COUNTIF('Aug-Raw'!AT:AT,"no") -> 0 | V4: =COUNTIF('Aug-Raw'!AV:AV,"no") -> 0 | W4: =COUNTIF('Aug-Raw'!AX:AX,"no") -> 0 | X4: =COUNTIF('Aug-Raw'!AZ:AZ,"no") -> 0 | Y4: =COUNTIF('Aug-Raw'!BB:BB,"no") -> 0 | Z4: =COUNTIF('Aug-Raw'!BD:BD,"no") -> 0 | AA4: =COUNTIF('Aug-Raw'!BF:BF,"no") -> 0 | AB4: =COUNTIF('Aug-Raw'!BH:BH,"no") -> 0 | AC4: =COUNTIF('Aug-Raw'!BJ:BJ,"no") -> 0 | AD4: =COUNTIF('Aug-Raw'!BL:BL,"no") -> 0 | AE4: =COUNTIF('Aug-Raw'!BN:BN,"no") -> 0 | AF4: =COUNTIF('Aug-Raw'!BP:BP,"no") -> 0 | AG4: =COUNTIF('Aug-Raw'!BR:BR,"no") -> 0 | AH4: =COUNTIF('Aug-Raw'!BT:BT,"no") -> 0 | AI4: =COUNTIF('Aug-Raw'!BV:BV,"no") -> 0 | AJ4: =COUNTIF('Aug-Raw'!BX:BX,"no") -> 0 | AK4: =COUNTIF('Aug-Raw'!BZ:BZ,"no") -> 0 | AL4: =COUNTIF('Aug-Raw'!CB:CB,"no") -> 0 | AM4: =COUNTIF('Aug-Raw'!CD:CD,"no") -> 0 | AN4: =COUNTIF('Aug-Raw'!CF:CF,"no") -> 0 | AO4: =COUNTIF('Aug-Raw'!CH:CH,"no") -> 0
A5: Total Justified | B5: =COUNTIF('Aug-Raw'!H:H,"Justified") -> 0 | C5: =COUNTIF('Aug-Raw'!J:J,"Justified") -> 0 | D5: =COUNTIF('Aug-Raw'!L:L,"Justified") -> 0 | E5: =COUNTIF('Aug-Raw'!N:N,"Justified") -> 0 | F5: =COUNTIF('Aug-Raw'!P:P,"Justified") -> 0 | G5: =COUNTIF('Aug-Raw'!R:R,"Justified") -> 0 | H5: =COUNTIF('Aug-Raw'!T:T,"Justified") -> 0 | I5: =COUNTIF('Aug-Raw'!V:V,"Justified") -> 0 | J5: =COUNTIF('Aug-Raw'!X:X,"Justified") -> 1 | K5: =COUNTIF('Aug-Raw'!Z:Z,"Justified") -> 0 | L5: =COUNTIF('Aug-Raw'!AB:AB,"Justified") -> 0 | M5: =COUNTIF('Aug-Raw'!AD:AD,"Justified") -> 0 | N5: =COUNTIF('Aug-Raw'!AF:AF,"Justified") -> 0 | O5: =COUNTIF('Aug-Raw'!AH:AH,"Justified") -> 0 | P5: =COUNTIF('Aug-Raw'!AJ:AJ,"Justified") -> 0 | Q5: =COUNTIF('Aug-Raw'!AL:AL,"Justified") -> 0 | R5: =COUNTIF('Aug-Raw'!AN:AN,"Justified") -> 0 | S5: =COUNTIF('Aug-Raw'!AP:AP,"Justified") -> 0 | T5: =COUNTIF('Aug-Raw'!AR:AR,"Justified") -> 0 | U5: =COUNTIF('Aug-Raw'!AT:AT,"Justified") -> 0 | V5: =COUNTIF('Aug-Raw'!AV:AV,"Justified") -> 0 | W5: =COUNTIF('Aug-Raw'!AX:AX,"Justified") -> 0 | X5: =COUNTIF('Aug-Raw'!AZ:AZ,"Justified") -> 0 | Y5: =COUNTIF('Aug-Raw'!BB:BB,"Justified") -> 0 | Z5: =COUNTIF('Aug-Raw'!BD:BD,"Justified") -> 0 | AA5: =COUNTIF('Aug-Raw'!BF:BF,"Justified") -> 0 | AB5: =COUNTIF('Aug-Raw'!BH:BH,"Justified") -> 0 | AC5: =COUNTIF('Aug-Raw'!BJ:BJ,"Justified") -> 0 | AD5: =COUNTIF('Aug-Raw'!BL:BL,"Justified") -> 0 | AE5: =COUNTIF('Aug-Raw'!BN:BN,"Justified") -> 0 | AF5: =COUNTIF('Aug-Raw'!BP:BP,"Justified") -> 0 | AG5: =COUNTIF('Aug-Raw'!BR:BR,"Justified") -> 0 | AH5: =COUNTIF('Aug-Raw'!BT:BT,"Justified") -> 0 | AI5: =COUNTIF('Aug-Raw'!BV:BV,"Justified") -> 0 | AJ5: =COUNTIF('Aug-Raw'!BX:BX,"Justified") -> 0 | AK5: =COUNTIF('Aug-Raw'!BZ:BZ,"Justified") -> 0 | AL5: =COUNTIF('Aug-Raw'!CB:CB,"Justified") -> 0 | AM5: =COUNTIF('Aug-Raw'!CD:CD,"Justified") -> 0 | AN5: =COUNTIF('Aug-Raw'!CF:CF,"Justified") -> 0 | AO5: =COUNTIF('Aug-Raw'!CH:CH,"Justified") -> 0
A6: Total NA | B6: =COUNTIF('Aug-Raw'!H:H,"NA") -> 0 | C6: =COUNTIF('Aug-Raw'!J:J,"NA") -> 0 | D6: =COUNTIF('Aug-Raw'!L:L,"NA") -> 0 | E6: =COUNTIF('Aug-Raw'!N:N,"NA") -> 0 | F6: =COUNTIF('Aug-Raw'!P:P,"NA") -> 0 | G6: =COUNTIF('Aug-Raw'!R:R,"NA") -> 0 | H6: =COUNTIF('Aug-Raw'!T:T,"NA") -> 0 | I6: =COUNTIF('Aug-Raw'!V:V,"NA") -> 0 | J6: =COUNTIF('Aug-Raw'!X:X,"NA") -> 0 | K6: =COUNTIF('Aug-Raw'!Z:Z,"NA") -> 0 | L6: =COUNTIF('Aug-Raw'!AB:AB,"NA") -> 0 | M6: =COUNTIF('Aug-Raw'!AD:AD,"NA") -> 0 | N6: =COUNTIF('Aug-Raw'!AF:AF,"NA") -> 0 | O6: =COUNTIF('Aug-Raw'!AH:AH,"NA") -> 0 | P6: =COUNTIF('Aug-Raw'!AJ:AJ,"NA") -> 0 | Q6: =COUNTIF('Aug-Raw'!AL:AL,"NA") -> 0 | R6: =COUNTIF('Aug-Raw'!AN:AN,"NA") -> 0 | S6: =COUNTIF('Aug-Raw'!AP:AP,"NA") -> 0 | T6: =COUNTIF('Aug-Raw'!AR:AR,"NA") -> 0 | U6: =COUNTIF('Aug-Raw'!AT:AT,"NA") -> 0 | V6: =COUNTIF('Aug-Raw'!AV:AV,"NA") -> 0 | W6: =COUNTIF('Aug-Raw'!AX:AX,"NA") -> 0 | X6: =COUNTIF('Aug-Raw'!AZ:AZ,"NA") -> 0 | Y6: =COUNTIF('Aug-Raw'!BB:BB,"NA") -> 0 | Z6: =COUNTIF('Aug-Raw'!BD:BD,"NA") -> 0 | AA6: =COUNTIF('Aug-Raw'!BF:BF,"NA") -> 0 | AB6: =COUNTIF('Aug-Raw'!BH:BH,"NA") -> 0 | AC6: =COUNTIF('Aug-Raw'!BJ:BJ,"NA") -> 0 | AD6: =COUNTIF('Aug-Raw'!BL:BL,"NA") -> 0 | AE6: =COUNTIF('Aug-Raw'!BN:BN,"NA") -> 0 | AF6: =COUNTIF('Aug-Raw'!BP:BP,"NA") -> 0 | AG6: =COUNTIF('Aug-Raw'!BR:BR,"NA") -> 0 | AH6: =COUNTIF('Aug-Raw'!BT:BT,"NA") -> 0 | AI6: =COUNTIF('Aug-Raw'!BV:BV,"NA") -> 0 | AJ6: =COUNTIF('Aug-Raw'!BX:BX,"NA") -> 0 | AK6: =COUNTIF('Aug-Raw'!BZ:BZ,"NA") -> 0 | AL6: =COUNTIF('Aug-Raw'!CB:CB,"NA") -> 0 | AM6: =COUNTIF('Aug-Raw'!CD:CD,"NA") -> 0 | AN6: =COUNTIF('Aug-Raw'!CF:CF,"NA") -> 0 | AO6: =COUNTIF('Aug-Raw'!CH:CH,"NA") -> 0
A7: Blanks | B7: =B8-(SUM(B3:B6)) -> 0 | C7: =C8-(SUM(C3:C6)) -> 0 | D7: 0 | E7: 0 | F7: 0 | G7: 0 | H7: 0 | I7: 0 | J7: 0 | K7: 0 | L7: 0 | M7: 5 | N7: 5 | O7: 5 | P7: 5 | Q7: 5 | R7: 5 | S7: 5 | T7: 5 | U7: 5 | V7: 5 | W7: 5 | X7: 5 | Y7: 5 | Z7: 5 | AA7: 5 | AB7: 5 | AC7: 5 | AD7: 5 | AE7: 5 | AF7: 5 | AG7: 5 | AH7: 5 | AI7: 5 | AJ7: 5 | AK7: 5 | AL7: 5 | AM7: 5 | AN7: 5 | AO7: 5
A8: full sample size | B8: =COUNTA('Aug-Raw'!A:A)-2 -> 5 | C8: =B8 -> 5 | D8: 5 | E8: 5 | F8: 5 | G8: 5 | H8: 5 | I8: 5 | J8: 5 | K8: 5 | L8: 5 | M8: 5 | N8: 5 | O8: 5 | P8: 5 | Q8: 5 | R8: 5 | S8: 5 | T8: 5 | U8: 5 | V8: 5 | W8: 5 | X8: 5 | Y8: 5 | Z8: 5 | AA8: 5 | AB8: 5 | AC8: 5 | AD8: 5 | AE8: 5 | AF8: 5 | AG8: 5 | AH8: 5 | AI8: 5 | AJ8: 5 | AK8: 5 | AL8: 5 | AM8: 5 | AN8: 5 | AO8: 5
A9: True sample size (-NA + blanks) | B9: =IF(ISERROR(B8-(B6+B7)),"",B8-(B6+B7)) -> 5 | C9: =IF(ISERROR(C8-(C6+C7)),"",C8-(C6+C7)) -> 5 | D9: 5 | E9: 5 | F9: 5 | G9: 5 | H9: 5 | I9: 5 | J9: 5 | K9: 5 | L9: 5 | M9: 0 | N9: 0 | O9: 0 | P9: 0 | Q9: 0 | R9: 0 | S9: 0 | T9: 0 | U9: 0 | V9: 0 | W9: 0 | X9: 0 | Y9: 0 | Z9: 0 | AA9: 0 | AB9: 0 | AC9: 0 | AD9: 0 | AE9: 0 | AF9: 0 | AG9: 0 | AH9: 0 | AI9: 0 | AJ9: 0 | AK9: 0 | AL9: 0 | AM9: 0 | AN9: 0 | AO9: 0
A10: %Y | B10: =IF(ISERROR(B3/B9),"",B3/B9) -> 1 | C10: =IF(ISERROR(C3/C9),"",C3/C9) -> 0.8 | D10: 1 | E10: 1 | F10: 1 | G10: 1 | H10: 1 | I10: 1 | J10: 0.8 | K10: 1 | L10: 1
A11: %N | B11: =IF(ISERROR(B4/B9),"",B4/B9) -> 0 | C11: =IF(ISERROR(C4/C9),"",C4/C9) -> 0.2 | D11: 0 | E11: 0 | F11: 0 | G11: 0 | H11: 0 | I11: 0 | J11: 0 | K11: 0 | L11: 0
A12: %N - Justified | B12: =IF(ISERROR(B5/B9),"",B5/B9) -> 0 | C12: =IF(ISERROR(C5/C9),"",C5/C9) -> 0 | D12: 0 | E12: 0 | F12: 0 | G12: 0 | H12: 0 | I12: 0 | J12: 0.2 | K12: 0 | L12: 0

Sheet Sept
A1: Click here to go to year overview
A3: Date | D3: Total by Apt type
A4: Completed by | D4: New | E4: =COUNTIF('Sept-Raw'!E3:E103,"New") -> 4
A5: Sample group size | B5: =COUNTA('Sept-Raw'!A:A)-2 -> 4 | D5: Follow up | E5: =COUNTIF('Sept-Raw'!E3:E103,"Fup") -> 0 | H5: =Year!H5 -> 0.95
A6: Overall Result (compliant only) | B6: =IF(ISERROR(SUM(D11:D50)/G51),"",SUM(D11:D50)/G51) -> 0.9772727273 | D6: Total by apt Code | H6: =Year!H6 -> 80-95%
A7: Overall Result (compliant & Justified) | B7: =IF(ISERROR(SUM(C11:C50)/G51),"",SUM(C11:C50)/G51) -> 0.9772727273 | D7: code goes in here | E7: =COUNTIF('Sept-Raw'!F3:F103,D7) -> 0 | H7: =Year!H7 -> 0.8
A8: viable qs | B8: =G51 -> 11
A10: Metric | B10: Target % | C10: Compliant + Justified | D10: Compliant | E10: Justified | F10: Not compliant | G10: Irritating math
A11: =IF(ISERROR(Q!A2),"",Q!A2) -> Was a Room number documented? | B11: =IF(ISERROR(Q!B2),"",Q!B2) -> 0 | C11: =IF(ISERROR(D11+E11),"",D11+E11) -> 1 | D11: ='Sept-Data'!B10 -> 1 | E11: ='Sept-Data'!B12 -> 0 | F11: ='Sept-Data'!B11 -> 0 | G11: =COUNTIF(D11:F11,">0") -> 1
A12: =IF(ISERROR(Q!A3),"",Q!A3) -> Were stage A checks completed as appropriate? | B12: =IF(ISERROR(Q!B3),"",Q!B3) -> 0 | C12: 1 | D12: ='Sept-Data'!C10 -> 1 | E12: ='Sept-Data'!C12 -> 0 | F12: ='Sept-Data'!C11 -> 0 | G12: 1
A13: =IF(ISERROR(Q!A4),"",Q!A4) -> Was COSI Part 1 performed? | B13: =IF(ISERROR(Q!B4),"",Q!B4) -> 0 | C13: 0.75 | D13: ='Sept-Data'!D10 -> 0.75 | E13: ='Sept-Data'!D12 -> 0 | F13: ='Sept-Data'!D11 -> 0.25 | G13: 2
A14: =IF(ISERROR(Q!A5),"",Q!A5) -> Was PVP documented? | B14: =IF(ISERROR(Q!B5),"",Q!B5) -> 0 | C14: 1 | D14: ='Sept-Data'!E10 -> 1 | E14: ='Sept-Data'!E12 -> 0 | F14: ='Sept-Data'!E11 -> 0 | G14: 1
A15: =IF(ISERROR(Q!A6),"",Q!A6) -> Was Otoscopy documented? | B15: =IF(ISERROR(Q!B6),"",Q!B6) -> 0 | C15: 1 | D15: ='Sept-Data'!F10 -> 1 | E15: ='Sept-Data'!F12 -> 0 | F15: ='Sept-Data'!F11 -> 0 | G15: 1
A16: =IF(ISERROR(Q!A7),"",Q!A7) -> Document bc at 3 & 4kHz is for programming purposes? | B16: =IF(ISERROR(Q!B7),"",Q!B7) -> 0 | C16: 1 | D16: ='Sept-Data'!G10 -> 1 | E16: ='Sept-Data'!G12 -> 0 | F16: ='Sept-Data'!G11 -> 0 | G16: 1
A17: =IF(ISERROR(Q!A8),"",Q!A8) -> Was Speech testing performed? | B17: =IF(ISERROR(Q!B8),"",Q!B8) -> 0 | C17: 1 | D17: ='Sept-Data'!H10 -> 1 | E17: ='Sept-Data'!H12 -> 0 | F17: ='Sept-Data'!H11 -> 0 | G17: 1
A18: =IF(ISERROR(Q!A9),"",Q!A9) -> Is it documented whether national criteria were/were not met? | B18: =IF(ISERROR(Q!B9),"",Q!B9) -> 0 | C18: 1 | D18: ='Sept-Data'!I10 -> 1 | E18: ='Sept-Data'!I12 -> 0 | F18: ='Sept-Data'!I11 -> 0 | G18: 1
A19: =IF(ISERROR(Q!A10),"",Q!A10) -> Was a BCHI info pack supplied? | B19: =IF(ISERROR(Q!B10),"",Q!B10) -> 0 | C19: 1 | D19: ='Sept-Data'!J10 -> 1 | E19: ='Sept-Data'!J12 -> 0 | F19: ='Sept-Data'!J11 -> 0 | G19: 1
A20: =IF(ISERROR(Q!A11),"",Q!A11) -> Was the report authorised & issued within target (7 days)? | B20: =IF(ISERROR(Q!B11),"",Q!B11) -> 0 | C20: 1 | D20: ='Sept-Data'!K10 -> 1 | E20: ='Sept-Data'!K12 -> 0 | F20: ='Sept-Data'!K11 -> 0 | G20: 1
A21: =IF(ISERROR(Q!A12),"",Q!A12) -> Was consent documented as appropriate? | B21: =IF(ISERROR(Q!B12),"",Q!B12) -> 0 | C21: 1 | D21: ='Sept-Data'!L10 -> 1 | E21: ='Sept-Data'!L12 -> 0 | F21: ='Sept-Data'!L11 -> 0 | G21: 1
A22: =IF(ISERROR(Q!A13),"",Q!A13) -> 0 | B22: =IF(ISERROR(Q!B13),"",Q!B13) -> 0 | D22: ='Sept-Data'!M10 ->  | E22: ='Sept-Data'!M12 ->  | F22: ='Sept-Data'!M11 ->  | G22: 0
A23: =IF(ISERROR(Q!A14),"",Q!A14) -> 0 | B23: =IF(ISERROR(Q!B14),"",Q!B14) -> 0 | D23: ='Sept-Data'!N10 ->  | E23: ='Sept-Data'!N12 ->  | F23: ='Sept-Data'!N11 ->  | G23: 0
A24: =IF(ISERROR(Q!A15),"",Q!A15) -> 0 | B24: =IF(ISERROR(Q!B15),"",Q!B15) -> 0 | D24: ='Sept-Data'!O10 ->  | E24: ='Sept-Data'!O12 ->  | F24: ='Sept-Data'!O11 ->  | G24: 0
A25: =IF(ISERROR(Q!A16),"",Q!A16) -> 0 | B25: =IF(ISERROR(Q!B16),"",Q!B16) -> 0 | D25: ='Sept-Data'!P10 ->  | E25: ='Sept-Data'!P12 ->  | F25: ='Sept-Data'!P11 ->  | G25: 0
A26: =IF(ISERROR(Q!A17),"",Q!A17) -> 0 | B26: =IF(ISERROR(Q!B17),"",Q!B17) -> 0 | D26: ='Sept-Data'!Q10 ->  | E26: ='Sept-Data'!Q12 ->  | F26: ='Sept-Data'!Q11 ->  | G26: 0
A27: =IF(ISERROR(Q!A18),"",Q!A18) -> 0 | B27: =IF(ISERROR(Q!B18),"",Q!B18) -> 0 | D27: ='Sept-Data'!R10 ->  | E27: ='Sept-Data'!R12 ->  | F27: ='Sept-Data'!R11 ->  | G27: 0
A28: =IF(ISERROR(Q!A19),"",Q!A19) -> 0 | B28: =IF(ISERROR(Q!B19),"",Q!B19) -> 0 | D28: ='Sept-Data'!S10 ->  | E28: ='Sept-Data'!S12 ->  | F28: ='Sept-Data'!S11 ->  | G28: 0
A29: =IF(ISERROR(Q!A20),"",Q!A20) -> 0 | B29: =IF(ISERROR(Q!B20),"",Q!B20) -> 0 | D29: ='Sept-Data'!T10 ->  | E29: ='Sept-Data'!T12 ->  | F29: ='Sept-Data'!T11 ->  | G29: 0
A30: =IF(ISERROR(Q!A21),"",Q!A21) -> 0 | B30: =IF(ISERROR(Q!B21),"",Q!B21) -> 0 | D30: ='Sept-Data'!U10 ->  | E30: ='Sept-Data'!U12 ->  | F30: ='Sept-Data'!U11 ->  | G30: 0
A31: =IF(ISERROR(Q!A22),"",Q!A22) -> 0 | B31: =IF(ISERROR(Q!B22),"",Q!B22) -> 0 | D31: ='Sept-Data'!V10 ->  | E31: ='Sept-Data'!V12 ->  | F31: ='Sept-Data'!V11 ->  | G31: 0
A32: =IF(ISERROR(Q!A23),"",Q!A23) -> 0 | B32: =IF(ISERROR(Q!B23),"",Q!B23) -> 0 | D32: ='Sept-Data'!W10 ->  | E32: ='Sept-Data'!W12 ->  | F32: ='Sept-Data'!W11 ->  | G32: 0
A33: =IF(ISERROR(Q!A24),"",Q!A24) -> 0 | B33: =IF(ISERROR(Q!B24),"",Q!B24) -> 0 | D33: ='Sept-Data'!X10 ->  | E33: ='Sept-Data'!X12 ->  | F33: ='Sept-Data'!X11 ->  | G33: 0
A34: =IF(ISERROR(Q!A25),"",Q!A25) -> 0 | B34: =IF(ISERROR(Q!B25),"",Q!B25) -> 0 | D34: ='Sept-Data'!Y10 ->  | E34: ='Sept-Data'!Y12 ->  | F34: ='Sept-Data'!Y11 ->  | G34: 0
A35: =IF(ISERROR(Q!A26),"",Q!A26) -> 0 | B35: =IF(ISERROR(Q!B26),"",Q!B26) -> 0 | D35: ='Sept-Data'!Z10 ->  | E35: ='Sept-Data'!Z12 ->  | F35: ='Sept-Data'!Z11 ->  | G35: 0
A36: =IF(ISERROR(Q!A27),"",Q!A27) -> 0 | B36: =IF(ISERROR(Q!B27),"",Q!B27) -> 0 | D36: ='Sept-Data'!AA10 ->  | E36: ='Sept-Data'!AA12 ->  | F36: ='Sept-Data'!AA11 ->  | G36: 0
A37: =IF(ISERROR(Q!A28),"",Q!A28) -> 0 | B37: =IF(ISERROR(Q!B28),"",Q!B28) -> 0 | D37: ='Sept-Data'!AB10 ->  | E37: ='Sept-Data'!AB12 ->  | F37: ='Sept-Data'!AB11 ->  | G37: 0
A38: =IF(ISERROR(Q!A29),"",Q!A29) -> 0 | B38: =IF(ISERROR(Q!B29),"",Q!B29) -> 0 | D38: ='Sept-Data'!AC10 ->  | E38: ='Sept-Data'!AC12 ->  | F38: ='Sept-Data'!AC11 ->  | G38: 0
A39: =IF(ISERROR(Q!A30),"",Q!A30) -> 0 | B39: =IF(ISERROR(Q!B30),"",Q!B30) -> 0 | D39: ='Sept-Data'!AD10 ->  | E39: ='Sept-Data'!AD12 ->  | F39: ='Sept-Data'!AD11 ->  | G39: 0
A40: =IF(ISERROR(Q!A31),"",Q!A31) -> 0 | B40: =IF(ISERROR(Q!B31),"",Q!B31) -> 0 | D40: ='Sept-Data'!AE10 ->  | E40: ='Sept-Data'!AE12 ->  | F40: ='Sept-Data'!AE11 ->  | G40: 0
A41: =IF(ISERROR(Q!A32),"",Q!A32) -> 0 | B41: =IF(ISERROR(Q!B32),"",Q!B32) -> 0 | D41: ='Sept-Data'!AF10 ->  | E41: ='Sept-Data'!AF12 ->  | F41: ='Sept-Data'!AF11 ->  | G41: 0
A42: =IF(ISERROR(Q!A33),"",Q!A33) -> 0 | B42: =IF(ISERROR(Q!B33),"",Q!B33) -> 0 | D42: ='Sept-Data'!AG10 ->  | E42: ='Sept-Data'!AG12 ->  | F42: ='Sept-Data'!AG11 ->  | G42: 0
A43: =IF(ISERROR(Q!A34),"",Q!A34) -> 0 | B43: =IF(ISERROR(Q!B34),"",Q!B34) -> 0 | D43: ='Sept-Data'!AH10 ->  | E43: ='Sept-Data'!AH12 ->  | F43: ='Sept-Data'!AH11 ->  | G43: 0
A44: =IF(ISERROR(Q!A35),"",Q!A35) -> 0 | B44: =IF(ISERROR(Q!B35),"",Q!B35) -> 0 | D44: ='Sept-Data'!AI10 ->  | E44: ='Sept-Data'!AI12 ->  | F44: ='Sept-Data'!AI11 ->  | G44: 0
A45: =IF(ISERROR(Q!A36),"",Q!A36) -> 0 | B45: =IF(ISERROR(Q!B36),"",Q!B36) -> 0 | D45: ='Sept-Data'!AJ10 ->  | E45: ='Sept-Data'!AJ12 ->  | F45: ='Sept-Data'!AJ11 ->  | G45: 0
A46: =IF(ISERROR(Q!A37),"",Q!A37) -> 0 | B46: =IF(ISERROR(Q!B37),"",Q!B37) -> 0 | D46: ='Sept-Data'!AK10 ->  | E46: ='Sept-Data'!AK12 ->  | F46: ='Sept-Data'!AK11 ->  | G46: 0
A47: =IF(ISERROR(Q!A38),"",Q!A38) -> 0 | B47: =IF(ISERROR(Q!B38),"",Q!B38) -> 0 | D47: ='Sept-Data'!AL10 ->  | E47: ='Sept-Data'!AL12 ->  | F47: ='Sept-Data'!AL11 ->  | G47: 0
A48: =IF(ISERROR(Q!A39),"",Q!A39) -> 0 | B48: =IF(ISERROR(Q!B39),"",Q!B39) -> 0 | D48: ='Sept-Data'!AM10 ->  | E48: ='Sept-Data'!AM12 ->  | F48: ='Sept-Data'!AM11 ->  | G48: 0
A49: =IF(ISERROR(Q!A40),"",Q!A40) -> 0 | B49: =IF(ISERROR(Q!B40),"",Q!B40) -> 0 | D49: ='Sept-Data'!AN10 ->  | E49: ='Sept-Data'!AN12 ->  | F49: ='Sept-Data'!AN11 ->  | G49: 0
A50: =IF(ISERROR(Q!A41),"",Q!A41) -> 0 | B50: =IF(ISERROR(Q!B41),"",Q!B41) -> 0 | D50: ='Sept-Data'!AO10 ->  | E50: ='Sept-Data'!AO12 ->  | F50: ='Sept-Data'!AO11 ->  | G50: 0
G51: =COUNTIF(G11:G50,">=1") -> 11

Sheet Sept-Raw (hidden)
A1: Record details | G1: Notes | H1: =Q!A2 -> Was a Room number documented? | J1: =Q!A3 -> Were stage A checks completed as appropriate? | L1: =Q!A4 -> Was COSI Part 1 performed? | N1: =Q!A5 -> Was PVP documented? | P1: =Q!A6 -> Was Otoscopy documented? | R1: =Q!A7 -> Document bc at 3 & 4kHz is for programming purposes? | T1: =Q!A8 -> Was Speech testing performed? | V1: =Q!A9 -> Is it documented whether national criteria were/were not met? | X1: =Q!A10 -> Was a BCHI info pack supplied? | Z1: =Q!A11 -> Was the report authorised & issued within target (7 days)? | AB1: =Q!A12 -> Was consent documented as appropriate? | AD1: =Q!A13 -> 0 | AF1: =Q!A14 -> 0 | AH1: =Q!A15 -> 0 | AJ1: =Q!A16 -> 0 | AL1: =Q!A17 -> 0 | AN1: =Q!A18 -> 0 | AP1: =Q!A19 -> 0 | AR1: =Q!A20 -> 0 | AT1: =Q!A21 -> 0 | AV1: =Q!A22 -> 0 | AX1: =Q!A23 -> 0 | AZ1: =Q!A24 -> 0 | BB1: =Q!A25 -> 0 | BD1: =Q!A26 -> 0 | BF1: =Q!A27 -> 0 | BH1: =Q!A28 -> 0 | BJ1: =Q!A29 -> 0 | BL1: =Q!A30 -> 0 | BN1: =Q!A31 -> 0 | BP1: =Q!A32 -> 0 | BR1: =Q!A33 -> 0 | BT1: =Q!A34 -> 0 | BV1: =Q!A35 -> 0 | BX1: =Q!A36 -> 0 | BZ1: =Q!A37 -> 0 | CB1: =Q!A38 -> 0 | CD1: =Q!A39 -> 0 | CF1: =Q!A40 -> 0 | CH1: =Q!A41 -> 0
A2: Pt number | B2: Date seen | C2: Clinician 1 | D2: clinician 2 | E2: New/ F-up | F2: Apt code | H2: Compliant? | I2: Other result | J2: Compliant? | K2: Other result | L2: Compliant? | M2: Other result | N2: Compliant? | O2: Other result | P2: Compliant? | Q2: Other result | R2: Compliant? | S2: Other result | T2: Compliant? | U2: Other result | V2: Compliant? | W2: Other result | X2: Compliant? | Y2: Other result | Z2: Compliant? | AA2: Other result | AB2: Compliant? | AC2: Other result | AD2: Compliant? | AE2: Other result | AF2: Compliant? | AG2: Other result | AH2: Compliant? | AI2: Other result | AJ2: Compliant? | AK2: Other result | AL2: Compliant? | AM2: Other result | AN2: Compliant? | AO2: Other result | AP2: Compliant? | AQ2: Other result | AR2: Compliant? | AS2: Other result | AT2: Compliant? | AU2: Other result | AV2: Compliant? | AW2: Other result | AX2: Compliant? | AY2: Other result | AZ2: Compliant? | BA2: Other result | BB2: Compliant? | BC2: Other result | BD2: Compliant? | BE2: Other result | BF2: Compliant? | BG2: Other result | BH2: Compliant? | BI2: Other result | BJ2: Compliant? | BK2: Other result | BL2: Compliant? | BM2: Other result | BN2: Compliant? | BO2: Other result | BP2: Compliant? | BQ2: Other result | BR2: Compliant? | BS2: Other result | BT2: Compliant? | BU2: Other result | BV2: Compliant? | BW2: Other result | BX2: Compliant? | BY2: Other result | BZ2: Compliant? | CA2: Other result | CB2: Compliant? | CC2: Other result | CD2: Compliant? | CE2: Other result | CF2: Compliant? | CG2: Other result | CH2: Compliant? | CI2: Other result
A3: AB0001 | B3: 2023-09-09 | C3: AA | E3: New | F3: BA | H3: Yes | J3: Yes | L3: Yes | N3: Yes | P3: Yes | R3: Yes | T3: Yes | V3: Yes | X3: Yes | Z3: Yes | AB3: Yes
A4: AB0002 | B4: 2023-09-17 | C4: AA | E4: New | F4: BA | H4: Yes | J4: Yes | L4: Yes | N4: Yes | P4: Yes | R4: Yes | T4: Yes | V4: Yes | X4: Yes | Z4: Yes | AB4: Yes
A5: AB0003 | B5: 2023-09-24 | C5: BB | E5: New | F5: BA | H5: Yes | J5: Yes | L5: No | N5: Yes | P5: Yes | R5: Yes | T5: Yes | V5: Yes | X5: Yes | Z5: Yes | AB5: Yes
A6: AB0004 | B6: 2023-09-26 | C6: BB | E6: New | F6: BA | H6: Yes | J6: Yes | L6: Yes | N6: Yes | P6: Yes | R6: Yes | T6: Yes | V6: Yes | X6: Yes | Z6: Yes | AB6: Yes

Sheet Sept-Data (hidden)
A1: Results | B1: =Q!A2 -> Was a Room number documented? | C1: =Q!A3 -> Were stage A checks completed as appropriate? | D1: =Q!A4 -> Was COSI Part 1 performed? | E1: =Q!A5 -> Was PVP documented? | F1: =Q!A6 -> Was Otoscopy documented? | G1: =Q!A7 -> Document bc at 3 & 4kHz is for programming purposes? | H1: =Q!A8 -> Was Speech testing performed? | I1: =Q!A9 -> Is it documented whether national criteria were/were not met? | J1: =Q!A10 -> Was a BCHI info pack supplied? | K1: =Q!A11 -> Was the report authorised & issued within target (7 days)? | L1: =Q!A12 -> Was consent documented as appropriate? | M1: =Q!A13 -> 0 | N1: =Q!A14 -> 0 | O1: =Q!A15 -> 0 | P1: =Q!A16 -> 0 | Q1: =Q!A17 -> 0 | R1: =Q!A18 -> 0 | S1: =Q!A19 -> 0 | T1: =Q!A20 -> 0 | U1: =Q!A21 -> 0 | V1: =Q!A22 -> 0 | W1: =Q!A23 -> 0 | X1: =Q!A24 -> 0 | Y1: =Q!A25 -> 0 | Z1: =Q!A26 -> 0 | AA1: =Q!A27 -> 0 | AB1: =Q!A28 -> 0 | AC1: =Q!A29 -> 0 | AD1: =Q!A30 -> 0 | AE1: =Q!A31 -> 0 | AF1: =Q!A32 -> 0 | AG1: =Q!A33 -> 0 | AH1: =Q!A34 -> 0 | AI1: =Q!A35 -> 0 | AJ1: =Q!A36 -> 0 | AK1: =Q!A37 -> 0 | AL1: =Q!A38 -> 0 | AM1: =Q!A39 -> 0 | AN1: =Q!A40 -> 0 | AO1: =Q!A41 -> 0
B2: Compliant? | C2: Compliant? | D2: Compliant? | E2: Compliant? | F2: Compliant? | G2: Compliant? | H2: Compliant? | I2: Compliant? | J2: Compliant? | K2: Compliant? | L2: Compliant? | M2: Compliant? | N2: Compliant? | O2: Compliant? | P2: Compliant? | Q2: Compliant? | R2: Compliant? | S2: Compliant? | T2: Compliant? | U2: Compliant? | V2: Compliant? | W2: Compliant? | X2: Compliant? | Y2: Compliant? | Z2: Compliant? | AA2: Compliant? | AB2: Compliant? | AC2: Compliant? | AD2: Compliant? | AE2: Compliant? | AF2: Compliant? | AG2: Compliant? | AH2: Compliant? | AI2: Compliant? | AJ2: Compliant? | AK2: Compliant? | AL2: Compliant? | AM2: Compliant? | AN2: Compliant? | AO2: Compliant?
A3: Total Y | B3: =COUNTIF('Sept-Raw'!H:H,"yes") -> 4 | C3: =COUNTIF('Sept-Raw'!J:J,"yes") -> 4 | D3: =COUNTIF('Sept-Raw'!L:L,"yes") -> 3 | E3: =COUNTIF('Sept-Raw'!N:N,"yes") -> 4 | F3: =COUNTIF('Sept-Raw'!P:P,"yes") -> 4 | G3: =COUNTIF('Sept-Raw'!R:R,"yes") -> 4 | H3: =COUNTIF('Sept-Raw'!T:T,"yes") -> 4 | I3: =COUNTIF('Sept-Raw'!V:V,"yes") -> 4 | J3: =COUNTIF('Sept-Raw'!X:X,"yes") -> 4 | K3: =COUNTIF('Sept-Raw'!Z:Z,"yes") -> 4 | L3: =COUNTIF('Sept-Raw'!AB:AB,"yes") -> 4 | M3: =COUNTIF('Sept-Raw'!AD:AD,"yes") -> 0 | N3: =COUNTIF('Sept-Raw'!AF:AF,"yes") -> 0 | O3: =COUNTIF('Sept-Raw'!AH:AH,"yes") -> 0 | P3: =COUNTIF('Sept-Raw'!AJ:AJ,"yes") -> 0 | Q3: =COUNTIF('Sept-Raw'!AL:AL,"yes") -> 0 | R3: =COUNTIF('Sept-Raw'!AN:AN,"yes") -> 0 | S3: =COUNTIF('Sept-Raw'!AP:AP,"yes") -> 0 | T3: =COUNTIF('Sept-Raw'!AR:AR,"yes") -> 0 | U3: =COUNTIF('Sept-Raw'!AT:AT,"yes") -> 0 | V3: =COUNTIF('Sept-Raw'!AV:AV,"yes") -> 0 | W3: =COUNTIF('Sept-Raw'!AX:AX,"yes") -> 0 | X3: =COUNTIF('Sept-Raw'!AZ:AZ,"yes") -> 0 | Y3: =COUNTIF('Sept-Raw'!BB:BB,"yes") -> 0 | Z3: =COUNTIF('Sept-Raw'!BD:BD,"yes") -> 0 | AA3: =COUNTIF('Sept-Raw'!BF:BF,"yes") -> 0 | AB3: =COUNTIF('Sept-Raw'!BH:BH,"yes") -> 0 | AC3: =COUNTIF('Sept-Raw'!BJ:BJ,"yes") -> 0 | AD3: =COUNTIF('Sept-Raw'!BL:BL,"yes") -> 0 | AE3: =COUNTIF('Sept-Raw'!BN:BN,"yes") -> 0 | AF3: =COUNTIF('Sept-Raw'!BP:BP,"yes") -> 0 | AG3: =COUNTIF('Sept-Raw'!BR:BR,"yes") -> 0 | AH3: =COUNTIF('Sept-Raw'!BT:BT,"yes") -> 0 | AI3: =COUNTIF('Sept-Raw'!BV:BV,"yes") -> 0 | AJ3: =COUNTIF('Sept-Raw'!BX:BX,"yes") -> 0 | AK3: =COUNTIF('Sept-Raw'!BZ:BZ,"yes") -> 0 | AL3: =COUNTIF('Sept-Raw'!CB:CB,"yes") -> 0 | AM3: =COUNTIF('Sept-Raw'!CD:CD,"yes") -> 0 | AN3: =COUNTIF('Sept-Raw'!CF:CF,"yes") -> 0 | AO3: =COUNTIF('Sept-Raw'!CH:CH,"yes") -> 0
A4: Total N | B4: =COUNTIF('Sept-Raw'!H:H,"no") -> 0 | C4: =COUNTIF('Sept-Raw'!J:J,"no") -> 0 | D4: =COUNTIF('Sept-Raw'!L:L,"no") -> 1 | E4: =COUNTIF('Sept-Raw'!N:N,"no") -> 0 | F4: =COUNTIF('Sept-Raw'!P:P,"no") -> 0 | G4: =COUNTIF('Sept-Raw'!R:R,"no") -> 0 | H4: =COUNTIF('Sept-Raw'!T:T,"no") -> 0 | I4: =COUNTIF('Sept-Raw'!V:V,"no") -> 0 | J4: =COUNTIF('Sept-Raw'!X:X,"no") -> 0 | K4: =COUNTIF('Sept-Raw'!Z:Z,"no") -> 0 | L4: =COUNTIF('Sept-Raw'!AB:AB,"no") -> 0 | M4: =COUNTIF('Sept-Raw'!AD:AD,"no") -> 0 | N4: =COUNTIF('Sept-Raw'!AF:AF,"no") -> 0 | O4: =COUNTIF('Sept-Raw'!AH:AH,"no") -> 0 | P4: =COUNTIF('Sept-Raw'!AJ:AJ,"no") -> 0 | Q4: =COUNTIF('Sept-Raw'!AL:AL,"no") -> 0 | R4: =COUNTIF('Sept-Raw'!AN:AN,"no") -> 0 | S4: =COUNTIF('Sept-Raw'!AP:AP,"no") -> 0 | T4: =COUNTIF('Sept-Raw'!AR:AR,"no") -> 0 | U4: =COUNTIF('Sept-Raw'!AT:AT,"no") -> 0 | V4: =COUNTIF('Sept-Raw'!AV:AV,"no") -> 0 | W4: =COUNTIF('Sept-Raw'!AX:AX,"no") -> 0 | X4: =COUNTIF('Sept-Raw'!AZ:AZ,"no") -> 0 | Y4: =COUNTIF('Sept-Raw'!BB:BB,"no") -> 0 | Z4: =COUNTIF('Sept-Raw'!BD:BD,"no") -> 0 | AA4: =COUNTIF('Sept-Raw'!BF:BF,"no") -> 0 | AB4: =COUNTIF('Sept-Raw'!BH:BH,"no") -> 0 | AC4: =COUNTIF('Sept-Raw'!BJ:BJ,"no") -> 0 | AD4: =COUNTIF('Sept-Raw'!BL:BL,"no") -> 0 | AE4: =COUNTIF('Sept-Raw'!BN:BN,"no") -> 0 | AF4: =COUNTIF('Sept-Raw'!BP:BP,"no") -> 0 | AG4: =COUNTIF('Sept-Raw'!BR:BR,"no") -> 0 | AH4: =COUNTIF('Sept-Raw'!BT:BT,"no") -> 0 | AI4: =COUNTIF('Sept-Raw'!BV:BV,"no") -> 0 | AJ4: =COUNTIF('Sept-Raw'!BX:BX,"no") -> 0 | AK4: =COUNTIF('Sept-Raw'!BZ:BZ,"no") -> 0 | AL4: =COUNTIF('Sept-Raw'!CB:CB,"no") -> 0 | AM4: =COUNTIF('Sept-Raw'!CD:CD,"no") -> 0 | AN4: =COUNTIF('Sept-Raw'!CF:CF,"no") -> 0 | AO4: =COUNTIF('Sept-Raw'!CH:CH,"no") -> 0
